{"text_format":"1","workbook":"xlsx","n_sheets":23,"sheets":["Allgemeines","Mitglieder","Br_A","Si_A","Br_B","Si_B","G1_Br_A","G1_Si_A","G1_Br_B","G1_Si_B","G2_Br_A","G2_Si_A","G2_Br_B","G2_Si_B","AFK_Br_A","AFK_Si_A","AFK_Br_B","AFK_Si_B","Urkunde","Urkundenliste","Bericht","Gesamtergebnis","Modul1"],"not_rendered":{"charts":0,"images":5,"macros":1,"external_links":0,"defined_names":107,"comments":0,"pivot_tables":0},"unopened":[{"sheet":"Modul1","index":22,"reason":"part_missing"}],"bounds":{"document_bytes":16777216,"sheet_cells":100000,"rows_first":2000,"rows_last":500,"rows_between":2000,"halvings":0,"cell_chars":16384,"cell_head_chars":4096},"cells_cut":0,"cells_raw":0,"read":"whole","date_system":"1900"}

{"sheet":"Allgemeines","index":0,"n_rows":253,"n_cols":4,"rows_kept":253,"cut":false,"hidden":false,"merged":[]}
["Bezirks- u. Abschnittsfeuerwehrleistungsbewerbe (ohne Staffellauf)"]
[]
[]
["Bewerbsart:","Abschnittsfeuerwehrleistungsbewerb"]
[]
["Bewerbsdatum:"]
[]
["Bewerbsort:"]
[]
["Klasseneinteilung:","Bezeichnung der Klasse","Blattbezeichnung:","x"]
[null,"Bronze A","Br_A","x"]
[null,"Silber A","Si_A","x"]
[null,"Bronze B","Br_B","x"]
[null,"Silber B","Si_B","x"]
[null,"Gäste 1 Bronze A","G1_Br_A","x"]
[null,"Gäste 1 Silber A","G1_Si_A","x"]
[null,"Gäste 1 Bronze B","G1_Br_B","x"]
[null,"Gäste 1 Silber B","G1_Si_B","x"]
[null,"Gäste 2 Bronze A","G2_Br_A","x"]
[null,"Gäste 2 Silber A","G2_Si_A","x"]
[null,"Gäste 2 Bronze B","G2_Br_B","x"]
[null,"Gäste 2 Silber B","G2_Si_B","x"]
[null,"AFK Bronze A","AFK_Br_A"]
[null,"AFK Silber A","AFK_Si_A"]
[null,"AFK Bronze B","AFK_Br_B"]
[null,"AFK Silber B","AFK_Si_B"]
[null,null,"Urkunde"]
[null,null,"Urkundenliste"]
[null,null,"Gesamtergebnis"]
[]
["Einstellungen:",null,"ja = 1"]
["Alterspunkte:","Stichtag für Alterspunkteberechnung",{"$f":"+Datum","v":"00:00:00"},"(= erster Bewerbstag)"]
[null,"Alterspunkte unter Berücks. v. Stichtag berechnen",0]
[null,"(bei NEIN wird nur Geburtsjahr berücksichtigt)"]
["Speichern:","Automatisches Speichern nach jeder Eingabe",1]
["Urkundendruck:","Urkunden sofort nach Ergebniseingabe drucken",0,"Änderung mit "]
[null,"Vor Druck Seitenansicht zeigen",1,"Doppelklick auf"]
[null,"Teilnehmer in die Urkunden eindrucken",1,"Zeile möglich!"]
[null,"Details (Zeiten, Fehler, Alterspunkte) eindrucken",1]
[]
[null,"Version: 2022 (5.0) - 14.5.2022"]
[null,"erstellt v.  Franz Bretterbauer"]
[null,"3910 Stift Zwettl, Waldrandsiedlung 113"]
[null,"franz.bretterbauer@gmail.com"]
[null,"02822/52199; 0664/846 15 86; 0680/5530826"]
[]
[]
[]
["Hilfe zur Bearbeitung der Bewerbsdatei:"]
[]
["Aufbau:","Die Arbeitsmappe besteht aus dem gerade aktiven Blatt \"Allgemeines\", in das Art,Datum"]
[null,"sowie Ort des Bewerbes eingegeben werden können, weiters aus maximal 14 Blättern für"]
[null,"die einzelnen Bewerbsgruppen, 1 Blatt \"Urkundenliste\" für die alphabetischeReihung aller"]
[null,"angetretenen Gruppen zum händischen Übertrag der Punkt in die Urkunden und der Tabelle"]
[null,"\"Gesamtergebnis\", in dem die Ergebnisse aus allen Listen zusammengefasst werden."]
[]
["Neu in Version 2007!","Im Blatt \"Mitglieder\" kann die Mitgliederliste (aus dem FDISK-Datenexport des Bezirkes)"]
[null,"eingefügt werden. Damit ist es möglich, die Mitglieder durch Angabe der Feuerwehrnummer"]
[null,"und der Standesbuchnummer auszuwählen (für Urkundeneindruck bzw. für Ermittlung"]
[null,"der Alterspunkte bei B-Gruppen)"]
[]
[null,"Über das Blatt \"Urkunde\" kann die Bewerbsurkunde (Eindruck in vorgedruckte Urkunde)"]
[null,"gestaltet werden.Dabei ist zu beachten, dass die mit Namen bezeichneten Felder nicht"]
[null,"gelöscht werden (Änderungen der Formatierung oder Verschieben auf andere Zellen ist"]
[null,"möglich)."]
[]
["Vorbereitung Mitgliederliste:"]
["Schritt 1:","In FDISK die Feuerwehrdaten des Bezirkes exportieren und die Zip-Datei downloaden"]
[null,"und speichern."]
["Schritt 2:","Die in der zip-Datei enthaltene Datei \"Mitglieder.csv\" in Excel. Öffnen"]
["Schritt 3:","Die gesamten Mitgliederdaten (ohne Überschrift) markieren und in die Zwischenablage kopieren"]
["Schritt 4:","In dieser Arbeitsmappe das Blatt \"Mitglieder\" auswählen und die Zelle D2 markieren"]
["Schritt 5:","die Daten aus der Zwischenablage hier hineinkopieren."]
[null,"Die Datenstruktur muss der bereits vorgegebenen Überschrift entsprechen"]
[null,"Es dürfen die grünen Spalten A bis C dabei nicht verändert werden."]
["Schritt 6:","Die Formeln in den grünen Spalten bis an das Ende der Daten hinunterkopieren."]
["Schritt 7:","Speichern - fertig!"]
[]
["Dateneingabe:","Die allgemeinen Daten, wie Bewerbsort, die benötigten Blätter usw. bitte oben in dieser"]
[null,"Tabelle (Blatt \"Allgemeines\") eingeben. Diese werden auf alle anderen Blätter übertragen."]
[null,"Bewerbsart, -ort und -datum werden auch für den Urkundeneindruck verwendet."]
[]
[null,"Die Daten für die Bewerbsgruppen (Bewerbsnummer und Feuerwehrname) können"]
[null,"auf den einzelnen Blättern direkt eingegeben werden oder über die Maske durch Anklicken"]
[null,"der Schaltfläche \"Dateneingabe\" oder durch Drücken der "]
[null,"Tastenkombination Strg + Umschalt + E"]
[null,"Der Aufruf der Dateneingabemaske ist auch durch Doppelklick auf die"]
[null,"entsprechende Zeile möglich."]
[]
[null,"Die übrigen Gruppendaten (Zeiten, Fehler, Alterspunkte) können nur über die Datenmaske"]
[null,"eingegeben werden (Aufruf siehe oben)."]
[null,"Das Geburtsjahr kann zwei oder vierstellig eingegeben werden, wobei Zahlen ab 30 \"19\""]
[null,"automatisch vorangestellt wird, kleineren Zahlen wird \"20\" vorangestellt."]
[]
[null,"Zur Eingabe der je Klasse zu vergebenden Preise bitte die Spalte \"Pokale\" verwenden."]
[]
["Mitgliederauswahl:","1. im Dialogfeld zunächst neben den übrigen Daten die Feuerwehrnummer eingeben."]
[null,null,"z. B. 22439"]
[null,"2. für jedes Mitglied die Standesbuchnummer (ohne führende Null!) eingeben"]
[null,null,"z. B. 49"]
[null,"3. Das Eingabefeld verlassen, z. B. mit Tabulator"]
[null,"Damit wird ein Suchbegriff aus Feuerwehrnummer, einem \"_\" und der Standesbuchnummer erzeugt"]
[null,"4. Die Mitgliederdaten werden in die restlichen Felder eingefügt"]
[]
[]
[]
[]
[]
[]
[]
[]
[]
[]
[]
[]
[]
[]
[]
[null,"Sollen Mitglieder aus anderen Feuerwehren eingefügt werden, sind für diese die"]
[null,"Feuerwehrnummer_Standesbuchnummer direkt anzugeben, z. B. 22446_95"]
[]
[null,"5. Sind Mitglieder (noch) nicht in den Daten enthalten (z. B. aus anderen Bezirken), können diese"]
[null,"mit Namen und Geburtsjahr direkt erfasst werden (Das Feld Standesb. Bleibt leer)"]
[]
[]
["Preise eintragen:","Die Preise (Wanderpreise, Pokale) bitte unbedingt in den Zellen AJ6 und darunter"]
[null,"eintragen. Die Eintragung erfolgt in der Reihenfolge 1., 2., 3. Preis usw., unabhängig"]
[null,"welche Bewerbsgruppe momentan in diesen Zeilen eingetragen ist. Diese Zellen werden "]
[null,"beim Sortieren der Tabelle außer Acht gelassen, bleiben daher immer an der gleichen"]
[null,"Stelle. Dadurch könnendie zu vergebenden Preise bereits eingegeben werden, bevor der"]
[null,"Sieger feststeht."]
[]
["Speichern:","Nach dem Aufruf der Datei (Vorlage) diese unbedingt unter einem anderen"]
[null,"Namen speichern, um die Vorlage nicht zu verändern; z. B.:"]
[null,"Bezirksbewerb2003.xls","Bewerb Ottenschlag 2004.xls"]
[null,"Ergebnis Bewerb Merzenstein 2003.xls","oder dgl."]
[]
["Schaltflächen:","Für die wichtigsten Bearbeitungsschritte sind Schaltflächen vorhanden, die mit der"]
[null,"Maus angeklickt werden können."]
[]
["Tastaturkürzel:","Für die wichtigsten Funktionen (Eingabe, Sortieren) sind auch Tastaturkürzel verwendbar:"]
[]
["Strg + Umsch + E","Eingabe der Gruppendaten in die aktuelle Zeile"]
["Strg + Umsch + O","aktuelles Blatt sortieren (nach Gesamtpunkten)"]
["Strg + Umsch + A","Alle Blätter sortieren (nach Gesamtpunkten)"]
["Strg + Umsch + U","Urkunde zur markierten Bewerbsgruppe drucken"]
["Strg + Umsch + I","Inhalt (= diese Seite) anzeigen"]
["Strg + Umsch + N","Gruppen nach Bewerbsnummern sortieren"]
[]
["Daten löschen:","In jenen Zeilen, in denen Formeln enthalten sind (Überschriften), bitte keine"]
[null,"Änderungen vornehmen, da sonst die Formeln gelöscht werden. "]
[]
[null,"Ebenso in den Makros (normalerweise ohnehin nicht sichtbar) keine Änderungen"]
[null,"vornehmen, da sonst die Makros nicht mehr ordnungsgemäß funktionieren können."]
[]
["Sortieren:","Folgende Sortiermöglichkeiten sind vorhanden:"]
["nach Gruppen-Nr.:","Schaltfläche \"Nr.\" anklicken oder mit Tastatur: Strg + Umschalt + N"]
["nach Namen:","Schaltfläche \"Name sortieren\" anklicken"]
["nach Gesamtpunkten:"]
[null,"a) nur einzelne Tabelle: Schaltfläche \"sortieren\" anklicken oder mit"]
[null,"Tastatur: Strg + Umschalt + O"]
[null,"b) alle Tabellen: Schaltfläche \"Alle Blätter sortieren\" anklicken oder"]
[null,"Strg + Umschalt + A drücken."]
[]
["nach Namen für alle antretenden Gruppen gemeinsam:"]
[null,"Im Blatt \"Urkundenliste\" die Schaltfläche \"Liste erstellen oder aktualisieren\""]
[null,"anklicken."]
[]
["Ausdruck:","Die Listen für die einzelnen Gruppen sind am besten mit der Schaltfläche\"Druck...\""]
[null,"auszudrucken. Dabei wird das Blatt so formatiert,dass der Druckbereich an die Anzahl der"]
[null,"Gruppen angepaßt wird. Der Ausdruckerfolgt in Hochformat, je nach Druckerart etwa auf"]
[null,"90 bis 95% verkleinert."]
[]
[null,"Der Ausdruck der Urkundenliste erfolgt entweder mit dem Menübefehl \"Datei -"]
[null,"drucken\" oder mit dem Druckersymbol der Symbolleiste."]
[]
[null,"Ebenso kann diese Hilfedatei ausgedruckt werden."]
[]
[null,"Anstatt der einzelnen Listen kann das Ergebnis auch über das Blatt \"Gesamtergebnis\""]
[null,"ausgedruckt werden. Bitte vorher gegebenfalls den Dateischuztz aufheben und das"]
[null,"Blatt formatieren (Seitenumbrüche...)."]
[]
["Urkundendruck:","Es besteht die Möglichkeit, die Urkunden auf entsprechend angepassten Vordrucken"]
[null,"(Kopf, Rand, Hintergrundbild etc.) auszudrucken."]
[null,"Es ist auch möglich, bei entsprechender Gestaltung die gesamte Urkunde in einem"]
[null,"Arbeitsgang fertig auszudrucken. Das Blatt \"Urkunde\" kann hierzu angepasst werden."]
[null,"Für manche Anpassungen ist es notwendig, den Dateischutz aufzuheben (Menü Extras -"]
[null,"Schutz - Blattschutz aufheben)."]
[]
[null,"Es ist jedoch unbedingt darauf zu achten, dass keine Zellen gelöscht (entfernt)"]
[null,"werden, die für die Makros benötigt werden. - Bitte die Hinweise rechts neben"]
[null,"dem Druckbereich beachten!"]
[]
[null,"Die Voreinstellungen für den Urkundendruck können in diesem Blatt (oben)"]
[null,"vorgenommen werden:"]
[null,"Urkunden sofort nach Ergebniseingabe drucken:"]
[null,"Nach Beenden des Dialogfeldes zur"]
[null,"Dateneingabe wird automatisch die Urkunde aufgerufen und die Seitenansicht angezeigt."]
[null,"Über die Schaltfläche \"Drucken\" kann diese ausgedruckt werden. Ist ein Druck nicht"]
[null,"erwünscht, kann mit \"Schließen\" der Druck unterbunden werden."]
[null,"Ein neuerlicher Aufruf der Urkunde kann dann mit der Schaltfläche \"Urkunde\" erfolgen,"]
[null,"wobei eine Zelle jener Zeile markiert sein muss, in der die auszudruckende"]
[null,"Bewerbsgruppe steht."]
[]
[null,"Teilnehmer in die Urkunden eindrucken:"]
[null,"Wenn im Dialogfeld Dateneingabe alle neun Teilnehmer der Bewerbsgruppe eingetragen"]
[null,"werden, werden diese auf die Urkunde übernommen."]
[]
[null,"Details (Zeiten, Fehler, Alterspunkte) eindrucken:"]
[null,"Wenn dieses Feld markiert wird (ja = 1), dann werden die Zeiten des Löschangriffes und"]
[null,"Staffellaufes, die Fehler und die Alterspunkte in die Urkunde übernommen."]
[]
[]
[]
["Tabelle für Alterspunkte:"]
["Jahre ab","Gutpunkte"]
[0,0]
[270,0.5]
[{"$f":"A218+9","v":279},1]
[288,1.5]
[297,2]
[306,2.5]
[315,3]
[324,3.5]
[333,4]
[342,4.5]
[351,5]
[360,5.5]
[369,6]
[378,6.5]
[387,7]
[396,7.5]
[405,8]
[414,8.5]
[423,9]
[432,9.5]
[441,10]
[450,10.5]
[459,11]
[468,11.5]
[477,12]
[486,12.5]
[495,13]
[504,13.5]
[513,14]
[522,14.5]
[531,15]
[540,15.5]
[549,16]
[558,16.5]
[567,17]
[576,17.5]
[585,18]

{"sheet":"Mitglieder","index":1,"n_rows":8,"n_cols":25,"rows_kept":8,"cut":false,"hidden":false,"merged":[]}
["FWNr_StbNr","Name","Geburtsjahr","nummer","standesbuchnummer","vorname","zuname","geburtsdatum","svnr","dienstgrad","titel","amtstitel","geschlecht","status","id_mitgliedschaften","id_personen","id_feuerwachen","eintrittsdatum","ausstellungsdatum_fw_pass","angelobungsdatum","datum_aktiv","datum_in_reserve","datum_von_jugend","datum_ehrenmitglied","abmeldungsdatum"]
[{"$f":"D2&\"_\"&E2","v":"_"},{"$f":"J2& \" \" & IF(K2<>\"\",K2 & \" \",) & F2 & \" \" & G2","v":"  "},{"$f":"YEAR(H2)","v":1900}]
[{"$f":"D3&\"_\"&E3","v":"_"},{"$f":"J3& \" \" & IF(K3<>\"\",K3 & \" \",) & F3 & \" \" & G3","v":"  "},{"$f":"YEAR(H3)","v":1900}]
[{"$f":"D4&\"_\"&E4","v":"_"},{"$f":"J4& \" \" & IF(K4<>\"\",K4 & \" \",) & F4 & \" \" & G4","v":"  "},{"$f":"YEAR(H4)","v":1900}]
[{"$f":"D5&\"_\"&E5","v":"_"},{"$f":"J5& \" \" & IF(K5<>\"\",K5 & \" \",) & F5 & \" \" & G5","v":"  "},{"$f":"YEAR(H5)","v":1900}]
[{"$f":"D6&\"_\"&E6","v":"_"},{"$f":"J6& \" \" & IF(K6<>\"\",K6 & \" \",) & F6 & \" \" & G6","v":"  "},{"$f":"YEAR(H6)","v":1900}]
["_","  ",1900]
["_","  ",1900]

{"sheet":"Br_A","index":2,"n_rows":75,"n_cols":47,"rows_kept":75,"cut":false,"hidden":false,"merged":[]}
[{"$f":"Bewerbsart","v":"Abschnittsfeuerwehrleistungsbewerb"}]
[{"$f":"TEXT(Datum,\"T.MMMM JJJJ\")&\"  -  \"& Bewerbsort","v":"0.Jänner 1900  -  "}]
[{"$f":"Br_A","v":"Bronze A"}]
[null,null,null,null,"Löschangriff",null,"Staffellauf"]
["Platz","Nummer","Gruppe","Stammpunkte","Zeit","Fehler","Zeit","Fehler","Alters-\nPunkte","Gesamt- punkte","Löschangr","Staffell.","Jahre",null,"Geb1","Geb2","Geb3","Geb4","Geb5","Geb6","Geb7","Geb8","Geb9",null,null,"Urk. gedr.","Name1","Name2","Name3","Name4","Name5","Name6","Name7","Name8","Name9","FW-Nr","Stb1","Stb2","Stb3","Stb4","Stb5","Stb6","Stb7","Stb8","Stb9","Pokale","Anzahl Preise (Pokale):"]
[1,null,null,{"$f":"IF(E6>0,500,0)","v":0},null,null,null,null,null,null,null,null,null,null,{"$f":"IF(ISERROR(VLOOKUP(AK6,Mitgliederliste,8,FALSE)),\"\",IF(Stichtag_verwenden=0,VLOOKUP(AK6,Mitgliederliste,3,FALSE),VLOOKUP(AK6,Mitgliederliste,8,FALSE)))","v":""},{"$f":"IF(ISERROR(VLOOKUP(AL6,Mitgliederliste,8,FALSE)),\"\",IF(Stichtag_verwenden=0,VLOOKUP(AL6,Mitgliederliste,3,FALSE),VLOOKUP(AL6,Mitgliederliste,8,FALSE)))","v":""},{"$f":"IF(ISERROR(VLOOKUP(AM6,Mitgliederliste,8,FALSE)),\"\",IF(Stichtag_verwenden=0,VLOOKUP(AM6,Mitgliederliste,3,FALSE),VLOOKUP(AM6,Mitgliederliste,8,FALSE)))","v":""},{"$f":"IF(ISERROR(VLOOKUP(AN6,Mitgliederliste,8,FALSE)),\"\",IF(Stichtag_verwenden=0,VLOOKUP(AN6,Mitgliederliste,3,FALSE),VLOOKUP(AN6,Mitgliederliste,8,FALSE)))","v":""},{"$f":"IF(ISERROR(VLOOKUP(AO6,Mitgliederliste,8,FALSE)),\"\",IF(Stichtag_verwenden=0,VLOOKUP(AO6,Mitgliederliste,3,FALSE),VLOOKUP(AO6,Mitgliederliste,8,FALSE)))","v":""},{"$f":"IF(ISERROR(VLOOKUP(AP6,Mitgliederliste,8,FALSE)),\"\",IF(Stichtag_verwenden=0,VLOOKUP(AP6,Mitgliederliste,3,FALSE),VLOOKUP(AP6,Mitgliederliste,8,FALSE)))","v":""},{"$f":"IF(ISERROR(VLOOKUP(AQ6,Mitgliederliste,8,FALSE)),\"\",IF(Stichtag_verwenden=0,VLOOKUP(AQ6,Mitgliederliste,3,FALSE),VLOOKUP(AQ6,Mitgliederliste,8,FALSE)))","v":""},{"$f":"IF(ISERROR(VLOOKUP(AR6,Mitgliederliste,8,FALSE)),\"\",IF(Stichtag_verwenden=0,VLOOKUP(AR6,Mitgliederliste,3,FALSE),VLOOKUP(AR6,Mitgliederliste,8,FALSE)))","v":""},{"$f":"IF(ISERROR(VLOOKUP(AS6,Mitgliederliste,8,FALSE)),\"\",IF(Stichtag_verwenden=0,VLOOKUP(AS6,Mitgliederliste,3,FALSE),VLOOKUP(AS6,Mitgliederliste,8,FALSE)))","v":""},null,null,null,{"$f":"IF(ISERROR(VLOOKUP(AK6,Mitgliederliste,2,FALSE)),\"\",VLOOKUP(AK6,Mitgliederliste,2,FALSE))","v":""},{"$f":"IF(ISERROR(VLOOKUP(AL6,Mitgliederliste,2,FALSE)),\"\",VLOOKUP(AL6,Mitgliederliste,2,FALSE))","v":""},{"$f":"IF(ISERROR(VLOOKUP(AM6,Mitgliederliste,2,FALSE)),\"\",VLOOKUP(AM6,Mitgliederliste,2,FALSE))","v":""},{"$f":"IF(ISERROR(VLOOKUP(AN6,Mitgliederliste,2,FALSE)),\"\",VLOOKUP(AN6,Mitgliederliste,2,FALSE))","v":""},{"$f":"IF(ISERROR(VLOOKUP(AO6,Mitgliederliste,2,FALSE)),\"\",VLOOKUP(AO6,Mitgliederliste,2,FALSE))","v":""},{"$f":"IF(ISERROR(VLOOKUP(AP6,Mitgliederliste,2,FALSE)),\"\",VLOOKUP(AP6,Mitgliederliste,2,FALSE))","v":""},{"$f":"IF(ISERROR(VLOOKUP(AQ6,Mitgliederliste,2,FALSE)),\"\",VLOOKUP(AQ6,Mitgliederliste,2,FALSE))","v":""},{"$f":"IF(ISERROR(VLOOKUP(AR6,Mitgliederliste,2,FALSE)),\"\",VLOOKUP(AR6,Mitgliederliste,2,FALSE))","v":""},{"$f":"IF(ISERROR(VLOOKUP(AS6,Mitgliederliste,2,FALSE)),\"\",VLOOKUP(AS6,Mitgliederliste,2,FALSE))","v":""},null,null,null,null,null,null,null,null,null,null,null,{"$f":"IF(COUNTA(C6:C75)>0,1,\"kein Preis\")","v":"kein Preis"}]
[2,null,null,0,null,null,null,null,null,null,null,null,null,null,"","","","","","","","","",null,null,null,"","","","","","","","","",null,null,null,null,null,null,null,null,null,null,null,{"$f":"IF(COUNTA(C6:C75)>1,2,\"\")","v":""}]
[3,null,null,0,null,null,null,null,null,null,null,null,null,null,"","","","","","","","","",null,null,null,"","","","","","","","","",null,null,null,null,null,null,null,null,null,null,null,{"$f":"IF(COUNTA(C6:C75)>2,3,\"\")","v":""}]
[4,null,null,0,null,null,null,null,null,null,null,null,null,null,"","","","","","","","","",null,null,null,"","","","","","","","","",null,null,null,null,null,null,null,null,null,null,null,{"$f":"IF(COUNTA(C6:C75)>5,4,\"\")","v":""}]
[5,null,null,0,null,null,null,null,null,null,null,null,null,null,"","","","","","","","","",null,null,null,"","","","","","","","","",null,null,null,null,null,null,null,null,null,null,null,{"$f":"IF(COUNTA(C6:C75)>10,5,\"\")","v":""}]
[6,null,null,0,null,null,null,null,null,null,null,null,null,null,"","","","","","","","","",null,null,null,"","","","","","","","","",null,null,null,null,null,null,null,null,null,null,null,{"$f":"IF(COUNTA(C6:C75)>15,6,\"\")","v":""}]
[7,null,null,0,null,null,null,null,null,null,null,null,null,null,"","","","","","","","","",null,null,null,"","","","","","","","","",null,null,null,null,null,null,null,null,null,null,null,{"$f":"IF(COUNTA(C6:C75)>20,7,\"\")","v":""}]
[8,null,null,0,null,null,null,null,null,null,null,null,null,null,"","","","","","","","","",null,null,null,"","","","","","","","","",null,null,null,null,null,null,null,null,null,null,null,{"$f":"IF(COUNTA(C6:C75)>30,8,\"\")","v":""}]
[9,null,null,0,null,null,null,null,null,null,null,null,null,null,"","","","","","","","","",null,null,null,"","","","","","","","","",null,null,null,null,null,null,null,null,null,null,null,{"$f":"IF(COUNTA(C6:C75)>40,9,\"\")","v":""}]
[10,null,null,0,null,null,null,null,null,null,null,null,null,null,"","","","","","","","","",null,null,null,"","","","","","","","","",null,null,null,null,null,null,null,null,null,null,null,{"$f":"IF(COUNTA(C6:C75)>50,10,\"\")","v":""}]
[11,null,null,0,null,null,null,null,null,null,null,null,null,null,"","","","","","","","","",null,null,null,"","","","","","","","","",null,null,null,null,null,null,null,null,null,null,null,{"$f":"IF(COUNTA(C6:C75)>60,11,\"\")","v":""}]
[12,null,null,0,null,null,null,null,null,null,null,null,null,null,"","","","","","","","","",null,null,null,"","","","","","","","",""]
[13,null,null,0,null,null,null,null,null,null,null,null,null,null,"","","","","","","","","",null,null,null,"","","","","","","","",""]
[14,null,null,0,null,null,null,null,null,null,null,null,null,null,"","","","","","","","","",null,null,null,"","","","","","","","",""]
[15,null,null,0,null,null,null,null,null,null,null,null,null,null,"","","","","","","","","",null,null,null,"","","","","","","","",""]
[16,null,null,0,null,null,null,null,null,null,null,null,null,null,"","","","","","","","","",null,null,null,"","","","","","","","",""]
[17,null,null,0,null,null,null,null,null,null,null,null,null,null,"","","","","","","","","",null,null,null,"","","","","","","","",""]
[18,null,null,0,null,null,null,null,null,null,null,null,null,null,"","","","","","","","","",null,null,null,"","","","","","","","",""]
[19,null,null,0,null,null,null,null,null,null,null,null,null,null,"","","","","","","","","",null,null,null,"","","","","","","","",""]
[20,null,null,0,null,null,null,null,null,null,null,null,null,null,"","","","","","","","","",null,null,null,"","","","","","","","",""]
[21,null,null,0,null,null,null,null,null,null,null,null,null,null,"","","","","","","","","",null,null,null,"","","","","","","","",""]
[22,null,null,0,null,null,null,null,null,null,null,null,null,null,"","","","","","","","","",null,null,null,"","","","","","","","",""]
[23,null,null,0,null,null,null,null,null,null,null,null,null,null,"","","","","","","","","",null,null,null,"","","","","","","","",""]
[24,null,null,0,null,null,null,null,null,null,null,null,null,null,"","","","","","","","","",null,null,null,"","","","","","","","",""]
[25,null,null,0,null,null,null,null,null,null,null,null,null,null,"","","","","","","","","",null,null,null,"","","","","","","","",""]
[26,null,null,0,null,null,null,null,null,null,null,null,null,null,"","","","","","","","","",null,null,null,"","","","","","","","",""]
[27,null,null,0,null,null,null,null,null,null,null,null,null,null,"","","","","","","","","",null,null,null,"","","","","","","","",""]
[28,null,null,0,null,null,null,null,null,null,null,null,null,null,"","","","","","","","","",null,null,null,"","","","","","","","",""]
[29,null,null,0,null,null,null,null,null,null,null,null,null,null,"","","","","","","","","",null,null,null,"","","","","","","","",""]
[30,null,null,0,null,null,null,null,null,null,null,null,null,null,"","","","","","","","","",null,null,null,"","","","","","","","",""]
[31,null,null,0,null,null,null,null,null,null,null,null,null,null,"","","","","","","","","",null,null,null,"","","","","","","","",""]
[32,null,null,0,null,null,null,null,null,null,null,null,null,null,"","","","","","","","","",null,null,null,"","","","","","","","",""]
[33,null,null,{"$f":"IF(E38>0,500,0)","v":0},null,null,null,null,null,null,null,null,null,null,{"$f":"IF(ISERROR(VLOOKUP(AK38,Mitgliederliste,8,FALSE)),\"\",IF(Stichtag_verwenden=0,VLOOKUP(AK38,Mitgliederliste,3,FALSE),VLOOKUP(AK38,Mitgliederliste,8,FALSE)))","v":""},{"$f":"IF(ISERROR(VLOOKUP(AL38,Mitgliederliste,8,FALSE)),\"\",IF(Stichtag_verwenden=0,VLOOKUP(AL38,Mitgliederliste,3,FALSE),VLOOKUP(AL38,Mitgliederliste,8,FALSE)))","v":""},{"$f":"IF(ISERROR(VLOOKUP(AM38,Mitgliederliste,8,FALSE)),\"\",IF(Stichtag_verwenden=0,VLOOKUP(AM38,Mitgliederliste,3,FALSE),VLOOKUP(AM38,Mitgliederliste,8,FALSE)))","v":""},{"$f":"IF(ISERROR(VLOOKUP(AN38,Mitgliederliste,8,FALSE)),\"\",IF(Stichtag_verwenden=0,VLOOKUP(AN38,Mitgliederliste,3,FALSE),VLOOKUP(AN38,Mitgliederliste,8,FALSE)))","v":""},{"$f":"IF(ISERROR(VLOOKUP(AO38,Mitgliederliste,8,FALSE)),\"\",IF(Stichtag_verwenden=0,VLOOKUP(AO38,Mitgliederliste,3,FALSE),VLOOKUP(AO38,Mitgliederliste,8,FALSE)))","v":""},{"$f":"IF(ISERROR(VLOOKUP(AP38,Mitgliederliste,8,FALSE)),\"\",IF(Stichtag_verwenden=0,VLOOKUP(AP38,Mitgliederliste,3,FALSE),VLOOKUP(AP38,Mitgliederliste,8,FALSE)))","v":""},{"$f":"IF(ISERROR(VLOOKUP(AQ38,Mitgliederliste,8,FALSE)),\"\",IF(Stichtag_verwenden=0,VLOOKUP(AQ38,Mitgliederliste,3,FALSE),VLOOKUP(AQ38,Mitgliederliste,8,FALSE)))","v":""},{"$f":"IF(ISERROR(VLOOKUP(AR38,Mitgliederliste,8,FALSE)),\"\",IF(Stichtag_verwenden=0,VLOOKUP(AR38,Mitgliederliste,3,FALSE),VLOOKUP(AR38,Mitgliederliste,8,FALSE)))","v":""},{"$f":"IF(ISERROR(VLOOKUP(AS38,Mitgliederliste,8,FALSE)),\"\",IF(Stichtag_verwenden=0,VLOOKUP(AS38,Mitgliederliste,3,FALSE),VLOOKUP(AS38,Mitgliederliste,8,FALSE)))","v":""},null,null,null,{"$f":"IF(ISERROR(VLOOKUP(AK38,Mitgliederliste,2,FALSE)),\"\",VLOOKUP(AK38,Mitgliederliste,2,FALSE))","v":""},{"$f":"IF(ISERROR(VLOOKUP(AL38,Mitgliederliste,2,FALSE)),\"\",VLOOKUP(AL38,Mitgliederliste,2,FALSE))","v":""},{"$f":"IF(ISERROR(VLOOKUP(AM38,Mitgliederliste,2,FALSE)),\"\",VLOOKUP(AM38,Mitgliederliste,2,FALSE))","v":""},{"$f":"IF(ISERROR(VLOOKUP(AN38,Mitgliederliste,2,FALSE)),\"\",VLOOKUP(AN38,Mitgliederliste,2,FALSE))","v":""},{"$f":"IF(ISERROR(VLOOKUP(AO38,Mitgliederliste,2,FALSE)),\"\",VLOOKUP(AO38,Mitgliederliste,2,FALSE))","v":""},{"$f":"IF(ISERROR(VLOOKUP(AP38,Mitgliederliste,2,FALSE)),\"\",VLOOKUP(AP38,Mitgliederliste,2,FALSE))","v":""},{"$f":"IF(ISERROR(VLOOKUP(AQ38,Mitgliederliste,2,FALSE)),\"\",VLOOKUP(AQ38,Mitgliederliste,2,FALSE))","v":""},{"$f":"IF(ISERROR(VLOOKUP(AR38,Mitgliederliste,2,FALSE)),\"\",VLOOKUP(AR38,Mitgliederliste,2,FALSE))","v":""},{"$f":"IF(ISERROR(VLOOKUP(AS38,Mitgliederliste,2,FALSE)),\"\",VLOOKUP(AS38,Mitgliederliste,2,FALSE))","v":""}]
[34,null,null,0,null,null,null,null,null,null,null,null,null,null,"","","","","","","","","",null,null,null,"","","","","","","","",""]
[35,null,null,0,null,null,null,null,null,null,null,null,null,null,"","","","","","","","","",null,null,null,"","","","","","","","",""]
[36,null,null,0,null,null,null,null,null,null,null,null,null,null,"","","","","","","","","",null,null,null,"","","","","","","","",""]
[37,null,null,0,null,null,null,null,null,null,null,null,null,null,"","","","","","","","","",null,null,null,"","","","","","","","",""]
[38,null,null,0,null,null,null,null,null,null,null,null,null,null,"","","","","","","","","",null,null,null,"","","","","","","","",""]
[39,null,null,0,null,null,null,null,null,null,null,null,null,null,"","","","","","","","","",null,null,null,"","","","","","","","",""]
[40,null,null,0,null,null,null,null,null,null,null,null,null,null,"","","","","","","","","",null,null,null,"","","","","","","","",""]
[41,null,null,0,null,null,null,null,null,null,null,null,null,null,"","","","","","","","","",null,null,null,"","","","","","","","",""]
[42,null,null,0,null,null,null,null,null,null,null,null,null,null,"","","","","","","","","",null,null,null,"","","","","","","","",""]
[43,null,null,0,null,null,null,null,null,null,null,null,null,null,"","","","","","","","","",null,null,null,"","","","","","","","",""]
[44,null,null,0,null,null,null,null,null,null,null,null,null,null,"","","","","","","","","",null,null,null,"","","","","","","","",""]
[45,null,null,0,null,null,null,null,null,null,null,null,null,null,"","","","","","","","","",null,null,null,"","","","","","","","",""]
[46,null,null,0,null,null,null,null,null,null,null,null,null,null,"","","","","","","","","",null,null,null,"","","","","","","","",""]
[47,null,null,0,null,null,null,null,null,null,null,null,null,null,"","","","","","","","","",null,null,null,"","","","","","","","",""]
[48,null,null,0,null,null,null,null,null,null,null,null,null,null,"","","","","","","","","",null,null,null,"","","","","","","","",""]
[49,null,null,0,null,null,null,null,null,null,null,null,null,null,"","","","","","","","","",null,null,null,"","","","","","","","",""]
[50,null,null,0,null,null,null,null,null,null,null,null,null,null,"","","","","","","","","",null,null,null,"","","","","","","","",""]
[51,null,null,0,null,null,null,null,null,null,null,null,null,null,"","","","","","","","","",null,null,null,"","","","","","","","",""]
[52,null,null,0,null,null,null,null,null,null,null,null,null,null,"","","","","","","","","",null,null,null,"","","","","","","","",""]
[53,null,null,0,null,null,null,null,null,null,null,null,null,null,"","","","","","","","","",null,null,null,"","","","","","","","",""]
[54,null,null,0,null,null,null,null,null,null,null,null,null,null,"","","","","","","","","",null,null,null,"","","","","","","","",""]
[55,null,null,0,null,null,null,null,null,null,null,null,null,null,"","","","","","","","","",null,null,null,"","","","","","","","",""]
[56,null,null,0,null,null,null,null,null,null,null,null,null,null,"","","","","","","","","",null,null,null,"","","","","","","","",""]
[57,null,null,0,null,null,null,null,null,null,null,null,null,null,"","","","","","","","","",null,null,null,"","","","","","","","",""]
[58,null,null,0,null,null,null,null,null,null,null,null,null,null,"","","","","","","","","",null,null,null,"","","","","","","","",""]
[59,null,null,0,null,null,null,null,null,null,null,null,null,null,"","","","","","","","","",null,null,null,"","","","","","","","",""]
[60,null,null,0,null,null,null,null,null,null,null,null,null,null,"","","","","","","","","",null,null,null,"","","","","","","","",""]
[61,null,null,0,null,null,null,null,null,null,null,null,null,null,"","","","","","","","","",null,null,null,"","","","","","","","",""]
[62,null,null,0,null,null,null,null,null,null,null,null,null,null,"","","","","","","","","",null,null,null,"","","","","","","","",""]
[63,null,null,0,null,null,null,null,null,null,null,null,null,null,"","","","","","","","","",null,null,null,"","","","","","","","",""]
[64,null,null,0,null,null,null,null,null,null,null,null,null,null,"","","","","","","","","",null,null,null,"","","","","","","","",""]
[65,null,null,{"$f":"IF(E70>0,500,0)","v":0},null,null,null,null,null,null,null,null,null,null,{"$f":"IF(ISERROR(VLOOKUP(AK70,Mitgliederliste,8,FALSE)),\"\",IF(Stichtag_verwenden=0,VLOOKUP(AK70,Mitgliederliste,3,FALSE),VLOOKUP(AK70,Mitgliederliste,8,FALSE)))","v":""},{"$f":"IF(ISERROR(VLOOKUP(AL70,Mitgliederliste,8,FALSE)),\"\",IF(Stichtag_verwenden=0,VLOOKUP(AL70,Mitgliederliste,3,FALSE),VLOOKUP(AL70,Mitgliederliste,8,FALSE)))","v":""},{"$f":"IF(ISERROR(VLOOKUP(AM70,Mitgliederliste,8,FALSE)),\"\",IF(Stichtag_verwenden=0,VLOOKUP(AM70,Mitgliederliste,3,FALSE),VLOOKUP(AM70,Mitgliederliste,8,FALSE)))","v":""},{"$f":"IF(ISERROR(VLOOKUP(AN70,Mitgliederliste,8,FALSE)),\"\",IF(Stichtag_verwenden=0,VLOOKUP(AN70,Mitgliederliste,3,FALSE),VLOOKUP(AN70,Mitgliederliste,8,FALSE)))","v":""},{"$f":"IF(ISERROR(VLOOKUP(AO70,Mitgliederliste,8,FALSE)),\"\",IF(Stichtag_verwenden=0,VLOOKUP(AO70,Mitgliederliste,3,FALSE),VLOOKUP(AO70,Mitgliederliste,8,FALSE)))","v":""},{"$f":"IF(ISERROR(VLOOKUP(AP70,Mitgliederliste,8,FALSE)),\"\",IF(Stichtag_verwenden=0,VLOOKUP(AP70,Mitgliederliste,3,FALSE),VLOOKUP(AP70,Mitgliederliste,8,FALSE)))","v":""},{"$f":"IF(ISERROR(VLOOKUP(AQ70,Mitgliederliste,8,FALSE)),\"\",IF(Stichtag_verwenden=0,VLOOKUP(AQ70,Mitgliederliste,3,FALSE),VLOOKUP(AQ70,Mitgliederliste,8,FALSE)))","v":""},{"$f":"IF(ISERROR(VLOOKUP(AR70,Mitgliederliste,8,FALSE)),\"\",IF(Stichtag_verwenden=0,VLOOKUP(AR70,Mitgliederliste,3,FALSE),VLOOKUP(AR70,Mitgliederliste,8,FALSE)))","v":""},{"$f":"IF(ISERROR(VLOOKUP(AS70,Mitgliederliste,8,FALSE)),\"\",IF(Stichtag_verwenden=0,VLOOKUP(AS70,Mitgliederliste,3,FALSE),VLOOKUP(AS70,Mitgliederliste,8,FALSE)))","v":""},null,null,null,{"$f":"IF(ISERROR(VLOOKUP(AK70,Mitgliederliste,2,FALSE)),\"\",VLOOKUP(AK70,Mitgliederliste,2,FALSE))","v":""},{"$f":"IF(ISERROR(VLOOKUP(AL70,Mitgliederliste,2,FALSE)),\"\",VLOOKUP(AL70,Mitgliederliste,2,FALSE))","v":""},{"$f":"IF(ISERROR(VLOOKUP(AM70,Mitgliederliste,2,FALSE)),\"\",VLOOKUP(AM70,Mitgliederliste,2,FALSE))","v":""},{"$f":"IF(ISERROR(VLOOKUP(AN70,Mitgliederliste,2,FALSE)),\"\",VLOOKUP(AN70,Mitgliederliste,2,FALSE))","v":""},{"$f":"IF(ISERROR(VLOOKUP(AO70,Mitgliederliste,2,FALSE)),\"\",VLOOKUP(AO70,Mitgliederliste,2,FALSE))","v":""},{"$f":"IF(ISERROR(VLOOKUP(AP70,Mitgliederliste,2,FALSE)),\"\",VLOOKUP(AP70,Mitgliederliste,2,FALSE))","v":""},{"$f":"IF(ISERROR(VLOOKUP(AQ70,Mitgliederliste,2,FALSE)),\"\",VLOOKUP(AQ70,Mitgliederliste,2,FALSE))","v":""},{"$f":"IF(ISERROR(VLOOKUP(AR70,Mitgliederliste,2,FALSE)),\"\",VLOOKUP(AR70,Mitgliederliste,2,FALSE))","v":""},{"$f":"IF(ISERROR(VLOOKUP(AS70,Mitgliederliste,2,FALSE)),\"\",VLOOKUP(AS70,Mitgliederliste,2,FALSE))","v":""}]
[66,null,null,0,null,null,null,null,null,null,null,null,null,null,"","","","","","","","","",null,null,null,"","","","","","","","",""]
[67,null,null,0,null,null,null,null,null,null,null,null,null,null,"","","","","","","","","",null,null,null,"","","","","","","","",""]
[68,null,null,0,null,null,null,null,null,null,null,null,null,null,"","","","","","","","","",null,null,null,"","","","","","","","",""]
[69,null,null,0,null,null,null,null,null,null,null,null,null,null,"","","","","","","","","",null,null,null,"","","","","","","","",""]
[70,null,null,0,null,null,null,null,null,null,null,null,null,null,"","","","","","","","","",null,null,null,"","","","","","","","",""]

{"sheet":"Si_A","index":3,"n_rows":75,"n_cols":47,"rows_kept":75,"cut":false,"hidden":false,"merged":[]}
[{"$f":"Bewerbsart","v":"Abschnittsfeuerwehrleistungsbewerb"}]
[{"$f":"TEXT(Datum,\"T.MMMM JJJJ\")&\"  -  \"& Bewerbsort","v":"0.Jänner 1900  -  "}]
[{"$f":"Si_A","v":"Silber A"}]
[null,null,null,null,"Löschangriff",null,"Staffellauf"]
["Platz","Nummer","Gruppe","Stammpunkte","Zeit","Fehler","Zeit","Fehler","Alters-\nPunkte","Gesamt- punkte","Löschangr","Staffell.","Jahre",null,"Geb1","Geb2","Geb3","Geb4","Geb5","Geb6","Geb7","Geb8","Geb9",null,null,"Urk. gedr.","Name1","Name2","Name3","Name4","Name5","Name6","Name7","Name8","Name9","FW-Nr","Stb1","Stb2","Stb3","Stb4","Stb5","Stb6","Stb7","Stb8","Stb9","Pokale","Anzahl Preise (Pokale):"]
[1,null,null,{"$f":"IF(E6>0,500,0)","v":0},null,null,null,null,null,null,null,null,null,null,{"$f":"IF(ISERROR(VLOOKUP(AK6,Mitgliederliste,8,FALSE)),\"\",IF(Stichtag_verwenden=0,VLOOKUP(AK6,Mitgliederliste,3,FALSE),VLOOKUP(AK6,Mitgliederliste,8,FALSE)))","v":""},{"$f":"IF(ISERROR(VLOOKUP(AL6,Mitgliederliste,8,FALSE)),\"\",IF(Stichtag_verwenden=0,VLOOKUP(AL6,Mitgliederliste,3,FALSE),VLOOKUP(AL6,Mitgliederliste,8,FALSE)))","v":""},{"$f":"IF(ISERROR(VLOOKUP(AM6,Mitgliederliste,8,FALSE)),\"\",IF(Stichtag_verwenden=0,VLOOKUP(AM6,Mitgliederliste,3,FALSE),VLOOKUP(AM6,Mitgliederliste,8,FALSE)))","v":""},{"$f":"IF(ISERROR(VLOOKUP(AN6,Mitgliederliste,8,FALSE)),\"\",IF(Stichtag_verwenden=0,VLOOKUP(AN6,Mitgliederliste,3,FALSE),VLOOKUP(AN6,Mitgliederliste,8,FALSE)))","v":""},{"$f":"IF(ISERROR(VLOOKUP(AO6,Mitgliederliste,8,FALSE)),\"\",IF(Stichtag_verwenden=0,VLOOKUP(AO6,Mitgliederliste,3,FALSE),VLOOKUP(AO6,Mitgliederliste,8,FALSE)))","v":""},{"$f":"IF(ISERROR(VLOOKUP(AP6,Mitgliederliste,8,FALSE)),\"\",IF(Stichtag_verwenden=0,VLOOKUP(AP6,Mitgliederliste,3,FALSE),VLOOKUP(AP6,Mitgliederliste,8,FALSE)))","v":""},{"$f":"IF(ISERROR(VLOOKUP(AQ6,Mitgliederliste,8,FALSE)),\"\",IF(Stichtag_verwenden=0,VLOOKUP(AQ6,Mitgliederliste,3,FALSE),VLOOKUP(AQ6,Mitgliederliste,8,FALSE)))","v":""},{"$f":"IF(ISERROR(VLOOKUP(AR6,Mitgliederliste,8,FALSE)),\"\",IF(Stichtag_verwenden=0,VLOOKUP(AR6,Mitgliederliste,3,FALSE),VLOOKUP(AR6,Mitgliederliste,8,FALSE)))","v":""},{"$f":"IF(ISERROR(VLOOKUP(AS6,Mitgliederliste,8,FALSE)),\"\",IF(Stichtag_verwenden=0,VLOOKUP(AS6,Mitgliederliste,3,FALSE),VLOOKUP(AS6,Mitgliederliste,8,FALSE)))","v":""},null,null,null,{"$f":"IF(ISERROR(VLOOKUP(AK6,Mitgliederliste,2,FALSE)),\"\",VLOOKUP(AK6,Mitgliederliste,2,FALSE))","v":""},{"$f":"IF(ISERROR(VLOOKUP(AL6,Mitgliederliste,2,FALSE)),\"\",VLOOKUP(AL6,Mitgliederliste,2,FALSE))","v":""},{"$f":"IF(ISERROR(VLOOKUP(AM6,Mitgliederliste,2,FALSE)),\"\",VLOOKUP(AM6,Mitgliederliste,2,FALSE))","v":""},{"$f":"IF(ISERROR(VLOOKUP(AN6,Mitgliederliste,2,FALSE)),\"\",VLOOKUP(AN6,Mitgliederliste,2,FALSE))","v":""},{"$f":"IF(ISERROR(VLOOKUP(AO6,Mitgliederliste,2,FALSE)),\"\",VLOOKUP(AO6,Mitgliederliste,2,FALSE))","v":""},{"$f":"IF(ISERROR(VLOOKUP(AP6,Mitgliederliste,2,FALSE)),\"\",VLOOKUP(AP6,Mitgliederliste,2,FALSE))","v":""},{"$f":"IF(ISERROR(VLOOKUP(AQ6,Mitgliederliste,2,FALSE)),\"\",VLOOKUP(AQ6,Mitgliederliste,2,FALSE))","v":""},{"$f":"IF(ISERROR(VLOOKUP(AR6,Mitgliederliste,2,FALSE)),\"\",VLOOKUP(AR6,Mitgliederliste,2,FALSE))","v":""},{"$f":"IF(ISERROR(VLOOKUP(AS6,Mitgliederliste,2,FALSE)),\"\",VLOOKUP(AS6,Mitgliederliste,2,FALSE))","v":""},null,null,null,null,null,null,null,null,null,null,null,{"$f":"IF(COUNTA(C6:C75)>0,1,\"kein Preis\")","v":"kein Preis"}]
[2,null,null,0,null,null,null,null,null,null,null,null,null,null,"","","","","","","","","",null,null,null,"","","","","","","","","",null,null,null,null,null,null,null,null,null,null,null,{"$f":"IF(COUNTA(C6:C75)>1,2,\"\")","v":""}]
[3,null,null,0,null,null,null,null,null,null,null,null,null,null,"","","","","","","","","",null,null,null,"","","","","","","","","",null,null,null,null,null,null,null,null,null,null,null,{"$f":"IF(COUNTA(C6:C75)>2,3,\"\")","v":""}]
[4,null,null,0,null,null,null,null,null,null,null,null,null,null,"","","","","","","","","",null,null,null,"","","","","","","","","",null,null,null,null,null,null,null,null,null,null,null,{"$f":"IF(COUNTA(C6:C75)>5,4,\"\")","v":""}]
[5,null,null,0,null,null,null,null,null,null,null,null,null,null,"","","","","","","","","",null,null,null,"","","","","","","","","",null,null,null,null,null,null,null,null,null,null,null,{"$f":"IF(COUNTA(C6:C75)>10,5,\"\")","v":""}]
[6,null,null,0,null,null,null,null,null,null,null,null,null,null,"","","","","","","","","",null,null,null,"","","","","","","","","",null,null,null,null,null,null,null,null,null,null,null,{"$f":"IF(COUNTA(C6:C75)>15,6,\"\")","v":""}]
[7,null,null,0,null,null,null,null,null,null,null,null,null,null,"","","","","","","","","",null,null,null,"","","","","","","","","",null,null,null,null,null,null,null,null,null,null,null,{"$f":"IF(COUNTA(C6:C75)>20,7,\"\")","v":""}]
[8,null,null,0,null,null,null,null,null,null,null,null,null,null,"","","","","","","","","",null,null,null,"","","","","","","","","",null,null,null,null,null,null,null,null,null,null,null,{"$f":"IF(COUNTA(C6:C75)>30,8,\"\")","v":""}]
[9,null,null,0,null,null,null,null,null,null,null,null,null,null,"","","","","","","","","",null,null,null,"","","","","","","","","",null,null,null,null,null,null,null,null,null,null,null,{"$f":"IF(COUNTA(C6:C75)>40,9,\"\")","v":""}]
[10,null,null,0,null,null,null,null,null,null,null,null,null,null,"","","","","","","","","",null,null,null,"","","","","","","","","",null,null,null,null,null,null,null,null,null,null,null,{"$f":"IF(COUNTA(C6:C75)>50,10,\"\")","v":""}]
[11,null,null,0,null,null,null,null,null,null,null,null,null,null,"","","","","","","","","",null,null,null,"","","","","","","","","",null,null,null,null,null,null,null,null,null,null,null,{"$f":"IF(COUNTA(C6:C75)>60,11,\"\")","v":""}]
[12,null,null,0,null,null,null,null,null,null,null,null,null,null,"","","","","","","","","",null,null,null,"","","","","","","","",""]
[13,null,null,0,null,null,null,null,null,null,null,null,null,null,"","","","","","","","","",null,null,null,"","","","","","","","",""]
[14,null,null,0,null,null,null,null,null,null,null,null,null,null,"","","","","","","","","",null,null,null,"","","","","","","","",""]
[15,null,null,0,null,null,null,null,null,null,null,null,null,null,"","","","","","","","","",null,null,null,"","","","","","","","",""]
[16,null,null,0,null,null,null,null,null,null,null,null,null,null,"","","","","","","","","",null,null,null,"","","","","","","","",""]
[17,null,null,0,null,null,null,null,null,null,null,null,null,null,"","","","","","","","","",null,null,null,"","","","","","","","",""]
[18,null,null,0,null,null,null,null,null,null,null,null,null,null,"","","","","","","","","",null,null,null,"","","","","","","","",""]
[19,null,null,0,null,null,null,null,null,null,null,null,null,null,"","","","","","","","","",null,null,null,"","","","","","","","",""]
[20,null,null,0,null,null,null,null,null,null,null,null,null,null,"","","","","","","","","",null,null,null,"","","","","","","","",""]
[21,null,null,0,null,null,null,null,null,null,null,null,null,null,"","","","","","","","","",null,null,null,"","","","","","","","",""]
[22,null,null,0,null,null,null,null,null,null,null,null,null,null,"","","","","","","","","",null,null,null,"","","","","","","","",""]
[23,null,null,0,null,null,null,null,null,null,null,null,null,null,"","","","","","","","","",null,null,null,"","","","","","","","",""]
[24,null,null,0,null,null,null,null,null,null,null,null,null,null,"","","","","","","","","",null,null,null,"","","","","","","","",""]
[25,null,null,0,null,null,null,null,null,null,null,null,null,null,"","","","","","","","","",null,null,null,"","","","","","","","",""]
[26,null,null,0,null,null,null,null,null,null,null,null,null,null,"","","","","","","","","",null,null,null,"","","","","","","","",""]
[27,null,null,0,null,null,null,null,null,null,null,null,null,null,"","","","","","","","","",null,null,null,"","","","","","","","",""]
[28,null,null,0,null,null,null,null,null,null,null,null,null,null,"","","","","","","","","",null,null,null,"","","","","","","","",""]
[29,null,null,0,null,null,null,null,null,null,null,null,null,null,"","","","","","","","","",null,null,null,"","","","","","","","",""]
[30,null,null,0,null,null,null,null,null,null,null,null,null,null,"","","","","","","","","",null,null,null,"","","","","","","","",""]
[31,null,null,0,null,null,null,null,null,null,null,null,null,null,"","","","","","","","","",null,null,null,"","","","","","","","",""]
[32,null,null,0,null,null,null,null,null,null,null,null,null,null,"","","","","","","","","",null,null,null,"","","","","","","","",""]
[33,null,null,{"$f":"IF(E38>0,500,0)","v":0},null,null,null,null,null,null,null,null,null,null,{"$f":"IF(ISERROR(VLOOKUP(AK38,Mitgliederliste,8,FALSE)),\"\",IF(Stichtag_verwenden=0,VLOOKUP(AK38,Mitgliederliste,3,FALSE),VLOOKUP(AK38,Mitgliederliste,8,FALSE)))","v":""},{"$f":"IF(ISERROR(VLOOKUP(AL38,Mitgliederliste,8,FALSE)),\"\",IF(Stichtag_verwenden=0,VLOOKUP(AL38,Mitgliederliste,3,FALSE),VLOOKUP(AL38,Mitgliederliste,8,FALSE)))","v":""},{"$f":"IF(ISERROR(VLOOKUP(AM38,Mitgliederliste,8,FALSE)),\"\",IF(Stichtag_verwenden=0,VLOOKUP(AM38,Mitgliederliste,3,FALSE),VLOOKUP(AM38,Mitgliederliste,8,FALSE)))","v":""},{"$f":"IF(ISERROR(VLOOKUP(AN38,Mitgliederliste,8,FALSE)),\"\",IF(Stichtag_verwenden=0,VLOOKUP(AN38,Mitgliederliste,3,FALSE),VLOOKUP(AN38,Mitgliederliste,8,FALSE)))","v":""},{"$f":"IF(ISERROR(VLOOKUP(AO38,Mitgliederliste,8,FALSE)),\"\",IF(Stichtag_verwenden=0,VLOOKUP(AO38,Mitgliederliste,3,FALSE),VLOOKUP(AO38,Mitgliederliste,8,FALSE)))","v":""},{"$f":"IF(ISERROR(VLOOKUP(AP38,Mitgliederliste,8,FALSE)),\"\",IF(Stichtag_verwenden=0,VLOOKUP(AP38,Mitgliederliste,3,FALSE),VLOOKUP(AP38,Mitgliederliste,8,FALSE)))","v":""},{"$f":"IF(ISERROR(VLOOKUP(AQ38,Mitgliederliste,8,FALSE)),\"\",IF(Stichtag_verwenden=0,VLOOKUP(AQ38,Mitgliederliste,3,FALSE),VLOOKUP(AQ38,Mitgliederliste,8,FALSE)))","v":""},{"$f":"IF(ISERROR(VLOOKUP(AR38,Mitgliederliste,8,FALSE)),\"\",IF(Stichtag_verwenden=0,VLOOKUP(AR38,Mitgliederliste,3,FALSE),VLOOKUP(AR38,Mitgliederliste,8,FALSE)))","v":""},{"$f":"IF(ISERROR(VLOOKUP(AS38,Mitgliederliste,8,FALSE)),\"\",IF(Stichtag_verwenden=0,VLOOKUP(AS38,Mitgliederliste,3,FALSE),VLOOKUP(AS38,Mitgliederliste,8,FALSE)))","v":""},null,null,null,{"$f":"IF(ISERROR(VLOOKUP(AK38,Mitgliederliste,2,FALSE)),\"\",VLOOKUP(AK38,Mitgliederliste,2,FALSE))","v":""},{"$f":"IF(ISERROR(VLOOKUP(AL38,Mitgliederliste,2,FALSE)),\"\",VLOOKUP(AL38,Mitgliederliste,2,FALSE))","v":""},{"$f":"IF(ISERROR(VLOOKUP(AM38,Mitgliederliste,2,FALSE)),\"\",VLOOKUP(AM38,Mitgliederliste,2,FALSE))","v":""},{"$f":"IF(ISERROR(VLOOKUP(AN38,Mitgliederliste,2,FALSE)),\"\",VLOOKUP(AN38,Mitgliederliste,2,FALSE))","v":""},{"$f":"IF(ISERROR(VLOOKUP(AO38,Mitgliederliste,2,FALSE)),\"\",VLOOKUP(AO38,Mitgliederliste,2,FALSE))","v":""},{"$f":"IF(ISERROR(VLOOKUP(AP38,Mitgliederliste,2,FALSE)),\"\",VLOOKUP(AP38,Mitgliederliste,2,FALSE))","v":""},{"$f":"IF(ISERROR(VLOOKUP(AQ38,Mitgliederliste,2,FALSE)),\"\",VLOOKUP(AQ38,Mitgliederliste,2,FALSE))","v":""},{"$f":"IF(ISERROR(VLOOKUP(AR38,Mitgliederliste,2,FALSE)),\"\",VLOOKUP(AR38,Mitgliederliste,2,FALSE))","v":""},{"$f":"IF(ISERROR(VLOOKUP(AS38,Mitgliederliste,2,FALSE)),\"\",VLOOKUP(AS38,Mitgliederliste,2,FALSE))","v":""}]
[34,null,null,0,null,null,null,null,null,null,null,null,null,null,"","","","","","","","","",null,null,null,"","","","","","","","",""]
[35,null,null,0,null,null,null,null,null,null,null,null,null,null,"","","","","","","","","",null,null,null,"","","","","","","","",""]
[36,null,null,0,null,null,null,null,null,null,null,null,null,null,"","","","","","","","","",null,null,null,"","","","","","","","",""]
[37,null,null,0,null,null,null,null,null,null,null,null,null,null,"","","","","","","","","",null,null,null,"","","","","","","","",""]
[38,null,null,0,null,null,null,null,null,null,null,null,null,null,"","","","","","","","","",null,null,null,"","","","","","","","",""]
[39,null,null,0,null,null,null,null,null,null,null,null,null,null,"","","","","","","","","",null,null,null,"","","","","","","","",""]
[40,null,null,0,null,null,null,null,null,null,null,null,null,null,"","","","","","","","","",null,null,null,"","","","","","","","",""]
[41,null,null,0,null,null,null,null,null,null,null,null,null,null,"","","","","","","","","",null,null,null,"","","","","","","","",""]
[42,null,null,0,null,null,null,null,null,null,null,null,null,null,"","","","","","","","","",null,null,null,"","","","","","","","",""]
[43,null,null,0,null,null,null,null,null,null,null,null,null,null,"","","","","","","","","",null,null,null,"","","","","","","","",""]
[44,null,null,0,null,null,null,null,null,null,null,null,null,null,"","","","","","","","","",null,null,null,"","","","","","","","",""]
[45,null,null,0,null,null,null,null,null,null,null,null,null,null,"","","","","","","","","",null,null,null,"","","","","","","","",""]
[46,null,null,0,null,null,null,null,null,null,null,null,null,null,"","","","","","","","","",null,null,null,"","","","","","","","",""]
[47,null,null,0,null,null,null,null,null,null,null,null,null,null,"","","","","","","","","",null,null,null,"","","","","","","","",""]
[48,null,null,0,null,null,null,null,null,null,null,null,null,null,"","","","","","","","","",null,null,null,"","","","","","","","",""]
[49,null,null,0,null,null,null,null,null,null,null,null,null,null,"","","","","","","","","",null,null,null,"","","","","","","","",""]
[50,null,null,0,null,null,null,null,null,null,null,null,null,null,"","","","","","","","","",null,null,null,"","","","","","","","",""]
[51,null,null,0,null,null,null,null,null,null,null,null,null,null,"","","","","","","","","",null,null,null,"","","","","","","","",""]
[52,null,null,0,null,null,null,null,null,null,null,null,null,null,"","","","","","","","","",null,null,null,"","","","","","","","",""]
[53,null,null,0,null,null,null,null,null,null,null,null,null,null,"","","","","","","","","",null,null,null,"","","","","","","","",""]
[54,null,null,0,null,null,null,null,null,null,null,null,null,null,"","","","","","","","","",null,null,null,"","","","","","","","",""]
[55,null,null,0,null,null,null,null,null,null,null,null,null,null,"","","","","","","","","",null,null,null,"","","","","","","","",""]
[56,null,null,0,null,null,null,null,null,null,null,null,null,null,"","","","","","","","","",null,null,null,"","","","","","","","",""]
[57,null,null,0,null,null,null,null,null,null,null,null,null,null,"","","","","","","","","",null,null,null,"","","","","","","","",""]
[58,null,null,0,null,null,null,null,null,null,null,null,null,null,"","","","","","","","","",null,null,null,"","","","","","","","",""]
[59,null,null,0,null,null,null,null,null,null,null,null,null,null,"","","","","","","","","",null,null,null,"","","","","","","","",""]
[60,null,null,0,null,null,null,null,null,null,null,null,null,null,"","","","","","","","","",null,null,null,"","","","","","","","",""]
[61,null,null,0,null,null,null,null,null,null,null,null,null,null,"","","","","","","","","",null,null,null,"","","","","","","","",""]
[62,null,null,0,null,null,null,null,null,null,null,null,null,null,"","","","","","","","","",null,null,null,"","","","","","","","",""]
[63,null,null,0,null,null,null,null,null,null,null,null,null,null,"","","","","","","","","",null,null,null,"","","","","","","","",""]
[64,null,null,0,null,null,null,null,null,null,null,null,null,null,"","","","","","","","","",null,null,null,"","","","","","","","",""]
[65,null,null,{"$f":"IF(E70>0,500,0)","v":0},null,null,null,null,null,null,null,null,null,null,{"$f":"IF(ISERROR(VLOOKUP(AK70,Mitgliederliste,8,FALSE)),\"\",IF(Stichtag_verwenden=0,VLOOKUP(AK70,Mitgliederliste,3,FALSE),VLOOKUP(AK70,Mitgliederliste,8,FALSE)))","v":""},{"$f":"IF(ISERROR(VLOOKUP(AL70,Mitgliederliste,8,FALSE)),\"\",IF(Stichtag_verwenden=0,VLOOKUP(AL70,Mitgliederliste,3,FALSE),VLOOKUP(AL70,Mitgliederliste,8,FALSE)))","v":""},{"$f":"IF(ISERROR(VLOOKUP(AM70,Mitgliederliste,8,FALSE)),\"\",IF(Stichtag_verwenden=0,VLOOKUP(AM70,Mitgliederliste,3,FALSE),VLOOKUP(AM70,Mitgliederliste,8,FALSE)))","v":""},{"$f":"IF(ISERROR(VLOOKUP(AN70,Mitgliederliste,8,FALSE)),\"\",IF(Stichtag_verwenden=0,VLOOKUP(AN70,Mitgliederliste,3,FALSE),VLOOKUP(AN70,Mitgliederliste,8,FALSE)))","v":""},{"$f":"IF(ISERROR(VLOOKUP(AO70,Mitgliederliste,8,FALSE)),\"\",IF(Stichtag_verwenden=0,VLOOKUP(AO70,Mitgliederliste,3,FALSE),VLOOKUP(AO70,Mitgliederliste,8,FALSE)))","v":""},{"$f":"IF(ISERROR(VLOOKUP(AP70,Mitgliederliste,8,FALSE)),\"\",IF(Stichtag_verwenden=0,VLOOKUP(AP70,Mitgliederliste,3,FALSE),VLOOKUP(AP70,Mitgliederliste,8,FALSE)))","v":""},{"$f":"IF(ISERROR(VLOOKUP(AQ70,Mitgliederliste,8,FALSE)),\"\",IF(Stichtag_verwenden=0,VLOOKUP(AQ70,Mitgliederliste,3,FALSE),VLOOKUP(AQ70,Mitgliederliste,8,FALSE)))","v":""},{"$f":"IF(ISERROR(VLOOKUP(AR70,Mitgliederliste,8,FALSE)),\"\",IF(Stichtag_verwenden=0,VLOOKUP(AR70,Mitgliederliste,3,FALSE),VLOOKUP(AR70,Mitgliederliste,8,FALSE)))","v":""},{"$f":"IF(ISERROR(VLOOKUP(AS70,Mitgliederliste,8,FALSE)),\"\",IF(Stichtag_verwenden=0,VLOOKUP(AS70,Mitgliederliste,3,FALSE),VLOOKUP(AS70,Mitgliederliste,8,FALSE)))","v":""},null,null,null,{"$f":"IF(ISERROR(VLOOKUP(AK70,Mitgliederliste,2,FALSE)),\"\",VLOOKUP(AK70,Mitgliederliste,2,FALSE))","v":""},{"$f":"IF(ISERROR(VLOOKUP(AL70,Mitgliederliste,2,FALSE)),\"\",VLOOKUP(AL70,Mitgliederliste,2,FALSE))","v":""},{"$f":"IF(ISERROR(VLOOKUP(AM70,Mitgliederliste,2,FALSE)),\"\",VLOOKUP(AM70,Mitgliederliste,2,FALSE))","v":""},{"$f":"IF(ISERROR(VLOOKUP(AN70,Mitgliederliste,2,FALSE)),\"\",VLOOKUP(AN70,Mitgliederliste,2,FALSE))","v":""},{"$f":"IF(ISERROR(VLOOKUP(AO70,Mitgliederliste,2,FALSE)),\"\",VLOOKUP(AO70,Mitgliederliste,2,FALSE))","v":""},{"$f":"IF(ISERROR(VLOOKUP(AP70,Mitgliederliste,2,FALSE)),\"\",VLOOKUP(AP70,Mitgliederliste,2,FALSE))","v":""},{"$f":"IF(ISERROR(VLOOKUP(AQ70,Mitgliederliste,2,FALSE)),\"\",VLOOKUP(AQ70,Mitgliederliste,2,FALSE))","v":""},{"$f":"IF(ISERROR(VLOOKUP(AR70,Mitgliederliste,2,FALSE)),\"\",VLOOKUP(AR70,Mitgliederliste,2,FALSE))","v":""},{"$f":"IF(ISERROR(VLOOKUP(AS70,Mitgliederliste,2,FALSE)),\"\",VLOOKUP(AS70,Mitgliederliste,2,FALSE))","v":""}]
[66,null,null,0,null,null,null,null,null,null,null,null,null,null,"","","","","","","","","",null,null,null,"","","","","","","","",""]
[67,null,null,0,null,null,null,null,null,null,null,null,null,null,"","","","","","","","","",null,null,null,"","","","","","","","",""]
[68,null,null,0,null,null,null,null,null,null,null,null,null,null,"","","","","","","","","",null,null,null,"","","","","","","","",""]
[69,null,null,0,null,null,null,null,null,null,null,null,null,null,"","","","","","","","","",null,null,null,"","","","","","","","",""]
[70,null,null,0,null,null,null,null,null,null,null,null,null,null,"","","","","","","","","",null,null,null,"","","","","","","","",""]

{"sheet":"Br_B","index":4,"n_rows":75,"n_cols":47,"rows_kept":75,"cut":false,"hidden":false,"merged":[]}
[{"$f":"Bewerbsart","v":"Abschnittsfeuerwehrleistungsbewerb"}]
[{"$f":"TEXT(Datum,\"T.MMMM JJJJ\")&\"  -  \"& Bewerbsort","v":"0.Jänner 1900  -  "}]
[{"$f":"Br_B","v":"Bronze B"}]
[null,null,null,null,"Löschangriff",null,"Staffellauf"]
["Platz","Nummer","Gruppe","Stammpunkte","Zeit","Fehler","Zeit","Fehler","Alters-\nPunkte","Gesamt- punkte","Löschangr","Staffell.","Jahre",null,"Geb1","Geb2","Geb3","Geb4","Geb5","Geb6","Geb7","Geb8","Geb9",null,null,"Urk. gedr.","Name1","Name2","Name3","Name4","Name5","Name6","Name7","Name8","Name9","FW-Nr","Stb1","Stb2","Stb3","Stb4","Stb5","Stb6","Stb7","Stb8","Stb9","Pokale","Anzahl Preise (Pokale):"]
[1,null,null,null,null,null,null,null,null,null,null,null,null,null,null,null,null,null,null,null,null,null,null,null,null,null,null,null,null,null,null,null,null,null,null,null,null,null,null,null,null,null,null,null,null,null,{"$f":"IF(COUNTA(C6:C75)>0,1,\"kein Preis\")","v":"kein Preis"}]
[2,null,null,null,null,null,null,null,null,null,null,null,null,null,null,null,null,null,null,null,null,null,null,null,null,null,null,null,null,null,null,null,null,null,null,null,null,null,null,null,null,null,null,null,null,null,{"$f":"IF(COUNTA(C6:C75)>1,2,\"\")","v":""}]
[3,null,null,null,null,null,null,null,null,null,null,null,null,null,null,null,null,null,null,null,null,null,null,null,null,null,null,null,null,null,null,null,null,null,null,null,null,null,null,null,null,null,null,null,null,null,{"$f":"IF(COUNTA(C6:C75)>2,3,\"\")","v":""}]
[4,null,null,null,null,null,null,null,null,null,null,null,null,null,null,null,null,null,null,null,null,null,null,null,null,null,null,null,null,null,null,null,null,null,null,null,null,null,null,null,null,null,null,null,null,null,{"$f":"IF(COUNTA(C6:C75)>5,4,\"\")","v":""}]
[5,null,null,{"$f":"IF(E10>0,500,0)","v":0},null,null,null,null,null,null,null,null,null,null,{"$f":"IF(ISERROR(VLOOKUP(AK10,Mitgliederliste,8,FALSE)),\"\",IF(Stichtag_verwenden=0,VLOOKUP(AK10,Mitgliederliste,3,FALSE),VLOOKUP(AK10,Mitgliederliste,8,FALSE)))","v":""},{"$f":"IF(ISERROR(VLOOKUP(AL10,Mitgliederliste,8,FALSE)),\"\",IF(Stichtag_verwenden=0,VLOOKUP(AL10,Mitgliederliste,3,FALSE),VLOOKUP(AL10,Mitgliederliste,8,FALSE)))","v":""},{"$f":"IF(ISERROR(VLOOKUP(AM10,Mitgliederliste,8,FALSE)),\"\",IF(Stichtag_verwenden=0,VLOOKUP(AM10,Mitgliederliste,3,FALSE),VLOOKUP(AM10,Mitgliederliste,8,FALSE)))","v":""},{"$f":"IF(ISERROR(VLOOKUP(AN10,Mitgliederliste,8,FALSE)),\"\",IF(Stichtag_verwenden=0,VLOOKUP(AN10,Mitgliederliste,3,FALSE),VLOOKUP(AN10,Mitgliederliste,8,FALSE)))","v":""},{"$f":"IF(ISERROR(VLOOKUP(AO10,Mitgliederliste,8,FALSE)),\"\",IF(Stichtag_verwenden=0,VLOOKUP(AO10,Mitgliederliste,3,FALSE),VLOOKUP(AO10,Mitgliederliste,8,FALSE)))","v":""},{"$f":"IF(ISERROR(VLOOKUP(AP10,Mitgliederliste,8,FALSE)),\"\",IF(Stichtag_verwenden=0,VLOOKUP(AP10,Mitgliederliste,3,FALSE),VLOOKUP(AP10,Mitgliederliste,8,FALSE)))","v":""},{"$f":"IF(ISERROR(VLOOKUP(AQ10,Mitgliederliste,8,FALSE)),\"\",IF(Stichtag_verwenden=0,VLOOKUP(AQ10,Mitgliederliste,3,FALSE),VLOOKUP(AQ10,Mitgliederliste,8,FALSE)))","v":""},{"$f":"IF(ISERROR(VLOOKUP(AR10,Mitgliederliste,8,FALSE)),\"\",IF(Stichtag_verwenden=0,VLOOKUP(AR10,Mitgliederliste,3,FALSE),VLOOKUP(AR10,Mitgliederliste,8,FALSE)))","v":""},{"$f":"IF(ISERROR(VLOOKUP(AS10,Mitgliederliste,8,FALSE)),\"\",IF(Stichtag_verwenden=0,VLOOKUP(AS10,Mitgliederliste,3,FALSE),VLOOKUP(AS10,Mitgliederliste,8,FALSE)))","v":""},null,null,null,{"$f":"IF(ISERROR(VLOOKUP(AK10,Mitgliederliste,2,FALSE)),\"\",VLOOKUP(AK10,Mitgliederliste,2,FALSE))","v":""},{"$f":"IF(ISERROR(VLOOKUP(AL10,Mitgliederliste,2,FALSE)),\"\",VLOOKUP(AL10,Mitgliederliste,2,FALSE))","v":""},{"$f":"IF(ISERROR(VLOOKUP(AM10,Mitgliederliste,2,FALSE)),\"\",VLOOKUP(AM10,Mitgliederliste,2,FALSE))","v":""},{"$f":"IF(ISERROR(VLOOKUP(AN10,Mitgliederliste,2,FALSE)),\"\",VLOOKUP(AN10,Mitgliederliste,2,FALSE))","v":""},{"$f":"IF(ISERROR(VLOOKUP(AO10,Mitgliederliste,2,FALSE)),\"\",VLOOKUP(AO10,Mitgliederliste,2,FALSE))","v":""},{"$f":"IF(ISERROR(VLOOKUP(AP10,Mitgliederliste,2,FALSE)),\"\",VLOOKUP(AP10,Mitgliederliste,2,FALSE))","v":""},{"$f":"IF(ISERROR(VLOOKUP(AQ10,Mitgliederliste,2,FALSE)),\"\",VLOOKUP(AQ10,Mitgliederliste,2,FALSE))","v":""},{"$f":"IF(ISERROR(VLOOKUP(AR10,Mitgliederliste,2,FALSE)),\"\",VLOOKUP(AR10,Mitgliederliste,2,FALSE))","v":""},{"$f":"IF(ISERROR(VLOOKUP(AS10,Mitgliederliste,2,FALSE)),\"\",VLOOKUP(AS10,Mitgliederliste,2,FALSE))","v":""},null,null,null,null,null,null,null,null,null,null,null,{"$f":"IF(COUNTA(C6:C75)>9,5,\"\")","v":""}]
[6,null,null,0,null,null,null,null,null,null,null,null,null,null,"","","","","","","","","",null,null,null,"","","","","","","","","",null,null,null,null,null,null,null,null,null,null,null,{"$f":"IF(COUNTA(C6:C75)>13,6,\"\")","v":""}]
[7,null,null,0,null,null,null,null,null,null,null,null,null,null,"","","","","","","","","",null,null,null,"","","","","","","","","",null,null,null,null,null,null,null,null,null,null,null,{"$f":"IF(COUNTA(C6:C75)>17,7,\"\")","v":""}]
[8,null,null,0,null,null,null,null,null,null,null,null,null,null,"","","","","","","","","",null,null,null,"","","","","","","","","",null,null,null,null,null,null,null,null,null,null,null,{"$f":"IF(COUNTA(C6:C75)>22,8,\"\")","v":""}]
[9,null,null,0,null,null,null,null,null,null,null,null,null,null,"","","","","","","","","",null,null,null,"","","","","","","","","",null,null,null,null,null,null,null,null,null,null,null,{"$f":"IF(COUNTA(C6:C75)>27,9,\"\")","v":""}]
[10,null,null,0,null,null,null,null,null,null,null,null,null,null,"","","","","","","","","",null,null,null,"","","","","","","","","",null,null,null,null,null,null,null,null,null,null,null,{"$f":"IF(COUNTA(C6:C75)>32,10,\"\")","v":""}]
[11,null,null,0,null,null,null,null,null,null,null,null,null,null,"","","","","","","","","",null,null,null,"","","","","","","","","",null,null,null,null,null,null,null,null,null,null,null,{"$f":"IF(COUNTA(C6:C75)>37,11,\"\")","v":""}]
[12,null,null,0,null,null,null,null,null,null,null,null,null,null,"","","","","","","","","",null,null,null,"","","","","","","","","",null,null,null,null,null,null,null,null,null,null,null,{"$f":"IF(COUNTA(C6:C75)>42,12,\"\")","v":""}]
[13,null,null,0,null,null,null,null,null,null,null,null,null,null,"","","","","","","","","",null,null,null,"","","","","","","","","",null,null,null,null,null,null,null,null,null,null,null,{"$f":"IF(COUNTA(C6:C75)>47,13,\"\")","v":""}]
[14,null,null,0,null,null,null,null,null,null,null,null,null,null,"","","","","","","","","",null,null,null,"","","","","","","","","",null,null,null,null,null,null,null,null,null,null,null,{"$f":"IF(COUNTA(C6:C75)>52,14,\"\")","v":""}]
[15,null,null,0,null,null,null,null,null,null,null,null,null,null,"","","","","","","","","",null,null,null,"","","","","","","","","",null,null,null,null,null,null,null,null,null,null,null,{"$f":"IF(COUNTA(C6:C75)>57,15,\"\")","v":""}]
[16,null,null,0,null,null,null,null,null,null,null,null,null,null,"","","","","","","","","",null,null,null,"","","","","","","","","",null,null,null,null,null,null,null,null,null,null,null,{"$f":"IF(COUNTA(C6:C75)>62,16,\"\")","v":""}]
[17,null,null,0,null,null,null,null,null,null,null,null,null,null,"","","","","","","","","",null,null,null,"","","","","","","","","",null,null,null,null,null,null,null,null,null,null,null,{"$f":"IF(COUNTA(C6:C75)>67,17,\"\")","v":""}]
[18,null,null,0,null,null,null,null,null,null,null,null,null,null,"","","","","","","","","",null,null,null,"","","","","","","","",""]
[19,null,null,0,null,null,null,null,null,null,null,null,null,null,"","","","","","","","","",null,null,null,"","","","","","","","",""]
[20,null,null,0,null,null,null,null,null,null,null,null,null,null,"","","","","","","","","",null,null,null,"","","","","","","","",""]
[21,null,null,0,null,null,null,null,null,null,null,null,null,null,"","","","","","","","","",null,null,null,"","","","","","","","",""]
[22,null,null,0,null,null,null,null,null,null,null,null,null,null,"","","","","","","","","",null,null,null,"","","","","","","","",""]
[23,null,null,0,null,null,null,null,null,null,null,null,null,null,"","","","","","","","","",null,null,null,"","","","","","","","",""]
[24,null,null,0,null,null,null,null,null,null,null,null,null,null,"","","","","","","","","",null,null,null,"","","","","","","","",""]
[25,null,null,0,null,null,null,null,null,null,null,null,null,null,"","","","","","","","","",null,null,null,"","","","","","","","",""]
[26,null,null,0,null,null,null,null,null,null,null,null,null,null,"","","","","","","","","",null,null,null,"","","","","","","","",""]
[27,null,null,0,null,null,null,null,null,null,null,null,null,null,"","","","","","","","","",null,null,null,"","","","","","","","",""]
[28,null,null,0,null,null,null,null,null,null,null,null,null,null,"","","","","","","","","",null,null,null,"","","","","","","","",""]
[29,null,null,0,null,null,null,null,null,null,null,null,null,null,"","","","","","","","","",null,null,null,"","","","","","","","",""]
[30,null,null,0,null,null,null,null,null,null,null,null,null,null,"","","","","","","","","",null,null,null,"","","","","","","","",""]
[31,null,null,0,null,null,null,null,null,null,null,null,null,null,"","","","","","","","","",null,null,null,"","","","","","","","",""]
[32,null,null,0,null,null,null,null,null,null,null,null,null,null,"","","","","","","","","",null,null,null,"","","","","","","","",""]
[33,null,null,{"$f":"IF(E38>0,500,0)","v":0},null,null,null,null,null,null,null,null,null,null,{"$f":"IF(ISERROR(VLOOKUP(AK38,Mitgliederliste,8,FALSE)),\"\",IF(Stichtag_verwenden=0,VLOOKUP(AK38,Mitgliederliste,3,FALSE),VLOOKUP(AK38,Mitgliederliste,8,FALSE)))","v":""},{"$f":"IF(ISERROR(VLOOKUP(AL38,Mitgliederliste,8,FALSE)),\"\",IF(Stichtag_verwenden=0,VLOOKUP(AL38,Mitgliederliste,3,FALSE),VLOOKUP(AL38,Mitgliederliste,8,FALSE)))","v":""},{"$f":"IF(ISERROR(VLOOKUP(AM38,Mitgliederliste,8,FALSE)),\"\",IF(Stichtag_verwenden=0,VLOOKUP(AM38,Mitgliederliste,3,FALSE),VLOOKUP(AM38,Mitgliederliste,8,FALSE)))","v":""},{"$f":"IF(ISERROR(VLOOKUP(AN38,Mitgliederliste,8,FALSE)),\"\",IF(Stichtag_verwenden=0,VLOOKUP(AN38,Mitgliederliste,3,FALSE),VLOOKUP(AN38,Mitgliederliste,8,FALSE)))","v":""},{"$f":"IF(ISERROR(VLOOKUP(AO38,Mitgliederliste,8,FALSE)),\"\",IF(Stichtag_verwenden=0,VLOOKUP(AO38,Mitgliederliste,3,FALSE),VLOOKUP(AO38,Mitgliederliste,8,FALSE)))","v":""},{"$f":"IF(ISERROR(VLOOKUP(AP38,Mitgliederliste,8,FALSE)),\"\",IF(Stichtag_verwenden=0,VLOOKUP(AP38,Mitgliederliste,3,FALSE),VLOOKUP(AP38,Mitgliederliste,8,FALSE)))","v":""},{"$f":"IF(ISERROR(VLOOKUP(AQ38,Mitgliederliste,8,FALSE)),\"\",IF(Stichtag_verwenden=0,VLOOKUP(AQ38,Mitgliederliste,3,FALSE),VLOOKUP(AQ38,Mitgliederliste,8,FALSE)))","v":""},{"$f":"IF(ISERROR(VLOOKUP(AR38,Mitgliederliste,8,FALSE)),\"\",IF(Stichtag_verwenden=0,VLOOKUP(AR38,Mitgliederliste,3,FALSE),VLOOKUP(AR38,Mitgliederliste,8,FALSE)))","v":""},{"$f":"IF(ISERROR(VLOOKUP(AS38,Mitgliederliste,8,FALSE)),\"\",IF(Stichtag_verwenden=0,VLOOKUP(AS38,Mitgliederliste,3,FALSE),VLOOKUP(AS38,Mitgliederliste,8,FALSE)))","v":""},null,null,null,{"$f":"IF(ISERROR(VLOOKUP(AK38,Mitgliederliste,2,FALSE)),\"\",VLOOKUP(AK38,Mitgliederliste,2,FALSE))","v":""},{"$f":"IF(ISERROR(VLOOKUP(AL38,Mitgliederliste,2,FALSE)),\"\",VLOOKUP(AL38,Mitgliederliste,2,FALSE))","v":""},{"$f":"IF(ISERROR(VLOOKUP(AM38,Mitgliederliste,2,FALSE)),\"\",VLOOKUP(AM38,Mitgliederliste,2,FALSE))","v":""},{"$f":"IF(ISERROR(VLOOKUP(AN38,Mitgliederliste,2,FALSE)),\"\",VLOOKUP(AN38,Mitgliederliste,2,FALSE))","v":""},{"$f":"IF(ISERROR(VLOOKUP(AO38,Mitgliederliste,2,FALSE)),\"\",VLOOKUP(AO38,Mitgliederliste,2,FALSE))","v":""},{"$f":"IF(ISERROR(VLOOKUP(AP38,Mitgliederliste,2,FALSE)),\"\",VLOOKUP(AP38,Mitgliederliste,2,FALSE))","v":""},{"$f":"IF(ISERROR(VLOOKUP(AQ38,Mitgliederliste,2,FALSE)),\"\",VLOOKUP(AQ38,Mitgliederliste,2,FALSE))","v":""},{"$f":"IF(ISERROR(VLOOKUP(AR38,Mitgliederliste,2,FALSE)),\"\",VLOOKUP(AR38,Mitgliederliste,2,FALSE))","v":""},{"$f":"IF(ISERROR(VLOOKUP(AS38,Mitgliederliste,2,FALSE)),\"\",VLOOKUP(AS38,Mitgliederliste,2,FALSE))","v":""}]
[34,null,null,0,null,null,null,null,null,null,null,null,null,null,"","","","","","","","","",null,null,null,"","","","","","","","",""]
[35,null,null,0,null,null,null,null,null,null,null,null,null,null,"","","","","","","","","",null,null,null,"","","","","","","","",""]
[36,null,null,0,null,null,null,null,null,null,null,null,null,null,"","","","","","","","","",null,null,null,"","","","","","","","",""]
[37,null,null,0,null,null,null,null,null,null,null,null,null,null,"","","","","","","","","",null,null,null,"","","","","","","","",""]
[38,null,null,0,null,null,null,null,null,null,null,null,null,null,"","","","","","","","","",null,null,null,"","","","","","","","",""]
[39,null,null,0,null,null,null,null,null,null,null,null,null,null,"","","","","","","","","",null,null,null,"","","","","","","","",""]
[40,null,null,0,null,null,null,null,null,null,null,null,null,null,"","","","","","","","","",null,null,null,"","","","","","","","",""]
[41,null,null,0,null,null,null,null,null,null,null,null,null,null,"","","","","","","","","",null,null,null,"","","","","","","","",""]
[42,null,null,0,null,null,null,null,null,null,null,null,null,null,"","","","","","","","","",null,null,null,"","","","","","","","",""]
[43,null,null,0,null,null,null,null,null,null,null,null,null,null,"","","","","","","","","",null,null,null,"","","","","","","","",""]
[44,null,null,0,null,null,null,null,null,null,null,null,null,null,"","","","","","","","","",null,null,null,"","","","","","","","",""]
[45,null,null,0,null,null,null,null,null,null,null,null,null,null,"","","","","","","","","",null,null,null,"","","","","","","","",""]
[46,null,null,0,null,null,null,null,null,null,null,null,null,null,"","","","","","","","","",null,null,null,"","","","","","","","",""]
[47,null,null,0,null,null,null,null,null,null,null,null,null,null,"","","","","","","","","",null,null,null,"","","","","","","","",""]
[48,null,null,0,null,null,null,null,null,null,null,null,null,null,"","","","","","","","","",null,null,null,"","","","","","","","",""]
[49,null,null,0,null,null,null,null,null,null,null,null,null,null,"","","","","","","","","",null,null,null,"","","","","","","","",""]
[50,null,null,0,null,null,null,null,null,null,null,null,null,null,"","","","","","","","","",null,null,null,"","","","","","","","",""]
[51,null,null,0,null,null,null,null,null,null,null,null,null,null,"","","","","","","","","",null,null,null,"","","","","","","","",""]
[52,null,null,0,null,null,null,null,null,null,null,null,null,null,"","","","","","","","","",null,null,null,"","","","","","","","",""]
[53,null,null,0,null,null,null,null,null,null,null,null,null,null,"","","","","","","","","",null,null,null,"","","","","","","","",""]
[54,null,null,0,null,null,null,null,null,null,null,null,null,null,"","","","","","","","","",null,null,null,"","","","","","","","",""]
[55,null,null,0,null,null,null,null,null,null,null,null,null,null,"","","","","","","","","",null,null,null,"","","","","","","","",""]
[56,null,null,0,null,null,null,null,null,null,null,null,null,null,"","","","","","","","","",null,null,null,"","","","","","","","",""]
[57,null,null,0,null,null,null,null,null,null,null,null,null,null,"","","","","","","","","",null,null,null,"","","","","","","","",""]
[58,null,null,0,null,null,null,null,null,null,null,null,null,null,"","","","","","","","","",null,null,null,"","","","","","","","",""]
[59,null,null,0,null,null,null,null,null,null,null,null,null,null,"","","","","","","","","",null,null,null,"","","","","","","","",""]
[60,null,null,0,null,null,null,null,null,null,null,null,null,null,"","","","","","","","","",null,null,null,"","","","","","","","",""]
[61,null,null,0,null,null,null,null,null,null,null,null,null,null,"","","","","","","","","",null,null,null,"","","","","","","","",""]
[62,null,null,0,null,null,null,null,null,null,null,null,null,null,"","","","","","","","","",null,null,null,"","","","","","","","",""]
[63,null,null,0,null,null,null,null,null,null,null,null,null,null,"","","","","","","","","",null,null,null,"","","","","","","","",""]
[64,null,null,0,null,null,null,null,null,null,null,null,null,null,"","","","","","","","","",null,null,null,"","","","","","","","",""]
[65,null,null,{"$f":"IF(E70>0,500,0)","v":0},null,null,null,null,null,null,null,null,null,null,{"$f":"IF(ISERROR(VLOOKUP(AK70,Mitgliederliste,8,FALSE)),\"\",IF(Stichtag_verwenden=0,VLOOKUP(AK70,Mitgliederliste,3,FALSE),VLOOKUP(AK70,Mitgliederliste,8,FALSE)))","v":""},{"$f":"IF(ISERROR(VLOOKUP(AL70,Mitgliederliste,8,FALSE)),\"\",IF(Stichtag_verwenden=0,VLOOKUP(AL70,Mitgliederliste,3,FALSE),VLOOKUP(AL70,Mitgliederliste,8,FALSE)))","v":""},{"$f":"IF(ISERROR(VLOOKUP(AM70,Mitgliederliste,8,FALSE)),\"\",IF(Stichtag_verwenden=0,VLOOKUP(AM70,Mitgliederliste,3,FALSE),VLOOKUP(AM70,Mitgliederliste,8,FALSE)))","v":""},{"$f":"IF(ISERROR(VLOOKUP(AN70,Mitgliederliste,8,FALSE)),\"\",IF(Stichtag_verwenden=0,VLOOKUP(AN70,Mitgliederliste,3,FALSE),VLOOKUP(AN70,Mitgliederliste,8,FALSE)))","v":""},{"$f":"IF(ISERROR(VLOOKUP(AO70,Mitgliederliste,8,FALSE)),\"\",IF(Stichtag_verwenden=0,VLOOKUP(AO70,Mitgliederliste,3,FALSE),VLOOKUP(AO70,Mitgliederliste,8,FALSE)))","v":""},{"$f":"IF(ISERROR(VLOOKUP(AP70,Mitgliederliste,8,FALSE)),\"\",IF(Stichtag_verwenden=0,VLOOKUP(AP70,Mitgliederliste,3,FALSE),VLOOKUP(AP70,Mitgliederliste,8,FALSE)))","v":""},{"$f":"IF(ISERROR(VLOOKUP(AQ70,Mitgliederliste,8,FALSE)),\"\",IF(Stichtag_verwenden=0,VLOOKUP(AQ70,Mitgliederliste,3,FALSE),VLOOKUP(AQ70,Mitgliederliste,8,FALSE)))","v":""},{"$f":"IF(ISERROR(VLOOKUP(AR70,Mitgliederliste,8,FALSE)),\"\",IF(Stichtag_verwenden=0,VLOOKUP(AR70,Mitgliederliste,3,FALSE),VLOOKUP(AR70,Mitgliederliste,8,FALSE)))","v":""},{"$f":"IF(ISERROR(VLOOKUP(AS70,Mitgliederliste,8,FALSE)),\"\",IF(Stichtag_verwenden=0,VLOOKUP(AS70,Mitgliederliste,3,FALSE),VLOOKUP(AS70,Mitgliederliste,8,FALSE)))","v":""},null,null,null,{"$f":"IF(ISERROR(VLOOKUP(AK70,Mitgliederliste,2,FALSE)),\"\",VLOOKUP(AK70,Mitgliederliste,2,FALSE))","v":""},{"$f":"IF(ISERROR(VLOOKUP(AL70,Mitgliederliste,2,FALSE)),\"\",VLOOKUP(AL70,Mitgliederliste,2,FALSE))","v":""},{"$f":"IF(ISERROR(VLOOKUP(AM70,Mitgliederliste,2,FALSE)),\"\",VLOOKUP(AM70,Mitgliederliste,2,FALSE))","v":""},{"$f":"IF(ISERROR(VLOOKUP(AN70,Mitgliederliste,2,FALSE)),\"\",VLOOKUP(AN70,Mitgliederliste,2,FALSE))","v":""},{"$f":"IF(ISERROR(VLOOKUP(AO70,Mitgliederliste,2,FALSE)),\"\",VLOOKUP(AO70,Mitgliederliste,2,FALSE))","v":""},{"$f":"IF(ISERROR(VLOOKUP(AP70,Mitgliederliste,2,FALSE)),\"\",VLOOKUP(AP70,Mitgliederliste,2,FALSE))","v":""},{"$f":"IF(ISERROR(VLOOKUP(AQ70,Mitgliederliste,2,FALSE)),\"\",VLOOKUP(AQ70,Mitgliederliste,2,FALSE))","v":""},{"$f":"IF(ISERROR(VLOOKUP(AR70,Mitgliederliste,2,FALSE)),\"\",VLOOKUP(AR70,Mitgliederliste,2,FALSE))","v":""},{"$f":"IF(ISERROR(VLOOKUP(AS70,Mitgliederliste,2,FALSE)),\"\",VLOOKUP(AS70,Mitgliederliste,2,FALSE))","v":""}]
[66,null,null,0,null,null,null,null,null,null,null,null,null,null,"","","","","","","","","",null,null,null,"","","","","","","","",""]
[67,null,null,0,null,null,null,null,null,null,null,null,null,null,"","","","","","","","","",null,null,null,"","","","","","","","",""]
[68,null,null,0,null,null,null,null,null,null,null,null,null,null,"","","","","","","","","",null,null,null,"","","","","","","","",""]
[69,null,null,0,null,null,null,null,null,null,null,null,null,null,"","","","","","","","","",null,null,null,"","","","","","","","",""]
[70,null,null,0,null,null,null,null,null,null,null,null,null,null,"","","","","","","","","",null,null,null,"","","","","","","","",""]

{"sheet":"Si_B","index":5,"n_rows":75,"n_cols":47,"rows_kept":75,"cut":false,"hidden":false,"merged":[]}
[{"$f":"Bewerbsart","v":"Abschnittsfeuerwehrleistungsbewerb"}]
[{"$f":"TEXT(Datum,\"T.MMMM JJJJ\")&\"  -  \"& Bewerbsort","v":"0.Jänner 1900  -  "}]
[{"$f":"Si_B","v":"Silber B"}]
[null,null,null,null,"Löschangriff",null,"Staffellauf"]
["Platz","Nummer","Gruppe","Stammpunkte","Zeit","Fehler","Zeit","Fehler","Alters-\nPunkte","Gesamt- punkte","Löschangr","Staffell.","Jahre",null,"Geb1","Geb2","Geb3","Geb4","Geb5","Geb6","Geb7","Geb8","Geb9",null,null,"Urk. gedr.","Name1","Name2","Name3","Name4","Name5","Name6","Name7","Name8","Name9","FW-Nr","Stb1","Stb2","Stb3","Stb4","Stb5","Stb6","Stb7","Stb8","Stb9","Pokale","Anzahl Preise (Pokale):"]
[1,null,null,{"$f":"IF(E6>0,500,0)","v":0},null,null,null,null,null,null,null,null,null,null,{"$f":"IF(ISERROR(VLOOKUP(AK6,Mitgliederliste,8,FALSE)),\"\",IF(Stichtag_verwenden=0,VLOOKUP(AK6,Mitgliederliste,3,FALSE),VLOOKUP(AK6,Mitgliederliste,8,FALSE)))","v":""},{"$f":"IF(ISERROR(VLOOKUP(AL6,Mitgliederliste,8,FALSE)),\"\",IF(Stichtag_verwenden=0,VLOOKUP(AL6,Mitgliederliste,3,FALSE),VLOOKUP(AL6,Mitgliederliste,8,FALSE)))","v":""},{"$f":"IF(ISERROR(VLOOKUP(AM6,Mitgliederliste,8,FALSE)),\"\",IF(Stichtag_verwenden=0,VLOOKUP(AM6,Mitgliederliste,3,FALSE),VLOOKUP(AM6,Mitgliederliste,8,FALSE)))","v":""},{"$f":"IF(ISERROR(VLOOKUP(AN6,Mitgliederliste,8,FALSE)),\"\",IF(Stichtag_verwenden=0,VLOOKUP(AN6,Mitgliederliste,3,FALSE),VLOOKUP(AN6,Mitgliederliste,8,FALSE)))","v":""},{"$f":"IF(ISERROR(VLOOKUP(AO6,Mitgliederliste,8,FALSE)),\"\",IF(Stichtag_verwenden=0,VLOOKUP(AO6,Mitgliederliste,3,FALSE),VLOOKUP(AO6,Mitgliederliste,8,FALSE)))","v":""},{"$f":"IF(ISERROR(VLOOKUP(AP6,Mitgliederliste,8,FALSE)),\"\",IF(Stichtag_verwenden=0,VLOOKUP(AP6,Mitgliederliste,3,FALSE),VLOOKUP(AP6,Mitgliederliste,8,FALSE)))","v":""},{"$f":"IF(ISERROR(VLOOKUP(AQ6,Mitgliederliste,8,FALSE)),\"\",IF(Stichtag_verwenden=0,VLOOKUP(AQ6,Mitgliederliste,3,FALSE),VLOOKUP(AQ6,Mitgliederliste,8,FALSE)))","v":""},{"$f":"IF(ISERROR(VLOOKUP(AR6,Mitgliederliste,8,FALSE)),\"\",IF(Stichtag_verwenden=0,VLOOKUP(AR6,Mitgliederliste,3,FALSE),VLOOKUP(AR6,Mitgliederliste,8,FALSE)))","v":""},{"$f":"IF(ISERROR(VLOOKUP(AS6,Mitgliederliste,8,FALSE)),\"\",IF(Stichtag_verwenden=0,VLOOKUP(AS6,Mitgliederliste,3,FALSE),VLOOKUP(AS6,Mitgliederliste,8,FALSE)))","v":""},null,null,null,{"$f":"IF(ISERROR(VLOOKUP(AK6,Mitgliederliste,2,FALSE)),\"\",VLOOKUP(AK6,Mitgliederliste,2,FALSE))","v":""},{"$f":"IF(ISERROR(VLOOKUP(AL6,Mitgliederliste,2,FALSE)),\"\",VLOOKUP(AL6,Mitgliederliste,2,FALSE))","v":""},{"$f":"IF(ISERROR(VLOOKUP(AM6,Mitgliederliste,2,FALSE)),\"\",VLOOKUP(AM6,Mitgliederliste,2,FALSE))","v":""},{"$f":"IF(ISERROR(VLOOKUP(AN6,Mitgliederliste,2,FALSE)),\"\",VLOOKUP(AN6,Mitgliederliste,2,FALSE))","v":""},{"$f":"IF(ISERROR(VLOOKUP(AO6,Mitgliederliste,2,FALSE)),\"\",VLOOKUP(AO6,Mitgliederliste,2,FALSE))","v":""},{"$f":"IF(ISERROR(VLOOKUP(AP6,Mitgliederliste,2,FALSE)),\"\",VLOOKUP(AP6,Mitgliederliste,2,FALSE))","v":""},{"$f":"IF(ISERROR(VLOOKUP(AQ6,Mitgliederliste,2,FALSE)),\"\",VLOOKUP(AQ6,Mitgliederliste,2,FALSE))","v":""},{"$f":"IF(ISERROR(VLOOKUP(AR6,Mitgliederliste,2,FALSE)),\"\",VLOOKUP(AR6,Mitgliederliste,2,FALSE))","v":""},{"$f":"IF(ISERROR(VLOOKUP(AS6,Mitgliederliste,2,FALSE)),\"\",VLOOKUP(AS6,Mitgliederliste,2,FALSE))","v":""},null,null,null,null,null,null,null,null,null,null,null,{"$f":"IF(COUNTA(C6:C75)>0,1,\"kein Preis\")","v":"kein Preis"}]
[2,null,null,0,null,null,null,null,null,null,null,null,null,null,"","","","","","","","","",null,null,null,"","","","","","","","","",null,null,null,null,null,null,null,null,null,null,null,{"$f":"IF(COUNTA(C6:C75)>1,2,\"\")","v":""}]
[3,null,null,0,null,null,null,null,null,null,null,null,null,null,"","","","","","","","","",null,null,null,"","","","","","","","","",null,null,null,null,null,null,null,null,null,null,null,{"$f":"IF(COUNTA(C6:C75)>2,3,\"\")","v":""}]
[4,null,null,0,null,null,null,null,null,null,null,null,null,null,"","","","","","","","","",null,null,null,"","","","","","","","","",null,null,null,null,null,null,null,null,null,null,null,{"$f":"IF(COUNTA(C6:C75)>5,4,\"\")","v":""}]
[5,null,null,0,null,null,null,null,null,null,null,null,null,null,"","","","","","","","","",null,null,null,"","","","","","","","","",null,null,null,null,null,null,null,null,null,null,null,{"$f":"IF(COUNTA(C6:C75)>9,5,\"\")","v":""}]
[6,null,null,0,null,null,null,null,null,null,null,null,null,null,"","","","","","","","","",null,null,null,"","","","","","","","","",null,null,null,null,null,null,null,null,null,null,null,{"$f":"IF(COUNTA(C6:C75)>13,6,\"\")","v":""}]
[7,null,null,0,null,null,null,null,null,null,null,null,null,null,"","","","","","","","","",null,null,null,"","","","","","","","","",null,null,null,null,null,null,null,null,null,null,null,{"$f":"IF(COUNTA(C6:C75)>17,7,\"\")","v":""}]
[8,null,null,0,null,null,null,null,null,null,null,null,null,null,"","","","","","","","","",null,null,null,"","","","","","","","","",null,null,null,null,null,null,null,null,null,null,null,{"$f":"IF(COUNTA(C6:C75)>22,8,\"\")","v":""}]
[9,null,null,0,null,null,null,null,null,null,null,null,null,null,"","","","","","","","","",null,null,null,"","","","","","","","","",null,null,null,null,null,null,null,null,null,null,null,{"$f":"IF(COUNTA(C6:C75)>27,9,\"\")","v":""}]
[10,null,null,0,null,null,null,null,null,null,null,null,null,null,"","","","","","","","","",null,null,null,"","","","","","","","","",null,null,null,null,null,null,null,null,null,null,null,{"$f":"IF(COUNTA(C6:C75)>32,10,\"\")","v":""}]
[11,null,null,0,null,null,null,null,null,null,null,null,null,null,"","","","","","","","","",null,null,null,"","","","","","","","","",null,null,null,null,null,null,null,null,null,null,null,{"$f":"IF(COUNTA(C6:C75)>37,11,\"\")","v":""}]
[12,null,null,0,null,null,null,null,null,null,null,null,null,null,"","","","","","","","","",null,null,null,"","","","","","","","","",null,null,null,null,null,null,null,null,null,null,null,{"$f":"IF(COUNTA(C6:C75)>42,12,\"\")","v":""}]
[13,null,null,0,null,null,null,null,null,null,null,null,null,null,"","","","","","","","","",null,null,null,"","","","","","","","","",null,null,null,null,null,null,null,null,null,null,null,{"$f":"IF(COUNTA(C6:C75)>47,13,\"\")","v":""}]
[14,null,null,0,null,null,null,null,null,null,null,null,null,null,"","","","","","","","","",null,null,null,"","","","","","","","","",null,null,null,null,null,null,null,null,null,null,null,{"$f":"IF(COUNTA(C6:C75)>52,14,\"\")","v":""}]
[15,null,null,0,null,null,null,null,null,null,null,null,null,null,"","","","","","","","","",null,null,null,"","","","","","","","","",null,null,null,null,null,null,null,null,null,null,null,{"$f":"IF(COUNTA(C6:C75)>57,15,\"\")","v":""}]
[16,null,null,0,null,null,null,null,null,null,null,null,null,null,"","","","","","","","","",null,null,null,"","","","","","","","","",null,null,null,null,null,null,null,null,null,null,null,{"$f":"IF(COUNTA(C6:C75)>62,16,\"\")","v":""}]
[17,null,null,0,null,null,null,null,null,null,null,null,null,null,"","","","","","","","","",null,null,null,"","","","","","","","","",null,null,null,null,null,null,null,null,null,null,null,{"$f":"IF(COUNTA(C6:C75)>67,17,\"\")","v":""}]
[18,null,null,0,null,null,null,null,null,null,null,null,null,null,"","","","","","","","","",null,null,null,"","","","","","","","",""]
[19,null,null,0,null,null,null,null,null,null,null,null,null,null,"","","","","","","","","",null,null,null,"","","","","","","","",""]
[20,null,null,0,null,null,null,null,null,null,null,null,null,null,"","","","","","","","","",null,null,null,"","","","","","","","",""]
[21,null,null,0,null,null,null,null,null,null,null,null,null,null,"","","","","","","","","",null,null,null,"","","","","","","","",""]
[22,null,null,0,null,null,null,null,null,null,null,null,null,null,"","","","","","","","","",null,null,null,"","","","","","","","",""]
[23,null,null,0,null,null,null,null,null,null,null,null,null,null,"","","","","","","","","",null,null,null,"","","","","","","","",""]
[24,null,null,0,null,null,null,null,null,null,null,null,null,null,"","","","","","","","","",null,null,null,"","","","","","","","",""]
[25,null,null,0,null,null,null,null,null,null,null,null,null,null,"","","","","","","","","",null,null,null,"","","","","","","","",""]
[26,null,null,0,null,null,null,null,null,null,null,null,null,null,"","","","","","","","","",null,null,null,"","","","","","","","",""]
[27,null,null,0,null,null,null,null,null,null,null,null,null,null,"","","","","","","","","",null,null,null,"","","","","","","","",""]
[28,null,null,0,null,null,null,null,null,null,null,null,null,null,"","","","","","","","","",null,null,null,"","","","","","","","",""]
[29,null,null,0,null,null,null,null,null,null,null,null,null,null,"","","","","","","","","",null,null,null,"","","","","","","","",""]
[30,null,null,0,null,null,null,null,null,null,null,null,null,null,"","","","","","","","","",null,null,null,"","","","","","","","",""]
[31,null,null,0,null,null,null,null,null,null,null,null,null,null,"","","","","","","","","",null,null,null,"","","","","","","","",""]
[32,null,null,0,null,null,null,null,null,null,null,null,null,null,"","","","","","","","","",null,null,null,"","","","","","","","",""]
[33,null,null,{"$f":"IF(E38>0,500,0)","v":0},null,null,null,null,null,null,null,null,null,null,{"$f":"IF(ISERROR(VLOOKUP(AK38,Mitgliederliste,8,FALSE)),\"\",IF(Stichtag_verwenden=0,VLOOKUP(AK38,Mitgliederliste,3,FALSE),VLOOKUP(AK38,Mitgliederliste,8,FALSE)))","v":""},{"$f":"IF(ISERROR(VLOOKUP(AL38,Mitgliederliste,8,FALSE)),\"\",IF(Stichtag_verwenden=0,VLOOKUP(AL38,Mitgliederliste,3,FALSE),VLOOKUP(AL38,Mitgliederliste,8,FALSE)))","v":""},{"$f":"IF(ISERROR(VLOOKUP(AM38,Mitgliederliste,8,FALSE)),\"\",IF(Stichtag_verwenden=0,VLOOKUP(AM38,Mitgliederliste,3,FALSE),VLOOKUP(AM38,Mitgliederliste,8,FALSE)))","v":""},{"$f":"IF(ISERROR(VLOOKUP(AN38,Mitgliederliste,8,FALSE)),\"\",IF(Stichtag_verwenden=0,VLOOKUP(AN38,Mitgliederliste,3,FALSE),VLOOKUP(AN38,Mitgliederliste,8,FALSE)))","v":""},{"$f":"IF(ISERROR(VLOOKUP(AO38,Mitgliederliste,8,FALSE)),\"\",IF(Stichtag_verwenden=0,VLOOKUP(AO38,Mitgliederliste,3,FALSE),VLOOKUP(AO38,Mitgliederliste,8,FALSE)))","v":""},{"$f":"IF(ISERROR(VLOOKUP(AP38,Mitgliederliste,8,FALSE)),\"\",IF(Stichtag_verwenden=0,VLOOKUP(AP38,Mitgliederliste,3,FALSE),VLOOKUP(AP38,Mitgliederliste,8,FALSE)))","v":""},{"$f":"IF(ISERROR(VLOOKUP(AQ38,Mitgliederliste,8,FALSE)),\"\",IF(Stichtag_verwenden=0,VLOOKUP(AQ38,Mitgliederliste,3,FALSE),VLOOKUP(AQ38,Mitgliederliste,8,FALSE)))","v":""},{"$f":"IF(ISERROR(VLOOKUP(AR38,Mitgliederliste,8,FALSE)),\"\",IF(Stichtag_verwenden=0,VLOOKUP(AR38,Mitgliederliste,3,FALSE),VLOOKUP(AR38,Mitgliederliste,8,FALSE)))","v":""},{"$f":"IF(ISERROR(VLOOKUP(AS38,Mitgliederliste,8,FALSE)),\"\",IF(Stichtag_verwenden=0,VLOOKUP(AS38,Mitgliederliste,3,FALSE),VLOOKUP(AS38,Mitgliederliste,8,FALSE)))","v":""},null,null,null,{"$f":"IF(ISERROR(VLOOKUP(AK38,Mitgliederliste,2,FALSE)),\"\",VLOOKUP(AK38,Mitgliederliste,2,FALSE))","v":""},{"$f":"IF(ISERROR(VLOOKUP(AL38,Mitgliederliste,2,FALSE)),\"\",VLOOKUP(AL38,Mitgliederliste,2,FALSE))","v":""},{"$f":"IF(ISERROR(VLOOKUP(AM38,Mitgliederliste,2,FALSE)),\"\",VLOOKUP(AM38,Mitgliederliste,2,FALSE))","v":""},{"$f":"IF(ISERROR(VLOOKUP(AN38,Mitgliederliste,2,FALSE)),\"\",VLOOKUP(AN38,Mitgliederliste,2,FALSE))","v":""},{"$f":"IF(ISERROR(VLOOKUP(AO38,Mitgliederliste,2,FALSE)),\"\",VLOOKUP(AO38,Mitgliederliste,2,FALSE))","v":""},{"$f":"IF(ISERROR(VLOOKUP(AP38,Mitgliederliste,2,FALSE)),\"\",VLOOKUP(AP38,Mitgliederliste,2,FALSE))","v":""},{"$f":"IF(ISERROR(VLOOKUP(AQ38,Mitgliederliste,2,FALSE)),\"\",VLOOKUP(AQ38,Mitgliederliste,2,FALSE))","v":""},{"$f":"IF(ISERROR(VLOOKUP(AR38,Mitgliederliste,2,FALSE)),\"\",VLOOKUP(AR38,Mitgliederliste,2,FALSE))","v":""},{"$f":"IF(ISERROR(VLOOKUP(AS38,Mitgliederliste,2,FALSE)),\"\",VLOOKUP(AS38,Mitgliederliste,2,FALSE))","v":""}]
[34,null,null,0,null,null,null,null,null,null,null,null,null,null,"","","","","","","","","",null,null,null,"","","","","","","","",""]
[35,null,null,0,null,null,null,null,null,null,null,null,null,null,"","","","","","","","","",null,null,null,"","","","","","","","",""]
[36,null,null,0,null,null,null,null,null,null,null,null,null,null,"","","","","","","","","",null,null,null,"","","","","","","","",""]
[37,null,null,0,null,null,null,null,null,null,null,null,null,null,"","","","","","","","","",null,null,null,"","","","","","","","",""]
[38,null,null,0,null,null,null,null,null,null,null,null,null,null,"","","","","","","","","",null,null,null,"","","","","","","","",""]
[39,null,null,0,null,null,null,null,null,null,null,null,null,null,"","","","","","","","","",null,null,null,"","","","","","","","",""]
[40,null,null,0,null,null,null,null,null,null,null,null,null,null,"","","","","","","","","",null,null,null,"","","","","","","","",""]
[41,null,null,0,null,null,null,null,null,null,null,null,null,null,"","","","","","","","","",null,null,null,"","","","","","","","",""]
[42,null,null,0,null,null,null,null,null,null,null,null,null,null,"","","","","","","","","",null,null,null,"","","","","","","","",""]
[43,null,null,0,null,null,null,null,null,null,null,null,null,null,"","","","","","","","","",null,null,null,"","","","","","","","",""]
[44,null,null,0,null,null,null,null,null,null,null,null,null,null,"","","","","","","","","",null,null,null,"","","","","","","","",""]
[45,null,null,0,null,null,null,null,null,null,null,null,null,null,"","","","","","","","","",null,null,null,"","","","","","","","",""]
[46,null,null,0,null,null,null,null,null,null,null,null,null,null,"","","","","","","","","",null,null,null,"","","","","","","","",""]
[47,null,null,0,null,null,null,null,null,null,null,null,null,null,"","","","","","","","","",null,null,null,"","","","","","","","",""]
[48,null,null,0,null,null,null,null,null,null,null,null,null,null,"","","","","","","","","",null,null,null,"","","","","","","","",""]
[49,null,null,0,null,null,null,null,null,null,null,null,null,null,"","","","","","","","","",null,null,null,"","","","","","","","",""]
[50,null,null,0,null,null,null,null,null,null,null,null,null,null,"","","","","","","","","",null,null,null,"","","","","","","","",""]
[51,null,null,0,null,null,null,null,null,null,null,null,null,null,"","","","","","","","","",null,null,null,"","","","","","","","",""]
[52,null,null,0,null,null,null,null,null,null,null,null,null,null,"","","","","","","","","",null,null,null,"","","","","","","","",""]
[53,null,null,0,null,null,null,null,null,null,null,null,null,null,"","","","","","","","","",null,null,null,"","","","","","","","",""]
[54,null,null,0,null,null,null,null,null,null,null,null,null,null,"","","","","","","","","",null,null,null,"","","","","","","","",""]
[55,null,null,0,null,null,null,null,null,null,null,null,null,null,"","","","","","","","","",null,null,null,"","","","","","","","",""]
[56,null,null,0,null,null,null,null,null,null,null,null,null,null,"","","","","","","","","",null,null,null,"","","","","","","","",""]
[57,null,null,0,null,null,null,null,null,null,null,null,null,null,"","","","","","","","","",null,null,null,"","","","","","","","",""]
[58,null,null,0,null,null,null,null,null,null,null,null,null,null,"","","","","","","","","",null,null,null,"","","","","","","","",""]
[59,null,null,0,null,null,null,null,null,null,null,null,null,null,"","","","","","","","","",null,null,null,"","","","","","","","",""]
[60,null,null,0,null,null,null,null,null,null,null,null,null,null,"","","","","","","","","",null,null,null,"","","","","","","","",""]
[61,null,null,0,null,null,null,null,null,null,null,null,null,null,"","","","","","","","","",null,null,null,"","","","","","","","",""]
[62,null,null,0,null,null,null,null,null,null,null,null,null,null,"","","","","","","","","",null,null,null,"","","","","","","","",""]
[63,null,null,0,null,null,null,null,null,null,null,null,null,null,"","","","","","","","","",null,null,null,"","","","","","","","",""]
[64,null,null,0,null,null,null,null,null,null,null,null,null,null,"","","","","","","","","",null,null,null,"","","","","","","","",""]
[65,null,null,{"$f":"IF(E70>0,500,0)","v":0},null,null,null,null,null,null,null,null,null,null,{"$f":"IF(ISERROR(VLOOKUP(AK70,Mitgliederliste,8,FALSE)),\"\",IF(Stichtag_verwenden=0,VLOOKUP(AK70,Mitgliederliste,3,FALSE),VLOOKUP(AK70,Mitgliederliste,8,FALSE)))","v":""},{"$f":"IF(ISERROR(VLOOKUP(AL70,Mitgliederliste,8,FALSE)),\"\",IF(Stichtag_verwenden=0,VLOOKUP(AL70,Mitgliederliste,3,FALSE),VLOOKUP(AL70,Mitgliederliste,8,FALSE)))","v":""},{"$f":"IF(ISERROR(VLOOKUP(AM70,Mitgliederliste,8,FALSE)),\"\",IF(Stichtag_verwenden=0,VLOOKUP(AM70,Mitgliederliste,3,FALSE),VLOOKUP(AM70,Mitgliederliste,8,FALSE)))","v":""},{"$f":"IF(ISERROR(VLOOKUP(AN70,Mitgliederliste,8,FALSE)),\"\",IF(Stichtag_verwenden=0,VLOOKUP(AN70,Mitgliederliste,3,FALSE),VLOOKUP(AN70,Mitgliederliste,8,FALSE)))","v":""},{"$f":"IF(ISERROR(VLOOKUP(AO70,Mitgliederliste,8,FALSE)),\"\",IF(Stichtag_verwenden=0,VLOOKUP(AO70,Mitgliederliste,3,FALSE),VLOOKUP(AO70,Mitgliederliste,8,FALSE)))","v":""},{"$f":"IF(ISERROR(VLOOKUP(AP70,Mitgliederliste,8,FALSE)),\"\",IF(Stichtag_verwenden=0,VLOOKUP(AP70,Mitgliederliste,3,FALSE),VLOOKUP(AP70,Mitgliederliste,8,FALSE)))","v":""},{"$f":"IF(ISERROR(VLOOKUP(AQ70,Mitgliederliste,8,FALSE)),\"\",IF(Stichtag_verwenden=0,VLOOKUP(AQ70,Mitgliederliste,3,FALSE),VLOOKUP(AQ70,Mitgliederliste,8,FALSE)))","v":""},{"$f":"IF(ISERROR(VLOOKUP(AR70,Mitgliederliste,8,FALSE)),\"\",IF(Stichtag_verwenden=0,VLOOKUP(AR70,Mitgliederliste,3,FALSE),VLOOKUP(AR70,Mitgliederliste,8,FALSE)))","v":""},{"$f":"IF(ISERROR(VLOOKUP(AS70,Mitgliederliste,8,FALSE)),\"\",IF(Stichtag_verwenden=0,VLOOKUP(AS70,Mitgliederliste,3,FALSE),VLOOKUP(AS70,Mitgliederliste,8,FALSE)))","v":""},null,null,null,{"$f":"IF(ISERROR(VLOOKUP(AK70,Mitgliederliste,2,FALSE)),\"\",VLOOKUP(AK70,Mitgliederliste,2,FALSE))","v":""},{"$f":"IF(ISERROR(VLOOKUP(AL70,Mitgliederliste,2,FALSE)),\"\",VLOOKUP(AL70,Mitgliederliste,2,FALSE))","v":""},{"$f":"IF(ISERROR(VLOOKUP(AM70,Mitgliederliste,2,FALSE)),\"\",VLOOKUP(AM70,Mitgliederliste,2,FALSE))","v":""},{"$f":"IF(ISERROR(VLOOKUP(AN70,Mitgliederliste,2,FALSE)),\"\",VLOOKUP(AN70,Mitgliederliste,2,FALSE))","v":""},{"$f":"IF(ISERROR(VLOOKUP(AO70,Mitgliederliste,2,FALSE)),\"\",VLOOKUP(AO70,Mitgliederliste,2,FALSE))","v":""},{"$f":"IF(ISERROR(VLOOKUP(AP70,Mitgliederliste,2,FALSE)),\"\",VLOOKUP(AP70,Mitgliederliste,2,FALSE))","v":""},{"$f":"IF(ISERROR(VLOOKUP(AQ70,Mitgliederliste,2,FALSE)),\"\",VLOOKUP(AQ70,Mitgliederliste,2,FALSE))","v":""},{"$f":"IF(ISERROR(VLOOKUP(AR70,Mitgliederliste,2,FALSE)),\"\",VLOOKUP(AR70,Mitgliederliste,2,FALSE))","v":""},{"$f":"IF(ISERROR(VLOOKUP(AS70,Mitgliederliste,2,FALSE)),\"\",VLOOKUP(AS70,Mitgliederliste,2,FALSE))","v":""}]
[66,null,null,0,null,null,null,null,null,null,null,null,null,null,"","","","","","","","","",null,null,null,"","","","","","","","",""]
[67,null,null,0,null,null,null,null,null,null,null,null,null,null,"","","","","","","","","",null,null,null,"","","","","","","","",""]
[68,null,null,0,null,null,null,null,null,null,null,null,null,null,"","","","","","","","","",null,null,null,"","","","","","","","",""]
[69,null,null,0,null,null,null,null,null,null,null,null,null,null,"","","","","","","","","",null,null,null,"","","","","","","","",""]
[70,null,null,0,null,null,null,null,null,null,null,null,null,null,"","","","","","","","","",null,null,null,"","","","","","","","",""]

{"sheet":"G1_Br_A","index":6,"n_rows":75,"n_cols":47,"rows_kept":75,"cut":false,"hidden":false,"merged":[]}
[{"$f":"Bewerbsart","v":"Abschnittsfeuerwehrleistungsbewerb"}]
[{"$f":"TEXT(Datum,\"T.MMMM JJJJ\")&\"  -  \"& Bewerbsort","v":"0.Jänner 1900  -  "}]
[{"$f":"G1_Br_A","v":"Gäste 1 Bronze A"}]
[null,null,null,null,"Löschangriff",null,"Staffellauf"]
["Platz","Nummer","Gruppe","Stammpunkte","Zeit","Fehler","Zeit","Fehler","Alters-\nPunkte","Gesamt- punkte","Löschangr","Staffell.","Jahre",null,"Geb1","Geb2","Geb3","Geb4","Geb5","Geb6","Geb7","Geb8","Geb9",null,null,"Urk. gedr.","Name1","Name2","Name3","Name4","Name5","Name6","Name7","Name8","Name9","FW-Nr","Stb1","Stb2","Stb3","Stb4","Stb5","Stb6","Stb7","Stb8","Stb9","Pokale","Anzahl Preise (Pokale):"]
[1,null,null,{"$f":"IF(E6>0,500,0)","v":0},null,null,null,null,null,null,null,null,null,null,{"$f":"IF(ISERROR(VLOOKUP(AK6,Mitgliederliste,8,FALSE)),\"\",IF(Stichtag_verwenden=0,VLOOKUP(AK6,Mitgliederliste,3,FALSE),VLOOKUP(AK6,Mitgliederliste,8,FALSE)))","v":""},{"$f":"IF(ISERROR(VLOOKUP(AL6,Mitgliederliste,8,FALSE)),\"\",IF(Stichtag_verwenden=0,VLOOKUP(AL6,Mitgliederliste,3,FALSE),VLOOKUP(AL6,Mitgliederliste,8,FALSE)))","v":""},{"$f":"IF(ISERROR(VLOOKUP(AM6,Mitgliederliste,8,FALSE)),\"\",IF(Stichtag_verwenden=0,VLOOKUP(AM6,Mitgliederliste,3,FALSE),VLOOKUP(AM6,Mitgliederliste,8,FALSE)))","v":""},{"$f":"IF(ISERROR(VLOOKUP(AN6,Mitgliederliste,8,FALSE)),\"\",IF(Stichtag_verwenden=0,VLOOKUP(AN6,Mitgliederliste,3,FALSE),VLOOKUP(AN6,Mitgliederliste,8,FALSE)))","v":""},{"$f":"IF(ISERROR(VLOOKUP(AO6,Mitgliederliste,8,FALSE)),\"\",IF(Stichtag_verwenden=0,VLOOKUP(AO6,Mitgliederliste,3,FALSE),VLOOKUP(AO6,Mitgliederliste,8,FALSE)))","v":""},{"$f":"IF(ISERROR(VLOOKUP(AP6,Mitgliederliste,8,FALSE)),\"\",IF(Stichtag_verwenden=0,VLOOKUP(AP6,Mitgliederliste,3,FALSE),VLOOKUP(AP6,Mitgliederliste,8,FALSE)))","v":""},{"$f":"IF(ISERROR(VLOOKUP(AQ6,Mitgliederliste,8,FALSE)),\"\",IF(Stichtag_verwenden=0,VLOOKUP(AQ6,Mitgliederliste,3,FALSE),VLOOKUP(AQ6,Mitgliederliste,8,FALSE)))","v":""},{"$f":"IF(ISERROR(VLOOKUP(AR6,Mitgliederliste,8,FALSE)),\"\",IF(Stichtag_verwenden=0,VLOOKUP(AR6,Mitgliederliste,3,FALSE),VLOOKUP(AR6,Mitgliederliste,8,FALSE)))","v":""},{"$f":"IF(ISERROR(VLOOKUP(AS6,Mitgliederliste,8,FALSE)),\"\",IF(Stichtag_verwenden=0,VLOOKUP(AS6,Mitgliederliste,3,FALSE),VLOOKUP(AS6,Mitgliederliste,8,FALSE)))","v":""},null,null,null,{"$f":"IF(ISERROR(VLOOKUP(AK6,Mitgliederliste,2,FALSE)),\"\",VLOOKUP(AK6,Mitgliederliste,2,FALSE))","v":""},{"$f":"IF(ISERROR(VLOOKUP(AL6,Mitgliederliste,2,FALSE)),\"\",VLOOKUP(AL6,Mitgliederliste,2,FALSE))","v":""},{"$f":"IF(ISERROR(VLOOKUP(AM6,Mitgliederliste,2,FALSE)),\"\",VLOOKUP(AM6,Mitgliederliste,2,FALSE))","v":""},{"$f":"IF(ISERROR(VLOOKUP(AN6,Mitgliederliste,2,FALSE)),\"\",VLOOKUP(AN6,Mitgliederliste,2,FALSE))","v":""},{"$f":"IF(ISERROR(VLOOKUP(AO6,Mitgliederliste,2,FALSE)),\"\",VLOOKUP(AO6,Mitgliederliste,2,FALSE))","v":""},{"$f":"IF(ISERROR(VLOOKUP(AP6,Mitgliederliste,2,FALSE)),\"\",VLOOKUP(AP6,Mitgliederliste,2,FALSE))","v":""},{"$f":"IF(ISERROR(VLOOKUP(AQ6,Mitgliederliste,2,FALSE)),\"\",VLOOKUP(AQ6,Mitgliederliste,2,FALSE))","v":""},{"$f":"IF(ISERROR(VLOOKUP(AR6,Mitgliederliste,2,FALSE)),\"\",VLOOKUP(AR6,Mitgliederliste,2,FALSE))","v":""},{"$f":"IF(ISERROR(VLOOKUP(AS6,Mitgliederliste,2,FALSE)),\"\",VLOOKUP(AS6,Mitgliederliste,2,FALSE))","v":""},null,null,null,null,null,null,null,null,null,null,null,{"$f":"IF(COUNTA(C6:C75)>0,1,\"kein Preis\")","v":"kein Preis"}]
[2,null,null,0,null,null,null,null,null,null,null,null,null,null,"","","","","","","","","",null,null,null,"","","","","","","","","",null,null,null,null,null,null,null,null,null,null,null,{"$f":"IF(COUNTA(C6:C75)>1,2,\"\")","v":""}]
[3,null,null,0,null,null,null,null,null,null,null,null,null,null,"","","","","","","","","",null,null,null,"","","","","","","","","",null,null,null,null,null,null,null,null,null,null,null,{"$f":"IF(COUNTA(C6:C75)>2,3,\"\")","v":""}]
[4,null,null,0,null,null,null,null,null,null,null,null,null,null,"","","","","","","","","",null,null,null,"","","","","","","","","",null,null,null,null,null,null,null,null,null,null,null,{"$f":"IF(COUNTA(C6:C75)>5,4,\"\")","v":""}]
[5,null,null,0,null,null,null,null,null,null,null,null,null,null,"","","","","","","","","",null,null,null,"","","","","","","","","",null,null,null,null,null,null,null,null,null,null,null,{"$f":"IF(COUNTA(C6:C75)>10,5,\"\")","v":""}]
[6,null,null,0,null,null,null,null,null,null,null,null,null,null,"","","","","","","","","",null,null,null,"","","","","","","","","",null,null,null,null,null,null,null,null,null,null,null,{"$f":"IF(COUNTA(C6:C75)>15,6,\"\")","v":""}]
[7,null,null,0,null,null,null,null,null,null,null,null,null,null,"","","","","","","","","",null,null,null,"","","","","","","","","",null,null,null,null,null,null,null,null,null,null,null,{"$f":"IF(COUNTA(C6:C75)>20,7,\"\")","v":""}]
[8,null,null,0,null,null,null,null,null,null,null,null,null,null,"","","","","","","","","",null,null,null,"","","","","","","","","",null,null,null,null,null,null,null,null,null,null,null,{"$f":"IF(COUNTA(C6:C75)>30,8,\"\")","v":""}]
[9,null,null,0,null,null,null,null,null,null,null,null,null,null,"","","","","","","","","",null,null,null,"","","","","","","","","",null,null,null,null,null,null,null,null,null,null,null,{"$f":"IF(COUNTA(C6:C75)>40,9,\"\")","v":""}]
[10,null,null,0,null,null,null,null,null,null,null,null,null,null,"","","","","","","","","",null,null,null,"","","","","","","","","",null,null,null,null,null,null,null,null,null,null,null,{"$f":"IF(COUNTA(C6:C75)>50,10,\"\")","v":""}]
[11,null,null,0,null,null,null,null,null,null,null,null,null,null,"","","","","","","","","",null,null,null,"","","","","","","","","",null,null,null,null,null,null,null,null,null,null,null,{"$f":"IF(COUNTA(C6:C75)>60,11,\"\")","v":""}]
[12,null,null,0,null,null,null,null,null,null,null,null,null,null,"","","","","","","","","",null,null,null,"","","","","","","","",""]
[13,null,null,0,null,null,null,null,null,null,null,null,null,null,"","","","","","","","","",null,null,null,"","","","","","","","",""]
[14,null,null,0,null,null,null,null,null,null,null,null,null,null,"","","","","","","","","",null,null,null,"","","","","","","","",""]
[15,null,null,0,null,null,null,null,null,null,null,null,null,null,"","","","","","","","","",null,null,null,"","","","","","","","",""]
[16,null,null,0,null,null,null,null,null,null,null,null,null,null,"","","","","","","","","",null,null,null,"","","","","","","","",""]
[17,null,null,0,null,null,null,null,null,null,null,null,null,null,"","","","","","","","","",null,null,null,"","","","","","","","",""]
[18,null,null,0,null,null,null,null,null,null,null,null,null,null,"","","","","","","","","",null,null,null,"","","","","","","","",""]
[19,null,null,0,null,null,null,null,null,null,null,null,null,null,"","","","","","","","","",null,null,null,"","","","","","","","",""]
[20,null,null,0,null,null,null,null,null,null,null,null,null,null,"","","","","","","","","",null,null,null,"","","","","","","","",""]
[21,null,null,0,null,null,null,null,null,null,null,null,null,null,"","","","","","","","","",null,null,null,"","","","","","","","",""]
[22,null,null,0,null,null,null,null,null,null,null,null,null,null,"","","","","","","","","",null,null,null,"","","","","","","","",""]
[23,null,null,0,null,null,null,null,null,null,null,null,null,null,"","","","","","","","","",null,null,null,"","","","","","","","",""]
[24,null,null,0,null,null,null,null,null,null,null,null,null,null,"","","","","","","","","",null,null,null,"","","","","","","","",""]
[25,null,null,0,null,null,null,null,null,null,null,null,null,null,"","","","","","","","","",null,null,null,"","","","","","","","",""]
[26,null,null,0,null,null,null,null,null,null,null,null,null,null,"","","","","","","","","",null,null,null,"","","","","","","","",""]
[27,null,null,0,null,null,null,null,null,null,null,null,null,null,"","","","","","","","","",null,null,null,"","","","","","","","",""]
[28,null,null,0,null,null,null,null,null,null,null,null,null,null,"","","","","","","","","",null,null,null,"","","","","","","","",""]
[29,null,null,0,null,null,null,null,null,null,null,null,null,null,"","","","","","","","","",null,null,null,"","","","","","","","",""]
[30,null,null,0,null,null,null,null,null,null,null,null,null,null,"","","","","","","","","",null,null,null,"","","","","","","","",""]
[31,null,null,0,null,null,null,null,null,null,null,null,null,null,"","","","","","","","","",null,null,null,"","","","","","","","",""]
[32,null,null,0,null,null,null,null,null,null,null,null,null,null,"","","","","","","","","",null,null,null,"","","","","","","","",""]
[33,null,null,{"$f":"IF(E38>0,500,0)","v":0},null,null,null,null,null,null,null,null,null,null,{"$f":"IF(ISERROR(VLOOKUP(AK38,Mitgliederliste,8,FALSE)),\"\",IF(Stichtag_verwenden=0,VLOOKUP(AK38,Mitgliederliste,3,FALSE),VLOOKUP(AK38,Mitgliederliste,8,FALSE)))","v":""},{"$f":"IF(ISERROR(VLOOKUP(AL38,Mitgliederliste,8,FALSE)),\"\",IF(Stichtag_verwenden=0,VLOOKUP(AL38,Mitgliederliste,3,FALSE),VLOOKUP(AL38,Mitgliederliste,8,FALSE)))","v":""},{"$f":"IF(ISERROR(VLOOKUP(AM38,Mitgliederliste,8,FALSE)),\"\",IF(Stichtag_verwenden=0,VLOOKUP(AM38,Mitgliederliste,3,FALSE),VLOOKUP(AM38,Mitgliederliste,8,FALSE)))","v":""},{"$f":"IF(ISERROR(VLOOKUP(AN38,Mitgliederliste,8,FALSE)),\"\",IF(Stichtag_verwenden=0,VLOOKUP(AN38,Mitgliederliste,3,FALSE),VLOOKUP(AN38,Mitgliederliste,8,FALSE)))","v":""},{"$f":"IF(ISERROR(VLOOKUP(AO38,Mitgliederliste,8,FALSE)),\"\",IF(Stichtag_verwenden=0,VLOOKUP(AO38,Mitgliederliste,3,FALSE),VLOOKUP(AO38,Mitgliederliste,8,FALSE)))","v":""},{"$f":"IF(ISERROR(VLOOKUP(AP38,Mitgliederliste,8,FALSE)),\"\",IF(Stichtag_verwenden=0,VLOOKUP(AP38,Mitgliederliste,3,FALSE),VLOOKUP(AP38,Mitgliederliste,8,FALSE)))","v":""},{"$f":"IF(ISERROR(VLOOKUP(AQ38,Mitgliederliste,8,FALSE)),\"\",IF(Stichtag_verwenden=0,VLOOKUP(AQ38,Mitgliederliste,3,FALSE),VLOOKUP(AQ38,Mitgliederliste,8,FALSE)))","v":""},{"$f":"IF(ISERROR(VLOOKUP(AR38,Mitgliederliste,8,FALSE)),\"\",IF(Stichtag_verwenden=0,VLOOKUP(AR38,Mitgliederliste,3,FALSE),VLOOKUP(AR38,Mitgliederliste,8,FALSE)))","v":""},{"$f":"IF(ISERROR(VLOOKUP(AS38,Mitgliederliste,8,FALSE)),\"\",IF(Stichtag_verwenden=0,VLOOKUP(AS38,Mitgliederliste,3,FALSE),VLOOKUP(AS38,Mitgliederliste,8,FALSE)))","v":""},null,null,null,{"$f":"IF(ISERROR(VLOOKUP(AK38,Mitgliederliste,2,FALSE)),\"\",VLOOKUP(AK38,Mitgliederliste,2,FALSE))","v":""},{"$f":"IF(ISERROR(VLOOKUP(AL38,Mitgliederliste,2,FALSE)),\"\",VLOOKUP(AL38,Mitgliederliste,2,FALSE))","v":""},{"$f":"IF(ISERROR(VLOOKUP(AM38,Mitgliederliste,2,FALSE)),\"\",VLOOKUP(AM38,Mitgliederliste,2,FALSE))","v":""},{"$f":"IF(ISERROR(VLOOKUP(AN38,Mitgliederliste,2,FALSE)),\"\",VLOOKUP(AN38,Mitgliederliste,2,FALSE))","v":""},{"$f":"IF(ISERROR(VLOOKUP(AO38,Mitgliederliste,2,FALSE)),\"\",VLOOKUP(AO38,Mitgliederliste,2,FALSE))","v":""},{"$f":"IF(ISERROR(VLOOKUP(AP38,Mitgliederliste,2,FALSE)),\"\",VLOOKUP(AP38,Mitgliederliste,2,FALSE))","v":""},{"$f":"IF(ISERROR(VLOOKUP(AQ38,Mitgliederliste,2,FALSE)),\"\",VLOOKUP(AQ38,Mitgliederliste,2,FALSE))","v":""},{"$f":"IF(ISERROR(VLOOKUP(AR38,Mitgliederliste,2,FALSE)),\"\",VLOOKUP(AR38,Mitgliederliste,2,FALSE))","v":""},{"$f":"IF(ISERROR(VLOOKUP(AS38,Mitgliederliste,2,FALSE)),\"\",VLOOKUP(AS38,Mitgliederliste,2,FALSE))","v":""}]
[34,null,null,0,null,null,null,null,null,null,null,null,null,null,"","","","","","","","","",null,null,null,"","","","","","","","",""]
[35,null,null,0,null,null,null,null,null,null,null,null,null,null,"","","","","","","","","",null,null,null,"","","","","","","","",""]
[36,null,null,0,null,null,null,null,null,null,null,null,null,null,"","","","","","","","","",null,null,null,"","","","","","","","",""]
[37,null,null,0,null,null,null,null,null,null,null,null,null,null,"","","","","","","","","",null,null,null,"","","","","","","","",""]
[38,null,null,0,null,null,null,null,null,null,null,null,null,null,"","","","","","","","","",null,null,null,"","","","","","","","",""]
[39,null,null,0,null,null,null,null,null,null,null,null,null,null,"","","","","","","","","",null,null,null,"","","","","","","","",""]
[40,null,null,0,null,null,null,null,null,null,null,null,null,null,"","","","","","","","","",null,null,null,"","","","","","","","",""]
[41,null,null,0,null,null,null,null,null,null,null,null,null,null,"","","","","","","","","",null,null,null,"","","","","","","","",""]
[42,null,null,0,null,null,null,null,null,null,null,null,null,null,"","","","","","","","","",null,null,null,"","","","","","","","",""]
[43,null,null,0,null,null,null,null,null,null,null,null,null,null,"","","","","","","","","",null,null,null,"","","","","","","","",""]
[44,null,null,0,null,null,null,null,null,null,null,null,null,null,"","","","","","","","","",null,null,null,"","","","","","","","",""]
[45,null,null,0,null,null,null,null,null,null,null,null,null,null,"","","","","","","","","",null,null,null,"","","","","","","","",""]
[46,null,null,0,null,null,null,null,null,null,null,null,null,null,"","","","","","","","","",null,null,null,"","","","","","","","",""]
[47,null,null,0,null,null,null,null,null,null,null,null,null,null,"","","","","","","","","",null,null,null,"","","","","","","","",""]
[48,null,null,0,null,null,null,null,null,null,null,null,null,null,"","","","","","","","","",null,null,null,"","","","","","","","",""]
[49,null,null,0,null,null,null,null,null,null,null,null,null,null,"","","","","","","","","",null,null,null,"","","","","","","","",""]
[50,null,null,0,null,null,null,null,null,null,null,null,null,null,"","","","","","","","","",null,null,null,"","","","","","","","",""]
[51,null,null,0,null,null,null,null,null,null,null,null,null,null,"","","","","","","","","",null,null,null,"","","","","","","","",""]
[52,null,null,0,null,null,null,null,null,null,null,null,null,null,"","","","","","","","","",null,null,null,"","","","","","","","",""]
[53,null,null,0,null,null,null,null,null,null,null,null,null,null,"","","","","","","","","",null,null,null,"","","","","","","","",""]
[54,null,null,0,null,null,null,null,null,null,null,null,null,null,"","","","","","","","","",null,null,null,"","","","","","","","",""]
[55,null,null,0,null,null,null,null,null,null,null,null,null,null,"","","","","","","","","",null,null,null,"","","","","","","","",""]
[56,null,null,0,null,null,null,null,null,null,null,null,null,null,"","","","","","","","","",null,null,null,"","","","","","","","",""]
[57,null,null,0,null,null,null,null,null,null,null,null,null,null,"","","","","","","","","",null,null,null,"","","","","","","","",""]
[58,null,null,0,null,null,null,null,null,null,null,null,null,null,"","","","","","","","","",null,null,null,"","","","","","","","",""]
[59,null,null,0,null,null,null,null,null,null,null,null,null,null,"","","","","","","","","",null,null,null,"","","","","","","","",""]
[60,null,null,0,null,null,null,null,null,null,null,null,null,null,"","","","","","","","","",null,null,null,"","","","","","","","",""]
[61,null,null,0,null,null,null,null,null,null,null,null,null,null,"","","","","","","","","",null,null,null,"","","","","","","","",""]
[62,null,null,0,null,null,null,null,null,null,null,null,null,null,"","","","","","","","","",null,null,null,"","","","","","","","",""]
[63,null,null,0,null,null,null,null,null,null,null,null,null,null,"","","","","","","","","",null,null,null,"","","","","","","","",""]
[64,null,null,0,null,null,null,null,null,null,null,null,null,null,"","","","","","","","","",null,null,null,"","","","","","","","",""]
[65,null,null,{"$f":"IF(E70>0,500,0)","v":0},null,null,null,null,null,null,null,null,null,null,{"$f":"IF(ISERROR(VLOOKUP(AK70,Mitgliederliste,8,FALSE)),\"\",IF(Stichtag_verwenden=0,VLOOKUP(AK70,Mitgliederliste,3,FALSE),VLOOKUP(AK70,Mitgliederliste,8,FALSE)))","v":""},{"$f":"IF(ISERROR(VLOOKUP(AL70,Mitgliederliste,8,FALSE)),\"\",IF(Stichtag_verwenden=0,VLOOKUP(AL70,Mitgliederliste,3,FALSE),VLOOKUP(AL70,Mitgliederliste,8,FALSE)))","v":""},{"$f":"IF(ISERROR(VLOOKUP(AM70,Mitgliederliste,8,FALSE)),\"\",IF(Stichtag_verwenden=0,VLOOKUP(AM70,Mitgliederliste,3,FALSE),VLOOKUP(AM70,Mitgliederliste,8,FALSE)))","v":""},{"$f":"IF(ISERROR(VLOOKUP(AN70,Mitgliederliste,8,FALSE)),\"\",IF(Stichtag_verwenden=0,VLOOKUP(AN70,Mitgliederliste,3,FALSE),VLOOKUP(AN70,Mitgliederliste,8,FALSE)))","v":""},{"$f":"IF(ISERROR(VLOOKUP(AO70,Mitgliederliste,8,FALSE)),\"\",IF(Stichtag_verwenden=0,VLOOKUP(AO70,Mitgliederliste,3,FALSE),VLOOKUP(AO70,Mitgliederliste,8,FALSE)))","v":""},{"$f":"IF(ISERROR(VLOOKUP(AP70,Mitgliederliste,8,FALSE)),\"\",IF(Stichtag_verwenden=0,VLOOKUP(AP70,Mitgliederliste,3,FALSE),VLOOKUP(AP70,Mitgliederliste,8,FALSE)))","v":""},{"$f":"IF(ISERROR(VLOOKUP(AQ70,Mitgliederliste,8,FALSE)),\"\",IF(Stichtag_verwenden=0,VLOOKUP(AQ70,Mitgliederliste,3,FALSE),VLOOKUP(AQ70,Mitgliederliste,8,FALSE)))","v":""},{"$f":"IF(ISERROR(VLOOKUP(AR70,Mitgliederliste,8,FALSE)),\"\",IF(Stichtag_verwenden=0,VLOOKUP(AR70,Mitgliederliste,3,FALSE),VLOOKUP(AR70,Mitgliederliste,8,FALSE)))","v":""},{"$f":"IF(ISERROR(VLOOKUP(AS70,Mitgliederliste,8,FALSE)),\"\",IF(Stichtag_verwenden=0,VLOOKUP(AS70,Mitgliederliste,3,FALSE),VLOOKUP(AS70,Mitgliederliste,8,FALSE)))","v":""},null,null,null,{"$f":"IF(ISERROR(VLOOKUP(AK70,Mitgliederliste,2,FALSE)),\"\",VLOOKUP(AK70,Mitgliederliste,2,FALSE))","v":""},{"$f":"IF(ISERROR(VLOOKUP(AL70,Mitgliederliste,2,FALSE)),\"\",VLOOKUP(AL70,Mitgliederliste,2,FALSE))","v":""},{"$f":"IF(ISERROR(VLOOKUP(AM70,Mitgliederliste,2,FALSE)),\"\",VLOOKUP(AM70,Mitgliederliste,2,FALSE))","v":""},{"$f":"IF(ISERROR(VLOOKUP(AN70,Mitgliederliste,2,FALSE)),\"\",VLOOKUP(AN70,Mitgliederliste,2,FALSE))","v":""},{"$f":"IF(ISERROR(VLOOKUP(AO70,Mitgliederliste,2,FALSE)),\"\",VLOOKUP(AO70,Mitgliederliste,2,FALSE))","v":""},{"$f":"IF(ISERROR(VLOOKUP(AP70,Mitgliederliste,2,FALSE)),\"\",VLOOKUP(AP70,Mitgliederliste,2,FALSE))","v":""},{"$f":"IF(ISERROR(VLOOKUP(AQ70,Mitgliederliste,2,FALSE)),\"\",VLOOKUP(AQ70,Mitgliederliste,2,FALSE))","v":""},{"$f":"IF(ISERROR(VLOOKUP(AR70,Mitgliederliste,2,FALSE)),\"\",VLOOKUP(AR70,Mitgliederliste,2,FALSE))","v":""},{"$f":"IF(ISERROR(VLOOKUP(AS70,Mitgliederliste,2,FALSE)),\"\",VLOOKUP(AS70,Mitgliederliste,2,FALSE))","v":""}]
[66,null,null,0,null,null,null,null,null,null,null,null,null,null,"","","","","","","","","",null,null,null,"","","","","","","","",""]
[67,null,null,0,null,null,null,null,null,null,null,null,null,null,"","","","","","","","","",null,null,null,"","","","","","","","",""]
[68,null,null,0,null,null,null,null,null,null,null,null,null,null,"","","","","","","","","",null,null,null,"","","","","","","","",""]
[69,null,null,0,null,null,null,null,null,null,null,null,null,null,"","","","","","","","","",null,null,null,"","","","","","","","",""]
[70,null,null,0,null,null,null,null,null,null,null,null,null,null,"","","","","","","","","",null,null,null,"","","","","","","","",""]

{"sheet":"G1_Si_A","index":7,"n_rows":75,"n_cols":47,"rows_kept":75,"cut":false,"hidden":false,"merged":[]}
[{"$f":"Bewerbsart","v":"Abschnittsfeuerwehrleistungsbewerb"}]
[{"$f":"TEXT(Datum,\"T.MMMM JJJJ\")&\"  -  \"& Bewerbsort","v":"0.Jänner 1900  -  "}]
[{"$f":"G1_Si_A","v":"Gäste 1 Silber A"}]
[null,null,null,null,"Löschangriff",null,"Staffellauf"]
["Platz","Nummer","Gruppe","Stammpunkte","Zeit","Fehler","Zeit","Fehler","Alters-\nPunkte","Gesamt- punkte","Löschangr","Staffell.","Jahre",null,"Geb1","Geb2","Geb3","Geb4","Geb5","Geb6","Geb7","Geb8","Geb9",null,null,"Urk. gedr.","Name1","Name2","Name3","Name4","Name5","Name6","Name7","Name8","Name9","FW-Nr","Stb1","Stb2","Stb3","Stb4","Stb5","Stb6","Stb7","Stb8","Stb9","Pokale","Anzahl Preise (Pokale):"]
[1,null,null,{"$f":"IF(E6>0,500,0)","v":0},null,null,null,null,null,null,null,null,null,null,{"$f":"IF(ISERROR(VLOOKUP(AK6,Mitgliederliste,8,FALSE)),\"\",IF(Stichtag_verwenden=0,VLOOKUP(AK6,Mitgliederliste,3,FALSE),VLOOKUP(AK6,Mitgliederliste,8,FALSE)))","v":""},{"$f":"IF(ISERROR(VLOOKUP(AL6,Mitgliederliste,8,FALSE)),\"\",IF(Stichtag_verwenden=0,VLOOKUP(AL6,Mitgliederliste,3,FALSE),VLOOKUP(AL6,Mitgliederliste,8,FALSE)))","v":""},{"$f":"IF(ISERROR(VLOOKUP(AM6,Mitgliederliste,8,FALSE)),\"\",IF(Stichtag_verwenden=0,VLOOKUP(AM6,Mitgliederliste,3,FALSE),VLOOKUP(AM6,Mitgliederliste,8,FALSE)))","v":""},{"$f":"IF(ISERROR(VLOOKUP(AN6,Mitgliederliste,8,FALSE)),\"\",IF(Stichtag_verwenden=0,VLOOKUP(AN6,Mitgliederliste,3,FALSE),VLOOKUP(AN6,Mitgliederliste,8,FALSE)))","v":""},{"$f":"IF(ISERROR(VLOOKUP(AO6,Mitgliederliste,8,FALSE)),\"\",IF(Stichtag_verwenden=0,VLOOKUP(AO6,Mitgliederliste,3,FALSE),VLOOKUP(AO6,Mitgliederliste,8,FALSE)))","v":""},{"$f":"IF(ISERROR(VLOOKUP(AP6,Mitgliederliste,8,FALSE)),\"\",IF(Stichtag_verwenden=0,VLOOKUP(AP6,Mitgliederliste,3,FALSE),VLOOKUP(AP6,Mitgliederliste,8,FALSE)))","v":""},{"$f":"IF(ISERROR(VLOOKUP(AQ6,Mitgliederliste,8,FALSE)),\"\",IF(Stichtag_verwenden=0,VLOOKUP(AQ6,Mitgliederliste,3,FALSE),VLOOKUP(AQ6,Mitgliederliste,8,FALSE)))","v":""},{"$f":"IF(ISERROR(VLOOKUP(AR6,Mitgliederliste,8,FALSE)),\"\",IF(Stichtag_verwenden=0,VLOOKUP(AR6,Mitgliederliste,3,FALSE),VLOOKUP(AR6,Mitgliederliste,8,FALSE)))","v":""},{"$f":"IF(ISERROR(VLOOKUP(AS6,Mitgliederliste,8,FALSE)),\"\",IF(Stichtag_verwenden=0,VLOOKUP(AS6,Mitgliederliste,3,FALSE),VLOOKUP(AS6,Mitgliederliste,8,FALSE)))","v":""},null,null,null,{"$f":"IF(ISERROR(VLOOKUP(AK6,Mitgliederliste,2,FALSE)),\"\",VLOOKUP(AK6,Mitgliederliste,2,FALSE))","v":""},{"$f":"IF(ISERROR(VLOOKUP(AL6,Mitgliederliste,2,FALSE)),\"\",VLOOKUP(AL6,Mitgliederliste,2,FALSE))","v":""},{"$f":"IF(ISERROR(VLOOKUP(AM6,Mitgliederliste,2,FALSE)),\"\",VLOOKUP(AM6,Mitgliederliste,2,FALSE))","v":""},{"$f":"IF(ISERROR(VLOOKUP(AN6,Mitgliederliste,2,FALSE)),\"\",VLOOKUP(AN6,Mitgliederliste,2,FALSE))","v":""},{"$f":"IF(ISERROR(VLOOKUP(AO6,Mitgliederliste,2,FALSE)),\"\",VLOOKUP(AO6,Mitgliederliste,2,FALSE))","v":""},{"$f":"IF(ISERROR(VLOOKUP(AP6,Mitgliederliste,2,FALSE)),\"\",VLOOKUP(AP6,Mitgliederliste,2,FALSE))","v":""},{"$f":"IF(ISERROR(VLOOKUP(AQ6,Mitgliederliste,2,FALSE)),\"\",VLOOKUP(AQ6,Mitgliederliste,2,FALSE))","v":""},{"$f":"IF(ISERROR(VLOOKUP(AR6,Mitgliederliste,2,FALSE)),\"\",VLOOKUP(AR6,Mitgliederliste,2,FALSE))","v":""},{"$f":"IF(ISERROR(VLOOKUP(AS6,Mitgliederliste,2,FALSE)),\"\",VLOOKUP(AS6,Mitgliederliste,2,FALSE))","v":""},null,null,null,null,null,null,null,null,null,null,null,{"$f":"IF(COUNTA(C6:C75)>0,1,\"kein Preis\")","v":"kein Preis"}]
[2,null,null,0,null,null,null,null,null,null,null,null,null,null,"","","","","","","","","",null,null,null,"","","","","","","","","",null,null,null,null,null,null,null,null,null,null,null,{"$f":"IF(COUNTA(C6:C75)>1,2,\"\")","v":""}]
[3,null,null,0,null,null,null,null,null,null,null,null,null,null,"","","","","","","","","",null,null,null,"","","","","","","","","",null,null,null,null,null,null,null,null,null,null,null,{"$f":"IF(COUNTA(C6:C75)>2,3,\"\")","v":""}]
[4,null,null,0,null,null,null,null,null,null,null,null,null,null,"","","","","","","","","",null,null,null,"","","","","","","","","",null,null,null,null,null,null,null,null,null,null,null,{"$f":"IF(COUNTA(C6:C75)>5,4,\"\")","v":""}]
[5,null,null,0,null,null,null,null,null,null,null,null,null,null,"","","","","","","","","",null,null,null,"","","","","","","","","",null,null,null,null,null,null,null,null,null,null,null,{"$f":"IF(COUNTA(C6:C75)>10,5,\"\")","v":""}]
[6,null,null,0,null,null,null,null,null,null,null,null,null,null,"","","","","","","","","",null,null,null,"","","","","","","","","",null,null,null,null,null,null,null,null,null,null,null,{"$f":"IF(COUNTA(C6:C75)>15,6,\"\")","v":""}]
[7,null,null,0,null,null,null,null,null,null,null,null,null,null,"","","","","","","","","",null,null,null,"","","","","","","","","",null,null,null,null,null,null,null,null,null,null,null,{"$f":"IF(COUNTA(C6:C75)>20,7,\"\")","v":""}]
[8,null,null,0,null,null,null,null,null,null,null,null,null,null,"","","","","","","","","",null,null,null,"","","","","","","","","",null,null,null,null,null,null,null,null,null,null,null,{"$f":"IF(COUNTA(C6:C75)>30,8,\"\")","v":""}]
[9,null,null,0,null,null,null,null,null,null,null,null,null,null,"","","","","","","","","",null,null,null,"","","","","","","","","",null,null,null,null,null,null,null,null,null,null,null,{"$f":"IF(COUNTA(C6:C75)>40,9,\"\")","v":""}]
[10,null,null,0,null,null,null,null,null,null,null,null,null,null,"","","","","","","","","",null,null,null,"","","","","","","","","",null,null,null,null,null,null,null,null,null,null,null,{"$f":"IF(COUNTA(C6:C75)>50,10,\"\")","v":""}]
[11,null,null,0,null,null,null,null,null,null,null,null,null,null,"","","","","","","","","",null,null,null,"","","","","","","","","",null,null,null,null,null,null,null,null,null,null,null,{"$f":"IF(COUNTA(C6:C75)>60,11,\"\")","v":""}]
[12,null,null,0,null,null,null,null,null,null,null,null,null,null,"","","","","","","","","",null,null,null,"","","","","","","","",""]
[13,null,null,0,null,null,null,null,null,null,null,null,null,null,"","","","","","","","","",null,null,null,"","","","","","","","",""]
[14,null,null,0,null,null,null,null,null,null,null,null,null,null,"","","","","","","","","",null,null,null,"","","","","","","","",""]
[15,null,null,0,null,null,null,null,null,null,null,null,null,null,"","","","","","","","","",null,null,null,"","","","","","","","",""]
[16,null,null,0,null,null,null,null,null,null,null,null,null,null,"","","","","","","","","",null,null,null,"","","","","","","","",""]
[17,null,null,0,null,null,null,null,null,null,null,null,null,null,"","","","","","","","","",null,null,null,"","","","","","","","",""]
[18,null,null,0,null,null,null,null,null,null,null,null,null,null,"","","","","","","","","",null,null,null,"","","","","","","","",""]
[19,null,null,0,null,null,null,null,null,null,null,null,null,null,"","","","","","","","","",null,null,null,"","","","","","","","",""]
[20,null,null,0,null,null,null,null,null,null,null,null,null,null,"","","","","","","","","",null,null,null,"","","","","","","","",""]
[21,null,null,0,null,null,null,null,null,null,null,null,null,null,"","","","","","","","","",null,null,null,"","","","","","","","",""]
[22,null,null,0,null,null,null,null,null,null,null,null,null,null,"","","","","","","","","",null,null,null,"","","","","","","","",""]
[23,null,null,0,null,null,null,null,null,null,null,null,null,null,"","","","","","","","","",null,null,null,"","","","","","","","",""]
[24,null,null,0,null,null,null,null,null,null,null,null,null,null,"","","","","","","","","",null,null,null,"","","","","","","","",""]
[25,null,null,0,null,null,null,null,null,null,null,null,null,null,"","","","","","","","","",null,null,null,"","","","","","","","",""]
[26,null,null,0,null,null,null,null,null,null,null,null,null,null,"","","","","","","","","",null,null,null,"","","","","","","","",""]
[27,null,null,0,null,null,null,null,null,null,null,null,null,null,"","","","","","","","","",null,null,null,"","","","","","","","",""]
[28,null,null,0,null,null,null,null,null,null,null,null,null,null,"","","","","","","","","",null,null,null,"","","","","","","","",""]
[29,null,null,0,null,null,null,null,null,null,null,null,null,null,"","","","","","","","","",null,null,null,"","","","","","","","",""]
[30,null,null,0,null,null,null,null,null,null,null,null,null,null,"","","","","","","","","",null,null,null,"","","","","","","","",""]
[31,null,null,0,null,null,null,null,null,null,null,null,null,null,"","","","","","","","","",null,null,null,"","","","","","","","",""]
[32,null,null,0,null,null,null,null,null,null,null,null,null,null,"","","","","","","","","",null,null,null,"","","","","","","","",""]
[33,null,null,{"$f":"IF(E38>0,500,0)","v":0},null,null,null,null,null,null,null,null,null,null,{"$f":"IF(ISERROR(VLOOKUP(AK38,Mitgliederliste,8,FALSE)),\"\",IF(Stichtag_verwenden=0,VLOOKUP(AK38,Mitgliederliste,3,FALSE),VLOOKUP(AK38,Mitgliederliste,8,FALSE)))","v":""},{"$f":"IF(ISERROR(VLOOKUP(AL38,Mitgliederliste,8,FALSE)),\"\",IF(Stichtag_verwenden=0,VLOOKUP(AL38,Mitgliederliste,3,FALSE),VLOOKUP(AL38,Mitgliederliste,8,FALSE)))","v":""},{"$f":"IF(ISERROR(VLOOKUP(AM38,Mitgliederliste,8,FALSE)),\"\",IF(Stichtag_verwenden=0,VLOOKUP(AM38,Mitgliederliste,3,FALSE),VLOOKUP(AM38,Mitgliederliste,8,FALSE)))","v":""},{"$f":"IF(ISERROR(VLOOKUP(AN38,Mitgliederliste,8,FALSE)),\"\",IF(Stichtag_verwenden=0,VLOOKUP(AN38,Mitgliederliste,3,FALSE),VLOOKUP(AN38,Mitgliederliste,8,FALSE)))","v":""},{"$f":"IF(ISERROR(VLOOKUP(AO38,Mitgliederliste,8,FALSE)),\"\",IF(Stichtag_verwenden=0,VLOOKUP(AO38,Mitgliederliste,3,FALSE),VLOOKUP(AO38,Mitgliederliste,8,FALSE)))","v":""},{"$f":"IF(ISERROR(VLOOKUP(AP38,Mitgliederliste,8,FALSE)),\"\",IF(Stichtag_verwenden=0,VLOOKUP(AP38,Mitgliederliste,3,FALSE),VLOOKUP(AP38,Mitgliederliste,8,FALSE)))","v":""},{"$f":"IF(ISERROR(VLOOKUP(AQ38,Mitgliederliste,8,FALSE)),\"\",IF(Stichtag_verwenden=0,VLOOKUP(AQ38,Mitgliederliste,3,FALSE),VLOOKUP(AQ38,Mitgliederliste,8,FALSE)))","v":""},{"$f":"IF(ISERROR(VLOOKUP(AR38,Mitgliederliste,8,FALSE)),\"\",IF(Stichtag_verwenden=0,VLOOKUP(AR38,Mitgliederliste,3,FALSE),VLOOKUP(AR38,Mitgliederliste,8,FALSE)))","v":""},{"$f":"IF(ISERROR(VLOOKUP(AS38,Mitgliederliste,8,FALSE)),\"\",IF(Stichtag_verwenden=0,VLOOKUP(AS38,Mitgliederliste,3,FALSE),VLOOKUP(AS38,Mitgliederliste,8,FALSE)))","v":""},null,null,null,{"$f":"IF(ISERROR(VLOOKUP(AK38,Mitgliederliste,2,FALSE)),\"\",VLOOKUP(AK38,Mitgliederliste,2,FALSE))","v":""},{"$f":"IF(ISERROR(VLOOKUP(AL38,Mitgliederliste,2,FALSE)),\"\",VLOOKUP(AL38,Mitgliederliste,2,FALSE))","v":""},{"$f":"IF(ISERROR(VLOOKUP(AM38,Mitgliederliste,2,FALSE)),\"\",VLOOKUP(AM38,Mitgliederliste,2,FALSE))","v":""},{"$f":"IF(ISERROR(VLOOKUP(AN38,Mitgliederliste,2,FALSE)),\"\",VLOOKUP(AN38,Mitgliederliste,2,FALSE))","v":""},{"$f":"IF(ISERROR(VLOOKUP(AO38,Mitgliederliste,2,FALSE)),\"\",VLOOKUP(AO38,Mitgliederliste,2,FALSE))","v":""},{"$f":"IF(ISERROR(VLOOKUP(AP38,Mitgliederliste,2,FALSE)),\"\",VLOOKUP(AP38,Mitgliederliste,2,FALSE))","v":""},{"$f":"IF(ISERROR(VLOOKUP(AQ38,Mitgliederliste,2,FALSE)),\"\",VLOOKUP(AQ38,Mitgliederliste,2,FALSE))","v":""},{"$f":"IF(ISERROR(VLOOKUP(AR38,Mitgliederliste,2,FALSE)),\"\",VLOOKUP(AR38,Mitgliederliste,2,FALSE))","v":""},{"$f":"IF(ISERROR(VLOOKUP(AS38,Mitgliederliste,2,FALSE)),\"\",VLOOKUP(AS38,Mitgliederliste,2,FALSE))","v":""}]
[34,null,null,0,null,null,null,null,null,null,null,null,null,null,"","","","","","","","","",null,null,null,"","","","","","","","",""]
[35,null,null,0,null,null,null,null,null,null,null,null,null,null,"","","","","","","","","",null,null,null,"","","","","","","","",""]
[36,null,null,0,null,null,null,null,null,null,null,null,null,null,"","","","","","","","","",null,null,null,"","","","","","","","",""]
[37,null,null,0,null,null,null,null,null,null,null,null,null,null,"","","","","","","","","",null,null,null,"","","","","","","","",""]
[38,null,null,0,null,null,null,null,null,null,null,null,null,null,"","","","","","","","","",null,null,null,"","","","","","","","",""]
[39,null,null,0,null,null,null,null,null,null,null,null,null,null,"","","","","","","","","",null,null,null,"","","","","","","","",""]
[40,null,null,0,null,null,null,null,null,null,null,null,null,null,"","","","","","","","","",null,null,null,"","","","","","","","",""]
[41,null,null,0,null,null,null,null,null,null,null,null,null,null,"","","","","","","","","",null,null,null,"","","","","","","","",""]
[42,null,null,0,null,null,null,null,null,null,null,null,null,null,"","","","","","","","","",null,null,null,"","","","","","","","",""]
[43,null,null,0,null,null,null,null,null,null,null,null,null,null,"","","","","","","","","",null,null,null,"","","","","","","","",""]
[44,null,null,0,null,null,null,null,null,null,null,null,null,null,"","","","","","","","","",null,null,null,"","","","","","","","",""]
[45,null,null,0,null,null,null,null,null,null,null,null,null,null,"","","","","","","","","",null,null,null,"","","","","","","","",""]
[46,null,null,0,null,null,null,null,null,null,null,null,null,null,"","","","","","","","","",null,null,null,"","","","","","","","",""]
[47,null,null,0,null,null,null,null,null,null,null,null,null,null,"","","","","","","","","",null,null,null,"","","","","","","","",""]
[48,null,null,0,null,null,null,null,null,null,null,null,null,null,"","","","","","","","","",null,null,null,"","","","","","","","",""]
[49,null,null,0,null,null,null,null,null,null,null,null,null,null,"","","","","","","","","",null,null,null,"","","","","","","","",""]
[50,null,null,0,null,null,null,null,null,null,null,null,null,null,"","","","","","","","","",null,null,null,"","","","","","","","",""]
[51,null,null,0,null,null,null,null,null,null,null,null,null,null,"","","","","","","","","",null,null,null,"","","","","","","","",""]
[52,null,null,0,null,null,null,null,null,null,null,null,null,null,"","","","","","","","","",null,null,null,"","","","","","","","",""]
[53,null,null,0,null,null,null,null,null,null,null,null,null,null,"","","","","","","","","",null,null,null,"","","","","","","","",""]
[54,null,null,0,null,null,null,null,null,null,null,null,null,null,"","","","","","","","","",null,null,null,"","","","","","","","",""]
[55,null,null,0,null,null,null,null,null,null,null,null,null,null,"","","","","","","","","",null,null,null,"","","","","","","","",""]
[56,null,null,0,null,null,null,null,null,null,null,null,null,null,"","","","","","","","","",null,null,null,"","","","","","","","",""]
[57,null,null,0,null,null,null,null,null,null,null,null,null,null,"","","","","","","","","",null,null,null,"","","","","","","","",""]
[58,null,null,0,null,null,null,null,null,null,null,null,null,null,"","","","","","","","","",null,null,null,"","","","","","","","",""]
[59,null,null,0,null,null,null,null,null,null,null,null,null,null,"","","","","","","","","",null,null,null,"","","","","","","","",""]
[60,null,null,0,null,null,null,null,null,null,null,null,null,null,"","","","","","","","","",null,null,null,"","","","","","","","",""]
[61,null,null,0,null,null,null,null,null,null,null,null,null,null,"","","","","","","","","",null,null,null,"","","","","","","","",""]
[62,null,null,0,null,null,null,null,null,null,null,null,null,null,"","","","","","","","","",null,null,null,"","","","","","","","",""]
[63,null,null,0,null,null,null,null,null,null,null,null,null,null,"","","","","","","","","",null,null,null,"","","","","","","","",""]
[64,null,null,0,null,null,null,null,null,null,null,null,null,null,"","","","","","","","","",null,null,null,"","","","","","","","",""]
[65,null,null,{"$f":"IF(E70>0,500,0)","v":0},null,null,null,null,null,null,null,null,null,null,{"$f":"IF(ISERROR(VLOOKUP(AK70,Mitgliederliste,8,FALSE)),\"\",IF(Stichtag_verwenden=0,VLOOKUP(AK70,Mitgliederliste,3,FALSE),VLOOKUP(AK70,Mitgliederliste,8,FALSE)))","v":""},{"$f":"IF(ISERROR(VLOOKUP(AL70,Mitgliederliste,8,FALSE)),\"\",IF(Stichtag_verwenden=0,VLOOKUP(AL70,Mitgliederliste,3,FALSE),VLOOKUP(AL70,Mitgliederliste,8,FALSE)))","v":""},{"$f":"IF(ISERROR(VLOOKUP(AM70,Mitgliederliste,8,FALSE)),\"\",IF(Stichtag_verwenden=0,VLOOKUP(AM70,Mitgliederliste,3,FALSE),VLOOKUP(AM70,Mitgliederliste,8,FALSE)))","v":""},{"$f":"IF(ISERROR(VLOOKUP(AN70,Mitgliederliste,8,FALSE)),\"\",IF(Stichtag_verwenden=0,VLOOKUP(AN70,Mitgliederliste,3,FALSE),VLOOKUP(AN70,Mitgliederliste,8,FALSE)))","v":""},{"$f":"IF(ISERROR(VLOOKUP(AO70,Mitgliederliste,8,FALSE)),\"\",IF(Stichtag_verwenden=0,VLOOKUP(AO70,Mitgliederliste,3,FALSE),VLOOKUP(AO70,Mitgliederliste,8,FALSE)))","v":""},{"$f":"IF(ISERROR(VLOOKUP(AP70,Mitgliederliste,8,FALSE)),\"\",IF(Stichtag_verwenden=0,VLOOKUP(AP70,Mitgliederliste,3,FALSE),VLOOKUP(AP70,Mitgliederliste,8,FALSE)))","v":""},{"$f":"IF(ISERROR(VLOOKUP(AQ70,Mitgliederliste,8,FALSE)),\"\",IF(Stichtag_verwenden=0,VLOOKUP(AQ70,Mitgliederliste,3,FALSE),VLOOKUP(AQ70,Mitgliederliste,8,FALSE)))","v":""},{"$f":"IF(ISERROR(VLOOKUP(AR70,Mitgliederliste,8,FALSE)),\"\",IF(Stichtag_verwenden=0,VLOOKUP(AR70,Mitgliederliste,3,FALSE),VLOOKUP(AR70,Mitgliederliste,8,FALSE)))","v":""},{"$f":"IF(ISERROR(VLOOKUP(AS70,Mitgliederliste,8,FALSE)),\"\",IF(Stichtag_verwenden=0,VLOOKUP(AS70,Mitgliederliste,3,FALSE),VLOOKUP(AS70,Mitgliederliste,8,FALSE)))","v":""},null,null,null,{"$f":"IF(ISERROR(VLOOKUP(AK70,Mitgliederliste,2,FALSE)),\"\",VLOOKUP(AK70,Mitgliederliste,2,FALSE))","v":""},{"$f":"IF(ISERROR(VLOOKUP(AL70,Mitgliederliste,2,FALSE)),\"\",VLOOKUP(AL70,Mitgliederliste,2,FALSE))","v":""},{"$f":"IF(ISERROR(VLOOKUP(AM70,Mitgliederliste,2,FALSE)),\"\",VLOOKUP(AM70,Mitgliederliste,2,FALSE))","v":""},{"$f":"IF(ISERROR(VLOOKUP(AN70,Mitgliederliste,2,FALSE)),\"\",VLOOKUP(AN70,Mitgliederliste,2,FALSE))","v":""},{"$f":"IF(ISERROR(VLOOKUP(AO70,Mitgliederliste,2,FALSE)),\"\",VLOOKUP(AO70,Mitgliederliste,2,FALSE))","v":""},{"$f":"IF(ISERROR(VLOOKUP(AP70,Mitgliederliste,2,FALSE)),\"\",VLOOKUP(AP70,Mitgliederliste,2,FALSE))","v":""},{"$f":"IF(ISERROR(VLOOKUP(AQ70,Mitgliederliste,2,FALSE)),\"\",VLOOKUP(AQ70,Mitgliederliste,2,FALSE))","v":""},{"$f":"IF(ISERROR(VLOOKUP(AR70,Mitgliederliste,2,FALSE)),\"\",VLOOKUP(AR70,Mitgliederliste,2,FALSE))","v":""},{"$f":"IF(ISERROR(VLOOKUP(AS70,Mitgliederliste,2,FALSE)),\"\",VLOOKUP(AS70,Mitgliederliste,2,FALSE))","v":""}]
[66,null,null,0,null,null,null,null,null,null,null,null,null,null,"","","","","","","","","",null,null,null,"","","","","","","","",""]
[67,null,null,0,null,null,null,null,null,null,null,null,null,null,"","","","","","","","","",null,null,null,"","","","","","","","",""]
[68,null,null,0,null,null,null,null,null,null,null,null,null,null,"","","","","","","","","",null,null,null,"","","","","","","","",""]
[69,null,null,0,null,null,null,null,null,null,null,null,null,null,"","","","","","","","","",null,null,null,"","","","","","","","",""]
[70,null,null,0,null,null,null,null,null,null,null,null,null,null,"","","","","","","","","",null,null,null,"","","","","","","","",""]

{"sheet":"G1_Br_B","index":8,"n_rows":75,"n_cols":47,"rows_kept":75,"cut":false,"hidden":false,"merged":[]}
[{"$f":"Bewerbsart","v":"Abschnittsfeuerwehrleistungsbewerb"}]
[{"$f":"TEXT(Datum,\"T.MMMM JJJJ\")&\"  -  \"& Bewerbsort","v":"0.Jänner 1900  -  "}]
[{"$f":"G1_Br_B","v":"Gäste 1 Bronze B"}]
[null,null,null,null,"Löschangriff",null,"Staffellauf"]
["Platz","Nummer","Gruppe","Stammpunkte","Zeit","Fehler","Zeit","Fehler","Alters-\nPunkte","Gesamt- punkte","Löschangr","Staffell.","Jahre",null,"Geb1","Geb2","Geb3","Geb4","Geb5","Geb6","Geb7","Geb8","Geb9",null,null,"Urk. gedr.","Name1","Name2","Name3","Name4","Name5","Name6","Name7","Name8","Name9","FW-Nr","Stb1","Stb2","Stb3","Stb4","Stb5","Stb6","Stb7","Stb8","Stb9","Pokale","Anzahl Preise (Pokale):"]
[1,null,null,{"$f":"IF(E6>0,500,0)","v":0},null,null,null,null,null,null,null,null,null,null,{"$f":"IF(ISERROR(VLOOKUP(AK6,Mitgliederliste,8,FALSE)),\"\",IF(Stichtag_verwenden=0,VLOOKUP(AK6,Mitgliederliste,3,FALSE),VLOOKUP(AK6,Mitgliederliste,8,FALSE)))","v":""},{"$f":"IF(ISERROR(VLOOKUP(AL6,Mitgliederliste,8,FALSE)),\"\",IF(Stichtag_verwenden=0,VLOOKUP(AL6,Mitgliederliste,3,FALSE),VLOOKUP(AL6,Mitgliederliste,8,FALSE)))","v":""},{"$f":"IF(ISERROR(VLOOKUP(AM6,Mitgliederliste,8,FALSE)),\"\",IF(Stichtag_verwenden=0,VLOOKUP(AM6,Mitgliederliste,3,FALSE),VLOOKUP(AM6,Mitgliederliste,8,FALSE)))","v":""},{"$f":"IF(ISERROR(VLOOKUP(AN6,Mitgliederliste,8,FALSE)),\"\",IF(Stichtag_verwenden=0,VLOOKUP(AN6,Mitgliederliste,3,FALSE),VLOOKUP(AN6,Mitgliederliste,8,FALSE)))","v":""},{"$f":"IF(ISERROR(VLOOKUP(AO6,Mitgliederliste,8,FALSE)),\"\",IF(Stichtag_verwenden=0,VLOOKUP(AO6,Mitgliederliste,3,FALSE),VLOOKUP(AO6,Mitgliederliste,8,FALSE)))","v":""},{"$f":"IF(ISERROR(VLOOKUP(AP6,Mitgliederliste,8,FALSE)),\"\",IF(Stichtag_verwenden=0,VLOOKUP(AP6,Mitgliederliste,3,FALSE),VLOOKUP(AP6,Mitgliederliste,8,FALSE)))","v":""},{"$f":"IF(ISERROR(VLOOKUP(AQ6,Mitgliederliste,8,FALSE)),\"\",IF(Stichtag_verwenden=0,VLOOKUP(AQ6,Mitgliederliste,3,FALSE),VLOOKUP(AQ6,Mitgliederliste,8,FALSE)))","v":""},{"$f":"IF(ISERROR(VLOOKUP(AR6,Mitgliederliste,8,FALSE)),\"\",IF(Stichtag_verwenden=0,VLOOKUP(AR6,Mitgliederliste,3,FALSE),VLOOKUP(AR6,Mitgliederliste,8,FALSE)))","v":""},{"$f":"IF(ISERROR(VLOOKUP(AS6,Mitgliederliste,8,FALSE)),\"\",IF(Stichtag_verwenden=0,VLOOKUP(AS6,Mitgliederliste,3,FALSE),VLOOKUP(AS6,Mitgliederliste,8,FALSE)))","v":""},null,null,null,{"$f":"IF(ISERROR(VLOOKUP(AK6,Mitgliederliste,2,FALSE)),\"\",VLOOKUP(AK6,Mitgliederliste,2,FALSE))","v":""},{"$f":"IF(ISERROR(VLOOKUP(AL6,Mitgliederliste,2,FALSE)),\"\",VLOOKUP(AL6,Mitgliederliste,2,FALSE))","v":""},{"$f":"IF(ISERROR(VLOOKUP(AM6,Mitgliederliste,2,FALSE)),\"\",VLOOKUP(AM6,Mitgliederliste,2,FALSE))","v":""},{"$f":"IF(ISERROR(VLOOKUP(AN6,Mitgliederliste,2,FALSE)),\"\",VLOOKUP(AN6,Mitgliederliste,2,FALSE))","v":""},{"$f":"IF(ISERROR(VLOOKUP(AO6,Mitgliederliste,2,FALSE)),\"\",VLOOKUP(AO6,Mitgliederliste,2,FALSE))","v":""},{"$f":"IF(ISERROR(VLOOKUP(AP6,Mitgliederliste,2,FALSE)),\"\",VLOOKUP(AP6,Mitgliederliste,2,FALSE))","v":""},{"$f":"IF(ISERROR(VLOOKUP(AQ6,Mitgliederliste,2,FALSE)),\"\",VLOOKUP(AQ6,Mitgliederliste,2,FALSE))","v":""},{"$f":"IF(ISERROR(VLOOKUP(AR6,Mitgliederliste,2,FALSE)),\"\",VLOOKUP(AR6,Mitgliederliste,2,FALSE))","v":""},{"$f":"IF(ISERROR(VLOOKUP(AS6,Mitgliederliste,2,FALSE)),\"\",VLOOKUP(AS6,Mitgliederliste,2,FALSE))","v":""},null,null,null,null,null,null,null,null,null,null,null,{"$f":"IF(COUNTA(C6:C75)>0,1,\"kein Preis\")","v":"kein Preis"}]
[2,null,null,0,null,null,null,null,null,null,null,null,null,null,"","","","","","","","","",null,null,null,"","","","","","","","","",null,null,null,null,null,null,null,null,null,null,null,{"$f":"IF(COUNTA(C6:C75)>1,2,\"\")","v":""}]
[3,null,null,0,null,null,null,null,null,null,null,null,null,null,"","","","","","","","","",null,null,null,"","","","","","","","","",null,null,null,null,null,null,null,null,null,null,null,{"$f":"IF(COUNTA(C6:C75)>2,3,\"\")","v":""}]
[4,null,null,0,null,null,null,null,null,null,null,null,null,null,"","","","","","","","","",null,null,null,"","","","","","","","","",null,null,null,null,null,null,null,null,null,null,null,{"$f":"IF(COUNTA(C6:C75)>5,4,\"\")","v":""}]
[5,null,null,0,null,null,null,null,null,null,null,null,null,null,"","","","","","","","","",null,null,null,"","","","","","","","","",null,null,null,null,null,null,null,null,null,null,null,{"$f":"IF(COUNTA(C6:C75)>9,5,\"\")","v":""}]
[6,null,null,0,null,null,null,null,null,null,null,null,null,null,"","","","","","","","","",null,null,null,"","","","","","","","","",null,null,null,null,null,null,null,null,null,null,null,{"$f":"IF(COUNTA(C6:C75)>13,6,\"\")","v":""}]
[7,null,null,0,null,null,null,null,null,null,null,null,null,null,"","","","","","","","","",null,null,null,"","","","","","","","","",null,null,null,null,null,null,null,null,null,null,null,{"$f":"IF(COUNTA(C6:C75)>17,7,\"\")","v":""}]
[8,null,null,0,null,null,null,null,null,null,null,null,null,null,"","","","","","","","","",null,null,null,"","","","","","","","","",null,null,null,null,null,null,null,null,null,null,null,{"$f":"IF(COUNTA(C6:C75)>22,8,\"\")","v":""}]
[9,null,null,0,null,null,null,null,null,null,null,null,null,null,"","","","","","","","","",null,null,null,"","","","","","","","","",null,null,null,null,null,null,null,null,null,null,null,{"$f":"IF(COUNTA(C6:C75)>27,9,\"\")","v":""}]
[10,null,null,0,null,null,null,null,null,null,null,null,null,null,"","","","","","","","","",null,null,null,"","","","","","","","","",null,null,null,null,null,null,null,null,null,null,null,{"$f":"IF(COUNTA(C6:C75)>32,10,\"\")","v":""}]
[11,null,null,0,null,null,null,null,null,null,null,null,null,null,"","","","","","","","","",null,null,null,"","","","","","","","","",null,null,null,null,null,null,null,null,null,null,null,{"$f":"IF(COUNTA(C6:C75)>37,11,\"\")","v":""}]
[12,null,null,0,null,null,null,null,null,null,null,null,null,null,"","","","","","","","","",null,null,null,"","","","","","","","","",null,null,null,null,null,null,null,null,null,null,null,{"$f":"IF(COUNTA(C6:C75)>42,12,\"\")","v":""}]
[13,null,null,0,null,null,null,null,null,null,null,null,null,null,"","","","","","","","","",null,null,null,"","","","","","","","","",null,null,null,null,null,null,null,null,null,null,null,{"$f":"IF(COUNTA(C6:C75)>47,13,\"\")","v":""}]
[14,null,null,0,null,null,null,null,null,null,null,null,null,null,"","","","","","","","","",null,null,null,"","","","","","","","","",null,null,null,null,null,null,null,null,null,null,null,{"$f":"IF(COUNTA(C6:C75)>52,14,\"\")","v":""}]
[15,null,null,0,null,null,null,null,null,null,null,null,null,null,"","","","","","","","","",null,null,null,"","","","","","","","","",null,null,null,null,null,null,null,null,null,null,null,{"$f":"IF(COUNTA(C6:C75)>57,15,\"\")","v":""}]
[16,null,null,0,null,null,null,null,null,null,null,null,null,null,"","","","","","","","","",null,null,null,"","","","","","","","","",null,null,null,null,null,null,null,null,null,null,null,{"$f":"IF(COUNTA(C6:C75)>62,16,\"\")","v":""}]
[17,null,null,0,null,null,null,null,null,null,null,null,null,null,"","","","","","","","","",null,null,null,"","","","","","","","","",null,null,null,null,null,null,null,null,null,null,null,{"$f":"IF(COUNTA(C6:C75)>67,17,\"\")","v":""}]
[18,null,null,0,null,null,null,null,null,null,null,null,null,null,"","","","","","","","","",null,null,null,"","","","","","","","",""]
[19,null,null,0,null,null,null,null,null,null,null,null,null,null,"","","","","","","","","",null,null,null,"","","","","","","","",""]
[20,null,null,0,null,null,null,null,null,null,null,null,null,null,"","","","","","","","","",null,null,null,"","","","","","","","",""]
[21,null,null,0,null,null,null,null,null,null,null,null,null,null,"","","","","","","","","",null,null,null,"","","","","","","","",""]
[22,null,null,0,null,null,null,null,null,null,null,null,null,null,"","","","","","","","","",null,null,null,"","","","","","","","",""]
[23,null,null,0,null,null,null,null,null,null,null,null,null,null,"","","","","","","","","",null,null,null,"","","","","","","","",""]
[24,null,null,0,null,null,null,null,null,null,null,null,null,null,"","","","","","","","","",null,null,null,"","","","","","","","",""]
[25,null,null,0,null,null,null,null,null,null,null,null,null,null,"","","","","","","","","",null,null,null,"","","","","","","","",""]
[26,null,null,0,null,null,null,null,null,null,null,null,null,null,"","","","","","","","","",null,null,null,"","","","","","","","",""]
[27,null,null,0,null,null,null,null,null,null,null,null,null,null,"","","","","","","","","",null,null,null,"","","","","","","","",""]
[28,null,null,0,null,null,null,null,null,null,null,null,null,null,"","","","","","","","","",null,null,null,"","","","","","","","",""]
[29,null,null,0,null,null,null,null,null,null,null,null,null,null,"","","","","","","","","",null,null,null,"","","","","","","","",""]
[30,null,null,0,null,null,null,null,null,null,null,null,null,null,"","","","","","","","","",null,null,null,"","","","","","","","",""]
[31,null,null,0,null,null,null,null,null,null,null,null,null,null,"","","","","","","","","",null,null,null,"","","","","","","","",""]
[32,null,null,0,null,null,null,null,null,null,null,null,null,null,"","","","","","","","","",null,null,null,"","","","","","","","",""]
[33,null,null,{"$f":"IF(E38>0,500,0)","v":0},null,null,null,null,null,null,null,null,null,null,{"$f":"IF(ISERROR(VLOOKUP(AK38,Mitgliederliste,8,FALSE)),\"\",IF(Stichtag_verwenden=0,VLOOKUP(AK38,Mitgliederliste,3,FALSE),VLOOKUP(AK38,Mitgliederliste,8,FALSE)))","v":""},{"$f":"IF(ISERROR(VLOOKUP(AL38,Mitgliederliste,8,FALSE)),\"\",IF(Stichtag_verwenden=0,VLOOKUP(AL38,Mitgliederliste,3,FALSE),VLOOKUP(AL38,Mitgliederliste,8,FALSE)))","v":""},{"$f":"IF(ISERROR(VLOOKUP(AM38,Mitgliederliste,8,FALSE)),\"\",IF(Stichtag_verwenden=0,VLOOKUP(AM38,Mitgliederliste,3,FALSE),VLOOKUP(AM38,Mitgliederliste,8,FALSE)))","v":""},{"$f":"IF(ISERROR(VLOOKUP(AN38,Mitgliederliste,8,FALSE)),\"\",IF(Stichtag_verwenden=0,VLOOKUP(AN38,Mitgliederliste,3,FALSE),VLOOKUP(AN38,Mitgliederliste,8,FALSE)))","v":""},{"$f":"IF(ISERROR(VLOOKUP(AO38,Mitgliederliste,8,FALSE)),\"\",IF(Stichtag_verwenden=0,VLOOKUP(AO38,Mitgliederliste,3,FALSE),VLOOKUP(AO38,Mitgliederliste,8,FALSE)))","v":""},{"$f":"IF(ISERROR(VLOOKUP(AP38,Mitgliederliste,8,FALSE)),\"\",IF(Stichtag_verwenden=0,VLOOKUP(AP38,Mitgliederliste,3,FALSE),VLOOKUP(AP38,Mitgliederliste,8,FALSE)))","v":""},{"$f":"IF(ISERROR(VLOOKUP(AQ38,Mitgliederliste,8,FALSE)),\"\",IF(Stichtag_verwenden=0,VLOOKUP(AQ38,Mitgliederliste,3,FALSE),VLOOKUP(AQ38,Mitgliederliste,8,FALSE)))","v":""},{"$f":"IF(ISERROR(VLOOKUP(AR38,Mitgliederliste,8,FALSE)),\"\",IF(Stichtag_verwenden=0,VLOOKUP(AR38,Mitgliederliste,3,FALSE),VLOOKUP(AR38,Mitgliederliste,8,FALSE)))","v":""},{"$f":"IF(ISERROR(VLOOKUP(AS38,Mitgliederliste,8,FALSE)),\"\",IF(Stichtag_verwenden=0,VLOOKUP(AS38,Mitgliederliste,3,FALSE),VLOOKUP(AS38,Mitgliederliste,8,FALSE)))","v":""},null,null,null,{"$f":"IF(ISERROR(VLOOKUP(AK38,Mitgliederliste,2,FALSE)),\"\",VLOOKUP(AK38,Mitgliederliste,2,FALSE))","v":""},{"$f":"IF(ISERROR(VLOOKUP(AL38,Mitgliederliste,2,FALSE)),\"\",VLOOKUP(AL38,Mitgliederliste,2,FALSE))","v":""},{"$f":"IF(ISERROR(VLOOKUP(AM38,Mitgliederliste,2,FALSE)),\"\",VLOOKUP(AM38,Mitgliederliste,2,FALSE))","v":""},{"$f":"IF(ISERROR(VLOOKUP(AN38,Mitgliederliste,2,FALSE)),\"\",VLOOKUP(AN38,Mitgliederliste,2,FALSE))","v":""},{"$f":"IF(ISERROR(VLOOKUP(AO38,Mitgliederliste,2,FALSE)),\"\",VLOOKUP(AO38,Mitgliederliste,2,FALSE))","v":""},{"$f":"IF(ISERROR(VLOOKUP(AP38,Mitgliederliste,2,FALSE)),\"\",VLOOKUP(AP38,Mitgliederliste,2,FALSE))","v":""},{"$f":"IF(ISERROR(VLOOKUP(AQ38,Mitgliederliste,2,FALSE)),\"\",VLOOKUP(AQ38,Mitgliederliste,2,FALSE))","v":""},{"$f":"IF(ISERROR(VLOOKUP(AR38,Mitgliederliste,2,FALSE)),\"\",VLOOKUP(AR38,Mitgliederliste,2,FALSE))","v":""},{"$f":"IF(ISERROR(VLOOKUP(AS38,Mitgliederliste,2,FALSE)),\"\",VLOOKUP(AS38,Mitgliederliste,2,FALSE))","v":""}]
[34,null,null,0,null,null,null,null,null,null,null,null,null,null,"","","","","","","","","",null,null,null,"","","","","","","","",""]
[35,null,null,0,null,null,null,null,null,null,null,null,null,null,"","","","","","","","","",null,null,null,"","","","","","","","",""]
[36,null,null,0,null,null,null,null,null,null,null,null,null,null,"","","","","","","","","",null,null,null,"","","","","","","","",""]
[37,null,null,0,null,null,null,null,null,null,null,null,null,null,"","","","","","","","","",null,null,null,"","","","","","","","",""]
[38,null,null,0,null,null,null,null,null,null,null,null,null,null,"","","","","","","","","",null,null,null,"","","","","","","","",""]
[39,null,null,0,null,null,null,null,null,null,null,null,null,null,"","","","","","","","","",null,null,null,"","","","","","","","",""]
[40,null,null,0,null,null,null,null,null,null,null,null,null,null,"","","","","","","","","",null,null,null,"","","","","","","","",""]
[41,null,null,0,null,null,null,null,null,null,null,null,null,null,"","","","","","","","","",null,null,null,"","","","","","","","",""]
[42,null,null,0,null,null,null,null,null,null,null,null,null,null,"","","","","","","","","",null,null,null,"","","","","","","","",""]
[43,null,null,0,null,null,null,null,null,null,null,null,null,null,"","","","","","","","","",null,null,null,"","","","","","","","",""]
[44,null,null,0,null,null,null,null,null,null,null,null,null,null,"","","","","","","","","",null,null,null,"","","","","","","","",""]
[45,null,null,0,null,null,null,null,null,null,null,null,null,null,"","","","","","","","","",null,null,null,"","","","","","","","",""]
[46,null,null,0,null,null,null,null,null,null,null,null,null,null,"","","","","","","","","",null,null,null,"","","","","","","","",""]
[47,null,null,0,null,null,null,null,null,null,null,null,null,null,"","","","","","","","","",null,null,null,"","","","","","","","",""]
[48,null,null,0,null,null,null,null,null,null,null,null,null,null,"","","","","","","","","",null,null,null,"","","","","","","","",""]
[49,null,null,0,null,null,null,null,null,null,null,null,null,null,"","","","","","","","","",null,null,null,"","","","","","","","",""]
[50,null,null,0,null,null,null,null,null,null,null,null,null,null,"","","","","","","","","",null,null,null,"","","","","","","","",""]
[51,null,null,0,null,null,null,null,null,null,null,null,null,null,"","","","","","","","","",null,null,null,"","","","","","","","",""]
[52,null,null,0,null,null,null,null,null,null,null,null,null,null,"","","","","","","","","",null,null,null,"","","","","","","","",""]
[53,null,null,0,null,null,null,null,null,null,null,null,null,null,"","","","","","","","","",null,null,null,"","","","","","","","",""]
[54,null,null,0,null,null,null,null,null,null,null,null,null,null,"","","","","","","","","",null,null,null,"","","","","","","","",""]
[55,null,null,0,null,null,null,null,null,null,null,null,null,null,"","","","","","","","","",null,null,null,"","","","","","","","",""]
[56,null,null,0,null,null,null,null,null,null,null,null,null,null,"","","","","","","","","",null,null,null,"","","","","","","","",""]
[57,null,null,0,null,null,null,null,null,null,null,null,null,null,"","","","","","","","","",null,null,null,"","","","","","","","",""]
[58,null,null,0,null,null,null,null,null,null,null,null,null,null,"","","","","","","","","",null,null,null,"","","","","","","","",""]
[59,null,null,0,null,null,null,null,null,null,null,null,null,null,"","","","","","","","","",null,null,null,"","","","","","","","",""]
[60,null,null,0,null,null,null,null,null,null,null,null,null,null,"","","","","","","","","",null,null,null,"","","","","","","","",""]
[61,null,null,0,null,null,null,null,null,null,null,null,null,null,"","","","","","","","","",null,null,null,"","","","","","","","",""]
[62,null,null,0,null,null,null,null,null,null,null,null,null,null,"","","","","","","","","",null,null,null,"","","","","","","","",""]
[63,null,null,0,null,null,null,null,null,null,null,null,null,null,"","","","","","","","","",null,null,null,"","","","","","","","",""]
[64,null,null,0,null,null,null,null,null,null,null,null,null,null,"","","","","","","","","",null,null,null,"","","","","","","","",""]
[65,null,null,{"$f":"IF(E70>0,500,0)","v":0},null,null,null,null,null,null,null,null,null,null,{"$f":"IF(ISERROR(VLOOKUP(AK70,Mitgliederliste,8,FALSE)),\"\",IF(Stichtag_verwenden=0,VLOOKUP(AK70,Mitgliederliste,3,FALSE),VLOOKUP(AK70,Mitgliederliste,8,FALSE)))","v":""},{"$f":"IF(ISERROR(VLOOKUP(AL70,Mitgliederliste,8,FALSE)),\"\",IF(Stichtag_verwenden=0,VLOOKUP(AL70,Mitgliederliste,3,FALSE),VLOOKUP(AL70,Mitgliederliste,8,FALSE)))","v":""},{"$f":"IF(ISERROR(VLOOKUP(AM70,Mitgliederliste,8,FALSE)),\"\",IF(Stichtag_verwenden=0,VLOOKUP(AM70,Mitgliederliste,3,FALSE),VLOOKUP(AM70,Mitgliederliste,8,FALSE)))","v":""},{"$f":"IF(ISERROR(VLOOKUP(AN70,Mitgliederliste,8,FALSE)),\"\",IF(Stichtag_verwenden=0,VLOOKUP(AN70,Mitgliederliste,3,FALSE),VLOOKUP(AN70,Mitgliederliste,8,FALSE)))","v":""},{"$f":"IF(ISERROR(VLOOKUP(AO70,Mitgliederliste,8,FALSE)),\"\",IF(Stichtag_verwenden=0,VLOOKUP(AO70,Mitgliederliste,3,FALSE),VLOOKUP(AO70,Mitgliederliste,8,FALSE)))","v":""},{"$f":"IF(ISERROR(VLOOKUP(AP70,Mitgliederliste,8,FALSE)),\"\",IF(Stichtag_verwenden=0,VLOOKUP(AP70,Mitgliederliste,3,FALSE),VLOOKUP(AP70,Mitgliederliste,8,FALSE)))","v":""},{"$f":"IF(ISERROR(VLOOKUP(AQ70,Mitgliederliste,8,FALSE)),\"\",IF(Stichtag_verwenden=0,VLOOKUP(AQ70,Mitgliederliste,3,FALSE),VLOOKUP(AQ70,Mitgliederliste,8,FALSE)))","v":""},{"$f":"IF(ISERROR(VLOOKUP(AR70,Mitgliederliste,8,FALSE)),\"\",IF(Stichtag_verwenden=0,VLOOKUP(AR70,Mitgliederliste,3,FALSE),VLOOKUP(AR70,Mitgliederliste,8,FALSE)))","v":""},{"$f":"IF(ISERROR(VLOOKUP(AS70,Mitgliederliste,8,FALSE)),\"\",IF(Stichtag_verwenden=0,VLOOKUP(AS70,Mitgliederliste,3,FALSE),VLOOKUP(AS70,Mitgliederliste,8,FALSE)))","v":""},null,null,null,{"$f":"IF(ISERROR(VLOOKUP(AK70,Mitgliederliste,2,FALSE)),\"\",VLOOKUP(AK70,Mitgliederliste,2,FALSE))","v":""},{"$f":"IF(ISERROR(VLOOKUP(AL70,Mitgliederliste,2,FALSE)),\"\",VLOOKUP(AL70,Mitgliederliste,2,FALSE))","v":""},{"$f":"IF(ISERROR(VLOOKUP(AM70,Mitgliederliste,2,FALSE)),\"\",VLOOKUP(AM70,Mitgliederliste,2,FALSE))","v":""},{"$f":"IF(ISERROR(VLOOKUP(AN70,Mitgliederliste,2,FALSE)),\"\",VLOOKUP(AN70,Mitgliederliste,2,FALSE))","v":""},{"$f":"IF(ISERROR(VLOOKUP(AO70,Mitgliederliste,2,FALSE)),\"\",VLOOKUP(AO70,Mitgliederliste,2,FALSE))","v":""},{"$f":"IF(ISERROR(VLOOKUP(AP70,Mitgliederliste,2,FALSE)),\"\",VLOOKUP(AP70,Mitgliederliste,2,FALSE))","v":""},{"$f":"IF(ISERROR(VLOOKUP(AQ70,Mitgliederliste,2,FALSE)),\"\",VLOOKUP(AQ70,Mitgliederliste,2,FALSE))","v":""},{"$f":"IF(ISERROR(VLOOKUP(AR70,Mitgliederliste,2,FALSE)),\"\",VLOOKUP(AR70,Mitgliederliste,2,FALSE))","v":""},{"$f":"IF(ISERROR(VLOOKUP(AS70,Mitgliederliste,2,FALSE)),\"\",VLOOKUP(AS70,Mitgliederliste,2,FALSE))","v":""}]
[66,null,null,0,null,null,null,null,null,null,null,null,null,null,"","","","","","","","","",null,null,null,"","","","","","","","",""]
[67,null,null,0,null,null,null,null,null,null,null,null,null,null,"","","","","","","","","",null,null,null,"","","","","","","","",""]
[68,null,null,0,null,null,null,null,null,null,null,null,null,null,"","","","","","","","","",null,null,null,"","","","","","","","",""]
[69,null,null,0,null,null,null,null,null,null,null,null,null,null,"","","","","","","","","",null,null,null,"","","","","","","","",""]
[70,null,null,0,null,null,null,null,null,null,null,null,null,null,"","","","","","","","","",null,null,null,"","","","","","","","",""]

{"sheet":"G1_Si_B","index":9,"n_rows":75,"n_cols":47,"rows_kept":75,"cut":false,"hidden":false,"merged":[]}
[{"$f":"Bewerbsart","v":"Abschnittsfeuerwehrleistungsbewerb"}]
[{"$f":"TEXT(Datum,\"T.MMMM JJJJ\")&\"  -  \"& Bewerbsort","v":"0.Jänner 1900  -  "}]
[{"$f":"G1_Si_B","v":"Gäste 1 Silber B"}]
[null,null,null,null,"Löschangriff",null,"Staffellauf"]
["Platz","Nummer","Gruppe","Stammpunkte","Zeit","Fehler","Zeit","Fehler","Alters-\nPunkte","Gesamt- punkte","Löschangr","Staffell.","Jahre",null,"Geb1","Geb2","Geb3","Geb4","Geb5","Geb6","Geb7","Geb8","Geb9",null,null,"Urk. gedr.","Name1","Name2","Name3","Name4","Name5","Name6","Name7","Name8","Name9","FW-Nr","Stb1","Stb2","Stb3","Stb4","Stb5","Stb6","Stb7","Stb8","Stb9","Pokale","Anzahl Preise (Pokale):"]
[1,null,null,{"$f":"IF(E6>0,500,0)","v":0},null,null,null,null,null,null,null,null,null,null,{"$f":"IF(ISERROR(VLOOKUP(AK6,Mitgliederliste,8,FALSE)),\"\",IF(Stichtag_verwenden=0,VLOOKUP(AK6,Mitgliederliste,3,FALSE),VLOOKUP(AK6,Mitgliederliste,8,FALSE)))","v":""},{"$f":"IF(ISERROR(VLOOKUP(AL6,Mitgliederliste,8,FALSE)),\"\",IF(Stichtag_verwenden=0,VLOOKUP(AL6,Mitgliederliste,3,FALSE),VLOOKUP(AL6,Mitgliederliste,8,FALSE)))","v":""},{"$f":"IF(ISERROR(VLOOKUP(AM6,Mitgliederliste,8,FALSE)),\"\",IF(Stichtag_verwenden=0,VLOOKUP(AM6,Mitgliederliste,3,FALSE),VLOOKUP(AM6,Mitgliederliste,8,FALSE)))","v":""},{"$f":"IF(ISERROR(VLOOKUP(AN6,Mitgliederliste,8,FALSE)),\"\",IF(Stichtag_verwenden=0,VLOOKUP(AN6,Mitgliederliste,3,FALSE),VLOOKUP(AN6,Mitgliederliste,8,FALSE)))","v":""},{"$f":"IF(ISERROR(VLOOKUP(AO6,Mitgliederliste,8,FALSE)),\"\",IF(Stichtag_verwenden=0,VLOOKUP(AO6,Mitgliederliste,3,FALSE),VLOOKUP(AO6,Mitgliederliste,8,FALSE)))","v":""},{"$f":"IF(ISERROR(VLOOKUP(AP6,Mitgliederliste,8,FALSE)),\"\",IF(Stichtag_verwenden=0,VLOOKUP(AP6,Mitgliederliste,3,FALSE),VLOOKUP(AP6,Mitgliederliste,8,FALSE)))","v":""},{"$f":"IF(ISERROR(VLOOKUP(AQ6,Mitgliederliste,8,FALSE)),\"\",IF(Stichtag_verwenden=0,VLOOKUP(AQ6,Mitgliederliste,3,FALSE),VLOOKUP(AQ6,Mitgliederliste,8,FALSE)))","v":""},{"$f":"IF(ISERROR(VLOOKUP(AR6,Mitgliederliste,8,FALSE)),\"\",IF(Stichtag_verwenden=0,VLOOKUP(AR6,Mitgliederliste,3,FALSE),VLOOKUP(AR6,Mitgliederliste,8,FALSE)))","v":""},{"$f":"IF(ISERROR(VLOOKUP(AS6,Mitgliederliste,8,FALSE)),\"\",IF(Stichtag_verwenden=0,VLOOKUP(AS6,Mitgliederliste,3,FALSE),VLOOKUP(AS6,Mitgliederliste,8,FALSE)))","v":""},null,null,null,{"$f":"IF(ISERROR(VLOOKUP(AK6,Mitgliederliste,2,FALSE)),\"\",VLOOKUP(AK6,Mitgliederliste,2,FALSE))","v":""},{"$f":"IF(ISERROR(VLOOKUP(AL6,Mitgliederliste,2,FALSE)),\"\",VLOOKUP(AL6,Mitgliederliste,2,FALSE))","v":""},{"$f":"IF(ISERROR(VLOOKUP(AM6,Mitgliederliste,2,FALSE)),\"\",VLOOKUP(AM6,Mitgliederliste,2,FALSE))","v":""},{"$f":"IF(ISERROR(VLOOKUP(AN6,Mitgliederliste,2,FALSE)),\"\",VLOOKUP(AN6,Mitgliederliste,2,FALSE))","v":""},{"$f":"IF(ISERROR(VLOOKUP(AO6,Mitgliederliste,2,FALSE)),\"\",VLOOKUP(AO6,Mitgliederliste,2,FALSE))","v":""},{"$f":"IF(ISERROR(VLOOKUP(AP6,Mitgliederliste,2,FALSE)),\"\",VLOOKUP(AP6,Mitgliederliste,2,FALSE))","v":""},{"$f":"IF(ISERROR(VLOOKUP(AQ6,Mitgliederliste,2,FALSE)),\"\",VLOOKUP(AQ6,Mitgliederliste,2,FALSE))","v":""},{"$f":"IF(ISERROR(VLOOKUP(AR6,Mitgliederliste,2,FALSE)),\"\",VLOOKUP(AR6,Mitgliederliste,2,FALSE))","v":""},{"$f":"IF(ISERROR(VLOOKUP(AS6,Mitgliederliste,2,FALSE)),\"\",VLOOKUP(AS6,Mitgliederliste,2,FALSE))","v":""},null,null,null,null,null,null,null,null,null,null,null,{"$f":"IF(COUNTA(C6:C75)>0,1,\"kein Preis\")","v":"kein Preis"}]
[2,null,null,0,null,null,null,null,null,null,null,null,null,null,"","","","","","","","","",null,null,null,"","","","","","","","","",null,null,null,null,null,null,null,null,null,null,null,{"$f":"IF(COUNTA(C6:C75)>1,2,\"\")","v":""}]
[3,null,null,0,null,null,null,null,null,null,null,null,null,null,"","","","","","","","","",null,null,null,"","","","","","","","","",null,null,null,null,null,null,null,null,null,null,null,{"$f":"IF(COUNTA(C6:C75)>2,3,\"\")","v":""}]
[4,null,null,0,null,null,null,null,null,null,null,null,null,null,"","","","","","","","","",null,null,null,"","","","","","","","","",null,null,null,null,null,null,null,null,null,null,null,{"$f":"IF(COUNTA(C6:C75)>5,4,\"\")","v":""}]
[5,null,null,0,null,null,null,null,null,null,null,null,null,null,"","","","","","","","","",null,null,null,"","","","","","","","","",null,null,null,null,null,null,null,null,null,null,null,{"$f":"IF(COUNTA(C6:C75)>9,5,\"\")","v":""}]
[6,null,null,0,null,null,null,null,null,null,null,null,null,null,"","","","","","","","","",null,null,null,"","","","","","","","","",null,null,null,null,null,null,null,null,null,null,null,{"$f":"IF(COUNTA(C6:C75)>13,6,\"\")","v":""}]
[7,null,null,0,null,null,null,null,null,null,null,null,null,null,"","","","","","","","","",null,null,null,"","","","","","","","","",null,null,null,null,null,null,null,null,null,null,null,{"$f":"IF(COUNTA(C6:C75)>17,7,\"\")","v":""}]
[8,null,null,0,null,null,null,null,null,null,null,null,null,null,"","","","","","","","","",null,null,null,"","","","","","","","","",null,null,null,null,null,null,null,null,null,null,null,{"$f":"IF(COUNTA(C6:C75)>22,8,\"\")","v":""}]
[9,null,null,0,null,null,null,null,null,null,null,null,null,null,"","","","","","","","","",null,null,null,"","","","","","","","","",null,null,null,null,null,null,null,null,null,null,null,{"$f":"IF(COUNTA(C6:C75)>27,9,\"\")","v":""}]
[10,null,null,0,null,null,null,null,null,null,null,null,null,null,"","","","","","","","","",null,null,null,"","","","","","","","","",null,null,null,null,null,null,null,null,null,null,null,{"$f":"IF(COUNTA(C6:C75)>32,10,\"\")","v":""}]
[11,null,null,0,null,null,null,null,null,null,null,null,null,null,"","","","","","","","","",null,null,null,"","","","","","","","","",null,null,null,null,null,null,null,null,null,null,null,{"$f":"IF(COUNTA(C6:C75)>37,11,\"\")","v":""}]
[12,null,null,0,null,null,null,null,null,null,null,null,null,null,"","","","","","","","","",null,null,null,"","","","","","","","","",null,null,null,null,null,null,null,null,null,null,null,{"$f":"IF(COUNTA(C6:C75)>42,12,\"\")","v":""}]
[13,null,null,0,null,null,null,null,null,null,null,null,null,null,"","","","","","","","","",null,null,null,"","","","","","","","","",null,null,null,null,null,null,null,null,null,null,null,{"$f":"IF(COUNTA(C6:C75)>47,13,\"\")","v":""}]
[14,null,null,0,null,null,null,null,null,null,null,null,null,null,"","","","","","","","","",null,null,null,"","","","","","","","","",null,null,null,null,null,null,null,null,null,null,null,{"$f":"IF(COUNTA(C6:C75)>52,14,\"\")","v":""}]
[15,null,null,0,null,null,null,null,null,null,null,null,null,null,"","","","","","","","","",null,null,null,"","","","","","","","","",null,null,null,null,null,null,null,null,null,null,null,{"$f":"IF(COUNTA(C6:C75)>57,15,\"\")","v":""}]
[16,null,null,0,null,null,null,null,null,null,null,null,null,null,"","","","","","","","","",null,null,null,"","","","","","","","","",null,null,null,null,null,null,null,null,null,null,null,{"$f":"IF(COUNTA(C6:C75)>62,16,\"\")","v":""}]
[17,null,null,0,null,null,null,null,null,null,null,null,null,null,"","","","","","","","","",null,null,null,"","","","","","","","","",null,null,null,null,null,null,null,null,null,null,null,{"$f":"IF(COUNTA(C6:C75)>67,17,\"\")","v":""}]
[18,null,null,0,null,null,null,null,null,null,null,null,null,null,"","","","","","","","","",null,null,null,"","","","","","","","",""]
[19,null,null,0,null,null,null,null,null,null,null,null,null,null,"","","","","","","","","",null,null,null,"","","","","","","","",""]
[20,null,null,0,null,null,null,null,null,null,null,null,null,null,"","","","","","","","","",null,null,null,"","","","","","","","",""]
[21,null,null,0,null,null,null,null,null,null,null,null,null,null,"","","","","","","","","",null,null,null,"","","","","","","","",""]
[22,null,null,0,null,null,null,null,null,null,null,null,null,null,"","","","","","","","","",null,null,null,"","","","","","","","",""]
[23,null,null,0,null,null,null,null,null,null,null,null,null,null,"","","","","","","","","",null,null,null,"","","","","","","","",""]
[24,null,null,0,null,null,null,null,null,null,null,null,null,null,"","","","","","","","","",null,null,null,"","","","","","","","",""]
[25,null,null,0,null,null,null,null,null,null,null,null,null,null,"","","","","","","","","",null,null,null,"","","","","","","","",""]
[26,null,null,0,null,null,null,null,null,null,null,null,null,null,"","","","","","","","","",null,null,null,"","","","","","","","",""]
[27,null,null,0,null,null,null,null,null,null,null,null,null,null,"","","","","","","","","",null,null,null,"","","","","","","","",""]
[28,null,null,0,null,null,null,null,null,null,null,null,null,null,"","","","","","","","","",null,null,null,"","","","","","","","",""]
[29,null,null,0,null,null,null,null,null,null,null,null,null,null,"","","","","","","","","",null,null,null,"","","","","","","","",""]
[30,null,null,0,null,null,null,null,null,null,null,null,null,null,"","","","","","","","","",null,null,null,"","","","","","","","",""]
[31,null,null,0,null,null,null,null,null,null,null,null,null,null,"","","","","","","","","",null,null,null,"","","","","","","","",""]
[32,null,null,0,null,null,null,null,null,null,null,null,null,null,"","","","","","","","","",null,null,null,"","","","","","","","",""]
[33,null,null,{"$f":"IF(E38>0,500,0)","v":0},null,null,null,null,null,null,null,null,null,null,{"$f":"IF(ISERROR(VLOOKUP(AK38,Mitgliederliste,8,FALSE)),\"\",IF(Stichtag_verwenden=0,VLOOKUP(AK38,Mitgliederliste,3,FALSE),VLOOKUP(AK38,Mitgliederliste,8,FALSE)))","v":""},{"$f":"IF(ISERROR(VLOOKUP(AL38,Mitgliederliste,8,FALSE)),\"\",IF(Stichtag_verwenden=0,VLOOKUP(AL38,Mitgliederliste,3,FALSE),VLOOKUP(AL38,Mitgliederliste,8,FALSE)))","v":""},{"$f":"IF(ISERROR(VLOOKUP(AM38,Mitgliederliste,8,FALSE)),\"\",IF(Stichtag_verwenden=0,VLOOKUP(AM38,Mitgliederliste,3,FALSE),VLOOKUP(AM38,Mitgliederliste,8,FALSE)))","v":""},{"$f":"IF(ISERROR(VLOOKUP(AN38,Mitgliederliste,8,FALSE)),\"\",IF(Stichtag_verwenden=0,VLOOKUP(AN38,Mitgliederliste,3,FALSE),VLOOKUP(AN38,Mitgliederliste,8,FALSE)))","v":""},{"$f":"IF(ISERROR(VLOOKUP(AO38,Mitgliederliste,8,FALSE)),\"\",IF(Stichtag_verwenden=0,VLOOKUP(AO38,Mitgliederliste,3,FALSE),VLOOKUP(AO38,Mitgliederliste,8,FALSE)))","v":""},{"$f":"IF(ISERROR(VLOOKUP(AP38,Mitgliederliste,8,FALSE)),\"\",IF(Stichtag_verwenden=0,VLOOKUP(AP38,Mitgliederliste,3,FALSE),VLOOKUP(AP38,Mitgliederliste,8,FALSE)))","v":""},{"$f":"IF(ISERROR(VLOOKUP(AQ38,Mitgliederliste,8,FALSE)),\"\",IF(Stichtag_verwenden=0,VLOOKUP(AQ38,Mitgliederliste,3,FALSE),VLOOKUP(AQ38,Mitgliederliste,8,FALSE)))","v":""},{"$f":"IF(ISERROR(VLOOKUP(AR38,Mitgliederliste,8,FALSE)),\"\",IF(Stichtag_verwenden=0,VLOOKUP(AR38,Mitgliederliste,3,FALSE),VLOOKUP(AR38,Mitgliederliste,8,FALSE)))","v":""},{"$f":"IF(ISERROR(VLOOKUP(AS38,Mitgliederliste,8,FALSE)),\"\",IF(Stichtag_verwenden=0,VLOOKUP(AS38,Mitgliederliste,3,FALSE),VLOOKUP(AS38,Mitgliederliste,8,FALSE)))","v":""},null,null,null,{"$f":"IF(ISERROR(VLOOKUP(AK38,Mitgliederliste,2,FALSE)),\"\",VLOOKUP(AK38,Mitgliederliste,2,FALSE))","v":""},{"$f":"IF(ISERROR(VLOOKUP(AL38,Mitgliederliste,2,FALSE)),\"\",VLOOKUP(AL38,Mitgliederliste,2,FALSE))","v":""},{"$f":"IF(ISERROR(VLOOKUP(AM38,Mitgliederliste,2,FALSE)),\"\",VLOOKUP(AM38,Mitgliederliste,2,FALSE))","v":""},{"$f":"IF(ISERROR(VLOOKUP(AN38,Mitgliederliste,2,FALSE)),\"\",VLOOKUP(AN38,Mitgliederliste,2,FALSE))","v":""},{"$f":"IF(ISERROR(VLOOKUP(AO38,Mitgliederliste,2,FALSE)),\"\",VLOOKUP(AO38,Mitgliederliste,2,FALSE))","v":""},{"$f":"IF(ISERROR(VLOOKUP(AP38,Mitgliederliste,2,FALSE)),\"\",VLOOKUP(AP38,Mitgliederliste,2,FALSE))","v":""},{"$f":"IF(ISERROR(VLOOKUP(AQ38,Mitgliederliste,2,FALSE)),\"\",VLOOKUP(AQ38,Mitgliederliste,2,FALSE))","v":""},{"$f":"IF(ISERROR(VLOOKUP(AR38,Mitgliederliste,2,FALSE)),\"\",VLOOKUP(AR38,Mitgliederliste,2,FALSE))","v":""},{"$f":"IF(ISERROR(VLOOKUP(AS38,Mitgliederliste,2,FALSE)),\"\",VLOOKUP(AS38,Mitgliederliste,2,FALSE))","v":""}]
[34,null,null,0,null,null,null,null,null,null,null,null,null,null,"","","","","","","","","",null,null,null,"","","","","","","","",""]
[35,null,null,0,null,null,null,null,null,null,null,null,null,null,"","","","","","","","","",null,null,null,"","","","","","","","",""]
[36,null,null,0,null,null,null,null,null,null,null,null,null,null,"","","","","","","","","",null,null,null,"","","","","","","","",""]
[37,null,null,0,null,null,null,null,null,null,null,null,null,null,"","","","","","","","","",null,null,null,"","","","","","","","",""]
[38,null,null,0,null,null,null,null,null,null,null,null,null,null,"","","","","","","","","",null,null,null,"","","","","","","","",""]
[39,null,null,0,null,null,null,null,null,null,null,null,null,null,"","","","","","","","","",null,null,null,"","","","","","","","",""]
[40,null,null,0,null,null,null,null,null,null,null,null,null,null,"","","","","","","","","",null,null,null,"","","","","","","","",""]
[41,null,null,0,null,null,null,null,null,null,null,null,null,null,"","","","","","","","","",null,null,null,"","","","","","","","",""]
[42,null,null,0,null,null,null,null,null,null,null,null,null,null,"","","","","","","","","",null,null,null,"","","","","","","","",""]
[43,null,null,0,null,null,null,null,null,null,null,null,null,null,"","","","","","","","","",null,null,null,"","","","","","","","",""]
[44,null,null,0,null,null,null,null,null,null,null,null,null,null,"","","","","","","","","",null,null,null,"","","","","","","","",""]
[45,null,null,0,null,null,null,null,null,null,null,null,null,null,"","","","","","","","","",null,null,null,"","","","","","","","",""]
[46,null,null,0,null,null,null,null,null,null,null,null,null,null,"","","","","","","","","",null,null,null,"","","","","","","","",""]
[47,null,null,0,null,null,null,null,null,null,null,null,null,null,"","","","","","","","","",null,null,null,"","","","","","","","",""]
[48,null,null,0,null,null,null,null,null,null,null,null,null,null,"","","","","","","","","",null,null,null,"","","","","","","","",""]
[49,null,null,0,null,null,null,null,null,null,null,null,null,null,"","","","","","","","","",null,null,null,"","","","","","","","",""]
[50,null,null,0,null,null,null,null,null,null,null,null,null,null,"","","","","","","","","",null,null,null,"","","","","","","","",""]
[51,null,null,0,null,null,null,null,null,null,null,null,null,null,"","","","","","","","","",null,null,null,"","","","","","","","",""]
[52,null,null,0,null,null,null,null,null,null,null,null,null,null,"","","","","","","","","",null,null,null,"","","","","","","","",""]
[53,null,null,0,null,null,null,null,null,null,null,null,null,null,"","","","","","","","","",null,null,null,"","","","","","","","",""]
[54,null,null,0,null,null,null,null,null,null,null,null,null,null,"","","","","","","","","",null,null,null,"","","","","","","","",""]
[55,null,null,0,null,null,null,null,null,null,null,null,null,null,"","","","","","","","","",null,null,null,"","","","","","","","",""]
[56,null,null,0,null,null,null,null,null,null,null,null,null,null,"","","","","","","","","",null,null,null,"","","","","","","","",""]
[57,null,null,0,null,null,null,null,null,null,null,null,null,null,"","","","","","","","","",null,null,null,"","","","","","","","",""]
[58,null,null,0,null,null,null,null,null,null,null,null,null,null,"","","","","","","","","",null,null,null,"","","","","","","","",""]
[59,null,null,0,null,null,null,null,null,null,null,null,null,null,"","","","","","","","","",null,null,null,"","","","","","","","",""]
[60,null,null,0,null,null,null,null,null,null,null,null,null,null,"","","","","","","","","",null,null,null,"","","","","","","","",""]
[61,null,null,0,null,null,null,null,null,null,null,null,null,null,"","","","","","","","","",null,null,null,"","","","","","","","",""]
[62,null,null,0,null,null,null,null,null,null,null,null,null,null,"","","","","","","","","",null,null,null,"","","","","","","","",""]
[63,null,null,0,null,null,null,null,null,null,null,null,null,null,"","","","","","","","","",null,null,null,"","","","","","","","",""]
[64,null,null,0,null,null,null,null,null,null,null,null,null,null,"","","","","","","","","",null,null,null,"","","","","","","","",""]
[65,null,null,{"$f":"IF(E70>0,500,0)","v":0},null,null,null,null,null,null,null,null,null,null,{"$f":"IF(ISERROR(VLOOKUP(AK70,Mitgliederliste,8,FALSE)),\"\",IF(Stichtag_verwenden=0,VLOOKUP(AK70,Mitgliederliste,3,FALSE),VLOOKUP(AK70,Mitgliederliste,8,FALSE)))","v":""},{"$f":"IF(ISERROR(VLOOKUP(AL70,Mitgliederliste,8,FALSE)),\"\",IF(Stichtag_verwenden=0,VLOOKUP(AL70,Mitgliederliste,3,FALSE),VLOOKUP(AL70,Mitgliederliste,8,FALSE)))","v":""},{"$f":"IF(ISERROR(VLOOKUP(AM70,Mitgliederliste,8,FALSE)),\"\",IF(Stichtag_verwenden=0,VLOOKUP(AM70,Mitgliederliste,3,FALSE),VLOOKUP(AM70,Mitgliederliste,8,FALSE)))","v":""},{"$f":"IF(ISERROR(VLOOKUP(AN70,Mitgliederliste,8,FALSE)),\"\",IF(Stichtag_verwenden=0,VLOOKUP(AN70,Mitgliederliste,3,FALSE),VLOOKUP(AN70,Mitgliederliste,8,FALSE)))","v":""},{"$f":"IF(ISERROR(VLOOKUP(AO70,Mitgliederliste,8,FALSE)),\"\",IF(Stichtag_verwenden=0,VLOOKUP(AO70,Mitgliederliste,3,FALSE),VLOOKUP(AO70,Mitgliederliste,8,FALSE)))","v":""},{"$f":"IF(ISERROR(VLOOKUP(AP70,Mitgliederliste,8,FALSE)),\"\",IF(Stichtag_verwenden=0,VLOOKUP(AP70,Mitgliederliste,3,FALSE),VLOOKUP(AP70,Mitgliederliste,8,FALSE)))","v":""},{"$f":"IF(ISERROR(VLOOKUP(AQ70,Mitgliederliste,8,FALSE)),\"\",IF(Stichtag_verwenden=0,VLOOKUP(AQ70,Mitgliederliste,3,FALSE),VLOOKUP(AQ70,Mitgliederliste,8,FALSE)))","v":""},{"$f":"IF(ISERROR(VLOOKUP(AR70,Mitgliederliste,8,FALSE)),\"\",IF(Stichtag_verwenden=0,VLOOKUP(AR70,Mitgliederliste,3,FALSE),VLOOKUP(AR70,Mitgliederliste,8,FALSE)))","v":""},{"$f":"IF(ISERROR(VLOOKUP(AS70,Mitgliederliste,8,FALSE)),\"\",IF(Stichtag_verwenden=0,VLOOKUP(AS70,Mitgliederliste,3,FALSE),VLOOKUP(AS70,Mitgliederliste,8,FALSE)))","v":""},null,null,null,{"$f":"IF(ISERROR(VLOOKUP(AK70,Mitgliederliste,2,FALSE)),\"\",VLOOKUP(AK70,Mitgliederliste,2,FALSE))","v":""},{"$f":"IF(ISERROR(VLOOKUP(AL70,Mitgliederliste,2,FALSE)),\"\",VLOOKUP(AL70,Mitgliederliste,2,FALSE))","v":""},{"$f":"IF(ISERROR(VLOOKUP(AM70,Mitgliederliste,2,FALSE)),\"\",VLOOKUP(AM70,Mitgliederliste,2,FALSE))","v":""},{"$f":"IF(ISERROR(VLOOKUP(AN70,Mitgliederliste,2,FALSE)),\"\",VLOOKUP(AN70,Mitgliederliste,2,FALSE))","v":""},{"$f":"IF(ISERROR(VLOOKUP(AO70,Mitgliederliste,2,FALSE)),\"\",VLOOKUP(AO70,Mitgliederliste,2,FALSE))","v":""},{"$f":"IF(ISERROR(VLOOKUP(AP70,Mitgliederliste,2,FALSE)),\"\",VLOOKUP(AP70,Mitgliederliste,2,FALSE))","v":""},{"$f":"IF(ISERROR(VLOOKUP(AQ70,Mitgliederliste,2,FALSE)),\"\",VLOOKUP(AQ70,Mitgliederliste,2,FALSE))","v":""},{"$f":"IF(ISERROR(VLOOKUP(AR70,Mitgliederliste,2,FALSE)),\"\",VLOOKUP(AR70,Mitgliederliste,2,FALSE))","v":""},{"$f":"IF(ISERROR(VLOOKUP(AS70,Mitgliederliste,2,FALSE)),\"\",VLOOKUP(AS70,Mitgliederliste,2,FALSE))","v":""}]
[66,null,null,0,null,null,null,null,null,null,null,null,null,null,"","","","","","","","","",null,null,null,"","","","","","","","",""]
[67,null,null,0,null,null,null,null,null,null,null,null,null,null,"","","","","","","","","",null,null,null,"","","","","","","","",""]
[68,null,null,0,null,null,null,null,null,null,null,null,null,null,"","","","","","","","","",null,null,null,"","","","","","","","",""]
[69,null,null,0,null,null,null,null,null,null,null,null,null,null,"","","","","","","","","",null,null,null,"","","","","","","","",""]
[70,null,null,0,null,null,null,null,null,null,null,null,null,null,"","","","","","","","","",null,null,null,"","","","","","","","",""]

{"sheet":"G2_Br_A","index":10,"n_rows":75,"n_cols":47,"rows_kept":75,"cut":false,"hidden":false,"merged":[]}
[{"$f":"Bewerbsart","v":"Abschnittsfeuerwehrleistungsbewerb"}]
[{"$f":"TEXT(Datum,\"T.MMMM JJJJ\")&\"  -  \"& Bewerbsort","v":"0.Jänner 1900  -  "}]
[{"$f":"G2_Br_A","v":"Gäste 2 Bronze A"}]
[null,null,null,null,"Löschangriff",null,"Staffellauf"]
["Platz","Nummer","Gruppe","Stammpunkte","Zeit","Fehler","Zeit","Fehler","Alters-\nPunkte","Gesamt- punkte","Löschangr","Staffell.","Jahre",null,"Geb1","Geb2","Geb3","Geb4","Geb5","Geb6","Geb7","Geb8","Geb9",null,null,"Urk. gedr.","Name1","Name2","Name3","Name4","Name5","Name6","Name7","Name8","Name9","FW-Nr","Stb1","Stb2","Stb3","Stb4","Stb5","Stb6","Stb7","Stb8","Stb9","Pokale","Anzahl Preise (Pokale):"]
[1,null,null,{"$f":"IF(E6>0,500,0)","v":0},null,null,null,null,null,null,null,null,null,null,{"$f":"IF(ISERROR(VLOOKUP(AK6,Mitgliederliste,8,FALSE)),\"\",IF(Stichtag_verwenden=0,VLOOKUP(AK6,Mitgliederliste,3,FALSE),VLOOKUP(AK6,Mitgliederliste,8,FALSE)))","v":""},{"$f":"IF(ISERROR(VLOOKUP(AL6,Mitgliederliste,8,FALSE)),\"\",IF(Stichtag_verwenden=0,VLOOKUP(AL6,Mitgliederliste,3,FALSE),VLOOKUP(AL6,Mitgliederliste,8,FALSE)))","v":""},{"$f":"IF(ISERROR(VLOOKUP(AM6,Mitgliederliste,8,FALSE)),\"\",IF(Stichtag_verwenden=0,VLOOKUP(AM6,Mitgliederliste,3,FALSE),VLOOKUP(AM6,Mitgliederliste,8,FALSE)))","v":""},{"$f":"IF(ISERROR(VLOOKUP(AN6,Mitgliederliste,8,FALSE)),\"\",IF(Stichtag_verwenden=0,VLOOKUP(AN6,Mitgliederliste,3,FALSE),VLOOKUP(AN6,Mitgliederliste,8,FALSE)))","v":""},{"$f":"IF(ISERROR(VLOOKUP(AO6,Mitgliederliste,8,FALSE)),\"\",IF(Stichtag_verwenden=0,VLOOKUP(AO6,Mitgliederliste,3,FALSE),VLOOKUP(AO6,Mitgliederliste,8,FALSE)))","v":""},{"$f":"IF(ISERROR(VLOOKUP(AP6,Mitgliederliste,8,FALSE)),\"\",IF(Stichtag_verwenden=0,VLOOKUP(AP6,Mitgliederliste,3,FALSE),VLOOKUP(AP6,Mitgliederliste,8,FALSE)))","v":""},{"$f":"IF(ISERROR(VLOOKUP(AQ6,Mitgliederliste,8,FALSE)),\"\",IF(Stichtag_verwenden=0,VLOOKUP(AQ6,Mitgliederliste,3,FALSE),VLOOKUP(AQ6,Mitgliederliste,8,FALSE)))","v":""},{"$f":"IF(ISERROR(VLOOKUP(AR6,Mitgliederliste,8,FALSE)),\"\",IF(Stichtag_verwenden=0,VLOOKUP(AR6,Mitgliederliste,3,FALSE),VLOOKUP(AR6,Mitgliederliste,8,FALSE)))","v":""},{"$f":"IF(ISERROR(VLOOKUP(AS6,Mitgliederliste,8,FALSE)),\"\",IF(Stichtag_verwenden=0,VLOOKUP(AS6,Mitgliederliste,3,FALSE),VLOOKUP(AS6,Mitgliederliste,8,FALSE)))","v":""},null,null,null,{"$f":"IF(ISERROR(VLOOKUP(AK6,Mitgliederliste,2,FALSE)),\"\",VLOOKUP(AK6,Mitgliederliste,2,FALSE))","v":""},{"$f":"IF(ISERROR(VLOOKUP(AL6,Mitgliederliste,2,FALSE)),\"\",VLOOKUP(AL6,Mitgliederliste,2,FALSE))","v":""},{"$f":"IF(ISERROR(VLOOKUP(AM6,Mitgliederliste,2,FALSE)),\"\",VLOOKUP(AM6,Mitgliederliste,2,FALSE))","v":""},{"$f":"IF(ISERROR(VLOOKUP(AN6,Mitgliederliste,2,FALSE)),\"\",VLOOKUP(AN6,Mitgliederliste,2,FALSE))","v":""},{"$f":"IF(ISERROR(VLOOKUP(AO6,Mitgliederliste,2,FALSE)),\"\",VLOOKUP(AO6,Mitgliederliste,2,FALSE))","v":""},{"$f":"IF(ISERROR(VLOOKUP(AP6,Mitgliederliste,2,FALSE)),\"\",VLOOKUP(AP6,Mitgliederliste,2,FALSE))","v":""},{"$f":"IF(ISERROR(VLOOKUP(AQ6,Mitgliederliste,2,FALSE)),\"\",VLOOKUP(AQ6,Mitgliederliste,2,FALSE))","v":""},{"$f":"IF(ISERROR(VLOOKUP(AR6,Mitgliederliste,2,FALSE)),\"\",VLOOKUP(AR6,Mitgliederliste,2,FALSE))","v":""},{"$f":"IF(ISERROR(VLOOKUP(AS6,Mitgliederliste,2,FALSE)),\"\",VLOOKUP(AS6,Mitgliederliste,2,FALSE))","v":""},null,null,null,null,null,null,null,null,null,null,null,{"$f":"IF(COUNTA(C6:C75)>0,1,\"kein Preis\")","v":"kein Preis"}]
[2,null,null,0,null,null,null,null,null,null,null,null,null,null,"","","","","","","","","",null,null,null,"","","","","","","","","",null,null,null,null,null,null,null,null,null,null,null,{"$f":"IF(COUNTA(C6:C75)>1,2,\"\")","v":""}]
[3,null,null,0,null,null,null,null,null,null,null,null,null,null,"","","","","","","","","",null,null,null,"","","","","","","","","",null,null,null,null,null,null,null,null,null,null,null,{"$f":"IF(COUNTA(C6:C75)>2,3,\"\")","v":""}]
[4,null,null,0,null,null,null,null,null,null,null,null,null,null,"","","","","","","","","",null,null,null,"","","","","","","","","",null,null,null,null,null,null,null,null,null,null,null,{"$f":"IF(COUNTA(C6:C75)>5,4,\"\")","v":""}]
[5,null,null,0,null,null,null,null,null,null,null,null,null,null,"","","","","","","","","",null,null,null,"","","","","","","","","",null,null,null,null,null,null,null,null,null,null,null,{"$f":"IF(COUNTA(C6:C75)>10,5,\"\")","v":""}]
[6,null,null,0,null,null,null,null,null,null,null,null,null,null,"","","","","","","","","",null,null,null,"","","","","","","","","",null,null,null,null,null,null,null,null,null,null,null,{"$f":"IF(COUNTA(C6:C75)>15,6,\"\")","v":""}]
[7,null,null,0,null,null,null,null,null,null,null,null,null,null,"","","","","","","","","",null,null,null,"","","","","","","","","",null,null,null,null,null,null,null,null,null,null,null,{"$f":"IF(COUNTA(C6:C75)>20,7,\"\")","v":""}]
[8,null,null,0,null,null,null,null,null,null,null,null,null,null,"","","","","","","","","",null,null,null,"","","","","","","","","",null,null,null,null,null,null,null,null,null,null,null,{"$f":"IF(COUNTA(C6:C75)>30,8,\"\")","v":""}]
[9,null,null,0,null,null,null,null,null,null,null,null,null,null,"","","","","","","","","",null,null,null,"","","","","","","","","",null,null,null,null,null,null,null,null,null,null,null,{"$f":"IF(COUNTA(C6:C75)>40,9,\"\")","v":""}]
[10,null,null,0,null,null,null,null,null,null,null,null,null,null,"","","","","","","","","",null,null,null,"","","","","","","","","",null,null,null,null,null,null,null,null,null,null,null,{"$f":"IF(COUNTA(C6:C75)>50,10,\"\")","v":""}]
[11,null,null,0,null,null,null,null,null,null,null,null,null,null,"","","","","","","","","",null,null,null,"","","","","","","","","",null,null,null,null,null,null,null,null,null,null,null,{"$f":"IF(COUNTA(C6:C75)>60,11,\"\")","v":""}]
[12,null,null,0,null,null,null,null,null,null,null,null,null,null,"","","","","","","","","",null,null,null,"","","","","","","","",""]
[13,null,null,0,null,null,null,null,null,null,null,null,null,null,"","","","","","","","","",null,null,null,"","","","","","","","",""]
[14,null,null,0,null,null,null,null,null,null,null,null,null,null,"","","","","","","","","",null,null,null,"","","","","","","","",""]
[15,null,null,0,null,null,null,null,null,null,null,null,null,null,"","","","","","","","","",null,null,null,"","","","","","","","",""]
[16,null,null,0,null,null,null,null,null,null,null,null,null,null,"","","","","","","","","",null,null,null,"","","","","","","","",""]
[17,null,null,0,null,null,null,null,null,null,null,null,null,null,"","","","","","","","","",null,null,null,"","","","","","","","",""]
[18,null,null,0,null,null,null,null,null,null,null,null,null,null,"","","","","","","","","",null,null,null,"","","","","","","","",""]
[19,null,null,0,null,null,null,null,null,null,null,null,null,null,"","","","","","","","","",null,null,null,"","","","","","","","",""]
[20,null,null,0,null,null,null,null,null,null,null,null,null,null,"","","","","","","","","",null,null,null,"","","","","","","","",""]
[21,null,null,0,null,null,null,null,null,null,null,null,null,null,"","","","","","","","","",null,null,null,"","","","","","","","",""]
[22,null,null,0,null,null,null,null,null,null,null,null,null,null,"","","","","","","","","",null,null,null,"","","","","","","","",""]
[23,null,null,0,null,null,null,null,null,null,null,null,null,null,"","","","","","","","","",null,null,null,"","","","","","","","",""]
[24,null,null,0,null,null,null,null,null,null,null,null,null,null,"","","","","","","","","",null,null,null,"","","","","","","","",""]
[25,null,null,0,null,null,null,null,null,null,null,null,null,null,"","","","","","","","","",null,null,null,"","","","","","","","",""]
[26,null,null,0,null,null,null,null,null,null,null,null,null,null,"","","","","","","","","",null,null,null,"","","","","","","","",""]
[27,null,null,0,null,null,null,null,null,null,null,null,null,null,"","","","","","","","","",null,null,null,"","","","","","","","",""]
[28,null,null,0,null,null,null,null,null,null,null,null,null,null,"","","","","","","","","",null,null,null,"","","","","","","","",""]
[29,null,null,0,null,null,null,null,null,null,null,null,null,null,"","","","","","","","","",null,null,null,"","","","","","","","",""]
[30,null,null,0,null,null,null,null,null,null,null,null,null,null,"","","","","","","","","",null,null,null,"","","","","","","","",""]
[31,null,null,0,null,null,null,null,null,null,null,null,null,null,"","","","","","","","","",null,null,null,"","","","","","","","",""]
[32,null,null,0,null,null,null,null,null,null,null,null,null,null,"","","","","","","","","",null,null,null,"","","","","","","","",""]
[33,null,null,{"$f":"IF(E38>0,500,0)","v":0},null,null,null,null,null,null,null,null,null,null,{"$f":"IF(ISERROR(VLOOKUP(AK38,Mitgliederliste,8,FALSE)),\"\",IF(Stichtag_verwenden=0,VLOOKUP(AK38,Mitgliederliste,3,FALSE),VLOOKUP(AK38,Mitgliederliste,8,FALSE)))","v":""},{"$f":"IF(ISERROR(VLOOKUP(AL38,Mitgliederliste,8,FALSE)),\"\",IF(Stichtag_verwenden=0,VLOOKUP(AL38,Mitgliederliste,3,FALSE),VLOOKUP(AL38,Mitgliederliste,8,FALSE)))","v":""},{"$f":"IF(ISERROR(VLOOKUP(AM38,Mitgliederliste,8,FALSE)),\"\",IF(Stichtag_verwenden=0,VLOOKUP(AM38,Mitgliederliste,3,FALSE),VLOOKUP(AM38,Mitgliederliste,8,FALSE)))","v":""},{"$f":"IF(ISERROR(VLOOKUP(AN38,Mitgliederliste,8,FALSE)),\"\",IF(Stichtag_verwenden=0,VLOOKUP(AN38,Mitgliederliste,3,FALSE),VLOOKUP(AN38,Mitgliederliste,8,FALSE)))","v":""},{"$f":"IF(ISERROR(VLOOKUP(AO38,Mitgliederliste,8,FALSE)),\"\",IF(Stichtag_verwenden=0,VLOOKUP(AO38,Mitgliederliste,3,FALSE),VLOOKUP(AO38,Mitgliederliste,8,FALSE)))","v":""},{"$f":"IF(ISERROR(VLOOKUP(AP38,Mitgliederliste,8,FALSE)),\"\",IF(Stichtag_verwenden=0,VLOOKUP(AP38,Mitgliederliste,3,FALSE),VLOOKUP(AP38,Mitgliederliste,8,FALSE)))","v":""},{"$f":"IF(ISERROR(VLOOKUP(AQ38,Mitgliederliste,8,FALSE)),\"\",IF(Stichtag_verwenden=0,VLOOKUP(AQ38,Mitgliederliste,3,FALSE),VLOOKUP(AQ38,Mitgliederliste,8,FALSE)))","v":""},{"$f":"IF(ISERROR(VLOOKUP(AR38,Mitgliederliste,8,FALSE)),\"\",IF(Stichtag_verwenden=0,VLOOKUP(AR38,Mitgliederliste,3,FALSE),VLOOKUP(AR38,Mitgliederliste,8,FALSE)))","v":""},{"$f":"IF(ISERROR(VLOOKUP(AS38,Mitgliederliste,8,FALSE)),\"\",IF(Stichtag_verwenden=0,VLOOKUP(AS38,Mitgliederliste,3,FALSE),VLOOKUP(AS38,Mitgliederliste,8,FALSE)))","v":""},null,null,null,{"$f":"IF(ISERROR(VLOOKUP(AK38,Mitgliederliste,2,FALSE)),\"\",VLOOKUP(AK38,Mitgliederliste,2,FALSE))","v":""},{"$f":"IF(ISERROR(VLOOKUP(AL38,Mitgliederliste,2,FALSE)),\"\",VLOOKUP(AL38,Mitgliederliste,2,FALSE))","v":""},{"$f":"IF(ISERROR(VLOOKUP(AM38,Mitgliederliste,2,FALSE)),\"\",VLOOKUP(AM38,Mitgliederliste,2,FALSE))","v":""},{"$f":"IF(ISERROR(VLOOKUP(AN38,Mitgliederliste,2,FALSE)),\"\",VLOOKUP(AN38,Mitgliederliste,2,FALSE))","v":""},{"$f":"IF(ISERROR(VLOOKUP(AO38,Mitgliederliste,2,FALSE)),\"\",VLOOKUP(AO38,Mitgliederliste,2,FALSE))","v":""},{"$f":"IF(ISERROR(VLOOKUP(AP38,Mitgliederliste,2,FALSE)),\"\",VLOOKUP(AP38,Mitgliederliste,2,FALSE))","v":""},{"$f":"IF(ISERROR(VLOOKUP(AQ38,Mitgliederliste,2,FALSE)),\"\",VLOOKUP(AQ38,Mitgliederliste,2,FALSE))","v":""},{"$f":"IF(ISERROR(VLOOKUP(AR38,Mitgliederliste,2,FALSE)),\"\",VLOOKUP(AR38,Mitgliederliste,2,FALSE))","v":""},{"$f":"IF(ISERROR(VLOOKUP(AS38,Mitgliederliste,2,FALSE)),\"\",VLOOKUP(AS38,Mitgliederliste,2,FALSE))","v":""}]
[34,null,null,0,null,null,null,null,null,null,null,null,null,null,"","","","","","","","","",null,null,null,"","","","","","","","",""]
[35,null,null,0,null,null,null,null,null,null,null,null,null,null,"","","","","","","","","",null,null,null,"","","","","","","","",""]
[36,null,null,0,null,null,null,null,null,null,null,null,null,null,"","","","","","","","","",null,null,null,"","","","","","","","",""]
[37,null,null,0,null,null,null,null,null,null,null,null,null,null,"","","","","","","","","",null,null,null,"","","","","","","","",""]
[38,null,null,0,null,null,null,null,null,null,null,null,null,null,"","","","","","","","","",null,null,null,"","","","","","","","",""]
[39,null,null,0,null,null,null,null,null,null,null,null,null,null,"","","","","","","","","",null,null,null,"","","","","","","","",""]
[40,null,null,0,null,null,null,null,null,null,null,null,null,null,"","","","","","","","","",null,null,null,"","","","","","","","",""]
[41,null,null,0,null,null,null,null,null,null,null,null,null,null,"","","","","","","","","",null,null,null,"","","","","","","","",""]
[42,null,null,0,null,null,null,null,null,null,null,null,null,null,"","","","","","","","","",null,null,null,"","","","","","","","",""]
[43,null,null,0,null,null,null,null,null,null,null,null,null,null,"","","","","","","","","",null,null,null,"","","","","","","","",""]
[44,null,null,0,null,null,null,null,null,null,null,null,null,null,"","","","","","","","","",null,null,null,"","","","","","","","",""]
[45,null,null,0,null,null,null,null,null,null,null,null,null,null,"","","","","","","","","",null,null,null,"","","","","","","","",""]
[46,null,null,0,null,null,null,null,null,null,null,null,null,null,"","","","","","","","","",null,null,null,"","","","","","","","",""]
[47,null,null,0,null,null,null,null,null,null,null,null,null,null,"","","","","","","","","",null,null,null,"","","","","","","","",""]
[48,null,null,0,null,null,null,null,null,null,null,null,null,null,"","","","","","","","","",null,null,null,"","","","","","","","",""]
[49,null,null,0,null,null,null,null,null,null,null,null,null,null,"","","","","","","","","",null,null,null,"","","","","","","","",""]
[50,null,null,0,null,null,null,null,null,null,null,null,null,null,"","","","","","","","","",null,null,null,"","","","","","","","",""]
[51,null,null,0,null,null,null,null,null,null,null,null,null,null,"","","","","","","","","",null,null,null,"","","","","","","","",""]
[52,null,null,0,null,null,null,null,null,null,null,null,null,null,"","","","","","","","","",null,null,null,"","","","","","","","",""]
[53,null,null,0,null,null,null,null,null,null,null,null,null,null,"","","","","","","","","",null,null,null,"","","","","","","","",""]
[54,null,null,0,null,null,null,null,null,null,null,null,null,null,"","","","","","","","","",null,null,null,"","","","","","","","",""]
[55,null,null,0,null,null,null,null,null,null,null,null,null,null,"","","","","","","","","",null,null,null,"","","","","","","","",""]
[56,null,null,0,null,null,null,null,null,null,null,null,null,null,"","","","","","","","","",null,null,null,"","","","","","","","",""]
[57,null,null,0,null,null,null,null,null,null,null,null,null,null,"","","","","","","","","",null,null,null,"","","","","","","","",""]
[58,null,null,0,null,null,null,null,null,null,null,null,null,null,"","","","","","","","","",null,null,null,"","","","","","","","",""]
[59,null,null,0,null,null,null,null,null,null,null,null,null,null,"","","","","","","","","",null,null,null,"","","","","","","","",""]
[60,null,null,0,null,null,null,null,null,null,null,null,null,null,"","","","","","","","","",null,null,null,"","","","","","","","",""]
[61,null,null,0,null,null,null,null,null,null,null,null,null,null,"","","","","","","","","",null,null,null,"","","","","","","","",""]
[62,null,null,0,null,null,null,null,null,null,null,null,null,null,"","","","","","","","","",null,null,null,"","","","","","","","",""]
[63,null,null,0,null,null,null,null,null,null,null,null,null,null,"","","","","","","","","",null,null,null,"","","","","","","","",""]
[64,null,null,0,null,null,null,null,null,null,null,null,null,null,"","","","","","","","","",null,null,null,"","","","","","","","",""]
[65,null,null,{"$f":"IF(E70>0,500,0)","v":0},null,null,null,null,null,null,null,null,null,null,{"$f":"IF(ISERROR(VLOOKUP(AK70,Mitgliederliste,8,FALSE)),\"\",IF(Stichtag_verwenden=0,VLOOKUP(AK70,Mitgliederliste,3,FALSE),VLOOKUP(AK70,Mitgliederliste,8,FALSE)))","v":""},{"$f":"IF(ISERROR(VLOOKUP(AL70,Mitgliederliste,8,FALSE)),\"\",IF(Stichtag_verwenden=0,VLOOKUP(AL70,Mitgliederliste,3,FALSE),VLOOKUP(AL70,Mitgliederliste,8,FALSE)))","v":""},{"$f":"IF(ISERROR(VLOOKUP(AM70,Mitgliederliste,8,FALSE)),\"\",IF(Stichtag_verwenden=0,VLOOKUP(AM70,Mitgliederliste,3,FALSE),VLOOKUP(AM70,Mitgliederliste,8,FALSE)))","v":""},{"$f":"IF(ISERROR(VLOOKUP(AN70,Mitgliederliste,8,FALSE)),\"\",IF(Stichtag_verwenden=0,VLOOKUP(AN70,Mitgliederliste,3,FALSE),VLOOKUP(AN70,Mitgliederliste,8,FALSE)))","v":""},{"$f":"IF(ISERROR(VLOOKUP(AO70,Mitgliederliste,8,FALSE)),\"\",IF(Stichtag_verwenden=0,VLOOKUP(AO70,Mitgliederliste,3,FALSE),VLOOKUP(AO70,Mitgliederliste,8,FALSE)))","v":""},{"$f":"IF(ISERROR(VLOOKUP(AP70,Mitgliederliste,8,FALSE)),\"\",IF(Stichtag_verwenden=0,VLOOKUP(AP70,Mitgliederliste,3,FALSE),VLOOKUP(AP70,Mitgliederliste,8,FALSE)))","v":""},{"$f":"IF(ISERROR(VLOOKUP(AQ70,Mitgliederliste,8,FALSE)),\"\",IF(Stichtag_verwenden=0,VLOOKUP(AQ70,Mitgliederliste,3,FALSE),VLOOKUP(AQ70,Mitgliederliste,8,FALSE)))","v":""},{"$f":"IF(ISERROR(VLOOKUP(AR70,Mitgliederliste,8,FALSE)),\"\",IF(Stichtag_verwenden=0,VLOOKUP(AR70,Mitgliederliste,3,FALSE),VLOOKUP(AR70,Mitgliederliste,8,FALSE)))","v":""},{"$f":"IF(ISERROR(VLOOKUP(AS70,Mitgliederliste,8,FALSE)),\"\",IF(Stichtag_verwenden=0,VLOOKUP(AS70,Mitgliederliste,3,FALSE),VLOOKUP(AS70,Mitgliederliste,8,FALSE)))","v":""},null,null,null,{"$f":"IF(ISERROR(VLOOKUP(AK70,Mitgliederliste,2,FALSE)),\"\",VLOOKUP(AK70,Mitgliederliste,2,FALSE))","v":""},{"$f":"IF(ISERROR(VLOOKUP(AL70,Mitgliederliste,2,FALSE)),\"\",VLOOKUP(AL70,Mitgliederliste,2,FALSE))","v":""},{"$f":"IF(ISERROR(VLOOKUP(AM70,Mitgliederliste,2,FALSE)),\"\",VLOOKUP(AM70,Mitgliederliste,2,FALSE))","v":""},{"$f":"IF(ISERROR(VLOOKUP(AN70,Mitgliederliste,2,FALSE)),\"\",VLOOKUP(AN70,Mitgliederliste,2,FALSE))","v":""},{"$f":"IF(ISERROR(VLOOKUP(AO70,Mitgliederliste,2,FALSE)),\"\",VLOOKUP(AO70,Mitgliederliste,2,FALSE))","v":""},{"$f":"IF(ISERROR(VLOOKUP(AP70,Mitgliederliste,2,FALSE)),\"\",VLOOKUP(AP70,Mitgliederliste,2,FALSE))","v":""},{"$f":"IF(ISERROR(VLOOKUP(AQ70,Mitgliederliste,2,FALSE)),\"\",VLOOKUP(AQ70,Mitgliederliste,2,FALSE))","v":""},{"$f":"IF(ISERROR(VLOOKUP(AR70,Mitgliederliste,2,FALSE)),\"\",VLOOKUP(AR70,Mitgliederliste,2,FALSE))","v":""},{"$f":"IF(ISERROR(VLOOKUP(AS70,Mitgliederliste,2,FALSE)),\"\",VLOOKUP(AS70,Mitgliederliste,2,FALSE))","v":""}]
[66,null,null,0,null,null,null,null,null,null,null,null,null,null,"","","","","","","","","",null,null,null,"","","","","","","","",""]
[67,null,null,0,null,null,null,null,null,null,null,null,null,null,"","","","","","","","","",null,null,null,"","","","","","","","",""]
[68,null,null,0,null,null,null,null,null,null,null,null,null,null,"","","","","","","","","",null,null,null,"","","","","","","","",""]
[69,null,null,0,null,null,null,null,null,null,null,null,null,null,"","","","","","","","","",null,null,null,"","","","","","","","",""]
[70,null,null,0,null,null,null,null,null,null,null,null,null,null,"","","","","","","","","",null,null,null,"","","","","","","","",""]

{"sheet":"G2_Si_A","index":11,"n_rows":75,"n_cols":47,"rows_kept":75,"cut":false,"hidden":false,"merged":[]}
[{"$f":"Bewerbsart","v":"Abschnittsfeuerwehrleistungsbewerb"}]
[{"$f":"TEXT(Datum,\"T.MMMM JJJJ\")&\"  -  \"& Bewerbsort","v":"0.Jänner 1900  -  "}]
[{"$f":"G2_Si_A","v":"Gäste 2 Silber A"}]
[null,null,null,null,"Löschangriff",null,"Staffellauf"]
["Platz","Nummer","Gruppe","Stammpunkte","Zeit","Fehler","Zeit","Fehler","Alters-\nPunkte","Gesamt- punkte","Löschangr","Staffell.","Jahre",null,"Geb1","Geb2","Geb3","Geb4","Geb5","Geb6","Geb7","Geb8","Geb9",null,null,"Urk. gedr.","Name1","Name2","Name3","Name4","Name5","Name6","Name7","Name8","Name9","FW-Nr","Stb1","Stb2","Stb3","Stb4","Stb5","Stb6","Stb7","Stb8","Stb9","Pokale","Anzahl Preise (Pokale):"]
[1,null,null,{"$f":"IF(E6>0,500,0)","v":0},null,null,null,null,null,null,null,null,null,null,{"$f":"IF(ISERROR(VLOOKUP(AK6,Mitgliederliste,8,FALSE)),\"\",IF(Stichtag_verwenden=0,VLOOKUP(AK6,Mitgliederliste,3,FALSE),VLOOKUP(AK6,Mitgliederliste,8,FALSE)))","v":""},{"$f":"IF(ISERROR(VLOOKUP(AL6,Mitgliederliste,8,FALSE)),\"\",IF(Stichtag_verwenden=0,VLOOKUP(AL6,Mitgliederliste,3,FALSE),VLOOKUP(AL6,Mitgliederliste,8,FALSE)))","v":""},{"$f":"IF(ISERROR(VLOOKUP(AM6,Mitgliederliste,8,FALSE)),\"\",IF(Stichtag_verwenden=0,VLOOKUP(AM6,Mitgliederliste,3,FALSE),VLOOKUP(AM6,Mitgliederliste,8,FALSE)))","v":""},{"$f":"IF(ISERROR(VLOOKUP(AN6,Mitgliederliste,8,FALSE)),\"\",IF(Stichtag_verwenden=0,VLOOKUP(AN6,Mitgliederliste,3,FALSE),VLOOKUP(AN6,Mitgliederliste,8,FALSE)))","v":""},{"$f":"IF(ISERROR(VLOOKUP(AO6,Mitgliederliste,8,FALSE)),\"\",IF(Stichtag_verwenden=0,VLOOKUP(AO6,Mitgliederliste,3,FALSE),VLOOKUP(AO6,Mitgliederliste,8,FALSE)))","v":""},{"$f":"IF(ISERROR(VLOOKUP(AP6,Mitgliederliste,8,FALSE)),\"\",IF(Stichtag_verwenden=0,VLOOKUP(AP6,Mitgliederliste,3,FALSE),VLOOKUP(AP6,Mitgliederliste,8,FALSE)))","v":""},{"$f":"IF(ISERROR(VLOOKUP(AQ6,Mitgliederliste,8,FALSE)),\"\",IF(Stichtag_verwenden=0,VLOOKUP(AQ6,Mitgliederliste,3,FALSE),VLOOKUP(AQ6,Mitgliederliste,8,FALSE)))","v":""},{"$f":"IF(ISERROR(VLOOKUP(AR6,Mitgliederliste,8,FALSE)),\"\",IF(Stichtag_verwenden=0,VLOOKUP(AR6,Mitgliederliste,3,FALSE),VLOOKUP(AR6,Mitgliederliste,8,FALSE)))","v":""},{"$f":"IF(ISERROR(VLOOKUP(AS6,Mitgliederliste,8,FALSE)),\"\",IF(Stichtag_verwenden=0,VLOOKUP(AS6,Mitgliederliste,3,FALSE),VLOOKUP(AS6,Mitgliederliste,8,FALSE)))","v":""},null,null,null,{"$f":"IF(ISERROR(VLOOKUP(AK6,Mitgliederliste,2,FALSE)),\"\",VLOOKUP(AK6,Mitgliederliste,2,FALSE))","v":""},{"$f":"IF(ISERROR(VLOOKUP(AL6,Mitgliederliste,2,FALSE)),\"\",VLOOKUP(AL6,Mitgliederliste,2,FALSE))","v":""},{"$f":"IF(ISERROR(VLOOKUP(AM6,Mitgliederliste,2,FALSE)),\"\",VLOOKUP(AM6,Mitgliederliste,2,FALSE))","v":""},{"$f":"IF(ISERROR(VLOOKUP(AN6,Mitgliederliste,2,FALSE)),\"\",VLOOKUP(AN6,Mitgliederliste,2,FALSE))","v":""},{"$f":"IF(ISERROR(VLOOKUP(AO6,Mitgliederliste,2,FALSE)),\"\",VLOOKUP(AO6,Mitgliederliste,2,FALSE))","v":""},{"$f":"IF(ISERROR(VLOOKUP(AP6,Mitgliederliste,2,FALSE)),\"\",VLOOKUP(AP6,Mitgliederliste,2,FALSE))","v":""},{"$f":"IF(ISERROR(VLOOKUP(AQ6,Mitgliederliste,2,FALSE)),\"\",VLOOKUP(AQ6,Mitgliederliste,2,FALSE))","v":""},{"$f":"IF(ISERROR(VLOOKUP(AR6,Mitgliederliste,2,FALSE)),\"\",VLOOKUP(AR6,Mitgliederliste,2,FALSE))","v":""},{"$f":"IF(ISERROR(VLOOKUP(AS6,Mitgliederliste,2,FALSE)),\"\",VLOOKUP(AS6,Mitgliederliste,2,FALSE))","v":""},null,null,null,null,null,null,null,null,null,null,null,{"$f":"IF(COUNTA(C6:C75)>0,1,\"kein Preis\")","v":"kein Preis"}]
[2,null,null,0,null,null,null,null,null,null,null,null,null,null,"","","","","","","","","",null,null,null,"","","","","","","","","",null,null,null,null,null,null,null,null,null,null,null,{"$f":"IF(COUNTA(C6:C75)>1,2,\"\")","v":""}]
[3,null,null,0,null,null,null,null,null,null,null,null,null,null,"","","","","","","","","",null,null,null,"","","","","","","","","",null,null,null,null,null,null,null,null,null,null,null,{"$f":"IF(COUNTA(C6:C75)>2,3,\"\")","v":""}]
[4,null,null,0,null,null,null,null,null,null,null,null,null,null,"","","","","","","","","",null,null,null,"","","","","","","","","",null,null,null,null,null,null,null,null,null,null,null,{"$f":"IF(COUNTA(C6:C75)>5,4,\"\")","v":""}]
[5,null,null,0,null,null,null,null,null,null,null,null,null,null,"","","","","","","","","",null,null,null,"","","","","","","","","",null,null,null,null,null,null,null,null,null,null,null,{"$f":"IF(COUNTA(C6:C75)>10,5,\"\")","v":""}]
[6,null,null,0,null,null,null,null,null,null,null,null,null,null,"","","","","","","","","",null,null,null,"","","","","","","","","",null,null,null,null,null,null,null,null,null,null,null,{"$f":"IF(COUNTA(C6:C75)>15,6,\"\")","v":""}]
[7,null,null,0,null,null,null,null,null,null,null,null,null,null,"","","","","","","","","",null,null,null,"","","","","","","","","",null,null,null,null,null,null,null,null,null,null,null,{"$f":"IF(COUNTA(C6:C75)>20,7,\"\")","v":""}]
[8,null,null,0,null,null,null,null,null,null,null,null,null,null,"","","","","","","","","",null,null,null,"","","","","","","","","",null,null,null,null,null,null,null,null,null,null,null,{"$f":"IF(COUNTA(C6:C75)>30,8,\"\")","v":""}]
[9,null,null,0,null,null,null,null,null,null,null,null,null,null,"","","","","","","","","",null,null,null,"","","","","","","","","",null,null,null,null,null,null,null,null,null,null,null,{"$f":"IF(COUNTA(C6:C75)>40,9,\"\")","v":""}]
[10,null,null,0,null,null,null,null,null,null,null,null,null,null,"","","","","","","","","",null,null,null,"","","","","","","","","",null,null,null,null,null,null,null,null,null,null,null,{"$f":"IF(COUNTA(C6:C75)>50,10,\"\")","v":""}]
[11,null,null,0,null,null,null,null,null,null,null,null,null,null,"","","","","","","","","",null,null,null,"","","","","","","","","",null,null,null,null,null,null,null,null,null,null,null,{"$f":"IF(COUNTA(C6:C75)>60,11,\"\")","v":""}]
[12,null,null,0,null,null,null,null,null,null,null,null,null,null,"","","","","","","","","",null,null,null,"","","","","","","","",""]
[13,null,null,0,null,null,null,null,null,null,null,null,null,null,"","","","","","","","","",null,null,null,"","","","","","","","",""]
[14,null,null,0,null,null,null,null,null,null,null,null,null,null,"","","","","","","","","",null,null,null,"","","","","","","","",""]
[15,null,null,0,null,null,null,null,null,null,null,null,null,null,"","","","","","","","","",null,null,null,"","","","","","","","",""]
[16,null,null,0,null,null,null,null,null,null,null,null,null,null,"","","","","","","","","",null,null,null,"","","","","","","","",""]
[17,null,null,0,null,null,null,null,null,null,null,null,null,null,"","","","","","","","","",null,null,null,"","","","","","","","",""]
[18,null,null,0,null,null,null,null,null,null,null,null,null,null,"","","","","","","","","",null,null,null,"","","","","","","","",""]
[19,null,null,0,null,null,null,null,null,null,null,null,null,null,"","","","","","","","","",null,null,null,"","","","","","","","",""]
[20,null,null,0,null,null,null,null,null,null,null,null,null,null,"","","","","","","","","",null,null,null,"","","","","","","","",""]
[21,null,null,0,null,null,null,null,null,null,null,null,null,null,"","","","","","","","","",null,null,null,"","","","","","","","",""]
[22,null,null,0,null,null,null,null,null,null,null,null,null,null,"","","","","","","","","",null,null,null,"","","","","","","","",""]
[23,null,null,0,null,null,null,null,null,null,null,null,null,null,"","","","","","","","","",null,null,null,"","","","","","","","",""]
[24,null,null,0,null,null,null,null,null,null,null,null,null,null,"","","","","","","","","",null,null,null,"","","","","","","","",""]
[25,null,null,0,null,null,null,null,null,null,null,null,null,null,"","","","","","","","","",null,null,null,"","","","","","","","",""]
[26,null,null,0,null,null,null,null,null,null,null,null,null,null,"","","","","","","","","",null,null,null,"","","","","","","","",""]
[27,null,null,0,null,null,null,null,null,null,null,null,null,null,"","","","","","","","","",null,null,null,"","","","","","","","",""]
[28,null,null,0,null,null,null,null,null,null,null,null,null,null,"","","","","","","","","",null,null,null,"","","","","","","","",""]
[29,null,null,0,null,null,null,null,null,null,null,null,null,null,"","","","","","","","","",null,null,null,"","","","","","","","",""]
[30,null,null,0,null,null,null,null,null,null,null,null,null,null,"","","","","","","","","",null,null,null,"","","","","","","","",""]
[31,null,null,0,null,null,null,null,null,null,null,null,null,null,"","","","","","","","","",null,null,null,"","","","","","","","",""]
[32,null,null,0,null,null,null,null,null,null,null,null,null,null,"","","","","","","","","",null,null,null,"","","","","","","","",""]
[33,null,null,{"$f":"IF(E38>0,500,0)","v":0},null,null,null,null,null,null,null,null,null,null,{"$f":"IF(ISERROR(VLOOKUP(AK38,Mitgliederliste,8,FALSE)),\"\",IF(Stichtag_verwenden=0,VLOOKUP(AK38,Mitgliederliste,3,FALSE),VLOOKUP(AK38,Mitgliederliste,8,FALSE)))","v":""},{"$f":"IF(ISERROR(VLOOKUP(AL38,Mitgliederliste,8,FALSE)),\"\",IF(Stichtag_verwenden=0,VLOOKUP(AL38,Mitgliederliste,3,FALSE),VLOOKUP(AL38,Mitgliederliste,8,FALSE)))","v":""},{"$f":"IF(ISERROR(VLOOKUP(AM38,Mitgliederliste,8,FALSE)),\"\",IF(Stichtag_verwenden=0,VLOOKUP(AM38,Mitgliederliste,3,FALSE),VLOOKUP(AM38,Mitgliederliste,8,FALSE)))","v":""},{"$f":"IF(ISERROR(VLOOKUP(AN38,Mitgliederliste,8,FALSE)),\"\",IF(Stichtag_verwenden=0,VLOOKUP(AN38,Mitgliederliste,3,FALSE),VLOOKUP(AN38,Mitgliederliste,8,FALSE)))","v":""},{"$f":"IF(ISERROR(VLOOKUP(AO38,Mitgliederliste,8,FALSE)),\"\",IF(Stichtag_verwenden=0,VLOOKUP(AO38,Mitgliederliste,3,FALSE),VLOOKUP(AO38,Mitgliederliste,8,FALSE)))","v":""},{"$f":"IF(ISERROR(VLOOKUP(AP38,Mitgliederliste,8,FALSE)),\"\",IF(Stichtag_verwenden=0,VLOOKUP(AP38,Mitgliederliste,3,FALSE),VLOOKUP(AP38,Mitgliederliste,8,FALSE)))","v":""},{"$f":"IF(ISERROR(VLOOKUP(AQ38,Mitgliederliste,8,FALSE)),\"\",IF(Stichtag_verwenden=0,VLOOKUP(AQ38,Mitgliederliste,3,FALSE),VLOOKUP(AQ38,Mitgliederliste,8,FALSE)))","v":""},{"$f":"IF(ISERROR(VLOOKUP(AR38,Mitgliederliste,8,FALSE)),\"\",IF(Stichtag_verwenden=0,VLOOKUP(AR38,Mitgliederliste,3,FALSE),VLOOKUP(AR38,Mitgliederliste,8,FALSE)))","v":""},{"$f":"IF(ISERROR(VLOOKUP(AS38,Mitgliederliste,8,FALSE)),\"\",IF(Stichtag_verwenden=0,VLOOKUP(AS38,Mitgliederliste,3,FALSE),VLOOKUP(AS38,Mitgliederliste,8,FALSE)))","v":""},null,null,null,{"$f":"IF(ISERROR(VLOOKUP(AK38,Mitgliederliste,2,FALSE)),\"\",VLOOKUP(AK38,Mitgliederliste,2,FALSE))","v":""},{"$f":"IF(ISERROR(VLOOKUP(AL38,Mitgliederliste,2,FALSE)),\"\",VLOOKUP(AL38,Mitgliederliste,2,FALSE))","v":""},{"$f":"IF(ISERROR(VLOOKUP(AM38,Mitgliederliste,2,FALSE)),\"\",VLOOKUP(AM38,Mitgliederliste,2,FALSE))","v":""},{"$f":"IF(ISERROR(VLOOKUP(AN38,Mitgliederliste,2,FALSE)),\"\",VLOOKUP(AN38,Mitgliederliste,2,FALSE))","v":""},{"$f":"IF(ISERROR(VLOOKUP(AO38,Mitgliederliste,2,FALSE)),\"\",VLOOKUP(AO38,Mitgliederliste,2,FALSE))","v":""},{"$f":"IF(ISERROR(VLOOKUP(AP38,Mitgliederliste,2,FALSE)),\"\",VLOOKUP(AP38,Mitgliederliste,2,FALSE))","v":""},{"$f":"IF(ISERROR(VLOOKUP(AQ38,Mitgliederliste,2,FALSE)),\"\",VLOOKUP(AQ38,Mitgliederliste,2,FALSE))","v":""},{"$f":"IF(ISERROR(VLOOKUP(AR38,Mitgliederliste,2,FALSE)),\"\",VLOOKUP(AR38,Mitgliederliste,2,FALSE))","v":""},{"$f":"IF(ISERROR(VLOOKUP(AS38,Mitgliederliste,2,FALSE)),\"\",VLOOKUP(AS38,Mitgliederliste,2,FALSE))","v":""}]
[34,null,null,0,null,null,null,null,null,null,null,null,null,null,"","","","","","","","","",null,null,null,"","","","","","","","",""]
[35,null,null,0,null,null,null,null,null,null,null,null,null,null,"","","","","","","","","",null,null,null,"","","","","","","","",""]
[36,null,null,0,null,null,null,null,null,null,null,null,null,null,"","","","","","","","","",null,null,null,"","","","","","","","",""]
[37,null,null,0,null,null,null,null,null,null,null,null,null,null,"","","","","","","","","",null,null,null,"","","","","","","","",""]
[38,null,null,0,null,null,null,null,null,null,null,null,null,null,"","","","","","","","","",null,null,null,"","","","","","","","",""]
[39,null,null,0,null,null,null,null,null,null,null,null,null,null,"","","","","","","","","",null,null,null,"","","","","","","","",""]
[40,null,null,0,null,null,null,null,null,null,null,null,null,null,"","","","","","","","","",null,null,null,"","","","","","","","",""]
[41,null,null,0,null,null,null,null,null,null,null,null,null,null,"","","","","","","","","",null,null,null,"","","","","","","","",""]
[42,null,null,0,null,null,null,null,null,null,null,null,null,null,"","","","","","","","","",null,null,null,"","","","","","","","",""]
[43,null,null,0,null,null,null,null,null,null,null,null,null,null,"","","","","","","","","",null,null,null,"","","","","","","","",""]
[44,null,null,0,null,null,null,null,null,null,null,null,null,null,"","","","","","","","","",null,null,null,"","","","","","","","",""]
[45,null,null,0,null,null,null,null,null,null,null,null,null,null,"","","","","","","","","",null,null,null,"","","","","","","","",""]
[46,null,null,0,null,null,null,null,null,null,null,null,null,null,"","","","","","","","","",null,null,null,"","","","","","","","",""]
[47,null,null,0,null,null,null,null,null,null,null,null,null,null,"","","","","","","","","",null,null,null,"","","","","","","","",""]
[48,null,null,0,null,null,null,null,null,null,null,null,null,null,"","","","","","","","","",null,null,null,"","","","","","","","",""]
[49,null,null,0,null,null,null,null,null,null,null,null,null,null,"","","","","","","","","",null,null,null,"","","","","","","","",""]
[50,null,null,0,null,null,null,null,null,null,null,null,null,null,"","","","","","","","","",null,null,null,"","","","","","","","",""]
[51,null,null,0,null,null,null,null,null,null,null,null,null,null,"","","","","","","","","",null,null,null,"","","","","","","","",""]
[52,null,null,0,null,null,null,null,null,null,null,null,null,null,"","","","","","","","","",null,null,null,"","","","","","","","",""]
[53,null,null,0,null,null,null,null,null,null,null,null,null,null,"","","","","","","","","",null,null,null,"","","","","","","","",""]
[54,null,null,0,null,null,null,null,null,null,null,null,null,null,"","","","","","","","","",null,null,null,"","","","","","","","",""]
[55,null,null,0,null,null,null,null,null,null,null,null,null,null,"","","","","","","","","",null,null,null,"","","","","","","","",""]
[56,null,null,0,null,null,null,null,null,null,null,null,null,null,"","","","","","","","","",null,null,null,"","","","","","","","",""]
[57,null,null,0,null,null,null,null,null,null,null,null,null,null,"","","","","","","","","",null,null,null,"","","","","","","","",""]
[58,null,null,0,null,null,null,null,null,null,null,null,null,null,"","","","","","","","","",null,null,null,"","","","","","","","",""]
[59,null,null,0,null,null,null,null,null,null,null,null,null,null,"","","","","","","","","",null,null,null,"","","","","","","","",""]
[60,null,null,0,null,null,null,null,null,null,null,null,null,null,"","","","","","","","","",null,null,null,"","","","","","","","",""]
[61,null,null,0,null,null,null,null,null,null,null,null,null,null,"","","","","","","","","",null,null,null,"","","","","","","","",""]
[62,null,null,0,null,null,null,null,null,null,null,null,null,null,"","","","","","","","","",null,null,null,"","","","","","","","",""]
[63,null,null,0,null,null,null,null,null,null,null,null,null,null,"","","","","","","","","",null,null,null,"","","","","","","","",""]
[64,null,null,0,null,null,null,null,null,null,null,null,null,null,"","","","","","","","","",null,null,null,"","","","","","","","",""]
[65,null,null,{"$f":"IF(E70>0,500,0)","v":0},null,null,null,null,null,null,null,null,null,null,{"$f":"IF(ISERROR(VLOOKUP(AK70,Mitgliederliste,8,FALSE)),\"\",IF(Stichtag_verwenden=0,VLOOKUP(AK70,Mitgliederliste,3,FALSE),VLOOKUP(AK70,Mitgliederliste,8,FALSE)))","v":""},{"$f":"IF(ISERROR(VLOOKUP(AL70,Mitgliederliste,8,FALSE)),\"\",IF(Stichtag_verwenden=0,VLOOKUP(AL70,Mitgliederliste,3,FALSE),VLOOKUP(AL70,Mitgliederliste,8,FALSE)))","v":""},{"$f":"IF(ISERROR(VLOOKUP(AM70,Mitgliederliste,8,FALSE)),\"\",IF(Stichtag_verwenden=0,VLOOKUP(AM70,Mitgliederliste,3,FALSE),VLOOKUP(AM70,Mitgliederliste,8,FALSE)))","v":""},{"$f":"IF(ISERROR(VLOOKUP(AN70,Mitgliederliste,8,FALSE)),\"\",IF(Stichtag_verwenden=0,VLOOKUP(AN70,Mitgliederliste,3,FALSE),VLOOKUP(AN70,Mitgliederliste,8,FALSE)))","v":""},{"$f":"IF(ISERROR(VLOOKUP(AO70,Mitgliederliste,8,FALSE)),\"\",IF(Stichtag_verwenden=0,VLOOKUP(AO70,Mitgliederliste,3,FALSE),VLOOKUP(AO70,Mitgliederliste,8,FALSE)))","v":""},{"$f":"IF(ISERROR(VLOOKUP(AP70,Mitgliederliste,8,FALSE)),\"\",IF(Stichtag_verwenden=0,VLOOKUP(AP70,Mitgliederliste,3,FALSE),VLOOKUP(AP70,Mitgliederliste,8,FALSE)))","v":""},{"$f":"IF(ISERROR(VLOOKUP(AQ70,Mitgliederliste,8,FALSE)),\"\",IF(Stichtag_verwenden=0,VLOOKUP(AQ70,Mitgliederliste,3,FALSE),VLOOKUP(AQ70,Mitgliederliste,8,FALSE)))","v":""},{"$f":"IF(ISERROR(VLOOKUP(AR70,Mitgliederliste,8,FALSE)),\"\",IF(Stichtag_verwenden=0,VLOOKUP(AR70,Mitgliederliste,3,FALSE),VLOOKUP(AR70,Mitgliederliste,8,FALSE)))","v":""},{"$f":"IF(ISERROR(VLOOKUP(AS70,Mitgliederliste,8,FALSE)),\"\",IF(Stichtag_verwenden=0,VLOOKUP(AS70,Mitgliederliste,3,FALSE),VLOOKUP(AS70,Mitgliederliste,8,FALSE)))","v":""},null,null,null,{"$f":"IF(ISERROR(VLOOKUP(AK70,Mitgliederliste,2,FALSE)),\"\",VLOOKUP(AK70,Mitgliederliste,2,FALSE))","v":""},{"$f":"IF(ISERROR(VLOOKUP(AL70,Mitgliederliste,2,FALSE)),\"\",VLOOKUP(AL70,Mitgliederliste,2,FALSE))","v":""},{"$f":"IF(ISERROR(VLOOKUP(AM70,Mitgliederliste,2,FALSE)),\"\",VLOOKUP(AM70,Mitgliederliste,2,FALSE))","v":""},{"$f":"IF(ISERROR(VLOOKUP(AN70,Mitgliederliste,2,FALSE)),\"\",VLOOKUP(AN70,Mitgliederliste,2,FALSE))","v":""},{"$f":"IF(ISERROR(VLOOKUP(AO70,Mitgliederliste,2,FALSE)),\"\",VLOOKUP(AO70,Mitgliederliste,2,FALSE))","v":""},{"$f":"IF(ISERROR(VLOOKUP(AP70,Mitgliederliste,2,FALSE)),\"\",VLOOKUP(AP70,Mitgliederliste,2,FALSE))","v":""},{"$f":"IF(ISERROR(VLOOKUP(AQ70,Mitgliederliste,2,FALSE)),\"\",VLOOKUP(AQ70,Mitgliederliste,2,FALSE))","v":""},{"$f":"IF(ISERROR(VLOOKUP(AR70,Mitgliederliste,2,FALSE)),\"\",VLOOKUP(AR70,Mitgliederliste,2,FALSE))","v":""},{"$f":"IF(ISERROR(VLOOKUP(AS70,Mitgliederliste,2,FALSE)),\"\",VLOOKUP(AS70,Mitgliederliste,2,FALSE))","v":""}]
[66,null,null,0,null,null,null,null,null,null,null,null,null,null,"","","","","","","","","",null,null,null,"","","","","","","","",""]
[67,null,null,0,null,null,null,null,null,null,null,null,null,null,"","","","","","","","","",null,null,null,"","","","","","","","",""]
[68,null,null,0,null,null,null,null,null,null,null,null,null,null,"","","","","","","","","",null,null,null,"","","","","","","","",""]
[69,null,null,0,null,null,null,null,null,null,null,null,null,null,"","","","","","","","","",null,null,null,"","","","","","","","",""]
[70,null,null,0,null,null,null,null,null,null,null,null,null,null,"","","","","","","","","",null,null,null,"","","","","","","","",""]

{"sheet":"G2_Br_B","index":12,"n_rows":75,"n_cols":47,"rows_kept":75,"cut":false,"hidden":false,"merged":[]}
[{"$f":"Bewerbsart","v":"Abschnittsfeuerwehrleistungsbewerb"}]
[{"$f":"TEXT(Datum,\"T.MMMM JJJJ\")&\"  -  \"& Bewerbsort","v":"0.Jänner 1900  -  "}]
[{"$f":"G2_Br_B","v":"Gäste 2 Bronze B"}]
[null,null,null,null,"Löschangriff",null,"Staffellauf"]
["Platz","Nummer","Gruppe","Stammpunkte","Zeit","Fehler","Zeit","Fehler","Alters-\nPunkte","Gesamt- punkte","Löschangr","Staffell.","Jahre",null,"Geb1","Geb2","Geb3","Geb4","Geb5","Geb6","Geb7","Geb8","Geb9",null,null,"Urk. gedr.","Name1","Name2","Name3","Name4","Name5","Name6","Name7","Name8","Name9","FW-Nr","Stb1","Stb2","Stb3","Stb4","Stb5","Stb6","Stb7","Stb8","Stb9","Pokale","Anzahl Preise (Pokale):"]
[1,null,null,{"$f":"IF(E6>0,500,0)","v":0},null,null,null,null,null,null,null,null,null,null,{"$f":"IF(ISERROR(VLOOKUP(AK6,Mitgliederliste,8,FALSE)),\"\",IF(Stichtag_verwenden=0,VLOOKUP(AK6,Mitgliederliste,3,FALSE),VLOOKUP(AK6,Mitgliederliste,8,FALSE)))","v":""},{"$f":"IF(ISERROR(VLOOKUP(AL6,Mitgliederliste,8,FALSE)),\"\",IF(Stichtag_verwenden=0,VLOOKUP(AL6,Mitgliederliste,3,FALSE),VLOOKUP(AL6,Mitgliederliste,8,FALSE)))","v":""},{"$f":"IF(ISERROR(VLOOKUP(AM6,Mitgliederliste,8,FALSE)),\"\",IF(Stichtag_verwenden=0,VLOOKUP(AM6,Mitgliederliste,3,FALSE),VLOOKUP(AM6,Mitgliederliste,8,FALSE)))","v":""},{"$f":"IF(ISERROR(VLOOKUP(AN6,Mitgliederliste,8,FALSE)),\"\",IF(Stichtag_verwenden=0,VLOOKUP(AN6,Mitgliederliste,3,FALSE),VLOOKUP(AN6,Mitgliederliste,8,FALSE)))","v":""},{"$f":"IF(ISERROR(VLOOKUP(AO6,Mitgliederliste,8,FALSE)),\"\",IF(Stichtag_verwenden=0,VLOOKUP(AO6,Mitgliederliste,3,FALSE),VLOOKUP(AO6,Mitgliederliste,8,FALSE)))","v":""},{"$f":"IF(ISERROR(VLOOKUP(AP6,Mitgliederliste,8,FALSE)),\"\",IF(Stichtag_verwenden=0,VLOOKUP(AP6,Mitgliederliste,3,FALSE),VLOOKUP(AP6,Mitgliederliste,8,FALSE)))","v":""},{"$f":"IF(ISERROR(VLOOKUP(AQ6,Mitgliederliste,8,FALSE)),\"\",IF(Stichtag_verwenden=0,VLOOKUP(AQ6,Mitgliederliste,3,FALSE),VLOOKUP(AQ6,Mitgliederliste,8,FALSE)))","v":""},{"$f":"IF(ISERROR(VLOOKUP(AR6,Mitgliederliste,8,FALSE)),\"\",IF(Stichtag_verwenden=0,VLOOKUP(AR6,Mitgliederliste,3,FALSE),VLOOKUP(AR6,Mitgliederliste,8,FALSE)))","v":""},{"$f":"IF(ISERROR(VLOOKUP(AS6,Mitgliederliste,8,FALSE)),\"\",IF(Stichtag_verwenden=0,VLOOKUP(AS6,Mitgliederliste,3,FALSE),VLOOKUP(AS6,Mitgliederliste,8,FALSE)))","v":""},null,null,null,{"$f":"IF(ISERROR(VLOOKUP(AK6,Mitgliederliste,2,FALSE)),\"\",VLOOKUP(AK6,Mitgliederliste,2,FALSE))","v":""},{"$f":"IF(ISERROR(VLOOKUP(AL6,Mitgliederliste,2,FALSE)),\"\",VLOOKUP(AL6,Mitgliederliste,2,FALSE))","v":""},{"$f":"IF(ISERROR(VLOOKUP(AM6,Mitgliederliste,2,FALSE)),\"\",VLOOKUP(AM6,Mitgliederliste,2,FALSE))","v":""},{"$f":"IF(ISERROR(VLOOKUP(AN6,Mitgliederliste,2,FALSE)),\"\",VLOOKUP(AN6,Mitgliederliste,2,FALSE))","v":""},{"$f":"IF(ISERROR(VLOOKUP(AO6,Mitgliederliste,2,FALSE)),\"\",VLOOKUP(AO6,Mitgliederliste,2,FALSE))","v":""},{"$f":"IF(ISERROR(VLOOKUP(AP6,Mitgliederliste,2,FALSE)),\"\",VLOOKUP(AP6,Mitgliederliste,2,FALSE))","v":""},{"$f":"IF(ISERROR(VLOOKUP(AQ6,Mitgliederliste,2,FALSE)),\"\",VLOOKUP(AQ6,Mitgliederliste,2,FALSE))","v":""},{"$f":"IF(ISERROR(VLOOKUP(AR6,Mitgliederliste,2,FALSE)),\"\",VLOOKUP(AR6,Mitgliederliste,2,FALSE))","v":""},{"$f":"IF(ISERROR(VLOOKUP(AS6,Mitgliederliste,2,FALSE)),\"\",VLOOKUP(AS6,Mitgliederliste,2,FALSE))","v":""},null,null,null,null,null,null,null,null,null,null,null,{"$f":"IF(COUNTA(C6:C75)>0,1,\"kein Preis\")","v":"kein Preis"}]
[2,null,null,0,null,null,null,null,null,null,null,null,null,null,"","","","","","","","","",null,null,null,"","","","","","","","","",null,null,null,null,null,null,null,null,null,null,null,{"$f":"IF(COUNTA(C6:C75)>1,2,\"\")","v":""}]
[3,null,null,0,null,null,null,null,null,null,null,null,null,null,"","","","","","","","","",null,null,null,"","","","","","","","","",null,null,null,null,null,null,null,null,null,null,null,{"$f":"IF(COUNTA(C6:C75)>2,3,\"\")","v":""}]
[4,null,null,0,null,null,null,null,null,null,null,null,null,null,"","","","","","","","","",null,null,null,"","","","","","","","","",null,null,null,null,null,null,null,null,null,null,null,{"$f":"IF(COUNTA(C6:C75)>5,4,\"\")","v":""}]
[5,null,null,0,null,null,null,null,null,null,null,null,null,null,"","","","","","","","","",null,null,null,"","","","","","","","","",null,null,null,null,null,null,null,null,null,null,null,{"$f":"IF(COUNTA(C6:C75)>9,5,\"\")","v":""}]
[6,null,null,0,null,null,null,null,null,null,null,null,null,null,"","","","","","","","","",null,null,null,"","","","","","","","","",null,null,null,null,null,null,null,null,null,null,null,{"$f":"IF(COUNTA(C6:C75)>13,6,\"\")","v":""}]
[7,null,null,0,null,null,null,null,null,null,null,null,null,null,"","","","","","","","","",null,null,null,"","","","","","","","","",null,null,null,null,null,null,null,null,null,null,null,{"$f":"IF(COUNTA(C6:C75)>17,7,\"\")","v":""}]
[8,null,null,0,null,null,null,null,null,null,null,null,null,null,"","","","","","","","","",null,null,null,"","","","","","","","","",null,null,null,null,null,null,null,null,null,null,null,{"$f":"IF(COUNTA(C6:C75)>22,8,\"\")","v":""}]
[9,null,null,0,null,null,null,null,null,null,null,null,null,null,"","","","","","","","","",null,null,null,"","","","","","","","","",null,null,null,null,null,null,null,null,null,null,null,{"$f":"IF(COUNTA(C6:C75)>27,9,\"\")","v":""}]
[10,null,null,0,null,null,null,null,null,null,null,null,null,null,"","","","","","","","","",null,null,null,"","","","","","","","","",null,null,null,null,null,null,null,null,null,null,null,{"$f":"IF(COUNTA(C6:C75)>32,10,\"\")","v":""}]
[11,null,null,0,null,null,null,null,null,null,null,null,null,null,"","","","","","","","","",null,null,null,"","","","","","","","","",null,null,null,null,null,null,null,null,null,null,null,{"$f":"IF(COUNTA(C6:C75)>37,11,\"\")","v":""}]
[12,null,null,0,null,null,null,null,null,null,null,null,null,null,"","","","","","","","","",null,null,null,"","","","","","","","","",null,null,null,null,null,null,null,null,null,null,null,{"$f":"IF(COUNTA(C6:C75)>42,12,\"\")","v":""}]
[13,null,null,0,null,null,null,null,null,null,null,null,null,null,"","","","","","","","","",null,null,null,"","","","","","","","","",null,null,null,null,null,null,null,null,null,null,null,{"$f":"IF(COUNTA(C6:C75)>47,13,\"\")","v":""}]
[14,null,null,0,null,null,null,null,null,null,null,null,null,null,"","","","","","","","","",null,null,null,"","","","","","","","","",null,null,null,null,null,null,null,null,null,null,null,{"$f":"IF(COUNTA(C6:C75)>52,14,\"\")","v":""}]
[15,null,null,0,null,null,null,null,null,null,null,null,null,null,"","","","","","","","","",null,null,null,"","","","","","","","","",null,null,null,null,null,null,null,null,null,null,null,{"$f":"IF(COUNTA(C6:C75)>57,15,\"\")","v":""}]
[16,null,null,0,null,null,null,null,null,null,null,null,null,null,"","","","","","","","","",null,null,null,"","","","","","","","","",null,null,null,null,null,null,null,null,null,null,null,{"$f":"IF(COUNTA(C6:C75)>62,16,\"\")","v":""}]
[17,null,null,0,null,null,null,null,null,null,null,null,null,null,"","","","","","","","","",null,null,null,"","","","","","","","","",null,null,null,null,null,null,null,null,null,null,null,{"$f":"IF(COUNTA(C6:C75)>67,17,\"\")","v":""}]
[18,null,null,0,null,null,null,null,null,null,null,null,null,null,"","","","","","","","","",null,null,null,"","","","","","","","",""]
[19,null,null,0,null,null,null,null,null,null,null,null,null,null,"","","","","","","","","",null,null,null,"","","","","","","","",""]
[20,null,null,0,null,null,null,null,null,null,null,null,null,null,"","","","","","","","","",null,null,null,"","","","","","","","",""]
[21,null,null,0,null,null,null,null,null,null,null,null,null,null,"","","","","","","","","",null,null,null,"","","","","","","","",""]
[22,null,null,0,null,null,null,null,null,null,null,null,null,null,"","","","","","","","","",null,null,null,"","","","","","","","",""]
[23,null,null,0,null,null,null,null,null,null,null,null,null,null,"","","","","","","","","",null,null,null,"","","","","","","","",""]
[24,null,null,0,null,null,null,null,null,null,null,null,null,null,"","","","","","","","","",null,null,null,"","","","","","","","",""]
[25,null,null,0,null,null,null,null,null,null,null,null,null,null,"","","","","","","","","",null,null,null,"","","","","","","","",""]
[26,null,null,0,null,null,null,null,null,null,null,null,null,null,"","","","","","","","","",null,null,null,"","","","","","","","",""]
[27,null,null,0,null,null,null,null,null,null,null,null,null,null,"","","","","","","","","",null,null,null,"","","","","","","","",""]
[28,null,null,0,null,null,null,null,null,null,null,null,null,null,"","","","","","","","","",null,null,null,"","","","","","","","",""]
[29,null,null,0,null,null,null,null,null,null,null,null,null,null,"","","","","","","","","",null,null,null,"","","","","","","","",""]
[30,null,null,0,null,null,null,null,null,null,null,null,null,null,"","","","","","","","","",null,null,null,"","","","","","","","",""]
[31,null,null,0,null,null,null,null,null,null,null,null,null,null,"","","","","","","","","",null,null,null,"","","","","","","","",""]
[32,null,null,0,null,null,null,null,null,null,null,null,null,null,"","","","","","","","","",null,null,null,"","","","","","","","",""]
[33,null,null,{"$f":"IF(E38>0,500,0)","v":0},null,null,null,null,null,null,null,null,null,null,{"$f":"IF(ISERROR(VLOOKUP(AK38,Mitgliederliste,8,FALSE)),\"\",IF(Stichtag_verwenden=0,VLOOKUP(AK38,Mitgliederliste,3,FALSE),VLOOKUP(AK38,Mitgliederliste,8,FALSE)))","v":""},{"$f":"IF(ISERROR(VLOOKUP(AL38,Mitgliederliste,8,FALSE)),\"\",IF(Stichtag_verwenden=0,VLOOKUP(AL38,Mitgliederliste,3,FALSE),VLOOKUP(AL38,Mitgliederliste,8,FALSE)))","v":""},{"$f":"IF(ISERROR(VLOOKUP(AM38,Mitgliederliste,8,FALSE)),\"\",IF(Stichtag_verwenden=0,VLOOKUP(AM38,Mitgliederliste,3,FALSE),VLOOKUP(AM38,Mitgliederliste,8,FALSE)))","v":""},{"$f":"IF(ISERROR(VLOOKUP(AN38,Mitgliederliste,8,FALSE)),\"\",IF(Stichtag_verwenden=0,VLOOKUP(AN38,Mitgliederliste,3,FALSE),VLOOKUP(AN38,Mitgliederliste,8,FALSE)))","v":""},{"$f":"IF(ISERROR(VLOOKUP(AO38,Mitgliederliste,8,FALSE)),\"\",IF(Stichtag_verwenden=0,VLOOKUP(AO38,Mitgliederliste,3,FALSE),VLOOKUP(AO38,Mitgliederliste,8,FALSE)))","v":""},{"$f":"IF(ISERROR(VLOOKUP(AP38,Mitgliederliste,8,FALSE)),\"\",IF(Stichtag_verwenden=0,VLOOKUP(AP38,Mitgliederliste,3,FALSE),VLOOKUP(AP38,Mitgliederliste,8,FALSE)))","v":""},{"$f":"IF(ISERROR(VLOOKUP(AQ38,Mitgliederliste,8,FALSE)),\"\",IF(Stichtag_verwenden=0,VLOOKUP(AQ38,Mitgliederliste,3,FALSE),VLOOKUP(AQ38,Mitgliederliste,8,FALSE)))","v":""},{"$f":"IF(ISERROR(VLOOKUP(AR38,Mitgliederliste,8,FALSE)),\"\",IF(Stichtag_verwenden=0,VLOOKUP(AR38,Mitgliederliste,3,FALSE),VLOOKUP(AR38,Mitgliederliste,8,FALSE)))","v":""},{"$f":"IF(ISERROR(VLOOKUP(AS38,Mitgliederliste,8,FALSE)),\"\",IF(Stichtag_verwenden=0,VLOOKUP(AS38,Mitgliederliste,3,FALSE),VLOOKUP(AS38,Mitgliederliste,8,FALSE)))","v":""},null,null,null,{"$f":"IF(ISERROR(VLOOKUP(AK38,Mitgliederliste,2,FALSE)),\"\",VLOOKUP(AK38,Mitgliederliste,2,FALSE))","v":""},{"$f":"IF(ISERROR(VLOOKUP(AL38,Mitgliederliste,2,FALSE)),\"\",VLOOKUP(AL38,Mitgliederliste,2,FALSE))","v":""},{"$f":"IF(ISERROR(VLOOKUP(AM38,Mitgliederliste,2,FALSE)),\"\",VLOOKUP(AM38,Mitgliederliste,2,FALSE))","v":""},{"$f":"IF(ISERROR(VLOOKUP(AN38,Mitgliederliste,2,FALSE)),\"\",VLOOKUP(AN38,Mitgliederliste,2,FALSE))","v":""},{"$f":"IF(ISERROR(VLOOKUP(AO38,Mitgliederliste,2,FALSE)),\"\",VLOOKUP(AO38,Mitgliederliste,2,FALSE))","v":""},{"$f":"IF(ISERROR(VLOOKUP(AP38,Mitgliederliste,2,FALSE)),\"\",VLOOKUP(AP38,Mitgliederliste,2,FALSE))","v":""},{"$f":"IF(ISERROR(VLOOKUP(AQ38,Mitgliederliste,2,FALSE)),\"\",VLOOKUP(AQ38,Mitgliederliste,2,FALSE))","v":""},{"$f":"IF(ISERROR(VLOOKUP(AR38,Mitgliederliste,2,FALSE)),\"\",VLOOKUP(AR38,Mitgliederliste,2,FALSE))","v":""},{"$f":"IF(ISERROR(VLOOKUP(AS38,Mitgliederliste,2,FALSE)),\"\",VLOOKUP(AS38,Mitgliederliste,2,FALSE))","v":""}]
[34,null,null,0,null,null,null,null,null,null,null,null,null,null,"","","","","","","","","",null,null,null,"","","","","","","","",""]
[35,null,null,0,null,null,null,null,null,null,null,null,null,null,"","","","","","","","","",null,null,null,"","","","","","","","",""]
[36,null,null,0,null,null,null,null,null,null,null,null,null,null,"","","","","","","","","",null,null,null,"","","","","","","","",""]
[37,null,null,0,null,null,null,null,null,null,null,null,null,null,"","","","","","","","","",null,null,null,"","","","","","","","",""]
[38,null,null,0,null,null,null,null,null,null,null,null,null,null,"","","","","","","","","",null,null,null,"","","","","","","","",""]
[39,null,null,0,null,null,null,null,null,null,null,null,null,null,"","","","","","","","","",null,null,null,"","","","","","","","",""]
[40,null,null,0,null,null,null,null,null,null,null,null,null,null,"","","","","","","","","",null,null,null,"","","","","","","","",""]
[41,null,null,0,null,null,null,null,null,null,null,null,null,null,"","","","","","","","","",null,null,null,"","","","","","","","",""]
[42,null,null,0,null,null,null,null,null,null,null,null,null,null,"","","","","","","","","",null,null,null,"","","","","","","","",""]
[43,null,null,0,null,null,null,null,null,null,null,null,null,null,"","","","","","","","","",null,null,null,"","","","","","","","",""]
[44,null,null,0,null,null,null,null,null,null,null,null,null,null,"","","","","","","","","",null,null,null,"","","","","","","","",""]
[45,null,null,0,null,null,null,null,null,null,null,null,null,null,"","","","","","","","","",null,null,null,"","","","","","","","",""]
[46,null,null,0,null,null,null,null,null,null,null,null,null,null,"","","","","","","","","",null,null,null,"","","","","","","","",""]
[47,null,null,0,null,null,null,null,null,null,null,null,null,null,"","","","","","","","","",null,null,null,"","","","","","","","",""]
[48,null,null,0,null,null,null,null,null,null,null,null,null,null,"","","","","","","","","",null,null,null,"","","","","","","","",""]
[49,null,null,0,null,null,null,null,null,null,null,null,null,null,"","","","","","","","","",null,null,null,"","","","","","","","",""]
[50,null,null,0,null,null,null,null,null,null,null,null,null,null,"","","","","","","","","",null,null,null,"","","","","","","","",""]
[51,null,null,0,null,null,null,null,null,null,null,null,null,null,"","","","","","","","","",null,null,null,"","","","","","","","",""]
[52,null,null,0,null,null,null,null,null,null,null,null,null,null,"","","","","","","","","",null,null,null,"","","","","","","","",""]
[53,null,null,0,null,null,null,null,null,null,null,null,null,null,"","","","","","","","","",null,null,null,"","","","","","","","",""]
[54,null,null,0,null,null,null,null,null,null,null,null,null,null,"","","","","","","","","",null,null,null,"","","","","","","","",""]
[55,null,null,0,null,null,null,null,null,null,null,null,null,null,"","","","","","","","","",null,null,null,"","","","","","","","",""]
[56,null,null,0,null,null,null,null,null,null,null,null,null,null,"","","","","","","","","",null,null,null,"","","","","","","","",""]
[57,null,null,0,null,null,null,null,null,null,null,null,null,null,"","","","","","","","","",null,null,null,"","","","","","","","",""]
[58,null,null,0,null,null,null,null,null,null,null,null,null,null,"","","","","","","","","",null,null,null,"","","","","","","","",""]
[59,null,null,0,null,null,null,null,null,null,null,null,null,null,"","","","","","","","","",null,null,null,"","","","","","","","",""]
[60,null,null,0,null,null,null,null,null,null,null,null,null,null,"","","","","","","","","",null,null,null,"","","","","","","","",""]
[61,null,null,0,null,null,null,null,null,null,null,null,null,null,"","","","","","","","","",null,null,null,"","","","","","","","",""]
[62,null,null,0,null,null,null,null,null,null,null,null,null,null,"","","","","","","","","",null,null,null,"","","","","","","","",""]
[63,null,null,0,null,null,null,null,null,null,null,null,null,null,"","","","","","","","","",null,null,null,"","","","","","","","",""]
[64,null,null,0,null,null,null,null,null,null,null,null,null,null,"","","","","","","","","",null,null,null,"","","","","","","","",""]
[65,null,null,{"$f":"IF(E70>0,500,0)","v":0},null,null,null,null,null,null,null,null,null,null,{"$f":"IF(ISERROR(VLOOKUP(AK70,Mitgliederliste,8,FALSE)),\"\",IF(Stichtag_verwenden=0,VLOOKUP(AK70,Mitgliederliste,3,FALSE),VLOOKUP(AK70,Mitgliederliste,8,FALSE)))","v":""},{"$f":"IF(ISERROR(VLOOKUP(AL70,Mitgliederliste,8,FALSE)),\"\",IF(Stichtag_verwenden=0,VLOOKUP(AL70,Mitgliederliste,3,FALSE),VLOOKUP(AL70,Mitgliederliste,8,FALSE)))","v":""},{"$f":"IF(ISERROR(VLOOKUP(AM70,Mitgliederliste,8,FALSE)),\"\",IF(Stichtag_verwenden=0,VLOOKUP(AM70,Mitgliederliste,3,FALSE),VLOOKUP(AM70,Mitgliederliste,8,FALSE)))","v":""},{"$f":"IF(ISERROR(VLOOKUP(AN70,Mitgliederliste,8,FALSE)),\"\",IF(Stichtag_verwenden=0,VLOOKUP(AN70,Mitgliederliste,3,FALSE),VLOOKUP(AN70,Mitgliederliste,8,FALSE)))","v":""},{"$f":"IF(ISERROR(VLOOKUP(AO70,Mitgliederliste,8,FALSE)),\"\",IF(Stichtag_verwenden=0,VLOOKUP(AO70,Mitgliederliste,3,FALSE),VLOOKUP(AO70,Mitgliederliste,8,FALSE)))","v":""},{"$f":"IF(ISERROR(VLOOKUP(AP70,Mitgliederliste,8,FALSE)),\"\",IF(Stichtag_verwenden=0,VLOOKUP(AP70,Mitgliederliste,3,FALSE),VLOOKUP(AP70,Mitgliederliste,8,FALSE)))","v":""},{"$f":"IF(ISERROR(VLOOKUP(AQ70,Mitgliederliste,8,FALSE)),\"\",IF(Stichtag_verwenden=0,VLOOKUP(AQ70,Mitgliederliste,3,FALSE),VLOOKUP(AQ70,Mitgliederliste,8,FALSE)))","v":""},{"$f":"IF(ISERROR(VLOOKUP(AR70,Mitgliederliste,8,FALSE)),\"\",IF(Stichtag_verwenden=0,VLOOKUP(AR70,Mitgliederliste,3,FALSE),VLOOKUP(AR70,Mitgliederliste,8,FALSE)))","v":""},{"$f":"IF(ISERROR(VLOOKUP(AS70,Mitgliederliste,8,FALSE)),\"\",IF(Stichtag_verwenden=0,VLOOKUP(AS70,Mitgliederliste,3,FALSE),VLOOKUP(AS70,Mitgliederliste,8,FALSE)))","v":""},null,null,null,{"$f":"IF(ISERROR(VLOOKUP(AK70,Mitgliederliste,2,FALSE)),\"\",VLOOKUP(AK70,Mitgliederliste,2,FALSE))","v":""},{"$f":"IF(ISERROR(VLOOKUP(AL70,Mitgliederliste,2,FALSE)),\"\",VLOOKUP(AL70,Mitgliederliste,2,FALSE))","v":""},{"$f":"IF(ISERROR(VLOOKUP(AM70,Mitgliederliste,2,FALSE)),\"\",VLOOKUP(AM70,Mitgliederliste,2,FALSE))","v":""},{"$f":"IF(ISERROR(VLOOKUP(AN70,Mitgliederliste,2,FALSE)),\"\",VLOOKUP(AN70,Mitgliederliste,2,FALSE))","v":""},{"$f":"IF(ISERROR(VLOOKUP(AO70,Mitgliederliste,2,FALSE)),\"\",VLOOKUP(AO70,Mitgliederliste,2,FALSE))","v":""},{"$f":"IF(ISERROR(VLOOKUP(AP70,Mitgliederliste,2,FALSE)),\"\",VLOOKUP(AP70,Mitgliederliste,2,FALSE))","v":""},{"$f":"IF(ISERROR(VLOOKUP(AQ70,Mitgliederliste,2,FALSE)),\"\",VLOOKUP(AQ70,Mitgliederliste,2,FALSE))","v":""},{"$f":"IF(ISERROR(VLOOKUP(AR70,Mitgliederliste,2,FALSE)),\"\",VLOOKUP(AR70,Mitgliederliste,2,FALSE))","v":""},{"$f":"IF(ISERROR(VLOOKUP(AS70,Mitgliederliste,2,FALSE)),\"\",VLOOKUP(AS70,Mitgliederliste,2,FALSE))","v":""}]
[66,null,null,0,null,null,null,null,null,null,null,null,null,null,"","","","","","","","","",null,null,null,"","","","","","","","",""]
[67,null,null,0,null,null,null,null,null,null,null,null,null,null,"","","","","","","","","",null,null,null,"","","","","","","","",""]
[68,null,null,0,null,null,null,null,null,null,null,null,null,null,"","","","","","","","","",null,null,null,"","","","","","","","",""]
[69,null,null,0,null,null,null,null,null,null,null,null,null,null,"","","","","","","","","",null,null,null,"","","","","","","","",""]
[70,null,null,0,null,null,null,null,null,null,null,null,null,null,"","","","","","","","","",null,null,null,"","","","","","","","",""]

{"sheet":"G2_Si_B","index":13,"n_rows":75,"n_cols":47,"rows_kept":75,"cut":false,"hidden":false,"merged":[]}
[{"$f":"Bewerbsart","v":"Abschnittsfeuerwehrleistungsbewerb"}]
[{"$f":"TEXT(Datum,\"T.MMMM JJJJ\")&\"  -  \"& Bewerbsort","v":"0.Jänner 1900  -  "}]
[{"$f":"G2_Si_B","v":"Gäste 2 Silber B"}]
[null,null,null,null,"Löschangriff",null,"Staffellauf"]
["Platz","Nummer","Gruppe","Stammpunkte","Zeit","Fehler","Zeit","Fehler","Alters-\nPunkte","Gesamt- punkte","Löschangr","Staffell.","Jahre",null,"Geb1","Geb2","Geb3","Geb4","Geb5","Geb6","Geb7","Geb8","Geb9",null,null,"Urk. gedr.","Name1","Name2","Name3","Name4","Name5","Name6","Name7","Name8","Name9","FW-Nr","Stb1","Stb2","Stb3","Stb4","Stb5","Stb6","Stb7","Stb8","Stb9","Pokale","Anzahl Preise (Pokale):"]
[1,null,null,{"$f":"IF(E6>0,500,0)","v":0},null,null,null,null,null,null,null,null,null,null,{"$f":"IF(ISERROR(VLOOKUP(AK6,Mitgliederliste,8,FALSE)),\"\",IF(Stichtag_verwenden=0,VLOOKUP(AK6,Mitgliederliste,3,FALSE),VLOOKUP(AK6,Mitgliederliste,8,FALSE)))","v":""},{"$f":"IF(ISERROR(VLOOKUP(AL6,Mitgliederliste,8,FALSE)),\"\",IF(Stichtag_verwenden=0,VLOOKUP(AL6,Mitgliederliste,3,FALSE),VLOOKUP(AL6,Mitgliederliste,8,FALSE)))","v":""},{"$f":"IF(ISERROR(VLOOKUP(AM6,Mitgliederliste,8,FALSE)),\"\",IF(Stichtag_verwenden=0,VLOOKUP(AM6,Mitgliederliste,3,FALSE),VLOOKUP(AM6,Mitgliederliste,8,FALSE)))","v":""},{"$f":"IF(ISERROR(VLOOKUP(AN6,Mitgliederliste,8,FALSE)),\"\",IF(Stichtag_verwenden=0,VLOOKUP(AN6,Mitgliederliste,3,FALSE),VLOOKUP(AN6,Mitgliederliste,8,FALSE)))","v":""},{"$f":"IF(ISERROR(VLOOKUP(AO6,Mitgliederliste,8,FALSE)),\"\",IF(Stichtag_verwenden=0,VLOOKUP(AO6,Mitgliederliste,3,FALSE),VLOOKUP(AO6,Mitgliederliste,8,FALSE)))","v":""},{"$f":"IF(ISERROR(VLOOKUP(AP6,Mitgliederliste,8,FALSE)),\"\",IF(Stichtag_verwenden=0,VLOOKUP(AP6,Mitgliederliste,3,FALSE),VLOOKUP(AP6,Mitgliederliste,8,FALSE)))","v":""},{"$f":"IF(ISERROR(VLOOKUP(AQ6,Mitgliederliste,8,FALSE)),\"\",IF(Stichtag_verwenden=0,VLOOKUP(AQ6,Mitgliederliste,3,FALSE),VLOOKUP(AQ6,Mitgliederliste,8,FALSE)))","v":""},{"$f":"IF(ISERROR(VLOOKUP(AR6,Mitgliederliste,8,FALSE)),\"\",IF(Stichtag_verwenden=0,VLOOKUP(AR6,Mitgliederliste,3,FALSE),VLOOKUP(AR6,Mitgliederliste,8,FALSE)))","v":""},{"$f":"IF(ISERROR(VLOOKUP(AS6,Mitgliederliste,8,FALSE)),\"\",IF(Stichtag_verwenden=0,VLOOKUP(AS6,Mitgliederliste,3,FALSE),VLOOKUP(AS6,Mitgliederliste,8,FALSE)))","v":""},null,null,null,{"$f":"IF(ISERROR(VLOOKUP(AK6,Mitgliederliste,2,FALSE)),\"\",VLOOKUP(AK6,Mitgliederliste,2,FALSE))","v":""},{"$f":"IF(ISERROR(VLOOKUP(AL6,Mitgliederliste,2,FALSE)),\"\",VLOOKUP(AL6,Mitgliederliste,2,FALSE))","v":""},{"$f":"IF(ISERROR(VLOOKUP(AM6,Mitgliederliste,2,FALSE)),\"\",VLOOKUP(AM6,Mitgliederliste,2,FALSE))","v":""},{"$f":"IF(ISERROR(VLOOKUP(AN6,Mitgliederliste,2,FALSE)),\"\",VLOOKUP(AN6,Mitgliederliste,2,FALSE))","v":""},{"$f":"IF(ISERROR(VLOOKUP(AO6,Mitgliederliste,2,FALSE)),\"\",VLOOKUP(AO6,Mitgliederliste,2,FALSE))","v":""},{"$f":"IF(ISERROR(VLOOKUP(AP6,Mitgliederliste,2,FALSE)),\"\",VLOOKUP(AP6,Mitgliederliste,2,FALSE))","v":""},{"$f":"IF(ISERROR(VLOOKUP(AQ6,Mitgliederliste,2,FALSE)),\"\",VLOOKUP(AQ6,Mitgliederliste,2,FALSE))","v":""},{"$f":"IF(ISERROR(VLOOKUP(AR6,Mitgliederliste,2,FALSE)),\"\",VLOOKUP(AR6,Mitgliederliste,2,FALSE))","v":""},{"$f":"IF(ISERROR(VLOOKUP(AS6,Mitgliederliste,2,FALSE)),\"\",VLOOKUP(AS6,Mitgliederliste,2,FALSE))","v":""},null,null,null,null,null,null,null,null,null,null,null,{"$f":"IF(COUNTA(C6:C75)>0,1,\"kein Preis\")","v":"kein Preis"}]
[2,null,null,0,null,null,null,null,null,null,null,null,null,null,"","","","","","","","","",null,null,null,"","","","","","","","","",null,null,null,null,null,null,null,null,null,null,null,{"$f":"IF(COUNTA(C6:C75)>1,2,\"\")","v":""}]
[3,null,null,0,null,null,null,null,null,null,null,null,null,null,"","","","","","","","","",null,null,null,"","","","","","","","","",null,null,null,null,null,null,null,null,null,null,null,{"$f":"IF(COUNTA(C6:C75)>2,3,\"\")","v":""}]
[4,null,null,0,null,null,null,null,null,null,null,null,null,null,"","","","","","","","","",null,null,null,"","","","","","","","","",null,null,null,null,null,null,null,null,null,null,null,{"$f":"IF(COUNTA(C6:C75)>5,4,\"\")","v":""}]
[5,null,null,0,null,null,null,null,null,null,null,null,null,null,"","","","","","","","","",null,null,null,"","","","","","","","","",null,null,null,null,null,null,null,null,null,null,null,{"$f":"IF(COUNTA(C6:C75)>9,5,\"\")","v":""}]
[6,null,null,0,null,null,null,null,null,null,null,null,null,null,"","","","","","","","","",null,null,null,"","","","","","","","","",null,null,null,null,null,null,null,null,null,null,null,{"$f":"IF(COUNTA(C6:C75)>13,6,\"\")","v":""}]
[7,null,null,0,null,null,null,null,null,null,null,null,null,null,"","","","","","","","","",null,null,null,"","","","","","","","","",null,null,null,null,null,null,null,null,null,null,null,{"$f":"IF(COUNTA(C6:C75)>17,7,\"\")","v":""}]
[8,null,null,0,null,null,null,null,null,null,null,null,null,null,"","","","","","","","","",null,null,null,"","","","","","","","","",null,null,null,null,null,null,null,null,null,null,null,{"$f":"IF(COUNTA(C6:C75)>22,8,\"\")","v":""}]
[9,null,null,0,null,null,null,null,null,null,null,null,null,null,"","","","","","","","","",null,null,null,"","","","","","","","","",null,null,null,null,null,null,null,null,null,null,null,{"$f":"IF(COUNTA(C6:C75)>27,9,\"\")","v":""}]
[10,null,null,0,null,null,null,null,null,null,null,null,null,null,"","","","","","","","","",null,null,null,"","","","","","","","","",null,null,null,null,null,null,null,null,null,null,null,{"$f":"IF(COUNTA(C6:C75)>32,10,\"\")","v":""}]
[11,null,null,0,null,null,null,null,null,null,null,null,null,null,"","","","","","","","","",null,null,null,"","","","","","","","","",null,null,null,null,null,null,null,null,null,null,null,{"$f":"IF(COUNTA(C6:C75)>37,11,\"\")","v":""}]
[12,null,null,0,null,null,null,null,null,null,null,null,null,null,"","","","","","","","","",null,null,null,"","","","","","","","","",null,null,null,null,null,null,null,null,null,null,null,{"$f":"IF(COUNTA(C6:C75)>42,12,\"\")","v":""}]
[13,null,null,0,null,null,null,null,null,null,null,null,null,null,"","","","","","","","","",null,null,null,"","","","","","","","","",null,null,null,null,null,null,null,null,null,null,null,{"$f":"IF(COUNTA(C6:C75)>47,13,\"\")","v":""}]
[14,null,null,0,null,null,null,null,null,null,null,null,null,null,"","","","","","","","","",null,null,null,"","","","","","","","","",null,null,null,null,null,null,null,null,null,null,null,{"$f":"IF(COUNTA(C6:C75)>52,14,\"\")","v":""}]
[15,null,null,0,null,null,null,null,null,null,null,null,null,null,"","","","","","","","","",null,null,null,"","","","","","","","","",null,null,null,null,null,null,null,null,null,null,null,{"$f":"IF(COUNTA(C6:C75)>57,15,\"\")","v":""}]
[16,null,null,0,null,null,null,null,null,null,null,null,null,null,"","","","","","","","","",null,null,null,"","","","","","","","","",null,null,null,null,null,null,null,null,null,null,null,{"$f":"IF(COUNTA(C6:C75)>62,16,\"\")","v":""}]
[17,null,null,0,null,null,null,null,null,null,null,null,null,null,"","","","","","","","","",null,null,null,"","","","","","","","","",null,null,null,null,null,null,null,null,null,null,null,{"$f":"IF(COUNTA(C6:C75)>67,17,\"\")","v":""}]
[18,null,null,0,null,null,null,null,null,null,null,null,null,null,"","","","","","","","","",null,null,null,"","","","","","","","",""]
[19,null,null,0,null,null,null,null,null,null,null,null,null,null,"","","","","","","","","",null,null,null,"","","","","","","","",""]
[20,null,null,0,null,null,null,null,null,null,null,null,null,null,"","","","","","","","","",null,null,null,"","","","","","","","",""]
[21,null,null,0,null,null,null,null,null,null,null,null,null,null,"","","","","","","","","",null,null,null,"","","","","","","","",""]
[22,null,null,0,null,null,null,null,null,null,null,null,null,null,"","","","","","","","","",null,null,null,"","","","","","","","",""]
[23,null,null,0,null,null,null,null,null,null,null,null,null,null,"","","","","","","","","",null,null,null,"","","","","","","","",""]
[24,null,null,0,null,null,null,null,null,null,null,null,null,null,"","","","","","","","","",null,null,null,"","","","","","","","",""]
[25,null,null,0,null,null,null,null,null,null,null,null,null,null,"","","","","","","","","",null,null,null,"","","","","","","","",""]
[26,null,null,0,null,null,null,null,null,null,null,null,null,null,"","","","","","","","","",null,null,null,"","","","","","","","",""]
[27,null,null,0,null,null,null,null,null,null,null,null,null,null,"","","","","","","","","",null,null,null,"","","","","","","","",""]
[28,null,null,0,null,null,null,null,null,null,null,null,null,null,"","","","","","","","","",null,null,null,"","","","","","","","",""]
[29,null,null,0,null,null,null,null,null,null,null,null,null,null,"","","","","","","","","",null,null,null,"","","","","","","","",""]
[30,null,null,0,null,null,null,null,null,null,null,null,null,null,"","","","","","","","","",null,null,null,"","","","","","","","",""]
[31,null,null,0,null,null,null,null,null,null,null,null,null,null,"","","","","","","","","",null,null,null,"","","","","","","","",""]
[32,null,null,0,null,null,null,null,null,null,null,null,null,null,"","","","","","","","","",null,null,null,"","","","","","","","",""]
[33,null,null,{"$f":"IF(E38>0,500,0)","v":0},null,null,null,null,null,null,null,null,null,null,{"$f":"IF(ISERROR(VLOOKUP(AK38,Mitgliederliste,8,FALSE)),\"\",IF(Stichtag_verwenden=0,VLOOKUP(AK38,Mitgliederliste,3,FALSE),VLOOKUP(AK38,Mitgliederliste,8,FALSE)))","v":""},{"$f":"IF(ISERROR(VLOOKUP(AL38,Mitgliederliste,8,FALSE)),\"\",IF(Stichtag_verwenden=0,VLOOKUP(AL38,Mitgliederliste,3,FALSE),VLOOKUP(AL38,Mitgliederliste,8,FALSE)))","v":""},{"$f":"IF(ISERROR(VLOOKUP(AM38,Mitgliederliste,8,FALSE)),\"\",IF(Stichtag_verwenden=0,VLOOKUP(AM38,Mitgliederliste,3,FALSE),VLOOKUP(AM38,Mitgliederliste,8,FALSE)))","v":""},{"$f":"IF(ISERROR(VLOOKUP(AN38,Mitgliederliste,8,FALSE)),\"\",IF(Stichtag_verwenden=0,VLOOKUP(AN38,Mitgliederliste,3,FALSE),VLOOKUP(AN38,Mitgliederliste,8,FALSE)))","v":""},{"$f":"IF(ISERROR(VLOOKUP(AO38,Mitgliederliste,8,FALSE)),\"\",IF(Stichtag_verwenden=0,VLOOKUP(AO38,Mitgliederliste,3,FALSE),VLOOKUP(AO38,Mitgliederliste,8,FALSE)))","v":""},{"$f":"IF(ISERROR(VLOOKUP(AP38,Mitgliederliste,8,FALSE)),\"\",IF(Stichtag_verwenden=0,VLOOKUP(AP38,Mitgliederliste,3,FALSE),VLOOKUP(AP38,Mitgliederliste,8,FALSE)))","v":""},{"$f":"IF(ISERROR(VLOOKUP(AQ38,Mitgliederliste,8,FALSE)),\"\",IF(Stichtag_verwenden=0,VLOOKUP(AQ38,Mitgliederliste,3,FALSE),VLOOKUP(AQ38,Mitgliederliste,8,FALSE)))","v":""},{"$f":"IF(ISERROR(VLOOKUP(AR38,Mitgliederliste,8,FALSE)),\"\",IF(Stichtag_verwenden=0,VLOOKUP(AR38,Mitgliederliste,3,FALSE),VLOOKUP(AR38,Mitgliederliste,8,FALSE)))","v":""},{"$f":"IF(ISERROR(VLOOKUP(AS38,Mitgliederliste,8,FALSE)),\"\",IF(Stichtag_verwenden=0,VLOOKUP(AS38,Mitgliederliste,3,FALSE),VLOOKUP(AS38,Mitgliederliste,8,FALSE)))","v":""},null,null,null,{"$f":"IF(ISERROR(VLOOKUP(AK38,Mitgliederliste,2,FALSE)),\"\",VLOOKUP(AK38,Mitgliederliste,2,FALSE))","v":""},{"$f":"IF(ISERROR(VLOOKUP(AL38,Mitgliederliste,2,FALSE)),\"\",VLOOKUP(AL38,Mitgliederliste,2,FALSE))","v":""},{"$f":"IF(ISERROR(VLOOKUP(AM38,Mitgliederliste,2,FALSE)),\"\",VLOOKUP(AM38,Mitgliederliste,2,FALSE))","v":""},{"$f":"IF(ISERROR(VLOOKUP(AN38,Mitgliederliste,2,FALSE)),\"\",VLOOKUP(AN38,Mitgliederliste,2,FALSE))","v":""},{"$f":"IF(ISERROR(VLOOKUP(AO38,Mitgliederliste,2,FALSE)),\"\",VLOOKUP(AO38,Mitgliederliste,2,FALSE))","v":""},{"$f":"IF(ISERROR(VLOOKUP(AP38,Mitgliederliste,2,FALSE)),\"\",VLOOKUP(AP38,Mitgliederliste,2,FALSE))","v":""},{"$f":"IF(ISERROR(VLOOKUP(AQ38,Mitgliederliste,2,FALSE)),\"\",VLOOKUP(AQ38,Mitgliederliste,2,FALSE))","v":""},{"$f":"IF(ISERROR(VLOOKUP(AR38,Mitgliederliste,2,FALSE)),\"\",VLOOKUP(AR38,Mitgliederliste,2,FALSE))","v":""},{"$f":"IF(ISERROR(VLOOKUP(AS38,Mitgliederliste,2,FALSE)),\"\",VLOOKUP(AS38,Mitgliederliste,2,FALSE))","v":""}]
[34,null,null,0,null,null,null,null,null,null,null,null,null,null,"","","","","","","","","",null,null,null,"","","","","","","","",""]
[35,null,null,0,null,null,null,null,null,null,null,null,null,null,"","","","","","","","","",null,null,null,"","","","","","","","",""]
[36,null,null,0,null,null,null,null,null,null,null,null,null,null,"","","","","","","","","",null,null,null,"","","","","","","","",""]
[37,null,null,0,null,null,null,null,null,null,null,null,null,null,"","","","","","","","","",null,null,null,"","","","","","","","",""]
[38,null,null,0,null,null,null,null,null,null,null,null,null,null,"","","","","","","","","",null,null,null,"","","","","","","","",""]
[39,null,null,0,null,null,null,null,null,null,null,null,null,null,"","","","","","","","","",null,null,null,"","","","","","","","",""]
[40,null,null,0,null,null,null,null,null,null,null,null,null,null,"","","","","","","","","",null,null,null,"","","","","","","","",""]
[41,null,null,0,null,null,null,null,null,null,null,null,null,null,"","","","","","","","","",null,null,null,"","","","","","","","",""]
[42,null,null,0,null,null,null,null,null,null,null,null,null,null,"","","","","","","","","",null,null,null,"","","","","","","","",""]
[43,null,null,0,null,null,null,null,null,null,null,null,null,null,"","","","","","","","","",null,null,null,"","","","","","","","",""]
[44,null,null,0,null,null,null,null,null,null,null,null,null,null,"","","","","","","","","",null,null,null,"","","","","","","","",""]
[45,null,null,0,null,null,null,null,null,null,null,null,null,null,"","","","","","","","","",null,null,null,"","","","","","","","",""]
[46,null,null,0,null,null,null,null,null,null,null,null,null,null,"","","","","","","","","",null,null,null,"","","","","","","","",""]
[47,null,null,0,null,null,null,null,null,null,null,null,null,null,"","","","","","","","","",null,null,null,"","","","","","","","",""]
[48,null,null,0,null,null,null,null,null,null,null,null,null,null,"","","","","","","","","",null,null,null,"","","","","","","","",""]
[49,null,null,0,null,null,null,null,null,null,null,null,null,null,"","","","","","","","","",null,null,null,"","","","","","","","",""]
[50,null,null,0,null,null,null,null,null,null,null,null,null,null,"","","","","","","","","",null,null,null,"","","","","","","","",""]
[51,null,null,0,null,null,null,null,null,null,null,null,null,null,"","","","","","","","","",null,null,null,"","","","","","","","",""]
[52,null,null,0,null,null,null,null,null,null,null,null,null,null,"","","","","","","","","",null,null,null,"","","","","","","","",""]
[53,null,null,0,null,null,null,null,null,null,null,null,null,null,"","","","","","","","","",null,null,null,"","","","","","","","",""]
[54,null,null,0,null,null,null,null,null,null,null,null,null,null,"","","","","","","","","",null,null,null,"","","","","","","","",""]
[55,null,null,0,null,null,null,null,null,null,null,null,null,null,"","","","","","","","","",null,null,null,"","","","","","","","",""]
[56,null,null,0,null,null,null,null,null,null,null,null,null,null,"","","","","","","","","",null,null,null,"","","","","","","","",""]
[57,null,null,0,null,null,null,null,null,null,null,null,null,null,"","","","","","","","","",null,null,null,"","","","","","","","",""]
[58,null,null,0,null,null,null,null,null,null,null,null,null,null,"","","","","","","","","",null,null,null,"","","","","","","","",""]
[59,null,null,0,null,null,null,null,null,null,null,null,null,null,"","","","","","","","","",null,null,null,"","","","","","","","",""]
[60,null,null,0,null,null,null,null,null,null,null,null,null,null,"","","","","","","","","",null,null,null,"","","","","","","","",""]
[61,null,null,0,null,null,null,null,null,null,null,null,null,null,"","","","","","","","","",null,null,null,"","","","","","","","",""]
[62,null,null,0,null,null,null,null,null,null,null,null,null,null,"","","","","","","","","",null,null,null,"","","","","","","","",""]
[63,null,null,0,null,null,null,null,null,null,null,null,null,null,"","","","","","","","","",null,null,null,"","","","","","","","",""]
[64,null,null,0,null,null,null,null,null,null,null,null,null,null,"","","","","","","","","",null,null,null,"","","","","","","","",""]
[65,null,null,{"$f":"IF(E70>0,500,0)","v":0},null,null,null,null,null,null,null,null,null,null,{"$f":"IF(ISERROR(VLOOKUP(AK70,Mitgliederliste,8,FALSE)),\"\",IF(Stichtag_verwenden=0,VLOOKUP(AK70,Mitgliederliste,3,FALSE),VLOOKUP(AK70,Mitgliederliste,8,FALSE)))","v":""},{"$f":"IF(ISERROR(VLOOKUP(AL70,Mitgliederliste,8,FALSE)),\"\",IF(Stichtag_verwenden=0,VLOOKUP(AL70,Mitgliederliste,3,FALSE),VLOOKUP(AL70,Mitgliederliste,8,FALSE)))","v":""},{"$f":"IF(ISERROR(VLOOKUP(AM70,Mitgliederliste,8,FALSE)),\"\",IF(Stichtag_verwenden=0,VLOOKUP(AM70,Mitgliederliste,3,FALSE),VLOOKUP(AM70,Mitgliederliste,8,FALSE)))","v":""},{"$f":"IF(ISERROR(VLOOKUP(AN70,Mitgliederliste,8,FALSE)),\"\",IF(Stichtag_verwenden=0,VLOOKUP(AN70,Mitgliederliste,3,FALSE),VLOOKUP(AN70,Mitgliederliste,8,FALSE)))","v":""},{"$f":"IF(ISERROR(VLOOKUP(AO70,Mitgliederliste,8,FALSE)),\"\",IF(Stichtag_verwenden=0,VLOOKUP(AO70,Mitgliederliste,3,FALSE),VLOOKUP(AO70,Mitgliederliste,8,FALSE)))","v":""},{"$f":"IF(ISERROR(VLOOKUP(AP70,Mitgliederliste,8,FALSE)),\"\",IF(Stichtag_verwenden=0,VLOOKUP(AP70,Mitgliederliste,3,FALSE),VLOOKUP(AP70,Mitgliederliste,8,FALSE)))","v":""},{"$f":"IF(ISERROR(VLOOKUP(AQ70,Mitgliederliste,8,FALSE)),\"\",IF(Stichtag_verwenden=0,VLOOKUP(AQ70,Mitgliederliste,3,FALSE),VLOOKUP(AQ70,Mitgliederliste,8,FALSE)))","v":""},{"$f":"IF(ISERROR(VLOOKUP(AR70,Mitgliederliste,8,FALSE)),\"\",IF(Stichtag_verwenden=0,VLOOKUP(AR70,Mitgliederliste,3,FALSE),VLOOKUP(AR70,Mitgliederliste,8,FALSE)))","v":""},{"$f":"IF(ISERROR(VLOOKUP(AS70,Mitgliederliste,8,FALSE)),\"\",IF(Stichtag_verwenden=0,VLOOKUP(AS70,Mitgliederliste,3,FALSE),VLOOKUP(AS70,Mitgliederliste,8,FALSE)))","v":""},null,null,null,{"$f":"IF(ISERROR(VLOOKUP(AK70,Mitgliederliste,2,FALSE)),\"\",VLOOKUP(AK70,Mitgliederliste,2,FALSE))","v":""},{"$f":"IF(ISERROR(VLOOKUP(AL70,Mitgliederliste,2,FALSE)),\"\",VLOOKUP(AL70,Mitgliederliste,2,FALSE))","v":""},{"$f":"IF(ISERROR(VLOOKUP(AM70,Mitgliederliste,2,FALSE)),\"\",VLOOKUP(AM70,Mitgliederliste,2,FALSE))","v":""},{"$f":"IF(ISERROR(VLOOKUP(AN70,Mitgliederliste,2,FALSE)),\"\",VLOOKUP(AN70,Mitgliederliste,2,FALSE))","v":""},{"$f":"IF(ISERROR(VLOOKUP(AO70,Mitgliederliste,2,FALSE)),\"\",VLOOKUP(AO70,Mitgliederliste,2,FALSE))","v":""},{"$f":"IF(ISERROR(VLOOKUP(AP70,Mitgliederliste,2,FALSE)),\"\",VLOOKUP(AP70,Mitgliederliste,2,FALSE))","v":""},{"$f":"IF(ISERROR(VLOOKUP(AQ70,Mitgliederliste,2,FALSE)),\"\",VLOOKUP(AQ70,Mitgliederliste,2,FALSE))","v":""},{"$f":"IF(ISERROR(VLOOKUP(AR70,Mitgliederliste,2,FALSE)),\"\",VLOOKUP(AR70,Mitgliederliste,2,FALSE))","v":""},{"$f":"IF(ISERROR(VLOOKUP(AS70,Mitgliederliste,2,FALSE)),\"\",VLOOKUP(AS70,Mitgliederliste,2,FALSE))","v":""}]
[66,null,null,0,null,null,null,null,null,null,null,null,null,null,"","","","","","","","","",null,null,null,"","","","","","","","",""]
[67,null,null,0,null,null,null,null,null,null,null,null,null,null,"","","","","","","","","",null,null,null,"","","","","","","","",""]
[68,null,null,0,null,null,null,null,null,null,null,null,null,null,"","","","","","","","","",null,null,null,"","","","","","","","",""]
[69,null,null,0,null,null,null,null,null,null,null,null,null,null,"","","","","","","","","",null,null,null,"","","","","","","","",""]
[70,null,null,0,null,null,null,null,null,null,null,null,null,null,"","","","","","","","","",null,null,null,"","","","","","","","",""]

{"sheet":"AFK_Br_A","index":14,"n_rows":75,"n_cols":47,"rows_kept":75,"cut":false,"hidden":false,"merged":[]}
[{"$f":"Bewerbsart","v":"Abschnittsfeuerwehrleistungsbewerb"}]
[{"$f":"TEXT(Datum,\"T.MMMM JJJJ\")&\"  -  \"& Bewerbsort","v":"0.Jänner 1900  -  "}]
[{"$f":"AFK_Br_A","v":"AFK Bronze A"}]
[null,null,null,null,"Löschangriff",null,"Staffellauf"]
["Platz","Nummer","Gruppe","Stammpunkte","Zeit","Fehler","Zeit","Fehler","Alters-\nPunkte","Gesamt- punkte","Löschangr","Staffell.","Jahre",null,"Geb1","Geb2","Geb3","Geb4","Geb5","Geb6","Geb7","Geb8","Geb9",null,null,"Urk. gedr.","Name1","Name2","Name3","Name4","Name5","Name6","Name7","Name8","Name9","FW-Nr","Stb1","Stb2","Stb3","Stb4","Stb5","Stb6","Stb7","Stb8","Stb9","Pokale","Anzahl Preise (Pokale):"]
[1,null,null,{"$f":"IF(E6>0,500,0)","v":0},null,null,null,null,null,null,null,null,null,null,{"$f":"IF(ISERROR(VLOOKUP(AK6,Mitgliederliste,8,FALSE)),\"\",IF(Stichtag_verwenden=0,VLOOKUP(AK6,Mitgliederliste,3,FALSE),VLOOKUP(AK6,Mitgliederliste,8,FALSE)))","v":""},{"$f":"IF(ISERROR(VLOOKUP(AL6,Mitgliederliste,8,FALSE)),\"\",IF(Stichtag_verwenden=0,VLOOKUP(AL6,Mitgliederliste,3,FALSE),VLOOKUP(AL6,Mitgliederliste,8,FALSE)))","v":""},{"$f":"IF(ISERROR(VLOOKUP(AM6,Mitgliederliste,8,FALSE)),\"\",IF(Stichtag_verwenden=0,VLOOKUP(AM6,Mitgliederliste,3,FALSE),VLOOKUP(AM6,Mitgliederliste,8,FALSE)))","v":""},{"$f":"IF(ISERROR(VLOOKUP(AN6,Mitgliederliste,8,FALSE)),\"\",IF(Stichtag_verwenden=0,VLOOKUP(AN6,Mitgliederliste,3,FALSE),VLOOKUP(AN6,Mitgliederliste,8,FALSE)))","v":""},{"$f":"IF(ISERROR(VLOOKUP(AO6,Mitgliederliste,8,FALSE)),\"\",IF(Stichtag_verwenden=0,VLOOKUP(AO6,Mitgliederliste,3,FALSE),VLOOKUP(AO6,Mitgliederliste,8,FALSE)))","v":""},{"$f":"IF(ISERROR(VLOOKUP(AP6,Mitgliederliste,8,FALSE)),\"\",IF(Stichtag_verwenden=0,VLOOKUP(AP6,Mitgliederliste,3,FALSE),VLOOKUP(AP6,Mitgliederliste,8,FALSE)))","v":""},{"$f":"IF(ISERROR(VLOOKUP(AQ6,Mitgliederliste,8,FALSE)),\"\",IF(Stichtag_verwenden=0,VLOOKUP(AQ6,Mitgliederliste,3,FALSE),VLOOKUP(AQ6,Mitgliederliste,8,FALSE)))","v":""},{"$f":"IF(ISERROR(VLOOKUP(AR6,Mitgliederliste,8,FALSE)),\"\",IF(Stichtag_verwenden=0,VLOOKUP(AR6,Mitgliederliste,3,FALSE),VLOOKUP(AR6,Mitgliederliste,8,FALSE)))","v":""},{"$f":"IF(ISERROR(VLOOKUP(AS6,Mitgliederliste,8,FALSE)),\"\",IF(Stichtag_verwenden=0,VLOOKUP(AS6,Mitgliederliste,3,FALSE),VLOOKUP(AS6,Mitgliederliste,8,FALSE)))","v":""},null,null,null,{"$f":"IF(ISERROR(VLOOKUP(AK6,Mitgliederliste,2,FALSE)),\"\",VLOOKUP(AK6,Mitgliederliste,2,FALSE))","v":""},{"$f":"IF(ISERROR(VLOOKUP(AL6,Mitgliederliste,2,FALSE)),\"\",VLOOKUP(AL6,Mitgliederliste,2,FALSE))","v":""},{"$f":"IF(ISERROR(VLOOKUP(AM6,Mitgliederliste,2,FALSE)),\"\",VLOOKUP(AM6,Mitgliederliste,2,FALSE))","v":""},{"$f":"IF(ISERROR(VLOOKUP(AN6,Mitgliederliste,2,FALSE)),\"\",VLOOKUP(AN6,Mitgliederliste,2,FALSE))","v":""},{"$f":"IF(ISERROR(VLOOKUP(AO6,Mitgliederliste,2,FALSE)),\"\",VLOOKUP(AO6,Mitgliederliste,2,FALSE))","v":""},{"$f":"IF(ISERROR(VLOOKUP(AP6,Mitgliederliste,2,FALSE)),\"\",VLOOKUP(AP6,Mitgliederliste,2,FALSE))","v":""},{"$f":"IF(ISERROR(VLOOKUP(AQ6,Mitgliederliste,2,FALSE)),\"\",VLOOKUP(AQ6,Mitgliederliste,2,FALSE))","v":""},{"$f":"IF(ISERROR(VLOOKUP(AR6,Mitgliederliste,2,FALSE)),\"\",VLOOKUP(AR6,Mitgliederliste,2,FALSE))","v":""},{"$f":"IF(ISERROR(VLOOKUP(AS6,Mitgliederliste,2,FALSE)),\"\",VLOOKUP(AS6,Mitgliederliste,2,FALSE))","v":""},null,null,null,null,null,null,null,null,null,null,null,"Für AFK-"]
[2,null,null,0,null,null,null,null,null,null,null,null,null,null,"","","","","","","","","",null,null,null,"","","","","","","","","",null,null,null,null,null,null,null,null,null,null,null,"Gruppen "]
[3,null,null,0,null,null,null,null,null,null,null,null,null,null,"","","","","","","","","",null,null,null,"","","","","","","","","",null,null,null,null,null,null,null,null,null,null,null,"keine Preise"]
[4,null,null,0,null,null,null,null,null,null,null,null,null,null,"","","","","","","","","",null,null,null,"","","","","","","","","",null,null,null,null,null,null,null,null,null,null,null,"zu vergeben"]
[5,null,null,0,null,null,null,null,null,null,null,null,null,null,"","","","","","","","","",null,null,null,"","","","","","","","",""]
[6,null,null,0,null,null,null,null,null,null,null,null,null,null,"","","","","","","","","",null,null,null,"","","","","","","","",""]
[7,null,null,0,null,null,null,null,null,null,null,null,null,null,"","","","","","","","","",null,null,null,"","","","","","","","",""]
[8,null,null,0,null,null,null,null,null,null,null,null,null,null,"","","","","","","","","",null,null,null,"","","","","","","","",""]
[9,null,null,0,null,null,null,null,null,null,null,null,null,null,"","","","","","","","","",null,null,null,"","","","","","","","",""]
[10,null,null,0,null,null,null,null,null,null,null,null,null,null,"","","","","","","","","",null,null,null,"","","","","","","","",""]
[11,null,null,0,null,null,null,null,null,null,null,null,null,null,"","","","","","","","","",null,null,null,"","","","","","","","",""]
[12,null,null,0,null,null,null,null,null,null,null,null,null,null,"","","","","","","","","",null,null,null,"","","","","","","","",""]
[13,null,null,0,null,null,null,null,null,null,null,null,null,null,"","","","","","","","","",null,null,null,"","","","","","","","",""]
[14,null,null,0,null,null,null,null,null,null,null,null,null,null,"","","","","","","","","",null,null,null,"","","","","","","","",""]
[15,null,null,0,null,null,null,null,null,null,null,null,null,null,"","","","","","","","","",null,null,null,"","","","","","","","",""]
[16,null,null,0,null,null,null,null,null,null,null,null,null,null,"","","","","","","","","",null,null,null,"","","","","","","","",""]
[17,null,null,0,null,null,null,null,null,null,null,null,null,null,"","","","","","","","","",null,null,null,"","","","","","","","",""]
[18,null,null,0,null,null,null,null,null,null,null,null,null,null,"","","","","","","","","",null,null,null,"","","","","","","","",""]
[19,null,null,0,null,null,null,null,null,null,null,null,null,null,"","","","","","","","","",null,null,null,"","","","","","","","",""]
[20,null,null,0,null,null,null,null,null,null,null,null,null,null,"","","","","","","","","",null,null,null,"","","","","","","","",""]
[21,null,null,0,null,null,null,null,null,null,null,null,null,null,"","","","","","","","","",null,null,null,"","","","","","","","",""]
[22,null,null,0,null,null,null,null,null,null,null,null,null,null,"","","","","","","","","",null,null,null,"","","","","","","","",""]
[23,null,null,0,null,null,null,null,null,null,null,null,null,null,"","","","","","","","","",null,null,null,"","","","","","","","",""]
[24,null,null,0,null,null,null,null,null,null,null,null,null,null,"","","","","","","","","",null,null,null,"","","","","","","","",""]
[25,null,null,0,null,null,null,null,null,null,null,null,null,null,"","","","","","","","","",null,null,null,"","","","","","","","",""]
[26,null,null,0,null,null,null,null,null,null,null,null,null,null,"","","","","","","","","",null,null,null,"","","","","","","","",""]
[27,null,null,0,null,null,null,null,null,null,null,null,null,null,"","","","","","","","","",null,null,null,"","","","","","","","",""]
[28,null,null,0,null,null,null,null,null,null,null,null,null,null,"","","","","","","","","",null,null,null,"","","","","","","","",""]
[29,null,null,0,null,null,null,null,null,null,null,null,null,null,"","","","","","","","","",null,null,null,"","","","","","","","",""]
[30,null,null,0,null,null,null,null,null,null,null,null,null,null,"","","","","","","","","",null,null,null,"","","","","","","","",""]
[31,null,null,0,null,null,null,null,null,null,null,null,null,null,"","","","","","","","","",null,null,null,"","","","","","","","",""]
[32,null,null,0,null,null,null,null,null,null,null,null,null,null,"","","","","","","","","",null,null,null,"","","","","","","","",""]
[33,null,null,{"$f":"IF(E38>0,500,0)","v":0},null,null,null,null,null,null,null,null,null,null,{"$f":"IF(ISERROR(VLOOKUP(AK38,Mitgliederliste,8,FALSE)),\"\",IF(Stichtag_verwenden=0,VLOOKUP(AK38,Mitgliederliste,3,FALSE),VLOOKUP(AK38,Mitgliederliste,8,FALSE)))","v":""},{"$f":"IF(ISERROR(VLOOKUP(AL38,Mitgliederliste,8,FALSE)),\"\",IF(Stichtag_verwenden=0,VLOOKUP(AL38,Mitgliederliste,3,FALSE),VLOOKUP(AL38,Mitgliederliste,8,FALSE)))","v":""},{"$f":"IF(ISERROR(VLOOKUP(AM38,Mitgliederliste,8,FALSE)),\"\",IF(Stichtag_verwenden=0,VLOOKUP(AM38,Mitgliederliste,3,FALSE),VLOOKUP(AM38,Mitgliederliste,8,FALSE)))","v":""},{"$f":"IF(ISERROR(VLOOKUP(AN38,Mitgliederliste,8,FALSE)),\"\",IF(Stichtag_verwenden=0,VLOOKUP(AN38,Mitgliederliste,3,FALSE),VLOOKUP(AN38,Mitgliederliste,8,FALSE)))","v":""},{"$f":"IF(ISERROR(VLOOKUP(AO38,Mitgliederliste,8,FALSE)),\"\",IF(Stichtag_verwenden=0,VLOOKUP(AO38,Mitgliederliste,3,FALSE),VLOOKUP(AO38,Mitgliederliste,8,FALSE)))","v":""},{"$f":"IF(ISERROR(VLOOKUP(AP38,Mitgliederliste,8,FALSE)),\"\",IF(Stichtag_verwenden=0,VLOOKUP(AP38,Mitgliederliste,3,FALSE),VLOOKUP(AP38,Mitgliederliste,8,FALSE)))","v":""},{"$f":"IF(ISERROR(VLOOKUP(AQ38,Mitgliederliste,8,FALSE)),\"\",IF(Stichtag_verwenden=0,VLOOKUP(AQ38,Mitgliederliste,3,FALSE),VLOOKUP(AQ38,Mitgliederliste,8,FALSE)))","v":""},{"$f":"IF(ISERROR(VLOOKUP(AR38,Mitgliederliste,8,FALSE)),\"\",IF(Stichtag_verwenden=0,VLOOKUP(AR38,Mitgliederliste,3,FALSE),VLOOKUP(AR38,Mitgliederliste,8,FALSE)))","v":""},{"$f":"IF(ISERROR(VLOOKUP(AS38,Mitgliederliste,8,FALSE)),\"\",IF(Stichtag_verwenden=0,VLOOKUP(AS38,Mitgliederliste,3,FALSE),VLOOKUP(AS38,Mitgliederliste,8,FALSE)))","v":""},null,null,null,{"$f":"IF(ISERROR(VLOOKUP(AK38,Mitgliederliste,2,FALSE)),\"\",VLOOKUP(AK38,Mitgliederliste,2,FALSE))","v":""},{"$f":"IF(ISERROR(VLOOKUP(AL38,Mitgliederliste,2,FALSE)),\"\",VLOOKUP(AL38,Mitgliederliste,2,FALSE))","v":""},{"$f":"IF(ISERROR(VLOOKUP(AM38,Mitgliederliste,2,FALSE)),\"\",VLOOKUP(AM38,Mitgliederliste,2,FALSE))","v":""},{"$f":"IF(ISERROR(VLOOKUP(AN38,Mitgliederliste,2,FALSE)),\"\",VLOOKUP(AN38,Mitgliederliste,2,FALSE))","v":""},{"$f":"IF(ISERROR(VLOOKUP(AO38,Mitgliederliste,2,FALSE)),\"\",VLOOKUP(AO38,Mitgliederliste,2,FALSE))","v":""},{"$f":"IF(ISERROR(VLOOKUP(AP38,Mitgliederliste,2,FALSE)),\"\",VLOOKUP(AP38,Mitgliederliste,2,FALSE))","v":""},{"$f":"IF(ISERROR(VLOOKUP(AQ38,Mitgliederliste,2,FALSE)),\"\",VLOOKUP(AQ38,Mitgliederliste,2,FALSE))","v":""},{"$f":"IF(ISERROR(VLOOKUP(AR38,Mitgliederliste,2,FALSE)),\"\",VLOOKUP(AR38,Mitgliederliste,2,FALSE))","v":""},{"$f":"IF(ISERROR(VLOOKUP(AS38,Mitgliederliste,2,FALSE)),\"\",VLOOKUP(AS38,Mitgliederliste,2,FALSE))","v":""}]
[34,null,null,0,null,null,null,null,null,null,null,null,null,null,"","","","","","","","","",null,null,null,"","","","","","","","",""]
[35,null,null,0,null,null,null,null,null,null,null,null,null,null,"","","","","","","","","",null,null,null,"","","","","","","","",""]
[36,null,null,0,null,null,null,null,null,null,null,null,null,null,"","","","","","","","","",null,null,null,"","","","","","","","",""]
[37,null,null,0,null,null,null,null,null,null,null,null,null,null,"","","","","","","","","",null,null,null,"","","","","","","","",""]
[38,null,null,0,null,null,null,null,null,null,null,null,null,null,"","","","","","","","","",null,null,null,"","","","","","","","",""]
[39,null,null,0,null,null,null,null,null,null,null,null,null,null,"","","","","","","","","",null,null,null,"","","","","","","","",""]
[40,null,null,0,null,null,null,null,null,null,null,null,null,null,"","","","","","","","","",null,null,null,"","","","","","","","",""]
[41,null,null,0,null,null,null,null,null,null,null,null,null,null,"","","","","","","","","",null,null,null,"","","","","","","","",""]
[42,null,null,0,null,null,null,null,null,null,null,null,null,null,"","","","","","","","","",null,null,null,"","","","","","","","",""]
[43,null,null,0,null,null,null,null,null,null,null,null,null,null,"","","","","","","","","",null,null,null,"","","","","","","","",""]
[44,null,null,0,null,null,null,null,null,null,null,null,null,null,"","","","","","","","","",null,null,null,"","","","","","","","",""]
[45,null,null,0,null,null,null,null,null,null,null,null,null,null,"","","","","","","","","",null,null,null,"","","","","","","","",""]
[46,null,null,0,null,null,null,null,null,null,null,null,null,null,"","","","","","","","","",null,null,null,"","","","","","","","",""]
[47,null,null,0,null,null,null,null,null,null,null,null,null,null,"","","","","","","","","",null,null,null,"","","","","","","","",""]
[48,null,null,0,null,null,null,null,null,null,null,null,null,null,"","","","","","","","","",null,null,null,"","","","","","","","",""]
[49,null,null,0,null,null,null,null,null,null,null,null,null,null,"","","","","","","","","",null,null,null,"","","","","","","","",""]
[50,null,null,0,null,null,null,null,null,null,null,null,null,null,"","","","","","","","","",null,null,null,"","","","","","","","",""]
[51,null,null,0,null,null,null,null,null,null,null,null,null,null,"","","","","","","","","",null,null,null,"","","","","","","","",""]
[52,null,null,0,null,null,null,null,null,null,null,null,null,null,"","","","","","","","","",null,null,null,"","","","","","","","",""]
[53,null,null,0,null,null,null,null,null,null,null,null,null,null,"","","","","","","","","",null,null,null,"","","","","","","","",""]
[54,null,null,0,null,null,null,null,null,null,null,null,null,null,"","","","","","","","","",null,null,null,"","","","","","","","",""]
[55,null,null,0,null,null,null,null,null,null,null,null,null,null,"","","","","","","","","",null,null,null,"","","","","","","","",""]
[56,null,null,0,null,null,null,null,null,null,null,null,null,null,"","","","","","","","","",null,null,null,"","","","","","","","",""]
[57,null,null,0,null,null,null,null,null,null,null,null,null,null,"","","","","","","","","",null,null,null,"","","","","","","","",""]
[58,null,null,0,null,null,null,null,null,null,null,null,null,null,"","","","","","","","","",null,null,null,"","","","","","","","",""]
[59,null,null,0,null,null,null,null,null,null,null,null,null,null,"","","","","","","","","",null,null,null,"","","","","","","","",""]
[60,null,null,0,null,null,null,null,null,null,null,null,null,null,"","","","","","","","","",null,null,null,"","","","","","","","",""]
[61,null,null,0,null,null,null,null,null,null,null,null,null,null,"","","","","","","","","",null,null,null,"","","","","","","","",""]
[62,null,null,0,null,null,null,null,null,null,null,null,null,null,"","","","","","","","","",null,null,null,"","","","","","","","",""]
[63,null,null,0,null,null,null,null,null,null,null,null,null,null,"","","","","","","","","",null,null,null,"","","","","","","","",""]
[64,null,null,0,null,null,null,null,null,null,null,null,null,null,"","","","","","","","","",null,null,null,"","","","","","","","",""]
[65,null,null,{"$f":"IF(E70>0,500,0)","v":0},null,null,null,null,null,null,null,null,null,null,{"$f":"IF(ISERROR(VLOOKUP(AK70,Mitgliederliste,8,FALSE)),\"\",IF(Stichtag_verwenden=0,VLOOKUP(AK70,Mitgliederliste,3,FALSE),VLOOKUP(AK70,Mitgliederliste,8,FALSE)))","v":""},{"$f":"IF(ISERROR(VLOOKUP(AL70,Mitgliederliste,8,FALSE)),\"\",IF(Stichtag_verwenden=0,VLOOKUP(AL70,Mitgliederliste,3,FALSE),VLOOKUP(AL70,Mitgliederliste,8,FALSE)))","v":""},{"$f":"IF(ISERROR(VLOOKUP(AM70,Mitgliederliste,8,FALSE)),\"\",IF(Stichtag_verwenden=0,VLOOKUP(AM70,Mitgliederliste,3,FALSE),VLOOKUP(AM70,Mitgliederliste,8,FALSE)))","v":""},{"$f":"IF(ISERROR(VLOOKUP(AN70,Mitgliederliste,8,FALSE)),\"\",IF(Stichtag_verwenden=0,VLOOKUP(AN70,Mitgliederliste,3,FALSE),VLOOKUP(AN70,Mitgliederliste,8,FALSE)))","v":""},{"$f":"IF(ISERROR(VLOOKUP(AO70,Mitgliederliste,8,FALSE)),\"\",IF(Stichtag_verwenden=0,VLOOKUP(AO70,Mitgliederliste,3,FALSE),VLOOKUP(AO70,Mitgliederliste,8,FALSE)))","v":""},{"$f":"IF(ISERROR(VLOOKUP(AP70,Mitgliederliste,8,FALSE)),\"\",IF(Stichtag_verwenden=0,VLOOKUP(AP70,Mitgliederliste,3,FALSE),VLOOKUP(AP70,Mitgliederliste,8,FALSE)))","v":""},{"$f":"IF(ISERROR(VLOOKUP(AQ70,Mitgliederliste,8,FALSE)),\"\",IF(Stichtag_verwenden=0,VLOOKUP(AQ70,Mitgliederliste,3,FALSE),VLOOKUP(AQ70,Mitgliederliste,8,FALSE)))","v":""},{"$f":"IF(ISERROR(VLOOKUP(AR70,Mitgliederliste,8,FALSE)),\"\",IF(Stichtag_verwenden=0,VLOOKUP(AR70,Mitgliederliste,3,FALSE),VLOOKUP(AR70,Mitgliederliste,8,FALSE)))","v":""},{"$f":"IF(ISERROR(VLOOKUP(AS70,Mitgliederliste,8,FALSE)),\"\",IF(Stichtag_verwenden=0,VLOOKUP(AS70,Mitgliederliste,3,FALSE),VLOOKUP(AS70,Mitgliederliste,8,FALSE)))","v":""},null,null,null,{"$f":"IF(ISERROR(VLOOKUP(AK70,Mitgliederliste,2,FALSE)),\"\",VLOOKUP(AK70,Mitgliederliste,2,FALSE))","v":""},{"$f":"IF(ISERROR(VLOOKUP(AL70,Mitgliederliste,2,FALSE)),\"\",VLOOKUP(AL70,Mitgliederliste,2,FALSE))","v":""},{"$f":"IF(ISERROR(VLOOKUP(AM70,Mitgliederliste,2,FALSE)),\"\",VLOOKUP(AM70,Mitgliederliste,2,FALSE))","v":""},{"$f":"IF(ISERROR(VLOOKUP(AN70,Mitgliederliste,2,FALSE)),\"\",VLOOKUP(AN70,Mitgliederliste,2,FALSE))","v":""},{"$f":"IF(ISERROR(VLOOKUP(AO70,Mitgliederliste,2,FALSE)),\"\",VLOOKUP(AO70,Mitgliederliste,2,FALSE))","v":""},{"$f":"IF(ISERROR(VLOOKUP(AP70,Mitgliederliste,2,FALSE)),\"\",VLOOKUP(AP70,Mitgliederliste,2,FALSE))","v":""},{"$f":"IF(ISERROR(VLOOKUP(AQ70,Mitgliederliste,2,FALSE)),\"\",VLOOKUP(AQ70,Mitgliederliste,2,FALSE))","v":""},{"$f":"IF(ISERROR(VLOOKUP(AR70,Mitgliederliste,2,FALSE)),\"\",VLOOKUP(AR70,Mitgliederliste,2,FALSE))","v":""},{"$f":"IF(ISERROR(VLOOKUP(AS70,Mitgliederliste,2,FALSE)),\"\",VLOOKUP(AS70,Mitgliederliste,2,FALSE))","v":""}]
[66,null,null,0,null,null,null,null,null,null,null,null,null,null,"","","","","","","","","",null,null,null,"","","","","","","","",""]
[67,null,null,0,null,null,null,null,null,null,null,null,null,null,"","","","","","","","","",null,null,null,"","","","","","","","",""]
[68,null,null,0,null,null,null,null,null,null,null,null,null,null,"","","","","","","","","",null,null,null,"","","","","","","","",""]
[69,null,null,0,null,null,null,null,null,null,null,null,null,null,"","","","","","","","","",null,null,null,"","","","","","","","",""]
[70,null,null,0,null,null,null,null,null,null,null,null,null,null,"","","","","","","","","",null,null,null,"","","","","","","","",""]

{"sheet":"AFK_Si_A","index":15,"n_rows":75,"n_cols":47,"rows_kept":75,"cut":false,"hidden":false,"merged":[]}
[{"$f":"Bewerbsart","v":"Abschnittsfeuerwehrleistungsbewerb"}]
[{"$f":"TEXT(Datum,\"T.MMMM JJJJ\")&\"  -  \"& Bewerbsort","v":"0.Jänner 1900  -  "}]
[{"$f":"AFK_Si_A","v":"AFK Silber A"}]
[null,null,null,null,"Löschangriff",null,"Staffellauf"]
["Platz","Nummer","Gruppe","Stammpunkte","Zeit","Fehler","Zeit","Fehler","Alters-\nPunkte","Gesamt- punkte","Löschangr","Staffell.","Jahre",null,"Geb1","Geb2","Geb3","Geb4","Geb5","Geb6","Geb7","Geb8","Geb9",null,null,"Urk. gedr.","Name1","Name2","Name3","Name4","Name5","Name6","Name7","Name8","Name9","FW-Nr","Stb1","Stb2","Stb3","Stb4","Stb5","Stb6","Stb7","Stb8","Stb9","Pokale","Anzahl Preise (Pokale):"]
[1,null,null,{"$f":"IF(E6>0,500,0)","v":0},null,null,null,null,null,null,null,null,null,null,{"$f":"IF(ISERROR(VLOOKUP(AK6,Mitgliederliste,8,FALSE)),\"\",IF(Stichtag_verwenden=0,VLOOKUP(AK6,Mitgliederliste,3,FALSE),VLOOKUP(AK6,Mitgliederliste,8,FALSE)))","v":""},{"$f":"IF(ISERROR(VLOOKUP(AL6,Mitgliederliste,8,FALSE)),\"\",IF(Stichtag_verwenden=0,VLOOKUP(AL6,Mitgliederliste,3,FALSE),VLOOKUP(AL6,Mitgliederliste,8,FALSE)))","v":""},{"$f":"IF(ISERROR(VLOOKUP(AM6,Mitgliederliste,8,FALSE)),\"\",IF(Stichtag_verwenden=0,VLOOKUP(AM6,Mitgliederliste,3,FALSE),VLOOKUP(AM6,Mitgliederliste,8,FALSE)))","v":""},{"$f":"IF(ISERROR(VLOOKUP(AN6,Mitgliederliste,8,FALSE)),\"\",IF(Stichtag_verwenden=0,VLOOKUP(AN6,Mitgliederliste,3,FALSE),VLOOKUP(AN6,Mitgliederliste,8,FALSE)))","v":""},{"$f":"IF(ISERROR(VLOOKUP(AO6,Mitgliederliste,8,FALSE)),\"\",IF(Stichtag_verwenden=0,VLOOKUP(AO6,Mitgliederliste,3,FALSE),VLOOKUP(AO6,Mitgliederliste,8,FALSE)))","v":""},{"$f":"IF(ISERROR(VLOOKUP(AP6,Mitgliederliste,8,FALSE)),\"\",IF(Stichtag_verwenden=0,VLOOKUP(AP6,Mitgliederliste,3,FALSE),VLOOKUP(AP6,Mitgliederliste,8,FALSE)))","v":""},{"$f":"IF(ISERROR(VLOOKUP(AQ6,Mitgliederliste,8,FALSE)),\"\",IF(Stichtag_verwenden=0,VLOOKUP(AQ6,Mitgliederliste,3,FALSE),VLOOKUP(AQ6,Mitgliederliste,8,FALSE)))","v":""},{"$f":"IF(ISERROR(VLOOKUP(AR6,Mitgliederliste,8,FALSE)),\"\",IF(Stichtag_verwenden=0,VLOOKUP(AR6,Mitgliederliste,3,FALSE),VLOOKUP(AR6,Mitgliederliste,8,FALSE)))","v":""},{"$f":"IF(ISERROR(VLOOKUP(AS6,Mitgliederliste,8,FALSE)),\"\",IF(Stichtag_verwenden=0,VLOOKUP(AS6,Mitgliederliste,3,FALSE),VLOOKUP(AS6,Mitgliederliste,8,FALSE)))","v":""},null,null,null,{"$f":"IF(ISERROR(VLOOKUP(AK6,Mitgliederliste,2,FALSE)),\"\",VLOOKUP(AK6,Mitgliederliste,2,FALSE))","v":""},{"$f":"IF(ISERROR(VLOOKUP(AL6,Mitgliederliste,2,FALSE)),\"\",VLOOKUP(AL6,Mitgliederliste,2,FALSE))","v":""},{"$f":"IF(ISERROR(VLOOKUP(AM6,Mitgliederliste,2,FALSE)),\"\",VLOOKUP(AM6,Mitgliederliste,2,FALSE))","v":""},{"$f":"IF(ISERROR(VLOOKUP(AN6,Mitgliederliste,2,FALSE)),\"\",VLOOKUP(AN6,Mitgliederliste,2,FALSE))","v":""},{"$f":"IF(ISERROR(VLOOKUP(AO6,Mitgliederliste,2,FALSE)),\"\",VLOOKUP(AO6,Mitgliederliste,2,FALSE))","v":""},{"$f":"IF(ISERROR(VLOOKUP(AP6,Mitgliederliste,2,FALSE)),\"\",VLOOKUP(AP6,Mitgliederliste,2,FALSE))","v":""},{"$f":"IF(ISERROR(VLOOKUP(AQ6,Mitgliederliste,2,FALSE)),\"\",VLOOKUP(AQ6,Mitgliederliste,2,FALSE))","v":""},{"$f":"IF(ISERROR(VLOOKUP(AR6,Mitgliederliste,2,FALSE)),\"\",VLOOKUP(AR6,Mitgliederliste,2,FALSE))","v":""},{"$f":"IF(ISERROR(VLOOKUP(AS6,Mitgliederliste,2,FALSE)),\"\",VLOOKUP(AS6,Mitgliederliste,2,FALSE))","v":""},null,null,null,null,null,null,null,null,null,null,null,"Für AFK-"]
[2,null,null,0,null,null,null,null,null,null,null,null,null,null,"","","","","","","","","",null,null,null,"","","","","","","","","",null,null,null,null,null,null,null,null,null,null,null,"Gruppen "]
[3,null,null,0,null,null,null,null,null,null,null,null,null,null,"","","","","","","","","",null,null,null,"","","","","","","","","",null,null,null,null,null,null,null,null,null,null,null,"keine Preise"]
[4,null,null,0,null,null,null,null,null,null,null,null,null,null,"","","","","","","","","",null,null,null,"","","","","","","","","",null,null,null,null,null,null,null,null,null,null,null,"zu vergeben"]
[5,null,null,0,null,null,null,null,null,null,null,null,null,null,"","","","","","","","","",null,null,null,"","","","","","","","",""]
[6,null,null,0,null,null,null,null,null,null,null,null,null,null,"","","","","","","","","",null,null,null,"","","","","","","","",""]
[7,null,null,0,null,null,null,null,null,null,null,null,null,null,"","","","","","","","","",null,null,null,"","","","","","","","",""]
[8,null,null,0,null,null,null,null,null,null,null,null,null,null,"","","","","","","","","",null,null,null,"","","","","","","","",""]
[9,null,null,0,null,null,null,null,null,null,null,null,null,null,"","","","","","","","","",null,null,null,"","","","","","","","",""]
[10,null,null,0,null,null,null,null,null,null,null,null,null,null,"","","","","","","","","",null,null,null,"","","","","","","","",""]
[11,null,null,0,null,null,null,null,null,null,null,null,null,null,"","","","","","","","","",null,null,null,"","","","","","","","",""]
[12,null,null,0,null,null,null,null,null,null,null,null,null,null,"","","","","","","","","",null,null,null,"","","","","","","","",""]
[13,null,null,0,null,null,null,null,null,null,null,null,null,null,"","","","","","","","","",null,null,null,"","","","","","","","",""]
[14,null,null,0,null,null,null,null,null,null,null,null,null,null,"","","","","","","","","",null,null,null,"","","","","","","","",""]
[15,null,null,0,null,null,null,null,null,null,null,null,null,null,"","","","","","","","","",null,null,null,"","","","","","","","",""]
[16,null,null,0,null,null,null,null,null,null,null,null,null,null,"","","","","","","","","",null,null,null,"","","","","","","","",""]
[17,null,null,0,null,null,null,null,null,null,null,null,null,null,"","","","","","","","","",null,null,null,"","","","","","","","",""]
[18,null,null,0,null,null,null,null,null,null,null,null,null,null,"","","","","","","","","",null,null,null,"","","","","","","","",""]
[19,null,null,0,null,null,null,null,null,null,null,null,null,null,"","","","","","","","","",null,null,null,"","","","","","","","",""]
[20,null,null,0,null,null,null,null,null,null,null,null,null,null,"","","","","","","","","",null,null,null,"","","","","","","","",""]
[21,null,null,0,null,null,null,null,null,null,null,null,null,null,"","","","","","","","","",null,null,null,"","","","","","","","",""]
[22,null,null,0,null,null,null,null,null,null,null,null,null,null,"","","","","","","","","",null,null,null,"","","","","","","","",""]
[23,null,null,0,null,null,null,null,null,null,null,null,null,null,"","","","","","","","","",null,null,null,"","","","","","","","",""]
[24,null,null,0,null,null,null,null,null,null,null,null,null,null,"","","","","","","","","",null,null,null,"","","","","","","","",""]
[25,null,null,0,null,null,null,null,null,null,null,null,null,null,"","","","","","","","","",null,null,null,"","","","","","","","",""]
[26,null,null,0,null,null,null,null,null,null,null,null,null,null,"","","","","","","","","",null,null,null,"","","","","","","","",""]
[27,null,null,0,null,null,null,null,null,null,null,null,null,null,"","","","","","","","","",null,null,null,"","","","","","","","",""]
[28,null,null,0,null,null,null,null,null,null,null,null,null,null,"","","","","","","","","",null,null,null,"","","","","","","","",""]
[29,null,null,0,null,null,null,null,null,null,null,null,null,null,"","","","","","","","","",null,null,null,"","","","","","","","",""]
[30,null,null,0,null,null,null,null,null,null,null,null,null,null,"","","","","","","","","",null,null,null,"","","","","","","","",""]
[31,null,null,0,null,null,null,null,null,null,null,null,null,null,"","","","","","","","","",null,null,null,"","","","","","","","",""]
[32,null,null,0,null,null,null,null,null,null,null,null,null,null,"","","","","","","","","",null,null,null,"","","","","","","","",""]
[33,null,null,{"$f":"IF(E38>0,500,0)","v":0},null,null,null,null,null,null,null,null,null,null,{"$f":"IF(ISERROR(VLOOKUP(AK38,Mitgliederliste,8,FALSE)),\"\",IF(Stichtag_verwenden=0,VLOOKUP(AK38,Mitgliederliste,3,FALSE),VLOOKUP(AK38,Mitgliederliste,8,FALSE)))","v":""},{"$f":"IF(ISERROR(VLOOKUP(AL38,Mitgliederliste,8,FALSE)),\"\",IF(Stichtag_verwenden=0,VLOOKUP(AL38,Mitgliederliste,3,FALSE),VLOOKUP(AL38,Mitgliederliste,8,FALSE)))","v":""},{"$f":"IF(ISERROR(VLOOKUP(AM38,Mitgliederliste,8,FALSE)),\"\",IF(Stichtag_verwenden=0,VLOOKUP(AM38,Mitgliederliste,3,FALSE),VLOOKUP(AM38,Mitgliederliste,8,FALSE)))","v":""},{"$f":"IF(ISERROR(VLOOKUP(AN38,Mitgliederliste,8,FALSE)),\"\",IF(Stichtag_verwenden=0,VLOOKUP(AN38,Mitgliederliste,3,FALSE),VLOOKUP(AN38,Mitgliederliste,8,FALSE)))","v":""},{"$f":"IF(ISERROR(VLOOKUP(AO38,Mitgliederliste,8,FALSE)),\"\",IF(Stichtag_verwenden=0,VLOOKUP(AO38,Mitgliederliste,3,FALSE),VLOOKUP(AO38,Mitgliederliste,8,FALSE)))","v":""},{"$f":"IF(ISERROR(VLOOKUP(AP38,Mitgliederliste,8,FALSE)),\"\",IF(Stichtag_verwenden=0,VLOOKUP(AP38,Mitgliederliste,3,FALSE),VLOOKUP(AP38,Mitgliederliste,8,FALSE)))","v":""},{"$f":"IF(ISERROR(VLOOKUP(AQ38,Mitgliederliste,8,FALSE)),\"\",IF(Stichtag_verwenden=0,VLOOKUP(AQ38,Mitgliederliste,3,FALSE),VLOOKUP(AQ38,Mitgliederliste,8,FALSE)))","v":""},{"$f":"IF(ISERROR(VLOOKUP(AR38,Mitgliederliste,8,FALSE)),\"\",IF(Stichtag_verwenden=0,VLOOKUP(AR38,Mitgliederliste,3,FALSE),VLOOKUP(AR38,Mitgliederliste,8,FALSE)))","v":""},{"$f":"IF(ISERROR(VLOOKUP(AS38,Mitgliederliste,8,FALSE)),\"\",IF(Stichtag_verwenden=0,VLOOKUP(AS38,Mitgliederliste,3,FALSE),VLOOKUP(AS38,Mitgliederliste,8,FALSE)))","v":""},null,null,null,{"$f":"IF(ISERROR(VLOOKUP(AK38,Mitgliederliste,2,FALSE)),\"\",VLOOKUP(AK38,Mitgliederliste,2,FALSE))","v":""},{"$f":"IF(ISERROR(VLOOKUP(AL38,Mitgliederliste,2,FALSE)),\"\",VLOOKUP(AL38,Mitgliederliste,2,FALSE))","v":""},{"$f":"IF(ISERROR(VLOOKUP(AM38,Mitgliederliste,2,FALSE)),\"\",VLOOKUP(AM38,Mitgliederliste,2,FALSE))","v":""},{"$f":"IF(ISERROR(VLOOKUP(AN38,Mitgliederliste,2,FALSE)),\"\",VLOOKUP(AN38,Mitgliederliste,2,FALSE))","v":""},{"$f":"IF(ISERROR(VLOOKUP(AO38,Mitgliederliste,2,FALSE)),\"\",VLOOKUP(AO38,Mitgliederliste,2,FALSE))","v":""},{"$f":"IF(ISERROR(VLOOKUP(AP38,Mitgliederliste,2,FALSE)),\"\",VLOOKUP(AP38,Mitgliederliste,2,FALSE))","v":""},{"$f":"IF(ISERROR(VLOOKUP(AQ38,Mitgliederliste,2,FALSE)),\"\",VLOOKUP(AQ38,Mitgliederliste,2,FALSE))","v":""},{"$f":"IF(ISERROR(VLOOKUP(AR38,Mitgliederliste,2,FALSE)),\"\",VLOOKUP(AR38,Mitgliederliste,2,FALSE))","v":""},{"$f":"IF(ISERROR(VLOOKUP(AS38,Mitgliederliste,2,FALSE)),\"\",VLOOKUP(AS38,Mitgliederliste,2,FALSE))","v":""}]
[34,null,null,0,null,null,null,null,null,null,null,null,null,null,"","","","","","","","","",null,null,null,"","","","","","","","",""]
[35,null,null,0,null,null,null,null,null,null,null,null,null,null,"","","","","","","","","",null,null,null,"","","","","","","","",""]
[36,null,null,0,null,null,null,null,null,null,null,null,null,null,"","","","","","","","","",null,null,null,"","","","","","","","",""]
[37,null,null,0,null,null,null,null,null,null,null,null,null,null,"","","","","","","","","",null,null,null,"","","","","","","","",""]
[38,null,null,0,null,null,null,null,null,null,null,null,null,null,"","","","","","","","","",null,null,null,"","","","","","","","",""]
[39,null,null,0,null,null,null,null,null,null,null,null,null,null,"","","","","","","","","",null,null,null,"","","","","","","","",""]
[40,null,null,0,null,null,null,null,null,null,null,null,null,null,"","","","","","","","","",null,null,null,"","","","","","","","",""]
[41,null,null,0,null,null,null,null,null,null,null,null,null,null,"","","","","","","","","",null,null,null,"","","","","","","","",""]
[42,null,null,0,null,null,null,null,null,null,null,null,null,null,"","","","","","","","","",null,null,null,"","","","","","","","",""]
[43,null,null,0,null,null,null,null,null,null,null,null,null,null,"","","","","","","","","",null,null,null,"","","","","","","","",""]
[44,null,null,0,null,null,null,null,null,null,null,null,null,null,"","","","","","","","","",null,null,null,"","","","","","","","",""]
[45,null,null,0,null,null,null,null,null,null,null,null,null,null,"","","","","","","","","",null,null,null,"","","","","","","","",""]
[46,null,null,0,null,null,null,null,null,null,null,null,null,null,"","","","","","","","","",null,null,null,"","","","","","","","",""]
[47,null,null,0,null,null,null,null,null,null,null,null,null,null,"","","","","","","","","",null,null,null,"","","","","","","","",""]
[48,null,null,0,null,null,null,null,null,null,null,null,null,null,"","","","","","","","","",null,null,null,"","","","","","","","",""]
[49,null,null,0,null,null,null,null,null,null,null,null,null,null,"","","","","","","","","",null,null,null,"","","","","","","","",""]
[50,null,null,0,null,null,null,null,null,null,null,null,null,null,"","","","","","","","","",null,null,null,"","","","","","","","",""]
[51,null,null,0,null,null,null,null,null,null,null,null,null,null,"","","","","","","","","",null,null,null,"","","","","","","","",""]
[52,null,null,0,null,null,null,null,null,null,null,null,null,null,"","","","","","","","","",null,null,null,"","","","","","","","",""]
[53,null,null,0,null,null,null,null,null,null,null,null,null,null,"","","","","","","","","",null,null,null,"","","","","","","","",""]
[54,null,null,0,null,null,null,null,null,null,null,null,null,null,"","","","","","","","","",null,null,null,"","","","","","","","",""]
[55,null,null,0,null,null,null,null,null,null,null,null,null,null,"","","","","","","","","",null,null,null,"","","","","","","","",""]
[56,null,null,0,null,null,null,null,null,null,null,null,null,null,"","","","","","","","","",null,null,null,"","","","","","","","",""]
[57,null,null,0,null,null,null,null,null,null,null,null,null,null,"","","","","","","","","",null,null,null,"","","","","","","","",""]
[58,null,null,0,null,null,null,null,null,null,null,null,null,null,"","","","","","","","","",null,null,null,"","","","","","","","",""]
[59,null,null,0,null,null,null,null,null,null,null,null,null,null,"","","","","","","","","",null,null,null,"","","","","","","","",""]
[60,null,null,0,null,null,null,null,null,null,null,null,null,null,"","","","","","","","","",null,null,null,"","","","","","","","",""]
[61,null,null,0,null,null,null,null,null,null,null,null,null,null,"","","","","","","","","",null,null,null,"","","","","","","","",""]
[62,null,null,0,null,null,null,null,null,null,null,null,null,null,"","","","","","","","","",null,null,null,"","","","","","","","",""]
[63,null,null,0,null,null,null,null,null,null,null,null,null,null,"","","","","","","","","",null,null,null,"","","","","","","","",""]
[64,null,null,0,null,null,null,null,null,null,null,null,null,null,"","","","","","","","","",null,null,null,"","","","","","","","",""]
[65,null,null,{"$f":"IF(E70>0,500,0)","v":0},null,null,null,null,null,null,null,null,null,null,{"$f":"IF(ISERROR(VLOOKUP(AK70,Mitgliederliste,8,FALSE)),\"\",IF(Stichtag_verwenden=0,VLOOKUP(AK70,Mitgliederliste,3,FALSE),VLOOKUP(AK70,Mitgliederliste,8,FALSE)))","v":""},{"$f":"IF(ISERROR(VLOOKUP(AL70,Mitgliederliste,8,FALSE)),\"\",IF(Stichtag_verwenden=0,VLOOKUP(AL70,Mitgliederliste,3,FALSE),VLOOKUP(AL70,Mitgliederliste,8,FALSE)))","v":""},{"$f":"IF(ISERROR(VLOOKUP(AM70,Mitgliederliste,8,FALSE)),\"\",IF(Stichtag_verwenden=0,VLOOKUP(AM70,Mitgliederliste,3,FALSE),VLOOKUP(AM70,Mitgliederliste,8,FALSE)))","v":""},{"$f":"IF(ISERROR(VLOOKUP(AN70,Mitgliederliste,8,FALSE)),\"\",IF(Stichtag_verwenden=0,VLOOKUP(AN70,Mitgliederliste,3,FALSE),VLOOKUP(AN70,Mitgliederliste,8,FALSE)))","v":""},{"$f":"IF(ISERROR(VLOOKUP(AO70,Mitgliederliste,8,FALSE)),\"\",IF(Stichtag_verwenden=0,VLOOKUP(AO70,Mitgliederliste,3,FALSE),VLOOKUP(AO70,Mitgliederliste,8,FALSE)))","v":""},{"$f":"IF(ISERROR(VLOOKUP(AP70,Mitgliederliste,8,FALSE)),\"\",IF(Stichtag_verwenden=0,VLOOKUP(AP70,Mitgliederliste,3,FALSE),VLOOKUP(AP70,Mitgliederliste,8,FALSE)))","v":""},{"$f":"IF(ISERROR(VLOOKUP(AQ70,Mitgliederliste,8,FALSE)),\"\",IF(Stichtag_verwenden=0,VLOOKUP(AQ70,Mitgliederliste,3,FALSE),VLOOKUP(AQ70,Mitgliederliste,8,FALSE)))","v":""},{"$f":"IF(ISERROR(VLOOKUP(AR70,Mitgliederliste,8,FALSE)),\"\",IF(Stichtag_verwenden=0,VLOOKUP(AR70,Mitgliederliste,3,FALSE),VLOOKUP(AR70,Mitgliederliste,8,FALSE)))","v":""},{"$f":"IF(ISERROR(VLOOKUP(AS70,Mitgliederliste,8,FALSE)),\"\",IF(Stichtag_verwenden=0,VLOOKUP(AS70,Mitgliederliste,3,FALSE),VLOOKUP(AS70,Mitgliederliste,8,FALSE)))","v":""},null,null,null,{"$f":"IF(ISERROR(VLOOKUP(AK70,Mitgliederliste,2,FALSE)),\"\",VLOOKUP(AK70,Mitgliederliste,2,FALSE))","v":""},{"$f":"IF(ISERROR(VLOOKUP(AL70,Mitgliederliste,2,FALSE)),\"\",VLOOKUP(AL70,Mitgliederliste,2,FALSE))","v":""},{"$f":"IF(ISERROR(VLOOKUP(AM70,Mitgliederliste,2,FALSE)),\"\",VLOOKUP(AM70,Mitgliederliste,2,FALSE))","v":""},{"$f":"IF(ISERROR(VLOOKUP(AN70,Mitgliederliste,2,FALSE)),\"\",VLOOKUP(AN70,Mitgliederliste,2,FALSE))","v":""},{"$f":"IF(ISERROR(VLOOKUP(AO70,Mitgliederliste,2,FALSE)),\"\",VLOOKUP(AO70,Mitgliederliste,2,FALSE))","v":""},{"$f":"IF(ISERROR(VLOOKUP(AP70,Mitgliederliste,2,FALSE)),\"\",VLOOKUP(AP70,Mitgliederliste,2,FALSE))","v":""},{"$f":"IF(ISERROR(VLOOKUP(AQ70,Mitgliederliste,2,FALSE)),\"\",VLOOKUP(AQ70,Mitgliederliste,2,FALSE))","v":""},{"$f":"IF(ISERROR(VLOOKUP(AR70,Mitgliederliste,2,FALSE)),\"\",VLOOKUP(AR70,Mitgliederliste,2,FALSE))","v":""},{"$f":"IF(ISERROR(VLOOKUP(AS70,Mitgliederliste,2,FALSE)),\"\",VLOOKUP(AS70,Mitgliederliste,2,FALSE))","v":""}]
[66,null,null,0,null,null,null,null,null,null,null,null,null,null,"","","","","","","","","",null,null,null,"","","","","","","","",""]
[67,null,null,0,null,null,null,null,null,null,null,null,null,null,"","","","","","","","","",null,null,null,"","","","","","","","",""]
[68,null,null,0,null,null,null,null,null,null,null,null,null,null,"","","","","","","","","",null,null,null,"","","","","","","","",""]
[69,null,null,0,null,null,null,null,null,null,null,null,null,null,"","","","","","","","","",null,null,null,"","","","","","","","",""]
[70,null,null,0,null,null,null,null,null,null,null,null,null,null,"","","","","","","","","",null,null,null,"","","","","","","","",""]

{"sheet":"AFK_Br_B","index":16,"n_rows":75,"n_cols":47,"rows_kept":75,"cut":false,"hidden":false,"merged":[]}
[{"$f":"Bewerbsart","v":"Abschnittsfeuerwehrleistungsbewerb"}]
[{"$f":"TEXT(Datum,\"T.MMMM JJJJ\")&\"  -  \"& Bewerbsort","v":"0.Jänner 1900  -  "}]
[{"$f":"AFK_Br_B","v":"AFK Bronze B"}]
[null,null,null,null,"Löschangriff",null,"Staffellauf"]
["Platz","Nummer","Gruppe","Stammpunkte","Zeit","Fehler","Zeit","Fehler","Alters-\nPunkte","Gesamt- punkte","Löschangr","Staffell.","Jahre",null,"Geb1","Geb2","Geb3","Geb4","Geb5","Geb6","Geb7","Geb8","Geb9",null,null,"Urk. gedr.","Name1","Name2","Name3","Name4","Name5","Name6","Name7","Name8","Name9","FW-Nr","Stb1","Stb2","Stb3","Stb4","Stb5","Stb6","Stb7","Stb8","Stb9","Pokale","Anzahl Preise (Pokale):"]
[1,null,null,{"$f":"IF(E6>0,500,0)","v":0},null,null,null,null,null,null,null,null,null,null,{"$f":"IF(ISERROR(VLOOKUP(AK6,Mitgliederliste,8,FALSE)),\"\",IF(Stichtag_verwenden=0,VLOOKUP(AK6,Mitgliederliste,3,FALSE),VLOOKUP(AK6,Mitgliederliste,8,FALSE)))","v":""},{"$f":"IF(ISERROR(VLOOKUP(AL6,Mitgliederliste,8,FALSE)),\"\",IF(Stichtag_verwenden=0,VLOOKUP(AL6,Mitgliederliste,3,FALSE),VLOOKUP(AL6,Mitgliederliste,8,FALSE)))","v":""},{"$f":"IF(ISERROR(VLOOKUP(AM6,Mitgliederliste,8,FALSE)),\"\",IF(Stichtag_verwenden=0,VLOOKUP(AM6,Mitgliederliste,3,FALSE),VLOOKUP(AM6,Mitgliederliste,8,FALSE)))","v":""},{"$f":"IF(ISERROR(VLOOKUP(AN6,Mitgliederliste,8,FALSE)),\"\",IF(Stichtag_verwenden=0,VLOOKUP(AN6,Mitgliederliste,3,FALSE),VLOOKUP(AN6,Mitgliederliste,8,FALSE)))","v":""},{"$f":"IF(ISERROR(VLOOKUP(AO6,Mitgliederliste,8,FALSE)),\"\",IF(Stichtag_verwenden=0,VLOOKUP(AO6,Mitgliederliste,3,FALSE),VLOOKUP(AO6,Mitgliederliste,8,FALSE)))","v":""},{"$f":"IF(ISERROR(VLOOKUP(AP6,Mitgliederliste,8,FALSE)),\"\",IF(Stichtag_verwenden=0,VLOOKUP(AP6,Mitgliederliste,3,FALSE),VLOOKUP(AP6,Mitgliederliste,8,FALSE)))","v":""},{"$f":"IF(ISERROR(VLOOKUP(AQ6,Mitgliederliste,8,FALSE)),\"\",IF(Stichtag_verwenden=0,VLOOKUP(AQ6,Mitgliederliste,3,FALSE),VLOOKUP(AQ6,Mitgliederliste,8,FALSE)))","v":""},{"$f":"IF(ISERROR(VLOOKUP(AR6,Mitgliederliste,8,FALSE)),\"\",IF(Stichtag_verwenden=0,VLOOKUP(AR6,Mitgliederliste,3,FALSE),VLOOKUP(AR6,Mitgliederliste,8,FALSE)))","v":""},{"$f":"IF(ISERROR(VLOOKUP(AS6,Mitgliederliste,8,FALSE)),\"\",IF(Stichtag_verwenden=0,VLOOKUP(AS6,Mitgliederliste,3,FALSE),VLOOKUP(AS6,Mitgliederliste,8,FALSE)))","v":""},null,null,null,{"$f":"IF(ISERROR(VLOOKUP(AK6,Mitgliederliste,2,FALSE)),\"\",VLOOKUP(AK6,Mitgliederliste,2,FALSE))","v":""},{"$f":"IF(ISERROR(VLOOKUP(AL6,Mitgliederliste,2,FALSE)),\"\",VLOOKUP(AL6,Mitgliederliste,2,FALSE))","v":""},{"$f":"IF(ISERROR(VLOOKUP(AM6,Mitgliederliste,2,FALSE)),\"\",VLOOKUP(AM6,Mitgliederliste,2,FALSE))","v":""},{"$f":"IF(ISERROR(VLOOKUP(AN6,Mitgliederliste,2,FALSE)),\"\",VLOOKUP(AN6,Mitgliederliste,2,FALSE))","v":""},{"$f":"IF(ISERROR(VLOOKUP(AO6,Mitgliederliste,2,FALSE)),\"\",VLOOKUP(AO6,Mitgliederliste,2,FALSE))","v":""},{"$f":"IF(ISERROR(VLOOKUP(AP6,Mitgliederliste,2,FALSE)),\"\",VLOOKUP(AP6,Mitgliederliste,2,FALSE))","v":""},{"$f":"IF(ISERROR(VLOOKUP(AQ6,Mitgliederliste,2,FALSE)),\"\",VLOOKUP(AQ6,Mitgliederliste,2,FALSE))","v":""},{"$f":"IF(ISERROR(VLOOKUP(AR6,Mitgliederliste,2,FALSE)),\"\",VLOOKUP(AR6,Mitgliederliste,2,FALSE))","v":""},{"$f":"IF(ISERROR(VLOOKUP(AS6,Mitgliederliste,2,FALSE)),\"\",VLOOKUP(AS6,Mitgliederliste,2,FALSE))","v":""},null,null,null,null,null,null,null,null,null,null,null,"Für AFK-"]
[2,null,null,0,null,null,null,null,null,null,null,null,null,null,"","","","","","","","","",null,null,null,"","","","","","","","","",null,null,null,null,null,null,null,null,null,null,null,"Gruppen "]
[3,null,null,0,null,null,null,null,null,null,null,null,null,null,"","","","","","","","","",null,null,null,"","","","","","","","","",null,null,null,null,null,null,null,null,null,null,null,"keine Preise"]
[4,null,null,0,null,null,null,null,null,null,null,null,null,null,"","","","","","","","","",null,null,null,"","","","","","","","","",null,null,null,null,null,null,null,null,null,null,null,"zu vergeben"]
[5,null,null,0,null,null,null,null,null,null,null,null,null,null,"","","","","","","","","",null,null,null,"","","","","","","","",""]
[6,null,null,0,null,null,null,null,null,null,null,null,null,null,"","","","","","","","","",null,null,null,"","","","","","","","",""]
[7,null,null,0,null,null,null,null,null,null,null,null,null,null,"","","","","","","","","",null,null,null,"","","","","","","","",""]
[8,null,null,0,null,null,null,null,null,null,null,null,null,null,"","","","","","","","","",null,null,null,"","","","","","","","",""]
[9,null,null,0,null,null,null,null,null,null,null,null,null,null,"","","","","","","","","",null,null,null,"","","","","","","","",""]
[10,null,null,0,null,null,null,null,null,null,null,null,null,null,"","","","","","","","","",null,null,null,"","","","","","","","",""]
[11,null,null,0,null,null,null,null,null,null,null,null,null,null,"","","","","","","","","",null,null,null,"","","","","","","","",""]
[12,null,null,0,null,null,null,null,null,null,null,null,null,null,"","","","","","","","","",null,null,null,"","","","","","","","",""]
[13,null,null,0,null,null,null,null,null,null,null,null,null,null,"","","","","","","","","",null,null,null,"","","","","","","","",""]
[14,null,null,0,null,null,null,null,null,null,null,null,null,null,"","","","","","","","","",null,null,null,"","","","","","","","",""]
[15,null,null,0,null,null,null,null,null,null,null,null,null,null,"","","","","","","","","",null,null,null,"","","","","","","","",""]
[16,null,null,0,null,null,null,null,null,null,null,null,null,null,"","","","","","","","","",null,null,null,"","","","","","","","",""]
[17,null,null,0,null,null,null,null,null,null,null,null,null,null,"","","","","","","","","",null,null,null,"","","","","","","","",""]
[18,null,null,0,null,null,null,null,null,null,null,null,null,null,"","","","","","","","","",null,null,null,"","","","","","","","",""]
[19,null,null,0,null,null,null,null,null,null,null,null,null,null,"","","","","","","","","",null,null,null,"","","","","","","","",""]
[20,null,null,0,null,null,null,null,null,null,null,null,null,null,"","","","","","","","","",null,null,null,"","","","","","","","",""]
[21,null,null,0,null,null,null,null,null,null,null,null,null,null,"","","","","","","","","",null,null,null,"","","","","","","","",""]
[22,null,null,0,null,null,null,null,null,null,null,null,null,null,"","","","","","","","","",null,null,null,"","","","","","","","",""]
[23,null,null,0,null,null,null,null,null,null,null,null,null,null,"","","","","","","","","",null,null,null,"","","","","","","","",""]
[24,null,null,0,null,null,null,null,null,null,null,null,null,null,"","","","","","","","","",null,null,null,"","","","","","","","",""]
[25,null,null,0,null,null,null,null,null,null,null,null,null,null,"","","","","","","","","",null,null,null,"","","","","","","","",""]
[26,null,null,0,null,null,null,null,null,null,null,null,null,null,"","","","","","","","","",null,null,null,"","","","","","","","",""]
[27,null,null,0,null,null,null,null,null,null,null,null,null,null,"","","","","","","","","",null,null,null,"","","","","","","","",""]
[28,null,null,0,null,null,null,null,null,null,null,null,null,null,"","","","","","","","","",null,null,null,"","","","","","","","",""]
[29,null,null,0,null,null,null,null,null,null,null,null,null,null,"","","","","","","","","",null,null,null,"","","","","","","","",""]
[30,null,null,0,null,null,null,null,null,null,null,null,null,null,"","","","","","","","","",null,null,null,"","","","","","","","",""]
[31,null,null,0,null,null,null,null,null,null,null,null,null,null,"","","","","","","","","",null,null,null,"","","","","","","","",""]
[32,null,null,0,null,null,null,null,null,null,null,null,null,null,"","","","","","","","","",null,null,null,"","","","","","","","",""]
[33,null,null,{"$f":"IF(E38>0,500,0)","v":0},null,null,null,null,null,null,null,null,null,null,{"$f":"IF(ISERROR(VLOOKUP(AK38,Mitgliederliste,8,FALSE)),\"\",IF(Stichtag_verwenden=0,VLOOKUP(AK38,Mitgliederliste,3,FALSE),VLOOKUP(AK38,Mitgliederliste,8,FALSE)))","v":""},{"$f":"IF(ISERROR(VLOOKUP(AL38,Mitgliederliste,8,FALSE)),\"\",IF(Stichtag_verwenden=0,VLOOKUP(AL38,Mitgliederliste,3,FALSE),VLOOKUP(AL38,Mitgliederliste,8,FALSE)))","v":""},{"$f":"IF(ISERROR(VLOOKUP(AM38,Mitgliederliste,8,FALSE)),\"\",IF(Stichtag_verwenden=0,VLOOKUP(AM38,Mitgliederliste,3,FALSE),VLOOKUP(AM38,Mitgliederliste,8,FALSE)))","v":""},{"$f":"IF(ISERROR(VLOOKUP(AN38,Mitgliederliste,8,FALSE)),\"\",IF(Stichtag_verwenden=0,VLOOKUP(AN38,Mitgliederliste,3,FALSE),VLOOKUP(AN38,Mitgliederliste,8,FALSE)))","v":""},{"$f":"IF(ISERROR(VLOOKUP(AO38,Mitgliederliste,8,FALSE)),\"\",IF(Stichtag_verwenden=0,VLOOKUP(AO38,Mitgliederliste,3,FALSE),VLOOKUP(AO38,Mitgliederliste,8,FALSE)))","v":""},{"$f":"IF(ISERROR(VLOOKUP(AP38,Mitgliederliste,8,FALSE)),\"\",IF(Stichtag_verwenden=0,VLOOKUP(AP38,Mitgliederliste,3,FALSE),VLOOKUP(AP38,Mitgliederliste,8,FALSE)))","v":""},{"$f":"IF(ISERROR(VLOOKUP(AQ38,Mitgliederliste,8,FALSE)),\"\",IF(Stichtag_verwenden=0,VLOOKUP(AQ38,Mitgliederliste,3,FALSE),VLOOKUP(AQ38,Mitgliederliste,8,FALSE)))","v":""},{"$f":"IF(ISERROR(VLOOKUP(AR38,Mitgliederliste,8,FALSE)),\"\",IF(Stichtag_verwenden=0,VLOOKUP(AR38,Mitgliederliste,3,FALSE),VLOOKUP(AR38,Mitgliederliste,8,FALSE)))","v":""},{"$f":"IF(ISERROR(VLOOKUP(AS38,Mitgliederliste,8,FALSE)),\"\",IF(Stichtag_verwenden=0,VLOOKUP(AS38,Mitgliederliste,3,FALSE),VLOOKUP(AS38,Mitgliederliste,8,FALSE)))","v":""},null,null,null,{"$f":"IF(ISERROR(VLOOKUP(AK38,Mitgliederliste,2,FALSE)),\"\",VLOOKUP(AK38,Mitgliederliste,2,FALSE))","v":""},{"$f":"IF(ISERROR(VLOOKUP(AL38,Mitgliederliste,2,FALSE)),\"\",VLOOKUP(AL38,Mitgliederliste,2,FALSE))","v":""},{"$f":"IF(ISERROR(VLOOKUP(AM38,Mitgliederliste,2,FALSE)),\"\",VLOOKUP(AM38,Mitgliederliste,2,FALSE))","v":""},{"$f":"IF(ISERROR(VLOOKUP(AN38,Mitgliederliste,2,FALSE)),\"\",VLOOKUP(AN38,Mitgliederliste,2,FALSE))","v":""},{"$f":"IF(ISERROR(VLOOKUP(AO38,Mitgliederliste,2,FALSE)),\"\",VLOOKUP(AO38,Mitgliederliste,2,FALSE))","v":""},{"$f":"IF(ISERROR(VLOOKUP(AP38,Mitgliederliste,2,FALSE)),\"\",VLOOKUP(AP38,Mitgliederliste,2,FALSE))","v":""},{"$f":"IF(ISERROR(VLOOKUP(AQ38,Mitgliederliste,2,FALSE)),\"\",VLOOKUP(AQ38,Mitgliederliste,2,FALSE))","v":""},{"$f":"IF(ISERROR(VLOOKUP(AR38,Mitgliederliste,2,FALSE)),\"\",VLOOKUP(AR38,Mitgliederliste,2,FALSE))","v":""},{"$f":"IF(ISERROR(VLOOKUP(AS38,Mitgliederliste,2,FALSE)),\"\",VLOOKUP(AS38,Mitgliederliste,2,FALSE))","v":""}]
[34,null,null,0,null,null,null,null,null,null,null,null,null,null,"","","","","","","","","",null,null,null,"","","","","","","","",""]
[35,null,null,0,null,null,null,null,null,null,null,null,null,null,"","","","","","","","","",null,null,null,"","","","","","","","",""]
[36,null,null,0,null,null,null,null,null,null,null,null,null,null,"","","","","","","","","",null,null,null,"","","","","","","","",""]
[37,null,null,0,null,null,null,null,null,null,null,null,null,null,"","","","","","","","","",null,null,null,"","","","","","","","",""]
[38,null,null,0,null,null,null,null,null,null,null,null,null,null,"","","","","","","","","",null,null,null,"","","","","","","","",""]
[39,null,null,0,null,null,null,null,null,null,null,null,null,null,"","","","","","","","","",null,null,null,"","","","","","","","",""]
[40,null,null,0,null,null,null,null,null,null,null,null,null,null,"","","","","","","","","",null,null,null,"","","","","","","","",""]
[41,null,null,0,null,null,null,null,null,null,null,null,null,null,"","","","","","","","","",null,null,null,"","","","","","","","",""]
[42,null,null,0,null,null,null,null,null,null,null,null,null,null,"","","","","","","","","",null,null,null,"","","","","","","","",""]
[43,null,null,0,null,null,null,null,null,null,null,null,null,null,"","","","","","","","","",null,null,null,"","","","","","","","",""]
[44,null,null,0,null,null,null,null,null,null,null,null,null,null,"","","","","","","","","",null,null,null,"","","","","","","","",""]
[45,null,null,0,null,null,null,null,null,null,null,null,null,null,"","","","","","","","","",null,null,null,"","","","","","","","",""]
[46,null,null,0,null,null,null,null,null,null,null,null,null,null,"","","","","","","","","",null,null,null,"","","","","","","","",""]
[47,null,null,0,null,null,null,null,null,null,null,null,null,null,"","","","","","","","","",null,null,null,"","","","","","","","",""]
[48,null,null,0,null,null,null,null,null,null,null,null,null,null,"","","","","","","","","",null,null,null,"","","","","","","","",""]
[49,null,null,0,null,null,null,null,null,null,null,null,null,null,"","","","","","","","","",null,null,null,"","","","","","","","",""]
[50,null,null,0,null,null,null,null,null,null,null,null,null,null,"","","","","","","","","",null,null,null,"","","","","","","","",""]
[51,null,null,0,null,null,null,null,null,null,null,null,null,null,"","","","","","","","","",null,null,null,"","","","","","","","",""]
[52,null,null,0,null,null,null,null,null,null,null,null,null,null,"","","","","","","","","",null,null,null,"","","","","","","","",""]
[53,null,null,0,null,null,null,null,null,null,null,null,null,null,"","","","","","","","","",null,null,null,"","","","","","","","",""]
[54,null,null,0,null,null,null,null,null,null,null,null,null,null,"","","","","","","","","",null,null,null,"","","","","","","","",""]
[55,null,null,0,null,null,null,null,null,null,null,null,null,null,"","","","","","","","","",null,null,null,"","","","","","","","",""]
[56,null,null,0,null,null,null,null,null,null,null,null,null,null,"","","","","","","","","",null,null,null,"","","","","","","","",""]
[57,null,null,0,null,null,null,null,null,null,null,null,null,null,"","","","","","","","","",null,null,null,"","","","","","","","",""]
[58,null,null,0,null,null,null,null,null,null,null,null,null,null,"","","","","","","","","",null,null,null,"","","","","","","","",""]
[59,null,null,0,null,null,null,null,null,null,null,null,null,null,"","","","","","","","","",null,null,null,"","","","","","","","",""]
[60,null,null,0,null,null,null,null,null,null,null,null,null,null,"","","","","","","","","",null,null,null,"","","","","","","","",""]
[61,null,null,0,null,null,null,null,null,null,null,null,null,null,"","","","","","","","","",null,null,null,"","","","","","","","",""]
[62,null,null,0,null,null,null,null,null,null,null,null,null,null,"","","","","","","","","",null,null,null,"","","","","","","","",""]
[63,null,null,0,null,null,null,null,null,null,null,null,null,null,"","","","","","","","","",null,null,null,"","","","","","","","",""]
[64,null,null,0,null,null,null,null,null,null,null,null,null,null,"","","","","","","","","",null,null,null,"","","","","","","","",""]
[65,null,null,{"$f":"IF(E70>0,500,0)","v":0},null,null,null,null,null,null,null,null,null,null,{"$f":"IF(ISERROR(VLOOKUP(AK70,Mitgliederliste,8,FALSE)),\"\",IF(Stichtag_verwenden=0,VLOOKUP(AK70,Mitgliederliste,3,FALSE),VLOOKUP(AK70,Mitgliederliste,8,FALSE)))","v":""},{"$f":"IF(ISERROR(VLOOKUP(AL70,Mitgliederliste,8,FALSE)),\"\",IF(Stichtag_verwenden=0,VLOOKUP(AL70,Mitgliederliste,3,FALSE),VLOOKUP(AL70,Mitgliederliste,8,FALSE)))","v":""},{"$f":"IF(ISERROR(VLOOKUP(AM70,Mitgliederliste,8,FALSE)),\"\",IF(Stichtag_verwenden=0,VLOOKUP(AM70,Mitgliederliste,3,FALSE),VLOOKUP(AM70,Mitgliederliste,8,FALSE)))","v":""},{"$f":"IF(ISERROR(VLOOKUP(AN70,Mitgliederliste,8,FALSE)),\"\",IF(Stichtag_verwenden=0,VLOOKUP(AN70,Mitgliederliste,3,FALSE),VLOOKUP(AN70,Mitgliederliste,8,FALSE)))","v":""},{"$f":"IF(ISERROR(VLOOKUP(AO70,Mitgliederliste,8,FALSE)),\"\",IF(Stichtag_verwenden=0,VLOOKUP(AO70,Mitgliederliste,3,FALSE),VLOOKUP(AO70,Mitgliederliste,8,FALSE)))","v":""},{"$f":"IF(ISERROR(VLOOKUP(AP70,Mitgliederliste,8,FALSE)),\"\",IF(Stichtag_verwenden=0,VLOOKUP(AP70,Mitgliederliste,3,FALSE),VLOOKUP(AP70,Mitgliederliste,8,FALSE)))","v":""},{"$f":"IF(ISERROR(VLOOKUP(AQ70,Mitgliederliste,8,FALSE)),\"\",IF(Stichtag_verwenden=0,VLOOKUP(AQ70,Mitgliederliste,3,FALSE),VLOOKUP(AQ70,Mitgliederliste,8,FALSE)))","v":""},{"$f":"IF(ISERROR(VLOOKUP(AR70,Mitgliederliste,8,FALSE)),\"\",IF(Stichtag_verwenden=0,VLOOKUP(AR70,Mitgliederliste,3,FALSE),VLOOKUP(AR70,Mitgliederliste,8,FALSE)))","v":""},{"$f":"IF(ISERROR(VLOOKUP(AS70,Mitgliederliste,8,FALSE)),\"\",IF(Stichtag_verwenden=0,VLOOKUP(AS70,Mitgliederliste,3,FALSE),VLOOKUP(AS70,Mitgliederliste,8,FALSE)))","v":""},null,null,null,{"$f":"IF(ISERROR(VLOOKUP(AK70,Mitgliederliste,2,FALSE)),\"\",VLOOKUP(AK70,Mitgliederliste,2,FALSE))","v":""},{"$f":"IF(ISERROR(VLOOKUP(AL70,Mitgliederliste,2,FALSE)),\"\",VLOOKUP(AL70,Mitgliederliste,2,FALSE))","v":""},{"$f":"IF(ISERROR(VLOOKUP(AM70,Mitgliederliste,2,FALSE)),\"\",VLOOKUP(AM70,Mitgliederliste,2,FALSE))","v":""},{"$f":"IF(ISERROR(VLOOKUP(AN70,Mitgliederliste,2,FALSE)),\"\",VLOOKUP(AN70,Mitgliederliste,2,FALSE))","v":""},{"$f":"IF(ISERROR(VLOOKUP(AO70,Mitgliederliste,2,FALSE)),\"\",VLOOKUP(AO70,Mitgliederliste,2,FALSE))","v":""},{"$f":"IF(ISERROR(VLOOKUP(AP70,Mitgliederliste,2,FALSE)),\"\",VLOOKUP(AP70,Mitgliederliste,2,FALSE))","v":""},{"$f":"IF(ISERROR(VLOOKUP(AQ70,Mitgliederliste,2,FALSE)),\"\",VLOOKUP(AQ70,Mitgliederliste,2,FALSE))","v":""},{"$f":"IF(ISERROR(VLOOKUP(AR70,Mitgliederliste,2,FALSE)),\"\",VLOOKUP(AR70,Mitgliederliste,2,FALSE))","v":""},{"$f":"IF(ISERROR(VLOOKUP(AS70,Mitgliederliste,2,FALSE)),\"\",VLOOKUP(AS70,Mitgliederliste,2,FALSE))","v":""}]
[66,null,null,0,null,null,null,null,null,null,null,null,null,null,"","","","","","","","","",null,null,null,"","","","","","","","",""]
[67,null,null,0,null,null,null,null,null,null,null,null,null,null,"","","","","","","","","",null,null,null,"","","","","","","","",""]
[68,null,null,0,null,null,null,null,null,null,null,null,null,null,"","","","","","","","","",null,null,null,"","","","","","","","",""]
[69,null,null,0,null,null,null,null,null,null,null,null,null,null,"","","","","","","","","",null,null,null,"","","","","","","","",""]
[70,null,null,0,null,null,null,null,null,null,null,null,null,null,"","","","","","","","","",null,null,null,"","","","","","","","",""]

{"sheet":"AFK_Si_B","index":17,"n_rows":75,"n_cols":47,"rows_kept":75,"cut":false,"hidden":false,"merged":[]}
[{"$f":"Bewerbsart","v":"Abschnittsfeuerwehrleistungsbewerb"}]
[{"$f":"TEXT(Datum,\"T.MMMM JJJJ\")&\"  -  \"& Bewerbsort","v":"0.Jänner 1900  -  "}]
[{"$f":"AFK_Si_B","v":"AFK Silber B"}]
[null,null,null,null,"Löschangriff",null,"Staffellauf"]
["Platz","Nummer","Gruppe","Stammpunkte","Zeit","Fehler","Zeit","Fehler","Alters-\nPunkte","Gesamt- punkte","Löschangr","Staffell.","Jahre",null,"Geb1","Geb2","Geb3","Geb4","Geb5","Geb6","Geb7","Geb8","Geb9",null,null,"Urk. gedr.","Name1","Name2","Name3","Name4","Name5","Name6","Name7","Name8","Name9","FW-Nr","Stb1","Stb2","Stb3","Stb4","Stb5","Stb6","Stb7","Stb8","Stb9","Pokale","Anzahl Preise (Pokale):"]
[1,null,null,{"$f":"IF(E6>0,500,0)","v":0},null,null,null,null,null,null,null,null,null,null,{"$f":"IF(ISERROR(VLOOKUP(AK6,Mitgliederliste,8,FALSE)),\"\",IF(Stichtag_verwenden=0,VLOOKUP(AK6,Mitgliederliste,3,FALSE),VLOOKUP(AK6,Mitgliederliste,8,FALSE)))","v":""},{"$f":"IF(ISERROR(VLOOKUP(AL6,Mitgliederliste,8,FALSE)),\"\",IF(Stichtag_verwenden=0,VLOOKUP(AL6,Mitgliederliste,3,FALSE),VLOOKUP(AL6,Mitgliederliste,8,FALSE)))","v":""},{"$f":"IF(ISERROR(VLOOKUP(AM6,Mitgliederliste,8,FALSE)),\"\",IF(Stichtag_verwenden=0,VLOOKUP(AM6,Mitgliederliste,3,FALSE),VLOOKUP(AM6,Mitgliederliste,8,FALSE)))","v":""},{"$f":"IF(ISERROR(VLOOKUP(AN6,Mitgliederliste,8,FALSE)),\"\",IF(Stichtag_verwenden=0,VLOOKUP(AN6,Mitgliederliste,3,FALSE),VLOOKUP(AN6,Mitgliederliste,8,FALSE)))","v":""},{"$f":"IF(ISERROR(VLOOKUP(AO6,Mitgliederliste,8,FALSE)),\"\",IF(Stichtag_verwenden=0,VLOOKUP(AO6,Mitgliederliste,3,FALSE),VLOOKUP(AO6,Mitgliederliste,8,FALSE)))","v":""},{"$f":"IF(ISERROR(VLOOKUP(AP6,Mitgliederliste,8,FALSE)),\"\",IF(Stichtag_verwenden=0,VLOOKUP(AP6,Mitgliederliste,3,FALSE),VLOOKUP(AP6,Mitgliederliste,8,FALSE)))","v":""},{"$f":"IF(ISERROR(VLOOKUP(AQ6,Mitgliederliste,8,FALSE)),\"\",IF(Stichtag_verwenden=0,VLOOKUP(AQ6,Mitgliederliste,3,FALSE),VLOOKUP(AQ6,Mitgliederliste,8,FALSE)))","v":""},{"$f":"IF(ISERROR(VLOOKUP(AR6,Mitgliederliste,8,FALSE)),\"\",IF(Stichtag_verwenden=0,VLOOKUP(AR6,Mitgliederliste,3,FALSE),VLOOKUP(AR6,Mitgliederliste,8,FALSE)))","v":""},{"$f":"IF(ISERROR(VLOOKUP(AS6,Mitgliederliste,8,FALSE)),\"\",IF(Stichtag_verwenden=0,VLOOKUP(AS6,Mitgliederliste,3,FALSE),VLOOKUP(AS6,Mitgliederliste,8,FALSE)))","v":""},null,null,null,{"$f":"IF(ISERROR(VLOOKUP(AK6,Mitgliederliste,2,FALSE)),\"\",VLOOKUP(AK6,Mitgliederliste,2,FALSE))","v":""},{"$f":"IF(ISERROR(VLOOKUP(AL6,Mitgliederliste,2,FALSE)),\"\",VLOOKUP(AL6,Mitgliederliste,2,FALSE))","v":""},{"$f":"IF(ISERROR(VLOOKUP(AM6,Mitgliederliste,2,FALSE)),\"\",VLOOKUP(AM6,Mitgliederliste,2,FALSE))","v":""},{"$f":"IF(ISERROR(VLOOKUP(AN6,Mitgliederliste,2,FALSE)),\"\",VLOOKUP(AN6,Mitgliederliste,2,FALSE))","v":""},{"$f":"IF(ISERROR(VLOOKUP(AO6,Mitgliederliste,2,FALSE)),\"\",VLOOKUP(AO6,Mitgliederliste,2,FALSE))","v":""},{"$f":"IF(ISERROR(VLOOKUP(AP6,Mitgliederliste,2,FALSE)),\"\",VLOOKUP(AP6,Mitgliederliste,2,FALSE))","v":""},{"$f":"IF(ISERROR(VLOOKUP(AQ6,Mitgliederliste,2,FALSE)),\"\",VLOOKUP(AQ6,Mitgliederliste,2,FALSE))","v":""},{"$f":"IF(ISERROR(VLOOKUP(AR6,Mitgliederliste,2,FALSE)),\"\",VLOOKUP(AR6,Mitgliederliste,2,FALSE))","v":""},{"$f":"IF(ISERROR(VLOOKUP(AS6,Mitgliederliste,2,FALSE)),\"\",VLOOKUP(AS6,Mitgliederliste,2,FALSE))","v":""},null,null,null,null,null,null,null,null,null,null,null,"Für AFK-"]
[2,null,null,0,null,null,null,null,null,null,null,null,null,null,"","","","","","","","","",null,null,null,"","","","","","","","","",null,null,null,null,null,null,null,null,null,null,null,"Gruppen "]
[3,null,null,0,null,null,null,null,null,null,null,null,null,null,"","","","","","","","","",null,null,null,"","","","","","","","","",null,null,null,null,null,null,null,null,null,null,null,"keine Preise"]
[4,null,null,0,null,null,null,null,null,null,null,null,null,null,"","","","","","","","","",null,null,null,"","","","","","","","","",null,null,null,null,null,null,null,null,null,null,null,"zu vergeben"]
[5,null,null,0,null,null,null,null,null,null,null,null,null,null,"","","","","","","","","",null,null,null,"","","","","","","","",""]
[6,null,null,0,null,null,null,null,null,null,null,null,null,null,"","","","","","","","","",null,null,null,"","","","","","","","",""]
[7,null,null,0,null,null,null,null,null,null,null,null,null,null,"","","","","","","","","",null,null,null,"","","","","","","","",""]
[8,null,null,0,null,null,null,null,null,null,null,null,null,null,"","","","","","","","","",null,null,null,"","","","","","","","",""]
[9,null,null,0,null,null,null,null,null,null,null,null,null,null,"","","","","","","","","",null,null,null,"","","","","","","","",""]
[10,null,null,0,null,null,null,null,null,null,null,null,null,null,"","","","","","","","","",null,null,null,"","","","","","","","",""]
[11,null,null,0,null,null,null,null,null,null,null,null,null,null,"","","","","","","","","",null,null,null,"","","","","","","","",""]
[12,null,null,0,null,null,null,null,null,null,null,null,null,null,"","","","","","","","","",null,null,null,"","","","","","","","",""]
[13,null,null,0,null,null,null,null,null,null,null,null,null,null,"","","","","","","","","",null,null,null,"","","","","","","","",""]
[14,null,null,0,null,null,null,null,null,null,null,null,null,null,"","","","","","","","","",null,null,null,"","","","","","","","",""]
[15,null,null,0,null,null,null,null,null,null,null,null,null,null,"","","","","","","","","",null,null,null,"","","","","","","","",""]
[16,null,null,0,null,null,null,null,null,null,null,null,null,null,"","","","","","","","","",null,null,null,"","","","","","","","",""]
[17,null,null,0,null,null,null,null,null,null,null,null,null,null,"","","","","","","","","",null,null,null,"","","","","","","","",""]
[18,null,null,0,null,null,null,null,null,null,null,null,null,null,"","","","","","","","","",null,null,null,"","","","","","","","",""]
[19,null,null,0,null,null,null,null,null,null,null,null,null,null,"","","","","","","","","",null,null,null,"","","","","","","","",""]
[20,null,null,0,null,null,null,null,null,null,null,null,null,null,"","","","","","","","","",null,null,null,"","","","","","","","",""]
[21,null,null,0,null,null,null,null,null,null,null,null,null,null,"","","","","","","","","",null,null,null,"","","","","","","","",""]
[22,null,null,0,null,null,null,null,null,null,null,null,null,null,"","","","","","","","","",null,null,null,"","","","","","","","",""]
[23,null,null,0,null,null,null,null,null,null,null,null,null,null,"","","","","","","","","",null,null,null,"","","","","","","","",""]
[24,null,null,0,null,null,null,null,null,null,null,null,null,null,"","","","","","","","","",null,null,null,"","","","","","","","",""]
[25,null,null,0,null,null,null,null,null,null,null,null,null,null,"","","","","","","","","",null,null,null,"","","","","","","","",""]
[26,null,null,0,null,null,null,null,null,null,null,null,null,null,"","","","","","","","","",null,null,null,"","","","","","","","",""]
[27,null,null,0,null,null,null,null,null,null,null,null,null,null,"","","","","","","","","",null,null,null,"","","","","","","","",""]
[28,null,null,0,null,null,null,null,null,null,null,null,null,null,"","","","","","","","","",null,null,null,"","","","","","","","",""]
[29,null,null,0,null,null,null,null,null,null,null,null,null,null,"","","","","","","","","",null,null,null,"","","","","","","","",""]
[30,null,null,0,null,null,null,null,null,null,null,null,null,null,"","","","","","","","","",null,null,null,"","","","","","","","",""]
[31,null,null,0,null,null,null,null,null,null,null,null,null,null,"","","","","","","","","",null,null,null,"","","","","","","","",""]
[32,null,null,0,null,null,null,null,null,null,null,null,null,null,"","","","","","","","","",null,null,null,"","","","","","","","",""]
[33,null,null,{"$f":"IF(E38>0,500,0)","v":0},null,null,null,null,null,null,null,null,null,null,{"$f":"IF(ISERROR(VLOOKUP(AK38,Mitgliederliste,8,FALSE)),\"\",IF(Stichtag_verwenden=0,VLOOKUP(AK38,Mitgliederliste,3,FALSE),VLOOKUP(AK38,Mitgliederliste,8,FALSE)))","v":""},{"$f":"IF(ISERROR(VLOOKUP(AL38,Mitgliederliste,8,FALSE)),\"\",IF(Stichtag_verwenden=0,VLOOKUP(AL38,Mitgliederliste,3,FALSE),VLOOKUP(AL38,Mitgliederliste,8,FALSE)))","v":""},{"$f":"IF(ISERROR(VLOOKUP(AM38,Mitgliederliste,8,FALSE)),\"\",IF(Stichtag_verwenden=0,VLOOKUP(AM38,Mitgliederliste,3,FALSE),VLOOKUP(AM38,Mitgliederliste,8,FALSE)))","v":""},{"$f":"IF(ISERROR(VLOOKUP(AN38,Mitgliederliste,8,FALSE)),\"\",IF(Stichtag_verwenden=0,VLOOKUP(AN38,Mitgliederliste,3,FALSE),VLOOKUP(AN38,Mitgliederliste,8,FALSE)))","v":""},{"$f":"IF(ISERROR(VLOOKUP(AO38,Mitgliederliste,8,FALSE)),\"\",IF(Stichtag_verwenden=0,VLOOKUP(AO38,Mitgliederliste,3,FALSE),VLOOKUP(AO38,Mitgliederliste,8,FALSE)))","v":""},{"$f":"IF(ISERROR(VLOOKUP(AP38,Mitgliederliste,8,FALSE)),\"\",IF(Stichtag_verwenden=0,VLOOKUP(AP38,Mitgliederliste,3,FALSE),VLOOKUP(AP38,Mitgliederliste,8,FALSE)))","v":""},{"$f":"IF(ISERROR(VLOOKUP(AQ38,Mitgliederliste,8,FALSE)),\"\",IF(Stichtag_verwenden=0,VLOOKUP(AQ38,Mitgliederliste,3,FALSE),VLOOKUP(AQ38,Mitgliederliste,8,FALSE)))","v":""},{"$f":"IF(ISERROR(VLOOKUP(AR38,Mitgliederliste,8,FALSE)),\"\",IF(Stichtag_verwenden=0,VLOOKUP(AR38,Mitgliederliste,3,FALSE),VLOOKUP(AR38,Mitgliederliste,8,FALSE)))","v":""},{"$f":"IF(ISERROR(VLOOKUP(AS38,Mitgliederliste,8,FALSE)),\"\",IF(Stichtag_verwenden=0,VLOOKUP(AS38,Mitgliederliste,3,FALSE),VLOOKUP(AS38,Mitgliederliste,8,FALSE)))","v":""},null,null,null,{"$f":"IF(ISERROR(VLOOKUP(AK38,Mitgliederliste,2,FALSE)),\"\",VLOOKUP(AK38,Mitgliederliste,2,FALSE))","v":""},{"$f":"IF(ISERROR(VLOOKUP(AL38,Mitgliederliste,2,FALSE)),\"\",VLOOKUP(AL38,Mitgliederliste,2,FALSE))","v":""},{"$f":"IF(ISERROR(VLOOKUP(AM38,Mitgliederliste,2,FALSE)),\"\",VLOOKUP(AM38,Mitgliederliste,2,FALSE))","v":""},{"$f":"IF(ISERROR(VLOOKUP(AN38,Mitgliederliste,2,FALSE)),\"\",VLOOKUP(AN38,Mitgliederliste,2,FALSE))","v":""},{"$f":"IF(ISERROR(VLOOKUP(AO38,Mitgliederliste,2,FALSE)),\"\",VLOOKUP(AO38,Mitgliederliste,2,FALSE))","v":""},{"$f":"IF(ISERROR(VLOOKUP(AP38,Mitgliederliste,2,FALSE)),\"\",VLOOKUP(AP38,Mitgliederliste,2,FALSE))","v":""},{"$f":"IF(ISERROR(VLOOKUP(AQ38,Mitgliederliste,2,FALSE)),\"\",VLOOKUP(AQ38,Mitgliederliste,2,FALSE))","v":""},{"$f":"IF(ISERROR(VLOOKUP(AR38,Mitgliederliste,2,FALSE)),\"\",VLOOKUP(AR38,Mitgliederliste,2,FALSE))","v":""},{"$f":"IF(ISERROR(VLOOKUP(AS38,Mitgliederliste,2,FALSE)),\"\",VLOOKUP(AS38,Mitgliederliste,2,FALSE))","v":""}]
[34,null,null,0,null,null,null,null,null,null,null,null,null,null,"","","","","","","","","",null,null,null,"","","","","","","","",""]
[35,null,null,0,null,null,null,null,null,null,null,null,null,null,"","","","","","","","","",null,null,null,"","","","","","","","",""]
[36,null,null,0,null,null,null,null,null,null,null,null,null,null,"","","","","","","","","",null,null,null,"","","","","","","","",""]
[37,null,null,0,null,null,null,null,null,null,null,null,null,null,"","","","","","","","","",null,null,null,"","","","","","","","",""]
[38,null,null,0,null,null,null,null,null,null,null,null,null,null,"","","","","","","","","",null,null,null,"","","","","","","","",""]
[39,null,null,0,null,null,null,null,null,null,null,null,null,null,"","","","","","","","","",null,null,null,"","","","","","","","",""]
[40,null,null,0,null,null,null,null,null,null,null,null,null,null,"","","","","","","","","",null,null,null,"","","","","","","","",""]
[41,null,null,0,null,null,null,null,null,null,null,null,null,null,"","","","","","","","","",null,null,null,"","","","","","","","",""]
[42,null,null,0,null,null,null,null,null,null,null,null,null,null,"","","","","","","","","",null,null,null,"","","","","","","","",""]
[43,null,null,0,null,null,null,null,null,null,null,null,null,null,"","","","","","","","","",null,null,null,"","","","","","","","",""]
[44,null,null,0,null,null,null,null,null,null,null,null,null,null,"","","","","","","","","",null,null,null,"","","","","","","","",""]
[45,null,null,0,null,null,null,null,null,null,null,null,null,null,"","","","","","","","","",null,null,null,"","","","","","","","",""]
[46,null,null,0,null,null,null,null,null,null,null,null,null,null,"","","","","","","","","",null,null,null,"","","","","","","","",""]
[47,null,null,0,null,null,null,null,null,null,null,null,null,null,"","","","","","","","","",null,null,null,"","","","","","","","",""]
[48,null,null,0,null,null,null,null,null,null,null,null,null,null,"","","","","","","","","",null,null,null,"","","","","","","","",""]
[49,null,null,0,null,null,null,null,null,null,null,null,null,null,"","","","","","","","","",null,null,null,"","","","","","","","",""]
[50,null,null,0,null,null,null,null,null,null,null,null,null,null,"","","","","","","","","",null,null,null,"","","","","","","","",""]
[51,null,null,0,null,null,null,null,null,null,null,null,null,null,"","","","","","","","","",null,null,null,"","","","","","","","",""]
[52,null,null,0,null,null,null,null,null,null,null,null,null,null,"","","","","","","","","",null,null,null,"","","","","","","","",""]
[53,null,null,0,null,null,null,null,null,null,null,null,null,null,"","","","","","","","","",null,null,null,"","","","","","","","",""]
[54,null,null,0,null,null,null,null,null,null,null,null,null,null,"","","","","","","","","",null,null,null,"","","","","","","","",""]
[55,null,null,0,null,null,null,null,null,null,null,null,null,null,"","","","","","","","","",null,null,null,"","","","","","","","",""]
[56,null,null,0,null,null,null,null,null,null,null,null,null,null,"","","","","","","","","",null,null,null,"","","","","","","","",""]
[57,null,null,0,null,null,null,null,null,null,null,null,null,null,"","","","","","","","","",null,null,null,"","","","","","","","",""]
[58,null,null,0,null,null,null,null,null,null,null,null,null,null,"","","","","","","","","",null,null,null,"","","","","","","","",""]
[59,null,null,0,null,null,null,null,null,null,null,null,null,null,"","","","","","","","","",null,null,null,"","","","","","","","",""]
[60,null,null,0,null,null,null,null,null,null,null,null,null,null,"","","","","","","","","",null,null,null,"","","","","","","","",""]
[61,null,null,0,null,null,null,null,null,null,null,null,null,null,"","","","","","","","","",null,null,null,"","","","","","","","",""]
[62,null,null,0,null,null,null,null,null,null,null,null,null,null,"","","","","","","","","",null,null,null,"","","","","","","","",""]
[63,null,null,0,null,null,null,null,null,null,null,null,null,null,"","","","","","","","","",null,null,null,"","","","","","","","",""]
[64,null,null,0,null,null,null,null,null,null,null,null,null,null,"","","","","","","","","",null,null,null,"","","","","","","","",""]
[65,null,null,{"$f":"IF(E70>0,500,0)","v":0},null,null,null,null,null,null,null,null,null,null,{"$f":"IF(ISERROR(VLOOKUP(AK70,Mitgliederliste,8,FALSE)),\"\",IF(Stichtag_verwenden=0,VLOOKUP(AK70,Mitgliederliste,3,FALSE),VLOOKUP(AK70,Mitgliederliste,8,FALSE)))","v":""},{"$f":"IF(ISERROR(VLOOKUP(AL70,Mitgliederliste,8,FALSE)),\"\",IF(Stichtag_verwenden=0,VLOOKUP(AL70,Mitgliederliste,3,FALSE),VLOOKUP(AL70,Mitgliederliste,8,FALSE)))","v":""},{"$f":"IF(ISERROR(VLOOKUP(AM70,Mitgliederliste,8,FALSE)),\"\",IF(Stichtag_verwenden=0,VLOOKUP(AM70,Mitgliederliste,3,FALSE),VLOOKUP(AM70,Mitgliederliste,8,FALSE)))","v":""},{"$f":"IF(ISERROR(VLOOKUP(AN70,Mitgliederliste,8,FALSE)),\"\",IF(Stichtag_verwenden=0,VLOOKUP(AN70,Mitgliederliste,3,FALSE),VLOOKUP(AN70,Mitgliederliste,8,FALSE)))","v":""},{"$f":"IF(ISERROR(VLOOKUP(AO70,Mitgliederliste,8,FALSE)),\"\",IF(Stichtag_verwenden=0,VLOOKUP(AO70,Mitgliederliste,3,FALSE),VLOOKUP(AO70,Mitgliederliste,8,FALSE)))","v":""},{"$f":"IF(ISERROR(VLOOKUP(AP70,Mitgliederliste,8,FALSE)),\"\",IF(Stichtag_verwenden=0,VLOOKUP(AP70,Mitgliederliste,3,FALSE),VLOOKUP(AP70,Mitgliederliste,8,FALSE)))","v":""},{"$f":"IF(ISERROR(VLOOKUP(AQ70,Mitgliederliste,8,FALSE)),\"\",IF(Stichtag_verwenden=0,VLOOKUP(AQ70,Mitgliederliste,3,FALSE),VLOOKUP(AQ70,Mitgliederliste,8,FALSE)))","v":""},{"$f":"IF(ISERROR(VLOOKUP(AR70,Mitgliederliste,8,FALSE)),\"\",IF(Stichtag_verwenden=0,VLOOKUP(AR70,Mitgliederliste,3,FALSE),VLOOKUP(AR70,Mitgliederliste,8,FALSE)))","v":""},{"$f":"IF(ISERROR(VLOOKUP(AS70,Mitgliederliste,8,FALSE)),\"\",IF(Stichtag_verwenden=0,VLOOKUP(AS70,Mitgliederliste,3,FALSE),VLOOKUP(AS70,Mitgliederliste,8,FALSE)))","v":""},null,null,null,{"$f":"IF(ISERROR(VLOOKUP(AK70,Mitgliederliste,2,FALSE)),\"\",VLOOKUP(AK70,Mitgliederliste,2,FALSE))","v":""},{"$f":"IF(ISERROR(VLOOKUP(AL70,Mitgliederliste,2,FALSE)),\"\",VLOOKUP(AL70,Mitgliederliste,2,FALSE))","v":""},{"$f":"IF(ISERROR(VLOOKUP(AM70,Mitgliederliste,2,FALSE)),\"\",VLOOKUP(AM70,Mitgliederliste,2,FALSE))","v":""},{"$f":"IF(ISERROR(VLOOKUP(AN70,Mitgliederliste,2,FALSE)),\"\",VLOOKUP(AN70,Mitgliederliste,2,FALSE))","v":""},{"$f":"IF(ISERROR(VLOOKUP(AO70,Mitgliederliste,2,FALSE)),\"\",VLOOKUP(AO70,Mitgliederliste,2,FALSE))","v":""},{"$f":"IF(ISERROR(VLOOKUP(AP70,Mitgliederliste,2,FALSE)),\"\",VLOOKUP(AP70,Mitgliederliste,2,FALSE))","v":""},{"$f":"IF(ISERROR(VLOOKUP(AQ70,Mitgliederliste,2,FALSE)),\"\",VLOOKUP(AQ70,Mitgliederliste,2,FALSE))","v":""},{"$f":"IF(ISERROR(VLOOKUP(AR70,Mitgliederliste,2,FALSE)),\"\",VLOOKUP(AR70,Mitgliederliste,2,FALSE))","v":""},{"$f":"IF(ISERROR(VLOOKUP(AS70,Mitgliederliste,2,FALSE)),\"\",VLOOKUP(AS70,Mitgliederliste,2,FALSE))","v":""}]
[66,null,null,0,null,null,null,null,null,null,null,null,null,null,"","","","","","","","","",null,null,null,"","","","","","","","",""]
[67,null,null,0,null,null,null,null,null,null,null,null,null,null,"","","","","","","","","",null,null,null,"","","","","","","","",""]
[68,null,null,0,null,null,null,null,null,null,null,null,null,null,"","","","","","","","","",null,null,null,"","","","","","","","",""]
[69,null,null,0,null,null,null,null,null,null,null,null,null,null,"","","","","","","","","",null,null,null,"","","","","","","","",""]
[70,null,null,0,null,null,null,null,null,null,null,null,null,null,"","","","","","","","","",null,null,null,"","","","","","","","",""]

{"sheet":"Urkunde","index":18,"n_rows":45,"n_cols":7,"rows_kept":45,"cut":false,"hidden":false,"merged":[]}
["Entwurfsbereich für die Urkunde:",null,null,"Anmerkungen:",null,null,"Druckbereich für die Urkunde"]
[]
["Niederösterreichischer Landesfeuerwehrverband"]
["Abschnittsfeuerwehrkommando Zwettl"]
[]
[]
[]
[]
[]
[]
[]
[]
[]
[]
[]
[null,null,null,"gewünschten Text bitte im Klästchen rechts auswählen mit \"x\""]
[null,null,null,"Die Bewerbsgruppe"]
[null,{"$f":"IF(E18=\"x\",D18,D17)","v":"Die Bewerbsgruppe der Freiwilligen Feuerwehr"},null,"Die Bewerbsgruppe der Freiwilligen Feuerwehr","x"]
[]
[null,"Stift Zwettl",null,"Bitte das Feld \"Feuerwehr\" nicht löschen!"]
[null,null,null,"Bitte das Feld \"Teilnehmer\" nicht löschen!"]
[]
[null,"hat beim"]
[]
[null,{"$f":"Bewerbsart","v":"Abschnittsfeuerwehrleistungsbewerb"},null,"Bewerbsart wird vom Blatt \"Allgemeines\" übernommen"]
[null,{"$f":"\"in \" & Bewerbsort","v":"in "},null,"Bewerbsort wird vom Blatt \"Allgemeines\" übernommen"]
[]
[null,"teilgenommen und im"]
[]
[null,"Bewerb Bronze A",null,"Bitte das Feld \"Bewerb\" nicht löschen!"]
[null,"388 Punkte",null,"Bitte das Feld \"Punkte\" nicht löschen!"]
[]
[null,"errungen"]
[]
[null,null,null,"Bitte das Feld \"Details\" nicht löschen!"]
[]
[null,{"$f":"Bewerbsort & \", am \" & TEXT(Datum, \"T. MMMM JJJJ\")","v":", am 0. Jänner 1900"},null,"Bewerbsort und -datum werden vom Blatt \"Allgemeines\" übernommen"]
[]
[null,"Bezirksfeuerwehrkommandant"]
[null,null,null,"evtl. eingescannte Unterschrift einfügen"]
[null,"Oberbrandrat",null,"Bitte anpassen!"]
[]
["Abschnittsfeuerwehrkommandant",null,"Bewerbsleiter"]
[null,null,null,"evtl. eingescannte Unterschriften einfügen"]
["Brandrat",null,"Hauptbrandmeister","Bitte anpassen!"]

{"sheet":"Urkundenliste","index":19,"n_rows":825,"n_cols":26,"rows_kept":825,"cut":false,"hidden":false,"merged":[]}
[{"$f":"Bewerbsart","v":"Abschnittsfeuerwehrleistungsbewerb"}]
[{"$f":"TEXT(Datum,\"T.MMMM JJJJ\")&\"  -  \"& Bewerbsort","v":"0.Jänner 1900  -  "}]
["alphabetische Liste für Urkundenerstellung",null,null,null,"Klasse"]
[null,null,null,null,null,"Löschangriff",null,"Staffellauf"]
[null,"Platz","Nummer","Gruppe","Stammpunkte","Zeit","Fehler","Zeit","Fehler","Alters-\nPunkte","Gesamt- punkte","Bewerb"]
[1,1,null,null,0,null,null,null,null,null,null,"A Bronze"]
[2,2,null,null,0,null,null,null,null,null,null,"A Bronze"]
[3,3,null,null,0,null,null,null,null,null,null,"A Bronze"]
[4,4,null,null,0,null,null,null,null,null,null,"A Bronze",null,null,null,null,null,null,null,null,null,null,null,null,null,"x"]
[5,5,null,null,0,null,null,null,null,null,null,"A Bronze"]
[6,6,null,null,0,null,null,null,null,null,null,"A Bronze"]
[7,7,null,null,0,null,null,null,null,null,null,"A Bronze"]
[8,8,null,null,0,null,null,null,null,null,null,"A Bronze"]
[9,9,null,null,0,null,null,null,null,null,null,"A Bronze"]
[10,10,null,null,0,null,null,null,null,null,null,"A Bronze"]
[11,11,null,null,0,null,null,null,null,null,null,"A Bronze"]
[12,12,null,null,0,null,null,null,null,null,null,"A Bronze"]
[13,13,null,null,0,null,null,null,null,null,null,"A Bronze"]
[14,14,null,null,0,null,null,null,null,null,null,"A Bronze"]
[15,15,null,null,0,null,null,null,null,null,null,"A Bronze"]
[16,16,null,null,0,null,null,null,null,null,null,"A Bronze"]
[17,17,null,null,0,null,null,null,null,null,null,"A Bronze"]
[18,18,null,null,0,null,null,null,null,null,null,"A Bronze"]
[19,19,null,null,0,null,null,null,null,null,null,"A Bronze"]
[20,20,null,null,0,null,null,null,null,null,null,"A Bronze"]
[21,21,null,null,0,null,null,null,null,null,null,"A Bronze"]
[22,22,null,null,0,null,null,null,null,null,null,"A Bronze"]
[23,23,null,null,0,null,null,null,null,null,null,"A Bronze"]
[24,24,null,null,0,null,null,null,null,null,null,"A Bronze"]
[25,25,null,null,0,null,null,null,null,null,null,"A Bronze"]
[26,26,null,null,0,null,null,null,null,null,null,"A Bronze"]
[27,27,null,null,0,null,null,null,null,null,null,"A Bronze"]
[28,28,null,null,0,null,null,null,null,null,null,"A Bronze"]
[29,29,null,null,0,null,null,null,null,null,null,"A Bronze"]
[30,30,null,null,0,null,null,null,null,null,null,"A Bronze"]
[31,31,null,null,0,null,null,null,null,null,null,"A Bronze"]
[32,32,null,null,0,null,null,null,null,null,null,"A Bronze"]
[33,33,null,null,0,null,null,null,null,null,null,"A Bronze"]
[34,34,null,null,0,null,null,null,null,null,null,"A Bronze"]
[35,35,null,null,0,null,null,null,null,null,null,"A Bronze"]
[36,36,null,null,0,null,null,null,null,null,null,"A Bronze"]
[37,37,null,null,0,null,null,null,null,null,null,"A Bronze"]
[38,38,null,null,0,null,null,null,null,null,null,"A Bronze"]
[39,39,null,null,0,null,null,null,null,null,null,"A Bronze"]
[40,40,null,null,0,null,null,null,null,null,null,"A Bronze"]
[41,41,null,null,0,null,null,null,null,null,null,"A Bronze"]
[42,42,null,null,0,null,null,null,null,null,null,"A Bronze"]
[43,43,null,null,0,null,null,null,null,null,null,"A Bronze"]
[44,44,null,null,0,null,null,null,null,null,null,"A Bronze"]
[45,45,null,null,0,null,null,null,null,null,null,"A Bronze"]
[46,46,null,null,0,null,null,null,null,null,null,"A Bronze"]
[47,47,null,null,0,null,null,null,null,null,null,"A Bronze"]
[48,48,null,null,0,null,null,null,null,null,null,"A Bronze"]
[49,49,null,null,0,null,null,null,null,null,null,"A Bronze"]
[50,50,null,null,0,null,null,null,null,null,null,"A Bronze"]
[51,1,null,null,0,null,null,null,null,null,null,"A Silber"]
[52,2,null,null,0,null,null,null,null,null,null,"A Silber"]
[53,3,null,null,0,null,null,null,null,null,null,"A Silber"]
[54,4,null,null,0,null,null,null,null,null,null,"A Silber"]
[55,5,null,null,0,null,null,null,null,null,null,"A Silber"]
[56,6,null,null,0,null,null,null,null,null,null,"A Silber"]
[57,7,null,null,0,null,null,null,null,null,null,"A Silber"]
[58,8,null,null,0,null,null,null,null,null,null,"A Silber"]
[59,9,null,null,0,null,null,null,null,null,null,"A Silber"]
[60,10,null,null,0,null,null,null,null,null,null,"A Silber"]
[61,11,null,null,0,null,null,null,null,null,null,"A Silber"]
[62,12,null,null,0,null,null,null,null,null,null,"A Silber"]
[63,13,null,null,0,null,null,null,null,null,null,"A Silber"]
[64,14,null,null,0,null,null,null,null,null,null,"A Silber"]
[65,15,null,null,0,null,null,null,null,null,null,"A Silber"]
[66,16,null,null,0,null,null,null,null,null,null,"A Silber"]
[67,17,null,null,0,null,null,null,null,null,null,"A Silber"]
[68,18,null,null,0,null,null,null,null,null,null,"A Silber"]
[69,19,null,null,0,null,null,null,null,null,null,"A Silber"]
[70,20,null,null,0,null,null,null,null,null,null,"A Silber"]
[71,21,null,null,0,null,null,null,null,null,null,"A Silber"]
[72,22,null,null,0,null,null,null,null,null,null,"A Silber"]
[73,23,null,null,0,null,null,null,null,null,null,"A Silber"]
[74,24,null,null,0,null,null,null,null,null,null,"A Silber"]
[75,25,null,null,0,null,null,null,null,null,null,"A Silber"]
[76,26,null,null,0,null,null,null,null,null,null,"A Silber"]
[77,27,null,null,0,null,null,null,null,null,null,"A Silber"]
[78,28,null,null,0,null,null,null,null,null,null,"A Silber"]
[79,29,null,null,0,null,null,null,null,null,null,"A Silber"]
[80,30,null,null,0,null,null,null,null,null,null,"A Silber"]
[81,31,null,null,0,null,null,null,null,null,null,"A Silber"]
[82,32,null,null,0,null,null,null,null,null,null,"A Silber"]
[83,33,null,null,0,null,null,null,null,null,null,"A Silber"]
[84,34,null,null,0,null,null,null,null,null,null,"A Silber"]
[85,35,null,null,0,null,null,null,null,null,null,"A Silber"]
[86,36,null,null,0,null,null,null,null,null,null,"A Silber"]
[87,37,null,null,0,null,null,null,null,null,null,"A Silber"]
[88,38,null,null,0,null,null,null,null,null,null,"A Silber"]
[89,39,null,null,0,null,null,null,null,null,null,"A Silber"]
[90,40,null,null,0,null,null,null,null,null,null,"A Silber"]
[91,41,null,null,0,null,null,null,null,null,null,"A Silber"]
[92,42,null,null,0,null,null,null,null,null,null,"A Silber"]
[93,43,null,null,0,null,null,null,null,null,null,"A Silber"]
[94,44,null,null,0,null,null,null,null,null,null,"A Silber"]
[95,45,null,null,0,null,null,null,null,null,null,"A Silber"]
[96,46,null,null,0,null,null,null,null,null,null,"A Silber"]
[97,47,null,null,0,null,null,null,null,null,null,"A Silber"]
[98,48,null,null,0,null,null,null,null,null,null,"A Silber"]
[99,49,null,null,0,null,null,null,null,null,null,"A Silber"]
[100,50,null,null,0,null,null,null,null,null,null,"A Silber"]
[101,1,null,null,0,null,null,null,null,null,null,"B Bronze"]
[102,2,null,null,0,null,null,null,null,null,null,"B Bronze"]
[103,3,null,null,0,null,null,null,null,null,null,"B Bronze"]
[104,4,null,null,0,null,null,null,null,null,null,"B Bronze"]
[105,5,null,null,0,null,null,null,null,null,null,"B Bronze"]
[106,6,null,null,0,null,null,null,null,null,null,"B Bronze"]
[107,7,null,null,0,null,null,null,null,null,null,"B Bronze"]
[108,8,null,null,0,null,null,null,null,null,null,"B Bronze"]
[109,9,null,null,0,null,null,null,null,null,null,"B Bronze"]
[110,10,null,null,0,null,null,null,null,null,null,"B Bronze"]
[111,11,null,null,0,null,null,null,null,null,null,"B Bronze"]
[112,12,null,null,0,null,null,null,null,null,null,"B Bronze"]
[113,13,null,null,0,null,null,null,null,null,null,"B Bronze"]
[114,14,null,null,0,null,null,null,null,null,null,"B Bronze"]
[115,15,null,null,0,null,null,null,null,null,null,"B Bronze"]
[116,16,null,null,0,null,null,null,null,null,null,"B Bronze"]
[117,17,null,null,0,null,null,null,null,null,null,"B Bronze"]
[118,18,null,null,0,null,null,null,null,null,null,"B Bronze"]
[119,19,null,null,0,null,null,null,null,null,null,"B Bronze"]
[120,20,null,null,0,null,null,null,null,null,null,"B Bronze"]
[121,21,null,null,0,null,null,null,null,null,null,"B Bronze"]
[122,22,null,null,0,null,null,null,null,null,null,"B Bronze"]
[123,23,null,null,0,null,null,null,null,null,null,"B Bronze"]
[124,24,null,null,0,null,null,null,null,null,null,"B Bronze"]
[125,25,null,null,0,null,null,null,null,null,null,"B Bronze"]
[126,26,null,null,0,null,null,null,null,null,null,"B Bronze"]
[127,27,null,null,0,null,null,null,null,null,null,"B Bronze"]
[128,28,null,null,0,null,null,null,null,null,null,"B Bronze"]
[129,29,null,null,0,null,null,null,null,null,null,"B Bronze"]
[130,30,null,null,0,null,null,null,null,null,null,"B Bronze"]
[131,31,null,null,0,null,null,null,null,null,null,"B Bronze"]
[132,32,null,null,0,null,null,null,null,null,null,"B Bronze"]
[133,33,null,null,0,null,null,null,null,null,null,"B Bronze"]
[134,34,null,null,0,null,null,null,null,null,null,"B Bronze"]
[135,35,null,null,0,null,null,null,null,null,null,"B Bronze"]
[136,36,null,null,0,null,null,null,null,null,null,"B Bronze"]
[137,37,null,null,0,null,null,null,null,null,null,"B Bronze"]
[138,38,null,null,0,null,null,null,null,null,null,"B Bronze"]
[139,39,null,null,0,null,null,null,null,null,null,"B Bronze"]
[140,40,null,null,0,null,null,null,null,null,null,"B Bronze"]
[141,41,null,null,0,null,null,null,null,null,null,"B Bronze"]
[142,42,null,null,0,null,null,null,null,null,null,"B Bronze"]
[143,43,null,null,0,null,null,null,null,null,null,"B Bronze"]
[144,44,null,null,0,null,null,null,null,null,null,"B Bronze"]
[145,45,null,null,0,null,null,null,null,null,null,"B Bronze"]
[146,46,null,null,0,null,null,null,null,null,null,"B Bronze"]
[147,47,null,null,0,null,null,null,null,null,null,"B Bronze"]
[148,48,null,null,0,null,null,null,null,null,null,"B Bronze"]
[149,49,null,null,0,null,null,null,null,null,null,"B Bronze"]
[150,50,null,null,0,null,null,null,null,null,null,"B Bronze"]
[151,1,null,null,0,null,null,null,null,null,null,"B Silber"]
[152,2,null,null,0,null,null,null,null,null,null,"B Silber"]
[153,3,null,null,0,null,null,null,null,null,null,"B Silber"]
[154,4,null,null,0,null,null,null,null,null,null,"B Silber"]
[155,5,null,null,0,null,null,null,null,null,null,"B Silber"]
[156,6,null,null,0,null,null,null,null,null,null,"B Silber"]
[157,7,null,null,0,null,null,null,null,null,null,"B Silber"]
[158,8,null,null,0,null,null,null,null,null,null,"B Silber"]
[159,9,null,null,0,null,null,null,null,null,null,"B Silber"]
[160,10,null,null,0,null,null,null,null,null,null,"B Silber"]
[161,11,null,null,0,null,null,null,null,null,null,"B Silber"]
[162,12,null,null,0,null,null,null,null,null,null,"B Silber"]
[163,13,null,null,0,null,null,null,null,null,null,"B Silber"]
[164,14,null,null,0,null,null,null,null,null,null,"B Silber"]
[165,15,null,null,0,null,null,null,null,null,null,"B Silber"]
[166,16,null,null,0,null,null,null,null,null,null,"B Silber"]
[167,17,null,null,0,null,null,null,null,null,null,"B Silber"]
[168,18,null,null,0,null,null,null,null,null,null,"B Silber"]
[169,19,null,null,0,null,null,null,null,null,null,"B Silber"]
[170,20,null,null,0,null,null,null,null,null,null,"B Silber"]
[171,21,null,null,0,null,null,null,null,null,null,"B Silber"]
[172,22,null,null,0,null,null,null,null,null,null,"B Silber"]
[173,23,null,null,0,null,null,null,null,null,null,"B Silber"]
[174,24,null,null,0,null,null,null,null,null,null,"B Silber"]
[175,25,null,null,0,null,null,null,null,null,null,"B Silber"]
[176,26,null,null,0,null,null,null,null,null,null,"B Silber"]
[177,27,null,null,0,null,null,null,null,null,null,"B Silber"]
[178,28,null,null,0,null,null,null,null,null,null,"B Silber"]
[179,29,null,null,0,null,null,null,null,null,null,"B Silber"]
[180,30,null,null,0,null,null,null,null,null,null,"B Silber"]
[181,31,null,null,0,null,null,null,null,null,null,"B Silber"]
[182,32,null,null,0,null,null,null,null,null,null,"B Silber"]
[183,33,null,null,0,null,null,null,null,null,null,"B Silber"]
[184,34,null,null,0,null,null,null,null,null,null,"B Silber"]
[185,35,null,null,0,null,null,null,null,null,null,"B Silber"]
[186,36,null,null,0,null,null,null,null,null,null,"B Silber"]
[187,37,null,null,0,null,null,null,null,null,null,"B Silber"]
[188,38,null,null,0,null,null,null,null,null,null,"B Silber"]
[189,39,null,null,0,null,null,null,null,null,null,"B Silber"]
[190,40,null,null,0,null,null,null,null,null,null,"B Silber"]
[191,41,null,null,0,null,null,null,null,null,null,"B Silber"]
[192,42,null,null,0,null,null,null,null,null,null,"B Silber"]
[193,43,null,null,0,null,null,null,null,null,null,"B Silber"]
[194,44,null,null,0,null,null,null,null,null,null,"B Silber"]
[195,45,null,null,0,null,null,null,null,null,null,"B Silber"]
[196,46,null,null,0,null,null,null,null,null,null,"B Silber"]
[197,47,null,null,0,null,null,null,null,null,null,"B Silber"]
[198,48,null,null,0,null,null,null,null,null,null,"B Silber"]
[199,49,null,null,0,null,null,null,null,null,null,"B Silber"]
[200,50,null,null,0,null,null,null,null,null,null,"B Silber"]
[201,1,null,null,0,null,null,null,null,null,null,"A Bronze"]
[202,2,null,null,0,null,null,null,null,null,null,"A Bronze"]
[203,3,null,null,0,null,null,null,null,null,null,"A Bronze"]
[204,4,null,null,0,null,null,null,null,null,null,"A Bronze"]
[205,5,null,null,0,null,null,null,null,null,null,"A Bronze"]
[206,6,null,null,0,null,null,null,null,null,null,"A Bronze"]
[207,7,null,null,0,null,null,null,null,null,null,"A Bronze"]
[208,8,null,null,0,null,null,null,null,null,null,"A Bronze"]
[209,9,null,null,0,null,null,null,null,null,null,"A Bronze"]
[210,10,null,null,0,null,null,null,null,null,null,"A Bronze"]
[211,11,null,null,0,null,null,null,null,null,null,"A Bronze"]
[212,12,null,null,0,null,null,null,null,null,null,"A Bronze"]
[213,13,null,null,0,null,null,null,null,null,null,"A Bronze"]
[214,14,null,null,0,null,null,null,null,null,null,"A Bronze"]
[215,15,null,null,0,null,null,null,null,null,null,"A Bronze"]
[216,16,null,null,0,null,null,null,null,null,null,"A Bronze"]
[217,17,null,null,0,null,null,null,null,null,null,"A Bronze"]
[218,18,null,null,0,null,null,null,null,null,null,"A Bronze"]
[219,19,null,null,0,null,null,null,null,null,null,"A Bronze"]
[220,20,null,null,0,null,null,null,null,null,null,"A Bronze"]
[221,21,null,null,0,null,null,null,null,null,null,"A Bronze"]
[222,22,null,null,0,null,null,null,null,null,null,"A Bronze"]
[223,23,null,null,0,null,null,null,null,null,null,"A Bronze"]
[224,24,null,null,0,null,null,null,null,null,null,"A Bronze"]
[225,25,null,null,0,null,null,null,null,null,null,"A Bronze"]
[226,26,null,null,0,null,null,null,null,null,null,"A Bronze"]
[227,27,null,null,0,null,null,null,null,null,null,"A Bronze"]
[228,28,null,null,0,null,null,null,null,null,null,"A Bronze"]
[229,29,null,null,0,null,null,null,null,null,null,"A Bronze"]
[230,30,null,null,0,null,null,null,null,null,null,"A Bronze"]
[231,31,null,null,0,null,null,null,null,null,null,"A Bronze"]
[232,32,null,null,0,null,null,null,null,null,null,"A Bronze"]
[233,33,null,null,0,null,null,null,null,null,null,"A Bronze"]
[234,34,null,null,0,null,null,null,null,null,null,"A Bronze"]
[235,35,null,null,0,null,null,null,null,null,null,"A Bronze"]
[236,36,null,null,0,null,null,null,null,null,null,"A Bronze"]
[237,37,null,null,0,null,null,null,null,null,null,"A Bronze"]
[238,38,null,null,0,null,null,null,null,null,null,"A Bronze"]
[239,39,null,null,0,null,null,null,null,null,null,"A Bronze"]
[240,40,null,null,0,null,null,null,null,null,null,"A Bronze"]
[241,41,null,null,0,null,null,null,null,null,null,"A Bronze"]
[242,42,null,null,0,null,null,null,null,null,null,"A Bronze"]
[243,43,null,null,0,null,null,null,null,null,null,"A Bronze"]
[244,44,null,null,0,null,null,null,null,null,null,"A Bronze"]
[245,45,null,null,0,null,null,null,null,null,null,"A Bronze"]
[246,46,null,null,0,null,null,null,null,null,null,"A Bronze"]
[247,47,null,null,0,null,null,null,null,null,null,"A Bronze"]
[248,48,null,null,0,null,null,null,null,null,null,"A Bronze"]
[249,49,null,null,0,null,null,null,null,null,null,"A Bronze"]
[250,50,null,null,0,null,null,null,null,null,null,"A Bronze"]
[251,1,null,null,0,null,null,null,null,null,null,"A Silber"]
[252,2,null,null,0,null,null,null,null,null,null,"A Silber"]
[253,3,null,null,0,null,null,null,null,null,null,"A Silber"]
[254,4,null,null,0,null,null,null,null,null,null,"A Silber"]
[255,5,null,null,0,null,null,null,null,null,null,"A Silber"]
[256,6,null,null,0,null,null,null,null,null,null,"A Silber"]
[257,7,null,null,0,null,null,null,null,null,null,"A Silber"]
[258,8,null,null,0,null,null,null,null,null,null,"A Silber"]
[259,9,null,null,0,null,null,null,null,null,null,"A Silber"]
[260,10,null,null,0,null,null,null,null,null,null,"A Silber"]
[261,11,null,null,0,null,null,null,null,null,null,"A Silber"]
[262,12,null,null,0,null,null,null,null,null,null,"A Silber"]
[263,13,null,null,0,null,null,null,null,null,null,"A Silber"]
[264,14,null,null,0,null,null,null,null,null,null,"A Silber"]
[265,15,null,null,0,null,null,null,null,null,null,"A Silber"]
[266,16,null,null,0,null,null,null,null,null,null,"A Silber"]
[267,17,null,null,0,null,null,null,null,null,null,"A Silber"]
[268,18,null,null,0,null,null,null,null,null,null,"A Silber"]
[269,19,null,null,0,null,null,null,null,null,null,"A Silber"]
[270,20,null,null,0,null,null,null,null,null,null,"A Silber"]
[271,21,null,null,0,null,null,null,null,null,null,"A Silber"]
[272,22,null,null,0,null,null,null,null,null,null,"A Silber"]
[273,23,null,null,0,null,null,null,null,null,null,"A Silber"]
[274,24,null,null,0,null,null,null,null,null,null,"A Silber"]
[275,25,null,null,0,null,null,null,null,null,null,"A Silber"]
[276,26,null,null,0,null,null,null,null,null,null,"A Silber"]
[277,27,null,null,0,null,null,null,null,null,null,"A Silber"]
[278,28,null,null,0,null,null,null,null,null,null,"A Silber"]
[279,29,null,null,0,null,null,null,null,null,null,"A Silber"]
[280,30,null,null,0,null,null,null,null,null,null,"A Silber"]
[281,31,null,null,0,null,null,null,null,null,null,"A Silber"]
[282,32,null,null,0,null,null,null,null,null,null,"A Silber"]
[283,33,null,null,0,null,null,null,null,null,null,"A Silber"]
[284,34,null,null,0,null,null,null,null,null,null,"A Silber"]
[285,35,null,null,0,null,null,null,null,null,null,"A Silber"]
[286,36,null,null,0,null,null,null,null,null,null,"A Silber"]
[287,37,null,null,0,null,null,null,null,null,null,"A Silber"]
[288,38,null,null,0,null,null,null,null,null,null,"A Silber"]
[289,39,null,null,0,null,null,null,null,null,null,"A Silber"]
[290,40,null,null,0,null,null,null,null,null,null,"A Silber"]
[291,41,null,null,0,null,null,null,null,null,null,"A Silber"]
[292,42,null,null,0,null,null,null,null,null,null,"A Silber"]
[293,43,null,null,0,null,null,null,null,null,null,"A Silber"]
[294,44,null,null,0,null,null,null,null,null,null,"A Silber"]
[295,45,null,null,0,null,null,null,null,null,null,"A Silber"]
[296,46,null,null,0,null,null,null,null,null,null,"A Silber"]
[297,47,null,null,0,null,null,null,null,null,null,"A Silber"]
[298,48,null,null,0,null,null,null,null,null,null,"A Silber"]
[299,49,null,null,0,null,null,null,null,null,null,"A Silber"]
[300,50,null,null,0,null,null,null,null,null,null,"A Silber"]
[301,1,null,null,0,null,null,null,null,null,null,"B Bronze"]
[302,2,null,null,0,null,null,null,null,null,null,"B Bronze"]
[303,3,null,null,0,null,null,null,null,null,null,"B Bronze"]
[304,4,null,null,0,null,null,null,null,null,null,"B Bronze"]
[305,5,null,null,0,null,null,null,null,null,null,"B Bronze"]
[306,6,null,null,0,null,null,null,null,null,null,"B Bronze"]
[307,7,null,null,0,null,null,null,null,null,null,"B Bronze"]
[308,8,null,null,0,null,null,null,null,null,null,"B Bronze"]
[309,9,null,null,0,null,null,null,null,null,null,"B Bronze"]
[310,10,null,null,0,null,null,null,null,null,null,"B Bronze"]
[311,11,null,null,0,null,null,null,null,null,null,"B Bronze"]
[312,12,null,null,0,null,null,null,null,null,null,"B Bronze"]
[313,13,null,null,0,null,null,null,null,null,null,"B Bronze"]
[314,14,null,null,0,null,null,null,null,null,null,"B Bronze"]
[315,15,null,null,0,null,null,null,null,null,null,"B Bronze"]
[316,16,null,null,0,null,null,null,null,null,null,"B Bronze"]
[317,17,null,null,0,null,null,null,null,null,null,"B Bronze"]
[318,18,null,null,0,null,null,null,null,null,null,"B Bronze"]
[319,19,null,null,0,null,null,null,null,null,null,"B Bronze"]
[320,20,null,null,0,null,null,null,null,null,null,"B Bronze"]
[321,21,null,null,0,null,null,null,null,null,null,"B Bronze"]
[322,22,null,null,0,null,null,null,null,null,null,"B Bronze"]
[323,23,null,null,0,null,null,null,null,null,null,"B Bronze"]
[324,24,null,null,0,null,null,null,null,null,null,"B Bronze"]
[325,25,null,null,0,null,null,null,null,null,null,"B Bronze"]
[326,26,null,null,0,null,null,null,null,null,null,"B Bronze"]
[327,27,null,null,0,null,null,null,null,null,null,"B Bronze"]
[328,28,null,null,0,null,null,null,null,null,null,"B Bronze"]
[329,29,null,null,0,null,null,null,null,null,null,"B Bronze"]
[330,30,null,null,0,null,null,null,null,null,null,"B Bronze"]
[331,31,null,null,0,null,null,null,null,null,null,"B Bronze"]
[332,32,null,null,0,null,null,null,null,null,null,"B Bronze"]
[333,33,null,null,0,null,null,null,null,null,null,"B Bronze"]
[334,34,null,null,0,null,null,null,null,null,null,"B Bronze"]
[335,35,null,null,0,null,null,null,null,null,null,"B Bronze"]
[336,36,null,null,0,null,null,null,null,null,null,"B Bronze"]
[337,37,null,null,0,null,null,null,null,null,null,"B Bronze"]
[338,38,null,null,0,null,null,null,null,null,null,"B Bronze"]
[339,39,null,null,0,null,null,null,null,null,null,"B Bronze"]
[340,40,null,null,0,null,null,null,null,null,null,"B Bronze"]
[341,41,null,null,0,null,null,null,null,null,null,"B Bronze"]
[342,42,null,null,0,null,null,null,null,null,null,"B Bronze"]
[343,43,null,null,0,null,null,null,null,null,null,"B Bronze"]
[344,44,null,null,0,null,null,null,null,null,null,"B Bronze"]
[345,45,null,null,0,null,null,null,null,null,null,"B Bronze"]
[346,46,null,null,0,null,null,null,null,null,null,"B Bronze"]
[347,47,null,null,0,null,null,null,null,null,null,"B Bronze"]
[348,48,null,null,0,null,null,null,null,null,null,"B Bronze"]
[349,49,null,null,0,null,null,null,null,null,null,"B Bronze"]
[350,50,null,null,0,null,null,null,null,null,null,"B Bronze"]
[351,1,null,null,0,null,null,null,null,null,null,"B Silber"]
[352,2,null,null,0,null,null,null,null,null,null,"B Silber"]
[353,3,null,null,0,null,null,null,null,null,null,"B Silber"]
[354,4,null,null,0,null,null,null,null,null,null,"B Silber"]
[355,5,null,null,0,null,null,null,null,null,null,"B Silber"]
[356,6,null,null,0,null,null,null,null,null,null,"B Silber"]
[357,7,null,null,0,null,null,null,null,null,null,"B Silber"]
[358,8,null,null,0,null,null,null,null,null,null,"B Silber"]
[359,9,null,null,0,null,null,null,null,null,null,"B Silber"]
[360,10,null,null,0,null,null,null,null,null,null,"B Silber"]
[361,11,null,null,0,null,null,null,null,null,null,"B Silber"]
[362,12,null,null,0,null,null,null,null,null,null,"B Silber"]
[363,13,null,null,0,null,null,null,null,null,null,"B Silber"]
[364,14,null,null,0,null,null,null,null,null,null,"B Silber"]
[365,15,null,null,0,null,null,null,null,null,null,"B Silber"]
[366,16,null,null,0,null,null,null,null,null,null,"B Silber"]
[367,17,null,null,0,null,null,null,null,null,null,"B Silber"]
[368,18,null,null,0,null,null,null,null,null,null,"B Silber"]
[369,19,null,null,0,null,null,null,null,null,null,"B Silber"]
[370,20,null,null,0,null,null,null,null,null,null,"B Silber"]
[371,21,null,null,0,null,null,null,null,null,null,"B Silber"]
[372,22,null,null,0,null,null,null,null,null,null,"B Silber"]
[373,23,null,null,0,null,null,null,null,null,null,"B Silber"]
[374,24,null,null,0,null,null,null,null,null,null,"B Silber"]
[375,25,null,null,0,null,null,null,null,null,null,"B Silber"]
[376,26,null,null,0,null,null,null,null,null,null,"B Silber"]
[377,27,null,null,0,null,null,null,null,null,null,"B Silber"]
[378,28,null,null,0,null,null,null,null,null,null,"B Silber"]
[379,29,null,null,0,null,null,null,null,null,null,"B Silber"]
[380,30,null,null,0,null,null,null,null,null,null,"B Silber"]
[381,31,null,null,0,null,null,null,null,null,null,"B Silber"]
[382,32,null,null,0,null,null,null,null,null,null,"B Silber"]
[383,33,null,null,0,null,null,null,null,null,null,"B Silber"]
[384,34,null,null,0,null,null,null,null,null,null,"B Silber"]
[385,35,null,null,0,null,null,null,null,null,null,"B Silber"]
[386,36,null,null,0,null,null,null,null,null,null,"B Silber"]
[387,37,null,null,0,null,null,null,null,null,null,"B Silber"]
[388,38,null,null,0,null,null,null,null,null,null,"B Silber"]
[389,39,null,null,0,null,null,null,null,null,null,"B Silber"]
[390,40,null,null,0,null,null,null,null,null,null,"B Silber"]
[391,41,null,null,0,null,null,null,null,null,null,"B Silber"]
[392,42,null,null,0,null,null,null,null,null,null,"B Silber"]
[393,43,null,null,0,null,null,null,null,null,null,"B Silber"]
[394,44,null,null,0,null,null,null,null,null,null,"B Silber"]
[395,45,null,null,0,null,null,null,null,null,null,"B Silber"]
[396,46,null,null,0,null,null,null,null,null,null,"B Silber"]
[397,47,null,null,0,null,null,null,null,null,null,"B Silber"]
[398,48,null,null,0,null,null,null,null,null,null,"B Silber"]
[399,49,null,null,0,null,null,null,null,null,null,"B Silber"]
[400,50,null,null,0,null,null,null,null,null,null,"B Silber"]
[401,1,null,null,0,null,null,null,null,null,null,"A Bronze"]
[402,2,null,null,0,null,null,null,null,null,null,"A Bronze"]
[403,3,null,null,0,null,null,null,null,null,null,"A Bronze"]
[404,4,null,null,0,null,null,null,null,null,null,"A Bronze"]
[405,5,null,null,0,null,null,null,null,null,null,"A Bronze"]
[406,6,null,null,0,null,null,null,null,null,null,"A Bronze"]
[407,7,null,null,0,null,null,null,null,null,null,"A Bronze"]
[408,8,null,null,0,null,null,null,null,null,null,"A Bronze"]
[409,9,null,null,0,null,null,null,null,null,null,"A Bronze"]
[410,10,null,null,0,null,null,null,null,null,null,"A Bronze"]
[411,11,null,null,0,null,null,null,null,null,null,"A Bronze"]
[412,12,null,null,0,null,null,null,null,null,null,"A Bronze"]
[413,13,null,null,0,null,null,null,null,null,null,"A Bronze"]
[414,14,null,null,0,null,null,null,null,null,null,"A Bronze"]
[415,15,null,null,0,null,null,null,null,null,null,"A Bronze"]
[416,16,null,null,0,null,null,null,null,null,null,"A Bronze"]
[417,17,null,null,0,null,null,null,null,null,null,"A Bronze"]
[418,18,null,null,0,null,null,null,null,null,null,"A Bronze"]
[419,19,null,null,0,null,null,null,null,null,null,"A Bronze"]
[420,20,null,null,0,null,null,null,null,null,null,"A Bronze"]
[421,21,null,null,0,null,null,null,null,null,null,"A Bronze"]
[422,22,null,null,0,null,null,null,null,null,null,"A Bronze"]
[423,23,null,null,0,null,null,null,null,null,null,"A Bronze"]
[424,24,null,null,0,null,null,null,null,null,null,"A Bronze"]
[425,25,null,null,0,null,null,null,null,null,null,"A Bronze"]
[426,26,null,null,0,null,null,null,null,null,null,"A Bronze"]
[427,27,null,null,0,null,null,null,null,null,null,"A Bronze"]
[428,28,null,null,0,null,null,null,null,null,null,"A Bronze"]
[429,29,null,null,0,null,null,null,null,null,null,"A Bronze"]
[430,30,null,null,0,null,null,null,null,null,null,"A Bronze"]
[431,31,null,null,0,null,null,null,null,null,null,"A Bronze"]
[432,32,null,null,0,null,null,null,null,null,null,"A Bronze"]
[433,33,null,null,0,null,null,null,null,null,null,"A Bronze"]
[434,34,null,null,0,null,null,null,null,null,null,"A Bronze"]
[435,35,null,null,0,null,null,null,null,null,null,"A Bronze"]
[436,36,null,null,0,null,null,null,null,null,null,"A Bronze"]
[437,37,null,null,0,null,null,null,null,null,null,"A Bronze"]
[438,38,null,null,0,null,null,null,null,null,null,"A Bronze"]
[439,39,null,null,0,null,null,null,null,null,null,"A Bronze"]
[440,40,null,null,0,null,null,null,null,null,null,"A Bronze"]
[441,41,null,null,0,null,null,null,null,null,null,"A Bronze"]
[442,42,null,null,0,null,null,null,null,null,null,"A Bronze"]
[443,43,null,null,0,null,null,null,null,null,null,"A Bronze"]
[444,44,null,null,0,null,null,null,null,null,null,"A Bronze"]
[445,45,null,null,0,null,null,null,null,null,null,"A Bronze"]
[446,46,null,null,0,null,null,null,null,null,null,"A Bronze"]
[447,47,null,null,0,null,null,null,null,null,null,"A Bronze"]
[448,48,null,null,0,null,null,null,null,null,null,"A Bronze"]
[449,49,null,null,0,null,null,null,null,null,null,"A Bronze"]
[450,50,null,null,0,null,null,null,null,null,null,"A Bronze"]
[451,1,null,null,0,null,null,null,null,null,null,"A Silber"]
[452,2,null,null,0,null,null,null,null,null,null,"A Silber"]
[453,3,null,null,0,null,null,null,null,null,null,"A Silber"]
[454,4,null,null,0,null,null,null,null,null,null,"A Silber"]
[455,5,null,null,0,null,null,null,null,null,null,"A Silber"]
[456,6,null,null,0,null,null,null,null,null,null,"A Silber"]
[457,7,null,null,0,null,null,null,null,null,null,"A Silber"]
[458,8,null,null,0,null,null,null,null,null,null,"A Silber"]
[459,9,null,null,0,null,null,null,null,null,null,"A Silber"]
[460,10,null,null,0,null,null,null,null,null,null,"A Silber"]
[461,11,null,null,0,null,null,null,null,null,null,"A Silber"]
[462,12,null,null,0,null,null,null,null,null,null,"A Silber"]
[463,13,null,null,0,null,null,null,null,null,null,"A Silber"]
[464,14,null,null,0,null,null,null,null,null,null,"A Silber"]
[465,15,null,null,0,null,null,null,null,null,null,"A Silber"]
[466,16,null,null,0,null,null,null,null,null,null,"A Silber"]
[467,17,null,null,0,null,null,null,null,null,null,"A Silber"]
[468,18,null,null,0,null,null,null,null,null,null,"A Silber"]
[469,19,null,null,0,null,null,null,null,null,null,"A Silber"]
[470,20,null,null,0,null,null,null,null,null,null,"A Silber"]
[471,21,null,null,0,null,null,null,null,null,null,"A Silber"]
[472,22,null,null,0,null,null,null,null,null,null,"A Silber"]
[473,23,null,null,0,null,null,null,null,null,null,"A Silber"]
[474,24,null,null,0,null,null,null,null,null,null,"A Silber"]
[475,25,null,null,0,null,null,null,null,null,null,"A Silber"]
[476,26,null,null,0,null,null,null,null,null,null,"A Silber"]
[477,27,null,null,0,null,null,null,null,null,null,"A Silber"]
[478,28,null,null,0,null,null,null,null,null,null,"A Silber"]
[479,29,null,null,0,null,null,null,null,null,null,"A Silber"]
[480,30,null,null,0,null,null,null,null,null,null,"A Silber"]
[481,31,null,null,0,null,null,null,null,null,null,"A Silber"]
[482,32,null,null,0,null,null,null,null,null,null,"A Silber"]
[483,33,null,null,0,null,null,null,null,null,null,"A Silber"]
[484,34,null,null,0,null,null,null,null,null,null,"A Silber"]
[485,35,null,null,0,null,null,null,null,null,null,"A Silber"]
[486,36,null,null,0,null,null,null,null,null,null,"A Silber"]
[487,37,null,null,0,null,null,null,null,null,null,"A Silber"]
[488,38,null,null,0,null,null,null,null,null,null,"A Silber"]
[489,39,null,null,0,null,null,null,null,null,null,"A Silber"]
[490,40,null,null,0,null,null,null,null,null,null,"A Silber"]
[491,41,null,null,0,null,null,null,null,null,null,"A Silber"]
[492,42,null,null,0,null,null,null,null,null,null,"A Silber"]
[493,43,null,null,0,null,null,null,null,null,null,"A Silber"]
[494,44,null,null,0,null,null,null,null,null,null,"A Silber"]
[495,45,null,null,0,null,null,null,null,null,null,"A Silber"]
[496,46,null,null,0,null,null,null,null,null,null,"A Silber"]
[497,47,null,null,0,null,null,null,null,null,null,"A Silber"]
[498,48,null,null,0,null,null,null,null,null,null,"A Silber"]
[499,49,null,null,0,null,null,null,null,null,null,"A Silber"]
[500,50,null,null,0,null,null,null,null,null,null,"A Silber"]
[501,1,null,null,0,null,null,null,null,null,null,"B Bronze"]
[502,2,null,null,0,null,null,null,null,null,null,"B Bronze"]
[503,3,null,null,0,null,null,null,null,null,null,"B Bronze"]
[504,4,null,null,0,null,null,null,null,null,null,"B Bronze"]
[505,5,null,null,0,null,null,null,null,null,null,"B Bronze"]
[506,6,null,null,0,null,null,null,null,null,null,"B Bronze"]
[507,7,null,null,0,null,null,null,null,null,null,"B Bronze"]
[508,8,null,null,0,null,null,null,null,null,null,"B Bronze"]
[509,9,null,null,0,null,null,null,null,null,null,"B Bronze"]
[510,10,null,null,0,null,null,null,null,null,null,"B Bronze"]
[511,11,null,null,0,null,null,null,null,null,null,"B Bronze"]
[512,12,null,null,0,null,null,null,null,null,null,"B Bronze"]
[513,13,null,null,0,null,null,null,null,null,null,"B Bronze"]
[514,14,null,null,0,null,null,null,null,null,null,"B Bronze"]
[515,15,null,null,0,null,null,null,null,null,null,"B Bronze"]
[516,16,null,null,0,null,null,null,null,null,null,"B Bronze"]
[517,17,null,null,0,null,null,null,null,null,null,"B Bronze"]
[518,18,null,null,0,null,null,null,null,null,null,"B Bronze"]
[519,19,null,null,0,null,null,null,null,null,null,"B Bronze"]
[520,20,null,null,0,null,null,null,null,null,null,"B Bronze"]
[521,21,null,null,0,null,null,null,null,null,null,"B Bronze"]
[522,22,null,null,0,null,null,null,null,null,null,"B Bronze"]
[523,23,null,null,0,null,null,null,null,null,null,"B Bronze"]
[524,24,null,null,0,null,null,null,null,null,null,"B Bronze"]
[525,25,null,null,0,null,null,null,null,null,null,"B Bronze"]
[526,26,null,null,0,null,null,null,null,null,null,"B Bronze"]
[527,27,null,null,0,null,null,null,null,null,null,"B Bronze"]
[528,28,null,null,0,null,null,null,null,null,null,"B Bronze"]
[529,29,null,null,0,null,null,null,null,null,null,"B Bronze"]
[530,30,null,null,0,null,null,null,null,null,null,"B Bronze"]
[531,31,null,null,0,null,null,null,null,null,null,"B Bronze"]
[532,32,null,null,0,null,null,null,null,null,null,"B Bronze"]
[533,33,null,null,0,null,null,null,null,null,null,"B Bronze"]
[534,34,null,null,0,null,null,null,null,null,null,"B Bronze"]
[535,35,null,null,0,null,null,null,null,null,null,"B Bronze"]
[536,36,null,null,0,null,null,null,null,null,null,"B Bronze"]
[537,37,null,null,0,null,null,null,null,null,null,"B Bronze"]
[538,38,null,null,0,null,null,null,null,null,null,"B Bronze"]
[539,39,null,null,0,null,null,null,null,null,null,"B Bronze"]
[540,40,null,null,0,null,null,null,null,null,null,"B Bronze"]
[541,41,null,null,0,null,null,null,null,null,null,"B Bronze"]
[542,42,null,null,0,null,null,null,null,null,null,"B Bronze"]
[543,43,null,null,0,null,null,null,null,null,null,"B Bronze"]
[544,44,null,null,0,null,null,null,null,null,null,"B Bronze"]
[545,45,null,null,0,null,null,null,null,null,null,"B Bronze"]
[546,46,null,null,0,null,null,null,null,null,null,"B Bronze"]
[547,47,null,null,0,null,null,null,null,null,null,"B Bronze"]
[548,48,null,null,0,null,null,null,null,null,null,"B Bronze"]
[549,49,null,null,0,null,null,null,null,null,null,"B Bronze"]
[550,50,null,null,0,null,null,null,null,null,null,"B Bronze"]
[551,1,null,null,0,null,null,null,null,null,null,"B Silber"]
[552,2,null,null,0,null,null,null,null,null,null,"B Silber"]
[553,3,null,null,0,null,null,null,null,null,null,"B Silber"]
[554,4,null,null,0,null,null,null,null,null,null,"B Silber"]
[555,5,null,null,0,null,null,null,null,null,null,"B Silber"]
[556,6,null,null,0,null,null,null,null,null,null,"B Silber"]
[557,7,null,null,0,null,null,null,null,null,null,"B Silber"]
[558,8,null,null,0,null,null,null,null,null,null,"B Silber"]
[559,9,null,null,0,null,null,null,null,null,null,"B Silber"]
[560,10,null,null,0,null,null,null,null,null,null,"B Silber"]
[561,11,null,null,0,null,null,null,null,null,null,"B Silber"]
[562,12,null,null,0,null,null,null,null,null,null,"B Silber"]
[563,13,null,null,0,null,null,null,null,null,null,"B Silber"]
[564,14,null,null,0,null,null,null,null,null,null,"B Silber"]
[565,15,null,null,0,null,null,null,null,null,null,"B Silber"]
[566,16,null,null,0,null,null,null,null,null,null,"B Silber"]
[567,17,null,null,0,null,null,null,null,null,null,"B Silber"]
[568,18,null,null,0,null,null,null,null,null,null,"B Silber"]
[569,19,null,null,0,null,null,null,null,null,null,"B Silber"]
[570,20,null,null,0,null,null,null,null,null,null,"B Silber"]
[571,21,null,null,0,null,null,null,null,null,null,"B Silber"]
[572,22,null,null,0,null,null,null,null,null,null,"B Silber"]
[573,23,null,null,0,null,null,null,null,null,null,"B Silber"]
[574,24,null,null,0,null,null,null,null,null,null,"B Silber"]
[575,25,null,null,0,null,null,null,null,null,null,"B Silber"]
[576,26,null,null,0,null,null,null,null,null,null,"B Silber"]
[577,27,null,null,0,null,null,null,null,null,null,"B Silber"]
[578,28,null,null,0,null,null,null,null,null,null,"B Silber"]
[579,29,null,null,0,null,null,null,null,null,null,"B Silber"]
[580,30,null,null,0,null,null,null,null,null,null,"B Silber"]
[581,31,null,null,0,null,null,null,null,null,null,"B Silber"]
[582,32,null,null,0,null,null,null,null,null,null,"B Silber"]
[583,33,null,null,0,null,null,null,null,null,null,"B Silber"]
[584,34,null,null,0,null,null,null,null,null,null,"B Silber"]
[585,35,null,null,0,null,null,null,null,null,null,"B Silber"]
[586,36,null,null,0,null,null,null,null,null,null,"B Silber"]
[587,37,null,null,0,null,null,null,null,null,null,"B Silber"]
[588,38,null,null,0,null,null,null,null,null,null,"B Silber"]
[589,39,null,null,0,null,null,null,null,null,null,"B Silber"]
[590,40,null,null,0,null,null,null,null,null,null,"B Silber"]
[591,41,null,null,0,null,null,null,null,null,null,"B Silber"]
[592,42,null,null,0,null,null,null,null,null,null,"B Silber"]
[593,43,null,null,0,null,null,null,null,null,null,"B Silber"]
[594,44,null,null,0,null,null,null,null,null,null,"B Silber"]
[595,45,null,null,0,null,null,null,null,null,null,"B Silber"]
[596,46,null,null,0,null,null,null,null,null,null,"B Silber"]
[597,47,null,null,0,null,null,null,null,null,null,"B Silber"]
[598,48,null,null,0,null,null,null,null,null,null,"B Silber"]
[599,49,null,null,0,null,null,null,null,null,null,"B Silber"]
[600,50,null,null,0,null,null,null,null,null,null,"B Silber"]
[601,1,null,null,0,null,null,null,null,null,null,"A Bronze"]
[602,2,null,null,0,null,null,null,null,null,null,"A Bronze"]
[603,3,null,null,0,null,null,null,null,null,null,"A Bronze"]
[604,4,null,null,0,null,null,null,null,null,null,"A Bronze"]
[605,5,null,null,0,null,null,null,null,null,null,"A Bronze"]
[606,6,null,null,0,null,null,null,null,null,null,"A Bronze"]
[607,7,null,null,0,null,null,null,null,null,null,"A Bronze"]
[608,8,null,null,0,null,null,null,null,null,null,"A Bronze"]
[609,9,null,null,0,null,null,null,null,null,null,"A Bronze"]
[610,10,null,null,0,null,null,null,null,null,null,"A Bronze"]
[611,11,null,null,0,null,null,null,null,null,null,"A Bronze"]
[612,12,null,null,0,null,null,null,null,null,null,"A Bronze"]
[613,13,null,null,0,null,null,null,null,null,null,"A Bronze"]
[614,14,null,null,0,null,null,null,null,null,null,"A Bronze"]
[615,15,null,null,0,null,null,null,null,null,null,"A Bronze"]
[616,16,null,null,0,null,null,null,null,null,null,"A Bronze"]
[617,17,null,null,0,null,null,null,null,null,null,"A Bronze"]
[618,18,null,null,0,null,null,null,null,null,null,"A Bronze"]
[619,19,null,null,0,null,null,null,null,null,null,"A Bronze"]
[620,20,null,null,0,null,null,null,null,null,null,"A Bronze"]
[621,21,null,null,0,null,null,null,null,null,null,"A Bronze"]
[622,22,null,null,0,null,null,null,null,null,null,"A Bronze"]
[623,23,null,null,0,null,null,null,null,null,null,"A Bronze"]
[624,24,null,null,0,null,null,null,null,null,null,"A Bronze"]
[625,25,null,null,0,null,null,null,null,null,null,"A Bronze"]
[626,26,null,null,0,null,null,null,null,null,null,"A Bronze"]
[627,27,null,null,0,null,null,null,null,null,null,"A Bronze"]
[628,28,null,null,0,null,null,null,null,null,null,"A Bronze"]
[629,29,null,null,0,null,null,null,null,null,null,"A Bronze"]
[630,30,null,null,0,null,null,null,null,null,null,"A Bronze"]
[631,31,null,null,0,null,null,null,null,null,null,"A Bronze"]
[632,32,null,null,0,null,null,null,null,null,null,"A Bronze"]
[633,33,null,null,0,null,null,null,null,null,null,"A Bronze"]
[634,34,null,null,0,null,null,null,null,null,null,"A Bronze"]
[635,35,null,null,0,null,null,null,null,null,null,"A Bronze"]
[636,36,null,null,0,null,null,null,null,null,null,"A Bronze"]
[637,37,null,null,0,null,null,null,null,null,null,"A Bronze"]
[638,38,null,null,0,null,null,null,null,null,null,"A Bronze"]
[639,39,null,null,0,null,null,null,null,null,null,"A Bronze"]
[640,40,null,null,0,null,null,null,null,null,null,"A Bronze"]
[641,41,null,null,0,null,null,null,null,null,null,"A Bronze"]
[642,42,null,null,0,null,null,null,null,null,null,"A Bronze"]
[643,43,null,null,0,null,null,null,null,null,null,"A Bronze"]
[644,44,null,null,0,null,null,null,null,null,null,"A Bronze"]
[645,45,null,null,0,null,null,null,null,null,null,"A Bronze"]
[646,46,null,null,0,null,null,null,null,null,null,"A Bronze"]
[647,47,null,null,0,null,null,null,null,null,null,"A Bronze"]
[648,48,null,null,0,null,null,null,null,null,null,"A Bronze"]
[649,49,null,null,0,null,null,null,null,null,null,"A Bronze"]
[650,50,null,null,0,null,null,null,null,null,null,"A Bronze"]
[651,1,null,null,0,null,null,null,null,null,null,"A Silber"]
[652,2,null,null,0,null,null,null,null,null,null,"A Silber"]
[653,3,null,null,0,null,null,null,null,null,null,"A Silber"]
[654,4,null,null,0,null,null,null,null,null,null,"A Silber"]
[655,5,null,null,0,null,null,null,null,null,null,"A Silber"]
[656,6,null,null,0,null,null,null,null,null,null,"A Silber"]
[657,7,null,null,0,null,null,null,null,null,null,"A Silber"]
[658,8,null,null,0,null,null,null,null,null,null,"A Silber"]
[659,9,null,null,0,null,null,null,null,null,null,"A Silber"]
[660,10,null,null,0,null,null,null,null,null,null,"A Silber"]
[661,11,null,null,0,null,null,null,null,null,null,"A Silber"]
[662,12,null,null,0,null,null,null,null,null,null,"A Silber"]
[663,13,null,null,0,null,null,null,null,null,null,"A Silber"]
[664,14,null,null,0,null,null,null,null,null,null,"A Silber"]
[665,15,null,null,0,null,null,null,null,null,null,"A Silber"]
[666,16,null,null,0,null,null,null,null,null,null,"A Silber"]
[667,17,null,null,0,null,null,null,null,null,null,"A Silber"]
[668,18,null,null,0,null,null,null,null,null,null,"A Silber"]
[669,19,null,null,0,null,null,null,null,null,null,"A Silber"]
[670,20,null,null,0,null,null,null,null,null,null,"A Silber"]
[671,21,null,null,0,null,null,null,null,null,null,"A Silber"]
[672,22,null,null,0,null,null,null,null,null,null,"A Silber"]
[673,23,null,null,0,null,null,null,null,null,null,"A Silber"]
[674,24,null,null,0,null,null,null,null,null,null,"A Silber"]
[675,25,null,null,0,null,null,null,null,null,null,"A Silber"]
[676,26,null,null,0,null,null,null,null,null,null,"A Silber"]
[677,27,null,null,0,null,null,null,null,null,null,"A Silber"]
[678,28,null,null,0,null,null,null,null,null,null,"A Silber"]
[679,29,null,null,0,null,null,null,null,null,null,"A Silber"]
[680,30,null,null,0,null,null,null,null,null,null,"A Silber"]
[681,31,null,null,0,null,null,null,null,null,null,"A Silber"]
[682,32,null,null,0,null,null,null,null,null,null,"A Silber"]
[683,33,null,null,0,null,null,null,null,null,null,"A Silber"]
[684,34,null,null,0,null,null,null,null,null,null,"A Silber"]
[685,35,null,null,0,null,null,null,null,null,null,"A Silber"]
[686,36,null,null,0,null,null,null,null,null,null,"A Silber"]
[687,37,null,null,0,null,null,null,null,null,null,"A Silber"]
[688,38,null,null,0,null,null,null,null,null,null,"A Silber"]
[689,39,null,null,0,null,null,null,null,null,null,"A Silber"]
[690,40,null,null,0,null,null,null,null,null,null,"A Silber"]
[691,41,null,null,0,null,null,null,null,null,null,"A Silber"]
[692,42,null,null,0,null,null,null,null,null,null,"A Silber"]
[693,43,null,null,0,null,null,null,null,null,null,"A Silber"]
[694,44,null,null,0,null,null,null,null,null,null,"A Silber"]
[695,45,null,null,0,null,null,null,null,null,null,"A Silber"]
[696,46,null,null,0,null,null,null,null,null,null,"A Silber"]
[697,47,null,null,0,null,null,null,null,null,null,"A Silber"]
[698,48,null,null,0,null,null,null,null,null,null,"A Silber"]
[699,49,null,null,0,null,null,null,null,null,null,"A Silber"]
[700,50,null,null,0,null,null,null,null,null,null,"A Silber"]
[701,1,null,null,0,null,null,null,null,null,null,"B Bronze"]
[702,2,null,null,0,null,null,null,null,null,null,"B Bronze"]
[703,3,null,null,0,null,null,null,null,null,null,"B Bronze"]
[704,4,null,null,0,null,null,null,null,null,null,"B Bronze"]
[705,5,null,null,0,null,null,null,null,null,null,"B Bronze"]
[706,6,null,null,0,null,null,null,null,null,null,"B Bronze"]
[707,7,null,null,0,null,null,null,null,null,null,"B Bronze"]
[708,8,null,null,0,null,null,null,null,null,null,"B Bronze"]
[709,9,null,null,0,null,null,null,null,null,null,"B Bronze"]
[710,10,null,null,0,null,null,null,null,null,null,"B Bronze"]
[711,11,null,null,0,null,null,null,null,null,null,"B Bronze"]
[712,12,null,null,0,null,null,null,null,null,null,"B Bronze"]
[713,13,null,null,0,null,null,null,null,null,null,"B Bronze"]
[714,14,null,null,0,null,null,null,null,null,null,"B Bronze"]
[715,15,null,null,0,null,null,null,null,null,null,"B Bronze"]
[716,16,null,null,0,null,null,null,null,null,null,"B Bronze"]
[717,17,null,null,0,null,null,null,null,null,null,"B Bronze"]
[718,18,null,null,0,null,null,null,null,null,null,"B Bronze"]
[719,19,null,null,0,null,null,null,null,null,null,"B Bronze"]
[720,20,null,null,0,null,null,null,null,null,null,"B Bronze"]
[721,21,null,null,0,null,null,null,null,null,null,"B Bronze"]
[722,22,null,null,0,null,null,null,null,null,null,"B Bronze"]
[723,23,null,null,0,null,null,null,null,null,null,"B Bronze"]
[724,24,null,null,0,null,null,null,null,null,null,"B Bronze"]
[725,25,null,null,0,null,null,null,null,null,null,"B Bronze"]
[726,26,null,null,0,null,null,null,null,null,null,"B Bronze"]
[727,27,null,null,0,null,null,null,null,null,null,"B Bronze"]
[728,28,null,null,0,null,null,null,null,null,null,"B Bronze"]
[729,29,null,null,0,null,null,null,null,null,null,"B Bronze"]
[730,30,null,null,0,null,null,null,null,null,null,"B Bronze"]
[731,31,null,null,0,null,null,null,null,null,null,"B Bronze"]
[732,32,null,null,0,null,null,null,null,null,null,"B Bronze"]
[733,33,null,null,0,null,null,null,null,null,null,"B Bronze"]
[734,34,null,null,0,null,null,null,null,null,null,"B Bronze"]
[735,35,null,null,0,null,null,null,null,null,null,"B Bronze"]
[736,36,null,null,0,null,null,null,null,null,null,"B Bronze"]
[737,37,null,null,0,null,null,null,null,null,null,"B Bronze"]
[738,38,null,null,0,null,null,null,null,null,null,"B Bronze"]
[739,39,null,null,0,null,null,null,null,null,null,"B Bronze"]
[740,40,null,null,0,null,null,null,null,null,null,"B Bronze"]
[741,41,null,null,0,null,null,null,null,null,null,"B Bronze"]
[742,42,null,null,0,null,null,null,null,null,null,"B Bronze"]
[743,43,null,null,0,null,null,null,null,null,null,"B Bronze"]
[744,44,null,null,0,null,null,null,null,null,null,"B Bronze"]
[745,45,null,null,0,null,null,null,null,null,null,"B Bronze"]
[746,46,null,null,0,null,null,null,null,null,null,"B Bronze"]
[747,47,null,null,0,null,null,null,null,null,null,"B Bronze"]
[748,48,null,null,0,null,null,null,null,null,null,"B Bronze"]
[749,49,null,null,0,null,null,null,null,null,null,"B Bronze"]
[750,50,null,null,0,null,null,null,null,null,null,"B Bronze"]
[751,1,null,null,0,null,null,null,null,null,null,"B Silber"]
[752,2,null,null,0,null,null,null,null,null,null,"B Silber"]
[753,3,null,null,0,null,null,null,null,null,null,"B Silber"]
[754,4,null,null,0,null,null,null,null,null,null,"B Silber"]
[755,5,null,null,0,null,null,null,null,null,null,"B Silber"]
[756,6,null,null,0,null,null,null,null,null,null,"B Silber"]
[757,7,null,null,0,null,null,null,null,null,null,"B Silber"]
[758,8,null,null,0,null,null,null,null,null,null,"B Silber"]
[759,9,null,null,0,null,null,null,null,null,null,"B Silber"]
[760,10,null,null,0,null,null,null,null,null,null,"B Silber"]
[761,11,null,null,0,null,null,null,null,null,null,"B Silber"]
[762,12,null,null,0,null,null,null,null,null,null,"B Silber"]
[763,13,null,null,0,null,null,null,null,null,null,"B Silber"]
[764,14,null,null,0,null,null,null,null,null,null,"B Silber"]
[765,15,null,null,0,null,null,null,null,null,null,"B Silber"]
[766,16,null,null,0,null,null,null,null,null,null,"B Silber"]
[767,17,null,null,0,null,null,null,null,null,null,"B Silber"]
[768,18,null,null,0,null,null,null,null,null,null,"B Silber"]
[769,19,null,null,0,null,null,null,null,null,null,"B Silber"]
[770,20,null,null,0,null,null,null,null,null,null,"B Silber"]
[771,21,null,null,0,null,null,null,null,null,null,"B Silber"]
[772,22,null,null,0,null,null,null,null,null,null,"B Silber"]
[773,23,null,null,0,null,null,null,null,null,null,"B Silber"]
[774,24,null,null,0,null,null,null,null,null,null,"B Silber"]
[775,25,null,null,0,null,null,null,null,null,null,"B Silber"]
[776,26,null,null,0,null,null,null,null,null,null,"B Silber"]
[777,27,null,null,0,null,null,null,null,null,null,"B Silber"]
[778,28,null,null,0,null,null,null,null,null,null,"B Silber"]
[779,29,null,null,0,null,null,null,null,null,null,"B Silber"]
[780,30,null,null,0,null,null,null,null,null,null,"B Silber"]
[781,31,null,null,0,null,null,null,null,null,null,"B Silber"]
[782,32,null,null,0,null,null,null,null,null,null,"B Silber"]
[783,33,null,null,0,null,null,null,null,null,null,"B Silber"]
[784,34,null,null,0,null,null,null,null,null,null,"B Silber"]
[785,35,null,null,0,null,null,null,null,null,null,"B Silber"]
[786,36,null,null,0,null,null,null,null,null,null,"B Silber"]
[787,37,null,null,0,null,null,null,null,null,null,"B Silber"]
[788,38,null,null,0,null,null,null,null,null,null,"B Silber"]
[789,39,null,null,0,null,null,null,null,null,null,"B Silber"]
[790,40,null,null,0,null,null,null,null,null,null,"B Silber"]
[791,41,null,null,0,null,null,null,null,null,null,"B Silber"]
[792,42,null,null,0,null,null,null,null,null,null,"B Silber"]
[793,43,null,null,0,null,null,null,null,null,null,"B Silber"]
[794,44,null,null,0,null,null,null,null,null,null,"B Silber"]
[795,45,null,null,0,null,null,null,null,null,null,"B Silber"]
[796,46,null,null,0,null,null,null,null,null,null,"B Silber"]
[797,47,null,null,0,null,null,null,null,null,null,"B Silber"]
[798,48,null,null,0,null,null,null,null,null,null,"B Silber"]
[799,49,null,null,0,null,null,null,null,null,null,"B Silber"]
[800,50,null,null,0,null,null,null,null,null,null,"B Silber"]
[null,51,null,null,0,null,null,null,null,null,null,"B Silber"]
[null,52,null,null,0,null,null,null,null,null,null,"B Silber"]
[null,53,null,null,0,null,null,null,null,null,null,"B Silber"]
[null,54,null,null,0,null,null,null,null,null,null,"B Silber"]
[null,55,null,null,0,null,null,null,null,null,null,"B Silber"]
[null,56,null,null,0,null,null,null,null,null,null,"B Silber"]
[null,57,null,null,0,null,null,null,null,null,null,"B Silber"]
[null,58,null,null,0,null,null,null,null,null,null,"B Silber"]
[null,59,null,null,0,null,null,null,null,null,null,"B Silber"]
[null,60,null,null,0,null,null,null,null,null,null,"B Silber"]
[null,61,null,null,0,null,null,null,null,null,null,"B Silber"]
[null,62,null,null,0,null,null,null,null,null,null,"B Silber"]
[null,63,null,null,0,null,null,null,null,null,null,"B Silber"]
[null,64,null,null,0,null,null,null,null,null,null,"B Silber"]
[null,65,null,null,0,null,null,null,null,null,null,"B Silber"]
[null,66,null,null,0,null,null,null,null,null,null,"B Silber"]
[null,67,null,null,0,null,null,null,null,null,null,"B Silber"]
[null,68,null,null,0,null,null,null,null,null,null,"B Silber"]
[null,69,null,null,0,null,null,null,null,null,null,"B Silber"]
[null,70,null,null,0,null,null,null,null,null,null,"B Silber"]

{"sheet":"Bericht","index":20,"n_rows":85,"n_cols":9,"rows_kept":85,"cut":false,"hidden":false,"merged":[]}
["Bewerbsleiter"]
[]
[]
[]
["An den"]
["NÖ Landesfeuerwehrverband"]
["Landesfeuerwehrkommando"]
["Langenlebarner Straße 108"]
["3430 Tulln"]
[]
[]
["Bezug: Zl.:",null,null,null,null,null,null,null,{"$f":"Bewerbsort& \", am \" & TEXT(Datum, \"T.M.JJJJ\")","v":", am 0.1.1900"}]
[]
[]
["Bericht über die Durchführung"]
["eines Bezirksfeuerwehrleistungsbewerbes"]
["eines Abschnittsfeuerwehrleistungsbewerbes"]
[]
[{"$f":"\"am \" & TEXT(Datum, \"T.M.JJJJ\") & \" in \" & Bewerbsort","v":"am 0.1.1900 in "}]
[]
[null,null,null,"BFKDO/        AFKDO ",null,"Zwettl"]
[]
["Vorbereitung:"]
[]
[null,null,null,null,"i.O.","n.i.O.","Anmerkung"]
["Wertungsblätter (vom BFKDO/AFKDO vorbereitet)",null,null,null,"x",null,"in Ordnung"]
["Bewerbsplatz (Zustand, Größe)",null,null,null,"x",null,"Wiese, Größe ausreichend"]
["Staffellaufbahn (Art, Zustand, Länge)",null,null,null,"x",null,"Asphaltstraße, Länge 400 m"]
["Bewerbsgeräte",null,null,null,"x",null,"Bezirksgerät"]
["Absperrungen",null,null,null,"x",null,"in Ordnung"]
["Berechnungsausschuss A",null,null,null,"x",null,"Beim Bewerbsplatz"]
["Berechnungsausschuss B",null,null,null,"x",null,"Feuerwehrhaus"]
[]
[]
[]
[]
["Bewerb:"]
[]
["Bewerbsleiter"]
["Leiter Ber.Ausschuss A"]
["Leiter Ber.Ausschuss B"]
["Leiter Staffellauf"]
["Bewerter Staffellauf"]
["Hauptbewerter"]
["Bewerter 1"]
["Bewerter 2"]
["Bewerter 3"]
["Bewerter 4"]
[]
["Angetretene Gruppen:"]
[]
["Bronze A",{"$f":"COUNT(Br_A!B6:B75)","v":0},"Bronze B",{"$f":"COUNT(Br_B!B6:B75)","v":0},"Gäste 1:","Bronze A",{"$f":"COUNT(G1_Br_A!B6:B75)","v":0},"Bronze B",{"$f":"COUNT(G1_Br_B!B6:B75)","v":0}]
["Silber A",{"$f":"COUNT(Si_A!B6:B75)","v":0},"Silber B",{"$f":"COUNT(Si_B!B6:B75)","v":0},null,"Silber A",{"$f":"COUNT(G1_Si_A!B6:B75)","v":0},"Silber B",{"$f":"COUNT(G1_Si_B!B6:B75)","v":0}]
[]
[null,null,null,null,null,"Bronze A",{"$f":"COUNT(G2_Br_A!B6:B75)","v":0},"Bronze B",{"$f":"COUNT(G2_Br_B!B6:B75)","v":0}]
[null,null,null,null,null,"Silber A",{"$f":"COUNT(G2_Si_A!B6:B75)","v":0},"Silber B",{"$f":"COUNT(G2_Si_B!B6:B75)","v":0}]
[]
["Vergebene Preise:"]
[]
["Bronze A",{"$f":"MAX(Br_A!AU6:AU22)","v":0},"Bronze B",{"$f":"MAX(Br_B!AU6:AU22)","v":0},"Gäste 1:","Bronze A",{"$f":"MAX(G1_Br_A!AU6:AU22)","v":0},"Bronze B",{"$f":"MAX(G1_Br_B!AU6:AU22)","v":0}]
["Silber A",{"$f":"MAX(Si_A!AU6:AU22)","v":0},"Silber B",{"$f":"MAX(Si_B!AU6:AU22)","v":0},null,"Silber A",{"$f":"MAX(G1_Si_A!AU6:AU22)","v":0},"Silber B",{"$f":"MAX(G1_Si_B!AU6:AU22)","v":0}]
[]
[null,null,null,null,"Gäste 2:","Bronze A",{"$f":"MAX(G2_Br_A!AU6:AU22)","v":0},"Bronze B",{"$f":"MAX(G2_Br_B!AU6:AU22)","v":0}]
[null,null,null,null,null,"Silber A",{"$f":"MAX(G2_Si_A!AU6:AU22)","v":0},"Silber B",{"$f":"MAX(G2_Si_B!AU6:AU22)","v":0}]
[]
[]
["Verletzungen /Name, FF, Art):",null,null,"lt. Beilage"]
[]
[]
[]
[]
["Siegerverkündung",null,null,"Wiese beim Feuerwehrhaus"]
[]
[]
["Einsprüche",null,null,"keine"]
[]
["Besondere Vorkommnisse:",null,null,"keine"]
[]
[]
[]
[]
[]
[]
[]
["Der Bezirksfeuerwehrkommandant:",null,null,null,null,"Der Bewerbsleiter:"]

{"sheet":"Gesamtergebnis","index":21,"n_rows":6,"n_cols":46,"rows_kept":6,"cut":false,"hidden":false,"merged":[]}
[{"$f":"Bewerbsart","v":"Abschnittsfeuerwehrleistungsbewerb"}]
[{"$f":"TEXT(Datum,\"T.MMMM JJJJ\")&\"  -  \"& Bewerbsort","v":"0.Jänner 1900  -  "}]
["Gesamtergebnis",null,null,"Klasse"]
[]
[null,null,null,null,"Löschangriff",null,"Staffellauf"]
["Platz","Nummer","Gruppe","Stammpunkte","Zeit","Fehler","Zeit","Fehler","Alters-\nPunkte","Gesamt- punkte","Löschangr","Staffell.","Jahre",null,"Geb1","Geb2","Geb3","Geb4","Geb5","Geb6","Geb7","Geb8","Geb9",null,null,"Urk. gedr.","Name1","Name2","Name3","Name4","Name5","Name6","Name7","Name8","Name9","FW-Nr","Stb1","Stb2","Stb3","Stb4","Stb5","Stb6","Stb7","Stb8","Stb9","Pokale"]